Workbook

Sheet Portada
F4: Indicadores de sosteniblidad fiscal
F6: DIRECCIÓN GENERAL DE FINANZAS

Sheet Principal
F3: 1 | G3: Elija el año inicial de deuda | J3: 2016
F5: 2 | G5: Nivel de deuda inicial | J5: =+J9 -> 50.19 | K5: %PIB
F7: 3 | G7: Periodos en evaluación finita | J7: 25 | K7: 1 a 25
F9: 4 | G9: Nivel de deuda final | J9: 50.19 | K9: %PIB
F11: 5 | G11: Agregue pronósticos
G13: Año | H13: =+J3+1 -> 2017 | I13: =+H13+1 -> 2018 | J13: =+I13+1 -> 2019 | K13: 2020 | L13: 2021 | M13: 2022 | N13: 2023 | O13: Largo plazo
G14: Ingresos presupuestarios | H14: 21.2 | I14: 21.1 | J14: 21 | K14: 20.9 | L14: 21.2 | M14: 21.5 | N14: 21.5 | O14: =+O15+O16+O17 -> 21.2
G15: Ingresos pretroleros | H15: 3.8 | I15: 3.7 | J15: 3.6 | K15: 3.5 | L15: 3.7 | M15: 3.9 | N15: 3.9 | O15: =+AVERAGE(H15:N15) -> 3.728571429
G16: Ingresos tributarios no petroleroes (Ʈ) | H16: 13.4 | I16: 13.5 | J16: 13.5 | K16: 13.6 | L16: 13.7 | M16: 13.7 | N16: 13.7 | O16: =+AVERAGE(H16:N16) -> 13.58571429
G17: Otros ingresos públicos | H17: 4 | I17: 3.9 | J17: 3.9 | K17: 3.8 | L17: 3.8 | M17: 3.9 | N17: 3.9 | O17: =+AVERAGE(H17:N17) -> 3.885714286
G18: Gasto público neto sin costos financieros (g) | H18: =+H19-H20 -> 20.9 | I18: =+I19-I20 -> 20.2 | J18: =+J19-J20 -> 19.9 | K18: 19.8 | L18: 20 | M18: 20.1 | N18: 20.1 | O18: =+O19-O20 -> 20.14285714
G19: Gasto público neto | H19: 23.7 | I19: 23.1 | J19: 23 | K19: 22.9 | L19: 23.2 | M19: 23.5 | N19: 23.5 | O19: =+AVERAGE(H19:N19) -> 23.27142857
G20: Costos financieros | H20: 2.8 | I20: 2.9 | J20: 3.1 | K20: 3.1 | L20: 3.2 | M20: 3.4 | N20: 3.4 | O20: 3.128571429
G21: Déficit primario | H21: =+H18-H15-H16-H17 -> -0.3 | I21: =+I18-I15-I16-I17 -> -0.9 | J21: -1.1 | K21: -1.1 | L21: -1.2 | M21: -1.4 | N21: -1.4 | O21: =+O18-O15-O16-O17 -> -1.057142857
G22: Tasa de interés real ( r ) | H22: 0.0324 | I22: 0.0424 | J22: 0.0496 | K22: 0.0518 | L22: 0.05349593496 | M22: 0.0602 | N22: 0.0602 | O22: =+H25 -> 0.06130045299
G23: Tasa de crecimiento real | H23: 0.026 | I23: 0.03 | J23: 0.035 | K23: 0.035 | L23: 0.045 | M23: 0.045 | N23: 0.045 | O23: =+H26 -> 0.0308
G25: Tasa de interés de largo plazo | H25: 0.06130045299
G26: Tasa de crecimiento de largo plazo | H26: 0.0308
G27: Notas:
G28: Los valores de largo plazo para las variables del sector público corresponden al valor promedio de los periodos anteriores.
G29: En el horizonte de evaluación infinita se utilizan los valores de largo plazo de tasa de interés y de crecimiento económico.
F31: 6 | G31: Simulación

Sheet Resultados
F2: Valores de referencia | J2: Simulacion | K2: =+IF(ABS(T!AJ6)<0.01,"Ok","Algo salio mal en la simulación") -> Ok
F3: Año inicial o deuda inicial al año | G3: =+Principal!J3 -> 2016
F4: Periodos de evaluar en el horizonte finito | G4: =+Principal!J7 -> 25
G6: =+G3+1 -> 2017
F7: Déficit primario pronosticado | G7: =+T!B3 -> -0.3
F8: Ingresos tributarios pronosticado | G8: =+T!E3 -> 13.4
F10: Ajuste inmediato
G11: Infinito | H11: Finito
F12: Nivel sostenible
F13: Déficit primario | G13: =+T!AF2 -> -1.485077353 | H13: =+T!AB2 -> -1.183737099
F14: Ingresos tributarios | G14: =+T!AG2 -> 13.90237991 | H14: =+T!AC2 -> 13.71418313
F16: Indicadores
F17: Ajuste al déficit primario | G17: =+G13-$G$7 -> -1.185077353 | H17: =+H13-$G$7 -> -0.8837370992
F18: Ajuste a los ingresos tributarios | G18: =+G14-$G$8 -> 0.5023799124 | H18: =+H14-$G$8 -> 0.3141831304
F21: Análisis de sensibilidad Déficit primario
F22: Horizonte infinito (r,cy constantes)
F24: c_y/r | G24: 0 | H24: =+G24+0.01 -> 0.01 | I24: =+H24+0.01 -> 0.02 | J24: 0.03 | K24: 0.04 | L24: 0.05 | M24: 0.06 | N24: 0.07 | O24: 0.08 | P24: 0.09 | Q24: 0.1
F25: 0 | G25: =+T!AO21-$G$7 -> 0.3 | H25: =+T!AP21-$G$7 -> -0.2019 | I25: =+T!AQ21-$G$7 -> -0.7038 | J25: =+T!AR21-$G$7 -> -1.2057 | K25: =+T!AS21-$G$7 -> -1.7076 | L25: =+T!AT21-$G$7 -> -2.2095 | M25: =+T!AU21-$G$7 -> -2.7114 | N25: =+T!AV21-$G$7 -> -3.2133 | O25: =+T!AW21-$G$7 -> -3.7152 | P25: =+T!AX21-$G$7 -> -4.2171 | Q25: =+T!AY21-$G$7 -> -4.719
F26: =+F25+0.01 -> 0.01 | G26: =+T!AO22 ->  | H26: =+T!AP22-$G$7 -> 0.3 | I26: =+T!AQ22-$G$7 -> -0.1969306931 | J26: =+T!AR22-$G$7 -> -0.6938613861 | K26: =+T!AS22-$G$7 -> -1.190792079 | L26: =+T!AT22-$G$7 -> -1.687722772 | M26: =+T!AU22-$G$7 -> -2.184653465 | N26: =+T!AV22-$G$7 -> -2.681584158 | O26: =+T!AW22-$G$7 -> -3.178514851 | P26: =+T!AX22-$G$7 -> -3.675445545 | Q26: =+T!AY22-$G$7 -> -4.172376238
F27: =+F26+0.01 -> 0.02 | G27: =+T!AO23 ->  | H27: =+T!AP23 ->  | I27: =+T!AQ23-$G$7 -> 0.3 | J27: =+T!AR23-$G$7 -> -0.1920588235 | K27: =+T!AS23-$G$7 -> -0.6841176471 | L27: =+T!AT23-$G$7 -> -1.176176471 | M27: =+T!AU23-$G$7 -> -1.668235294 | N27: =+T!AV23-$G$7 -> -2.160294118 | O27: =+T!AW23-$G$7 -> -2.652352941 | P27: =+T!AX23-$G$7 -> -3.144411765 | Q27: =+T!AY23-$G$7 -> -3.636470588
F28: 0.03 | G28: =+T!AO24 ->  | H28: =+T!AP24 ->  | I28: =+T!AQ24 ->  | J28: =+T!AR24-$G$7 -> 0.3 | K28: =+T!AS24-$G$7 -> -0.1872815534 | L28: =+T!AT24-$G$7 -> -0.6745631068 | M28: =+T!AU24-$G$7 -> -1.16184466 | N28: =+T!AV24-$G$7 -> -1.649126214 | O28: =+T!AW24-$G$7 -> -2.136407767 | P28: =+T!AX24-$G$7 -> -2.62368932 | Q28: =+T!AY24-$G$7 -> -3.110970874
F29: 0.04 | G29: =+T!AO25 ->  | H29: =+T!AP25 ->  | I29: =+T!AQ25 ->  | J29: =+T!AR25 ->  | K29: =+T!AS25-$G$7 -> 0.3 | L29: =+T!AT25-$G$7 -> -0.1825961538 | M29: =+T!AU25-$G$7 -> -0.6651923077 | N29: =+T!AV25-$G$7 -> -1.147788462 | O29: =+T!AW25-$G$7 -> -1.630384615 | P29: =+T!AX25-$G$7 -> -2.112980769 | Q29: =+T!AY25-$G$7 -> -2.595576923
F30: 0.05 | G30: =+T!AO26 ->  | H30: =+T!AP26 ->  | I30: =+T!AQ26 ->  | J30: =+T!AR26 ->  | K30: =+T!AS26 ->  | L30: =+T!AT26-$G$7 -> 0.3 | M30: =+T!AU26-$G$7 -> -0.178 | N30: =+T!AV26-$G$7 -> -0.656 | O30: =+T!AW26-$G$7 -> -1.134 | P30: =+T!AX26-$G$7 -> -1.612 | Q30: =+T!AY26-$G$7 -> -2.09
F32: Análisis de sensibilidad ingreso tributario
F33: Horizonte infinito (r,cy constantes)
F34: c_y/r | G34: 0 | H34: =+G34+0.01 -> 0.01 | I34: =+H34+0.01 -> 0.02 | J34: 0.03 | K34: 0.04 | L34: 0.05 | M34: 0.06 | N34: 0.07 | O34: 0.08 | P34: 0.09 | Q34: 0.1
F35: 0 | G35: =+T!AO34-$G$8 -> -1.1 | H35: =+T!AP34-$G$8 -> -0.5584561696 | I35: =+T!AQ34-$G$8 -> -0.01691233929 | J35: =+T!AR34-$G$8 -> 0.5246314911 | K35: =+T!AS34-$G$8 -> 1.066175321 | L35: =+T!AT34-$G$8 -> 1.607719152 | M35: =+T!AU34-$G$8 -> 2.149262982 | N35: =+T!AV34-$G$8 -> 2.690806812 | O35: =+T!AW34-$G$8 -> 3.232350643 | P35: =+T!AX34-$G$8 -> 3.773894473 | Q35: =+T!AY34-$G$8 -> 4.315438304
F36: =+F35+0.01 -> 0.01 | G36: =+T!AO35 ->  | H36: =+T!AP35-$G$8 -> -1.1 | I36: =+T!AQ35-$G$8 -> -0.5638179897 | J36: =+T!AR35-$G$8 -> -0.0276359795 | K36: =+T!AS35-$G$8 -> 0.5085460308 | L36: =+T!AT35-$G$8 -> 1.044728041 | M36: =+T!AU35-$G$8 -> 1.580910051 | N36: =+T!AV35-$G$8 -> 2.117092062 | O36: =+T!AW35-$G$8 -> 2.653274072 | P36: =+T!AX35-$G$8 -> 3.189456082 | Q36: =+T!AY35-$G$8 -> 3.725638092
F37: =+F36+0.01 -> 0.02 | G37: =+T!AO36 ->  | H37: =+T!AP36 ->  | I37: =+T!AQ36-$G$8 -> -1.1 | J37: =+T!AR36-$G$8 -> -0.5690746761 | K37: =+T!AS36-$G$8 -> -0.03814935225 | L37: =+T!AT36-$G$8 -> 0.4927759716 | M37: =+T!AU36-$G$8 -> 1.023701296 | N37: =+T!AV36-$G$8 -> 1.554626619 | O37: =+T!AW36-$G$8 -> 2.085551943 | P37: =+T!AX36-$G$8 -> 2.616477267 | Q37: =+T!AY36-$G$8 -> 3.147402591
F38: 0.03 | G38: =+T!AO37 ->  | H38: =+T!AP37 ->  | I38: =+T!AQ37 ->  | J38: =+T!AR37-$G$8 -> -1.1 | K38: =+T!AS37-$G$8 -> -0.5742292909 | L38: =+T!AT37-$G$8 -> -0.04845858184 | M38: =+T!AU37-$G$8 -> 0.4773121272 | N38: =+T!AV37-$G$8 -> 1.003082836 | O38: =+T!AW37-$G$8 -> 1.528853545 | P38: =+T!AX37-$G$8 -> 2.054624254 | Q38: =+T!AY37-$G$8 -> 2.580394964
F39: 0.04 | G39: =+T!AO38 ->  | H39: =+T!AP38 ->  | I39: =+T!AQ38 ->  | J39: =+T!AR38 ->  | K39: =+T!AS38-$G$8 -> -1.1 | L39: =+T!AT38-$G$8 -> -0.5792847785 | M39: =+T!AU38-$G$8 -> -0.05856955701 | N39: =+T!AV38-$G$8 -> 0.4621456645 | O39: =+T!AW38-$G$8 -> 0.982860886 | P39: =+T!AX38-$G$8 -> 1.503576107 | Q39: =+T!AY38-$G$8 -> 2.024291329
F40: 0.05 | G40: =+T!AO39 ->  | H40: =+T!AP39 ->  | I40: =+T!AQ39 ->  | J40: =+T!AR39 ->  | K40: =+T!AS39 ->  | L40: =+T!AT39-$G$8 -> -1.1 | M40: =+T!AU39-$G$8 -> -0.5842439711 | N40: =+T!AV39-$G$8 -> -0.06848794218 | O40: =+T!AW39-$G$8 -> 0.4472680867 | P40: =+T!AX39-$G$8 -> 0.9630241156 | Q40: =+T!AY39-$G$8 -> 1.478780145
F44: Senda sostenible e indicadores
G46: =+Principal!J3+1 -> 2017 | H46: =+G46+1 -> 2018 | I46: =+H46+1 -> 2019 | J46: 2020 | K46: 2021 | L46: 2022 | M46: 2023 | N46: 2024 | O46: 2025 | P46: 2026 | Q46: 2027
F47: Valores de referencia
F48: Déficit primario pronosticado | G48: =+VLOOKUP(G$46,T!$A$2:$E$32,2,FALSE) -> -0.9 | H48: =+VLOOKUP(H$46,T!$A$2:$E$32,2,FALSE) -> -1.1 | I48: =+VLOOKUP(I$46,T!$A$2:$E$32,2,FALSE) -> -1.1 | J48: =+VLOOKUP(J$46,T!$A$2:$E$32,2,FALSE) -> -1.2 | K48: =+VLOOKUP(K$46,T!$A$2:$E$32,2,FALSE) -> -1.4 | L48: =+VLOOKUP(L$46,T!$A$2:$E$32,2,FALSE) -> -1.4 | M48: =+VLOOKUP(M$46,T!$A$2:$E$32,2,FALSE) -> -1.057142857 | N48: =+VLOOKUP(N$46,T!$A$2:$E$32,2,FALSE) -> -1.057142857 | O48: =+VLOOKUP(O$46,T!$A$2:$E$32,2,FALSE) -> -1.057142857 | P48: =+VLOOKUP(P$46,T!$A$2:$E$32,2,FALSE) -> -1.057142857 | Q48: =+VLOOKUP(Q$46,T!$A$2:$E$32,2,FALSE) -> -1.057142857
F49: Ingresos tributarios pronosticado | G49: =+VLOOKUP(G$46,T!$A$2:$E$32,5,FALSE) -> 13.5 | H49: =+VLOOKUP(H$46,T!$A$2:$E$32,5,FALSE) -> 13.5 | I49: =+VLOOKUP(I$46,T!$A$2:$E$32,5,FALSE) -> 13.6 | J49: =+VLOOKUP(J$46,T!$A$2:$E$32,5,FALSE) -> 13.7 | K49: =+VLOOKUP(K$46,T!$A$2:$E$32,5,FALSE) -> 13.7 | L49: =+VLOOKUP(L$46,T!$A$2:$E$32,5,FALSE) -> 13.7 | M49: =+VLOOKUP(M$46,T!$A$2:$E$32,5,FALSE) -> 13.58571429 | N49: =+VLOOKUP(N$46,T!$A$2:$E$32,5,FALSE) -> 13.58571429 | O49: =+VLOOKUP(O$46,T!$A$2:$E$32,5,FALSE) -> 13.58571429 | P49: =+VLOOKUP(P$46,T!$A$2:$E$32,5,FALSE) -> 13.58571429 | Q49: =+VLOOKUP(Q$46,T!$A$2:$E$32,5,FALSE) -> 13.58571429
F50: tasa de interés | G50: =+T!G3 -> 0.0324 | H50: =+T!G4 -> 0.0424 | I50: =+T!G5 -> 0.0496 | J50: =+T!G6 -> 0.0518 | K50: =+T!G7 -> 0.05349593496 | L50: =+T!G8 -> 0.0602 | M50: =+T!G9 -> 0.0602 | N50: =+T!G10 -> 0.06130045299 | O50: =+T!G11 -> 0.06130045299 | P50: =+T!G12 -> 0.06130045299 | Q50: =+T!G13 -> 0.06130045299
F51: tasa de crecimiento del PIB | G51: =+T!H3 -> 0.026 | H51: =+T!H4 -> 0.03 | I51: =+T!H5 -> 0.035 | J51: =+T!H6 -> 0.035 | K51: =+T!H7 -> 0.045 | L51: =+T!H8 -> 0.045 | M51: =+T!H9 -> 0.045 | N51: =+T!H10 -> 0.0308 | O51: =+T!H11 -> 0.0308 | P51: =+T!H12 -> 0.0308 | Q51: =+T!H13 -> 0.0308
F52: tasa de interés (largo plazo) | G52: =+Principal!H25 -> 0.06130045299
F53: tasa de crecimiento del PIB (largo plazo) | G53: =+Principal!H26 -> 0.0308
F55: Horizonte infinito
F56: Déficit primario sostenible | G56: =+VLOOKUP(G$46,T!$AQ$3:$AS$13,2,FALSE) -> -1.485077353 | H56: =+VLOOKUP(H$46,T!$AQ$3:$AS$13,2,FALSE) -> -1.485464261 | I56: =+VLOOKUP(I$46,T!$AQ$3:$AS$13,2,FALSE) -> -1.476717322 | J56: =+VLOOKUP(J$46,T!$AQ$3:$AS$13,2,FALSE) -> -1.465000291 | K56: =+VLOOKUP(K$46,T!$AQ$3:$AS$13,2,FALSE) -> -1.456231987 | L56: =+VLOOKUP(L$46,T!$AQ$3:$AS$13,2,FALSE) -> -1.432564341 | M56: =+VLOOKUP(M$46,T!$AQ$3:$AS$13,2,FALSE) -> -1.411976889 | N56: =+VLOOKUP(N$46,T!$AQ$3:$AS$13,2,FALSE) -> -1.391089983 | O56: =+VLOOKUP(O$46,T!$AQ$3:$AS$13,2,FALSE) -> -1.40097118 | P56: =+VLOOKUP(P$46,T!$AQ$3:$AS$13,2,FALSE) -> -1.411144754 | Q56: =+VLOOKUP(Q$46,T!$AQ$3:$AS$13,2,FALSE) -> -1.421619354
F57: Brecha | G57: =+G56-G48 -> -0.5850773529 | H57: =+H56-H48 -> -0.3854642607 | I57: =+I56-I48 -> -0.3767173222 | J57: -0.2650002912 | K57: -0.05623198679 | L57: -0.03256434111 | M57: -0.3548340316 | N57: =+N56-N48 -> -0.3339471255 | O57: =+O56-O48 -> -0.3438283232 | P57: =+P56-P48 -> -0.3540018967 | Q57: =+Q56-Q48 -> -0.3644764972
F58: Ingresos tributarios sostenible | G58: =+VLOOKUP(G$46,T!$AQ$3:$AS$13,3,FALSE) -> 13.90237991 | H58: =+VLOOKUP(H$46,T!$AQ$3:$AS$13,3,FALSE) -> 13.88256641 | I58: =+VLOOKUP(I$46,T!$AQ$3:$AS$13,3,FALSE) -> 13.86781591 | J58: =+VLOOKUP(J$46,T!$AQ$3:$AS$13,3,FALSE) -> 13.85583549 | K58: =+VLOOKUP(K$46,T!$AQ$3:$AS$13,3,FALSE) -> 13.8438371 | L58: =+VLOOKUP(L$46,T!$AQ$3:$AS$13,3,FALSE) -> 13.81684379 | M58: =+VLOOKUP(M$46,T!$AQ$3:$AS$13,3,FALSE) -> 13.79875009 | N58: =+VLOOKUP(N$46,T!$AQ$3:$AS$13,3,FALSE) -> 13.78043072 | O58: =+VLOOKUP(O$46,T!$AQ$3:$AS$13,3,FALSE) -> 13.78619221 | P58: =+VLOOKUP(P$46,T!$AQ$3:$AS$13,3,FALSE) -> 13.79212417 | Q58: =+VLOOKUP(Q$46,T!$AQ$3:$AS$13,3,FALSE) -> 13.79823166
F59: Brecha | G59: =+G58-G49 -> 0.4023799124 | H59: =+H58-H49 -> 0.3825664117 | I59: 0.2678159067 | J59: 0.1558354908 | K59: 0.1438370972 | L59: 0.116843787 | M59: 0.2130358026 | N59: 0.194716438 | O59: 0.2004779238 | P59: 0.2064098869 | Q59: 0.2125173714
F61: =+"Horizonte finito"&" "&"(T="&G4&")" -> Horizonte finito (T=25)
F62: Déficit primario sostenible | G62: =IF(G$46>$G$46+$G$4-1,"",VLOOKUP(G$46,T!$AM$3:$AO$13,2,FALSE)) -> -1.183737099 | H62: =IF(H$46>$G$46+$G$4-1,"",VLOOKUP(H$46,T!$AM$3:$AO$13,2,FALSE)) -> -1.231537864 | I62: =IF(I$46>$G$46+$G$4-1,"",VLOOKUP(I$46,T!$AM$3:$AO$13,2,FALSE)) -> -1.250230958 | J62: =IF(J$46>$G$46+$G$4-1,"",VLOOKUP(J$46,T!$AM$3:$AO$13,2,FALSE)) -> -1.259116005 | K62: =IF(K$46>$G$46+$G$4-1,"",VLOOKUP(K$46,T!$AM$3:$AO$13,2,FALSE)) -> -1.268961152 | L62: =IF(L$46>$G$46+$G$4-1,"",VLOOKUP(L$46,T!$AM$3:$AO$13,2,FALSE)) -> -1.273409618 | M62: =IF(M$46>$G$46+$G$4-1,"",VLOOKUP(M$46,T!$AM$3:$AO$13,2,FALSE)) -> -1.264796029 | N62: =IF(N$46>$G$46+$G$4-1,"",VLOOKUP(N$46,T!$AM$3:$AO$13,2,FALSE)) -> -1.25500472 | O62: =IF(O$46>$G$46+$G$4-1,"",VLOOKUP(O$46,T!$AM$3:$AO$13,2,FALSE)) -> -1.26986218 | P62: =IF(P$46>$G$46+$G$4-1,"",VLOOKUP(P$46,T!$AM$3:$AO$13,2,FALSE)) -> -1.2868116 | Q62: =IF(Q$46>$G$46+$G$4-1,"",VLOOKUP(Q$46,T!$AM$3:$AO$13,2,FALSE)) -> -1.305924736
F63: Brecha | G63: =IF(G62="","",G62-G48) -> -0.2837370992 | H63: =IF(H62="","",H62-H48) -> -0.1315378644 | I63: -0.1502309577 | J63: -0.05911600472 | K63: 0.1310388476 | L63: 0.1265903818 | M63: -0.2076531723 | N63: -0.1978618627 | O63: -0.2127193228 | P63: -0.2296687427 | Q63: -0.2487818793
F64: Ingresos tributarios sostenible | G64: =IF(G$46>$G$46+$G$4-1,"",VLOOKUP(G$46,T!$AM$3:$AO$13,3,FALSE)) -> 13.71418313 | H64: =IF(H$46>$G$46+$G$4-1,"",VLOOKUP(H$46,T!$AM$3:$AO$13,3,FALSE)) -> 13.73117793 | I64: =IF(I$46>$G$46+$G$4-1,"",VLOOKUP(I$46,T!$AM$3:$AO$13,3,FALSE)) -> 13.74431317 | J64: =IF(J$46>$G$46+$G$4-1,"",VLOOKUP(J$46,T!$AM$3:$AO$13,3,FALSE)) -> 13.75870678 | K64: =IF(K$46>$G$46+$G$4-1,"",VLOOKUP(K$46,T!$AM$3:$AO$13,3,FALSE)) -> 13.76846361 | L64: =IF(L$46>$G$46+$G$4-1,"",VLOOKUP(L$46,T!$AM$3:$AO$13,3,FALSE)) -> 13.77287134 | M64: =IF(M$46>$G$46+$G$4-1,"",VLOOKUP(M$46,T!$AM$3:$AO$13,3,FALSE)) -> 13.77786954 | N64: =IF(N$46>$G$46+$G$4-1,"",VLOOKUP(N$46,T!$AM$3:$AO$13,3,FALSE)) -> 13.78348251 | O64: =IF(O$46>$G$46+$G$4-1,"",VLOOKUP(O$46,T!$AM$3:$AO$13,3,FALSE)) -> 13.79845075 | P64: =IF(P$46>$G$46+$G$4-1,"",VLOOKUP(P$46,T!$AM$3:$AO$13,3,FALSE)) -> 13.8153759 | Q64: =IF(Q$46>$G$46+$G$4-1,"",VLOOKUP(Q$46,T!$AM$3:$AO$13,3,FALSE)) -> 13.83453124
F65: Brecha | G65: =IF(G63="","",G64-G49) -> 0.2141831304 | H65: =IF(H63="","",H64-H49) -> 0.2311779349 | I65: =IF(I63="","",I64-I49) -> 0.1443131734 | J65: =IF(J63="","",J64-J49) -> 0.05870678135 | K65: =IF(K63="","",K64-K49) -> 0.06846360794 | L65: =IF(L63="","",L64-L49) -> 0.07287134237 | M65: =IF(M63="","",M64-M49) -> 0.1921552586 | N65: =IF(N63="","",N64-N49) -> 0.1977682216 | O65: =IF(O63="","",O64-O49) -> 0.2127364668 | P65: =IF(P63="","",P64-P49) -> 0.2296616109 | Q65: =IF(Q63="","",Q64-Q49) -> 0.2488169519
F67: Evolución de la deuda con ingreso tributario sostenible implementado desde 2016
F68: Pronosticada | G68: =+T!T3 -> 50.20307602 | H68: =+T!T4 -> 49.90746257 | I68: =+T!T5 -> 49.51147122 | J68: =+T!T6 -> 49.21513568 | K68: =+T!T7 -> 48.41525874 | L68: =+T!T8 -> 47.71948068 | M68: =+T!T9 -> 47.01358222 | N68: =+T!T10 -> 47.34752934 | O68: =+T!T11 -> 47.69135767 | P68: =+T!T12 -> 48.04535956 | Q68: =+T!T13 -> 48.40983606
F69: H. infinito | G69: =+T!X3 -> 49.70069611 | H69: =+T!X4 -> 48.99665468 | I69: =+T!X5 -> 48.1854353 | J69: =+T!X6 -> 47.56519579 | K69: =+T!X7 -> 46.54952479 | L69: =+T!X8 -> 45.62422887 | M69: =+T!X9 -> 44.68547411 | N69: =+T!X10 -> 44.63386896 | O69: =+T!X11 -> 44.58073687 | P69: =+T!X12 -> 44.52603264 | Q69: =+T!X13 -> 44.46970976
F70: =+" H. finito T = "&G4 -> H. finito T = 25 | G70: =+IF(G65="","",T!V3) -> 49.88889289 | H70: =+IF(H65="","",T!V4) -> 49.37531391 | I70: =+IF(I65="","",T!V5) -> 48.75763279 | J70: =+IF(J65="","",T!V6) -> 48.3348779 | K70: =+IF(K65="","",T!V7) -> 47.51366126 | L70: =+IF(L65="","",T!V8) -> 46.79058593 | M70: =+IF(M65="","",T!V9) -> 46.05699314 | N70: =+IF(N65="","",T!V10) -> 46.2341668 | O70: =+IF(O65="","",T!V11) -> 46.41658288 | P70: =+IF(P65="","",T!V12) -> 46.60439648 | Q70: =+IF(Q65="","",T!V12) -> 46.60439648

Sheet Pronósticos (hidden)
A1: Año | B1: dp_t | C1: g_t | D1: ip_t | E1: tau_t | F1: i_otros_t | G1: r_t | H1: c_y_t | I1: Gasto_neto total | J1: I_presupuestarios | K1: Costo_finan
A2: =+Principal!J3+1 -> 2017 | B2: =+HLOOKUP($A2,Principal!$H$13:$O$23,9,FALSE) -> -0.3 | C2: =+HLOOKUP($A2,Principal!$H$13:$O$23,6,FALSE) -> 20.9 | D2: =+HLOOKUP($A2,Principal!$H$13:$O$23,3,FALSE) -> 3.8 | E2: =+HLOOKUP($A2,Principal!$H$13:$O$23,4,FALSE) -> 13.4 | F2: =+HLOOKUP($A2,Principal!$H$13:$O$23,5,FALSE) -> 4 | G2: =+HLOOKUP($A2,Principal!$H$13:$O$23,10,FALSE) -> 0.0324 | H2: =+HLOOKUP($A2,Principal!$H$13:$O$23,11,FALSE) -> 0.026 | I2: =+HLOOKUP($A2,Principal!$H$13:$O$23,6,FALSE) -> 20.9 | J2: =+HLOOKUP($A2,Principal!$H$13:$O$23,2,FALSE) -> 21.2 | K2: =+HLOOKUP($A2,Principal!$H$13:$O$23,8,FALSE) -> 2.8
A3: =+A2+1 -> 2018 | B3: =+HLOOKUP($A3,Principal!$H$13:$O$23,9,FALSE) -> -0.9 | C3: =+HLOOKUP($A3,Principal!$H$13:$O$23,6,FALSE) -> 20.2 | D3: =+HLOOKUP($A3,Principal!$H$13:$O$23,3,FALSE) -> 3.7 | E3: =+HLOOKUP($A3,Principal!$H$13:$O$23,4,FALSE) -> 13.5 | F3: =+HLOOKUP($A3,Principal!$H$13:$O$23,5,FALSE) -> 3.9 | G3: =+HLOOKUP($A3,Principal!$H$13:$O$23,10,FALSE) -> 0.0424 | H3: =+HLOOKUP($A3,Principal!$H$13:$O$23,11,FALSE) -> 0.03 | I3: =+HLOOKUP($A3,Principal!$H$13:$O$23,6,FALSE) -> 20.2 | J3: =+HLOOKUP($A3,Principal!$H$13:$O$23,2,FALSE) -> 21.1 | K3: =+HLOOKUP($A3,Principal!$H$13:$O$23,8,FALSE) -> 2.9
A4: =+A3+1 -> 2019 | B4: =+HLOOKUP($A4,Principal!$H$13:$O$23,9,FALSE) -> -1.1 | C4: =+HLOOKUP($A4,Principal!$H$13:$O$23,6,FALSE) -> 19.9 | D4: =+HLOOKUP($A4,Principal!$H$13:$O$23,3,FALSE) -> 3.6 | E4: =+HLOOKUP($A4,Principal!$H$13:$O$23,4,FALSE) -> 13.5 | F4: =+HLOOKUP($A4,Principal!$H$13:$O$23,5,FALSE) -> 3.9 | G4: =+HLOOKUP($A4,Principal!$H$13:$O$23,10,FALSE) -> 0.0496 | H4: =+HLOOKUP($A4,Principal!$H$13:$O$23,11,FALSE) -> 0.035 | I4: =+HLOOKUP($A4,Principal!$H$13:$O$23,6,FALSE) -> 19.9 | J4: =+HLOOKUP($A4,Principal!$H$13:$O$23,2,FALSE) -> 21 | K4: =+HLOOKUP($A4,Principal!$H$13:$O$23,8,FALSE) -> 3.1
A5: 2020 | B5: =+HLOOKUP($A5,Principal!$H$13:$O$23,9,FALSE) -> -1.1 | C5: =+HLOOKUP($A5,Principal!$H$13:$O$23,6,FALSE) -> 19.8 | D5: =+HLOOKUP($A5,Principal!$H$13:$O$23,3,FALSE) -> 3.5 | E5: =+HLOOKUP($A5,Principal!$H$13:$O$23,4,FALSE) -> 13.6 | F5: =+HLOOKUP($A5,Principal!$H$13:$O$23,5,FALSE) -> 3.8 | G5: =+HLOOKUP($A5,Principal!$H$13:$O$23,10,FALSE) -> 0.0518 | H5: =+HLOOKUP($A5,Principal!$H$13:$O$23,11,FALSE) -> 0.035 | I5: =+HLOOKUP($A5,Principal!$H$13:$O$23,6,FALSE) -> 19.8 | J5: =+HLOOKUP($A5,Principal!$H$13:$O$23,2,FALSE) -> 20.9 | K5: =+HLOOKUP($A5,Principal!$H$13:$O$23,8,FALSE) -> 3.1
A6: 2021 | B6: =+HLOOKUP($A6,Principal!$H$13:$O$23,9,FALSE) -> -1.2 | C6: =+HLOOKUP($A6,Principal!$H$13:$O$23,6,FALSE) -> 20 | D6: =+HLOOKUP($A6,Principal!$H$13:$O$23,3,FALSE) -> 3.7 | E6: =+HLOOKUP($A6,Principal!$H$13:$O$23,4,FALSE) -> 13.7 | F6: =+HLOOKUP($A6,Principal!$H$13:$O$23,5,FALSE) -> 3.8 | G6: =+HLOOKUP($A6,Principal!$H$13:$O$23,10,FALSE) -> 0.05349593496 | H6: =+HLOOKUP($A6,Principal!$H$13:$O$23,11,FALSE) -> 0.045 | I6: =+HLOOKUP($A6,Principal!$H$13:$O$23,6,FALSE) -> 20 | J6: =+HLOOKUP($A6,Principal!$H$13:$O$23,2,FALSE) -> 21.2 | K6: =+HLOOKUP($A6,Principal!$H$13:$O$23,8,FALSE) -> 3.2
A7: 2022 | B7: =+HLOOKUP($A7,Principal!$H$13:$O$23,9,FALSE) -> -1.4 | C7: =+HLOOKUP($A7,Principal!$H$13:$O$23,6,FALSE) -> 20.1 | D7: =+HLOOKUP($A7,Principal!$H$13:$O$23,3,FALSE) -> 3.9 | E7: =+HLOOKUP($A7,Principal!$H$13:$O$23,4,FALSE) -> 13.7 | F7: =+HLOOKUP($A7,Principal!$H$13:$O$23,5,FALSE) -> 3.9 | G7: =+HLOOKUP($A7,Principal!$H$13:$O$23,10,FALSE) -> 0.0602 | H7: =+HLOOKUP($A7,Principal!$H$13:$O$23,11,FALSE) -> 0.045 | I7: =+HLOOKUP($A7,Principal!$H$13:$O$23,6,FALSE) -> 20.1 | J7: =+HLOOKUP($A7,Principal!$H$13:$O$23,2,FALSE) -> 21.5 | K7: =+HLOOKUP($A7,Principal!$H$13:$O$23,8,FALSE) -> 3.4
A8: 2023 | B8: =+HLOOKUP($A8,Principal!$H$13:$O$23,9,FALSE) -> -1.4 | C8: =+HLOOKUP($A8,Principal!$H$13:$O$23,6,FALSE) -> 20.1 | D8: =+HLOOKUP($A8,Principal!$H$13:$O$23,3,FALSE) -> 3.9 | E8: =+HLOOKUP($A8,Principal!$H$13:$O$23,4,FALSE) -> 13.7 | F8: =+HLOOKUP($A8,Principal!$H$13:$O$23,5,FALSE) -> 3.9 | G8: =+HLOOKUP($A8,Principal!$H$13:$O$23,10,FALSE) -> 0.0602 | H8: =+HLOOKUP($A8,Principal!$H$13:$O$23,11,FALSE) -> 0.045 | I8: =+HLOOKUP($A8,Principal!$H$13:$O$23,6,FALSE) -> 20.1 | J8: =+HLOOKUP($A8,Principal!$H$13:$O$23,2,FALSE) -> 21.5 | K8: =+HLOOKUP($A8,Principal!$H$13:$O$23,8,FALSE) -> 3.4
A9: 2024 | B9: =+HLOOKUP("Largo plazo",Principal!$H$13:$O$23,9,FALSE) -> -1.057142857 | C9: =+HLOOKUP("Largo plazo",Principal!$H$13:$O$23,6,FALSE) -> 20.14285714 | D9: =+HLOOKUP("Largo plazo",Principal!$H$13:$O$23,3,FALSE) -> 3.728571429 | E9: =+HLOOKUP("Largo plazo",Principal!$H$13:$O$23,4,FALSE) -> 13.58571429 | F9: =+HLOOKUP("Largo plazo",Principal!$H$13:$O$23,5,FALSE) -> 3.885714286 | G9: =+HLOOKUP("Largo plazo",Principal!$H$13:$O$23,10,FALSE) -> 0.06130045299 | H9: =+HLOOKUP("Largo plazo",Principal!$H$13:$O$23,11,FALSE) -> 0.0308 | I9: =+HLOOKUP("Largo plazo",Principal!$H$13:$O$23,6,FALSE) -> 20.14285714 | J9: =+HLOOKUP("Largo plazo",Principal!$H$13:$O$23,2,FALSE) -> 21.2 | K9: =+HLOOKUP("Largo plazo",Principal!$H$13:$O$23,8,FALSE) -> 3.128571429
A10: 2025 | B10: =+B9 -> -1.057142857 | C10: =+C9 -> 20.14285714 | D10: =+D9 -> 3.728571429 | E10: =+E9 -> 13.58571429 | F10: =+F9 -> 3.885714286 | G10: =+G9 -> 0.06130045299 | H10: =+H9 -> 0.0308 | I10: =+I9 -> 20.14285714 | J10: =+J9 -> 21.2 | K10: =+K9 -> 3.128571429
A11: 2026 | B11: -1.057142857 | C11: 20.14285714 | D11: 3.728571429 | E11: 13.58571429 | F11: 3.885714286 | G11: 0.06130045299 | H11: 0.0308 | I11: 20.14285714 | J11: 21.2 | K11: 3.128571429
A12: 2027 | B12: -1.057142857 | C12: 20.14285714 | D12: 3.728571429 | E12: 13.58571429 | F12: 3.885714286 | G12: 0.06130045299 | H12: 0.0308 | I12: 20.14285714 | J12: 21.2 | K12: 3.128571429
A13: 2028 | B13: -1.057142857 | C13: 20.14285714 | D13: 3.728571429 | E13: 13.58571429 | F13: 3.885714286 | G13: 0.06130045299 | H13: 0.0308 | I13: 20.14285714 | J13: 21.2 | K13: 3.128571429
A14: 2029 | B14: -1.057142857 | C14: 20.14285714 | D14: 3.728571429 | E14: 13.58571429 | F14: 3.885714286 | G14: 0.06130045299 | H14: 0.0308 | I14: 20.14285714 | J14: 21.2 | K14: 3.128571429
A15: 2030 | B15: -1.057142857 | C15: 20.14285714 | D15: 3.728571429 | E15: 13.58571429 | F15: 3.885714286 | G15: 0.06130045299 | H15: 0.0308 | I15: 20.14285714 | J15: 21.2 | K15: 3.128571429
A16: 2031 | B16: -1.057142857 | C16: 20.14285714 | D16: 3.728571429 | E16: 13.58571429 | F16: 3.885714286 | G16: 0.06130045299 | H16: 0.0308 | I16: 20.14285714 | J16: 21.2 | K16: 3.128571429
A17: 2032 | B17: -1.057142857 | C17: 20.14285714 | D17: 3.728571429 | E17: 13.58571429 | F17: 3.885714286 | G17: 0.06130045299 | H17: 0.0308 | I17: 20.14285714 | J17: 21.2 | K17: 3.128571429
A18: 2033 | B18: -1.057142857 | C18: 20.14285714 | D18: 3.728571429 | E18: 13.58571429 | F18: 3.885714286 | G18: 0.06130045299 | H18: 0.0308 | I18: 20.14285714 | J18: 21.2 | K18: 3.128571429
A19: 2034 | B19: -1.057142857 | C19: 20.14285714 | D19: 3.728571429 | E19: 13.58571429 | F19: 3.885714286 | G19: 0.06130045299 | H19: 0.0308 | I19: 20.14285714 | J19: 21.2 | K19: 3.128571429
A20: 2035 | B20: -1.057142857 | C20: 20.14285714 | D20: 3.728571429 | E20: 13.58571429 | F20: 3.885714286 | G20: 0.06130045299 | H20: 0.0308 | I20: 20.14285714 | J20: 21.2 | K20: 3.128571429
A21: 2036 | B21: -1.057142857 | C21: 20.14285714 | D21: 3.728571429 | E21: 13.58571429 | F21: 3.885714286 | G21: 0.06130045299 | H21: 0.0308 | I21: 20.14285714 | J21: 21.2 | K21: 3.128571429
A22: 2037 | B22: -1.057142857 | C22: 20.14285714 | D22: 3.728571429 | E22: 13.58571429 | F22: 3.885714286 | G22: 0.06130045299 | H22: 0.0308 | I22: 20.14285714 | J22: 21.2 | K22: 3.128571429
A23: 2038 | B23: -1.057142857 | C23: 20.14285714 | D23: 3.728571429 | E23: 13.58571429 | F23: 3.885714286 | G23: 0.06130045299 | H23: 0.0308 | I23: 20.14285714 | J23: 21.2 | K23: 3.128571429
A24: 2039 | B24: -1.057142857 | C24: 20.14285714 | D24: 3.728571429 | E24: 13.58571429 | F24: 3.885714286 | G24: 0.06130045299 | H24: 0.0308 | I24: 20.14285714 | J24: 21.2 | K24: 3.128571429
A25: 2040 | B25: -1.057142857 | C25: 20.14285714 | D25: 3.728571429 | E25: 13.58571429 | F25: 3.885714286 | G25: 0.06130045299 | H25: 0.0308 | I25: 20.14285714 | J25: 21.2 | K25: 3.128571429
A26: 2041 | B26: -1.057142857 | C26: 20.14285714 | D26: 3.728571429 | E26: 13.58571429 | F26: 3.885714286 | G26: 0.06130045299 | H26: 0.0308 | I26: 20.14285714 | J26: 21.2 | K26: 3.128571429
A27: 2042 | B27: -1.057142857 | C27: 20.14285714 | D27: 3.728571429 | E27: 13.58571429 | F27: 3.885714286 | G27: 0.06130045299 | H27: 0.0308 | I27: 20.14285714 | J27: 21.2 | K27: 3.128571429
A28: 2043 | B28: -1.057142857 | C28: 20.14285714 | D28: 3.728571429 | E28: 13.58571429 | F28: 3.885714286 | G28: 0.06130045299 | H28: 0.0308 | I28: 20.14285714 | J28: 21.2 | K28: 3.128571429
A29: 2044 | B29: -1.057142857 | C29: 20.14285714 | D29: 3.728571429 | E29: 13.58571429 | F29: 3.885714286 | G29: 0.06130045299 | H29: 0.0308 | I29: 20.14285714 | J29: 21.2 | K29: 3.128571429
A30: 2045 | B30: -1.057142857 | C30: 20.14285714 | D30: 3.728571429 | E30: 13.58571429 | F30: 3.885714286 | G30: 0.06130045299 | H30: 0.0308 | I30: 20.14285714 | J30: 21.2 | K30: 3.128571429
A31: 2046 | B31: -1.057142857 | C31: 20.14285714 | D31: 3.728571429 | E31: 13.58571429 | F31: 3.885714286 | G31: 0.06130045299 | H31: 0.0308 | I31: 20.14285714 | J31: 21.2 | K31: 3.128571429

Sheet T (hidden)
A1: Fecha(Anual) | B1: dp_t | C1: g_t | D1: ip_t | E1: tau_t | F1: i_otros_t | G1: r_t | H1: c_y_t | I1: Gasto__neto | J1: I_presupuestarios | K1: Costo_finan | L1: t | M1: 1+r_t / 1+c_y_t | N1: Multiplicatoria simple | O1: Multiplicatoria inversa | P1: gt - ipt - iotros - tau_s | Q1: (gt - ipt - iotros + tau_s) | R1: (gt - ipt - iotros - omega)(1+r/1+c_y)^t | S1: gt - ipt - iotros - tau_s (inf) | T1: b_t | U1: b_t_star dc (finito) | V1: b_t_star tau (finito) | W1: b_t_star dc (infinito) | X1: b_t_star tau (infinito) | Z1: 1 | AA1: H Finito | AB1: pd_s | AC1: tau_s | AE1: H infinito | AF1: pd_s | AG1: tau_s | AN1: finito | AR1: infinito
A2: 2015 | L2: 0 | M2: =(1+G2)/(1+H2) -> 1 | T2: =+Principal!J5 -> 50.19 | U2: =+T2 -> 50.19 | V2: =+T2 -> 50.19 | W2: =+T2 -> 50.19 | X2: =+T2 -> 50.19 | AB2: =+AN3 -> -1.183737099 | AC2: =+AO3 -> 13.71418313 | AF2: =+(AF3-AF4)/(1+AF4)*(-AB3) -> -1.485077353 | AG2: =+AF11 -> 13.90237991 | AJ2: Funcion general | AM2: Set solución | AN2: pd_s | AO2: tau_s | AQ2: Set solución | AR2: pd_s | AS2: tau_s
A3: =+A2+1 -> 2016 | B3: =+Pronósticos!B2 -> -0.3 | C3: =+Pronósticos!C2 -> 20.9 | D3: =+Pronósticos!D2 -> 3.8 | E3: =+Pronósticos!E2 -> 13.4 | F3: =+Pronósticos!F2 -> 4 | G3: =+Pronósticos!G2 -> 0.0324 | H3: =+Pronósticos!H2 -> 0.026 | I3: =+Pronósticos!I2 -> 20.9 | J3: =+Pronósticos!J2 -> 21.2 | K3: =+Pronósticos!K2 -> 2.8 | L3: 1 | M3: =(1+G3)/(1+H3) -> 1.006237817 | N3: =+PRODUCT(M2:M3) -> 1.006237817 | O3: =+'Multiplicatoria inversa'!F3 -> 0 | P3: =+C3-D3-F3-AC2 -> -0.6141831304 | Q3: =+IF(L3=AB5,1,VLOOKUP(AB5,'Multiplicatoria inversa'!E3:AK32,L3+4,FALSE))*P3 -> -1.123522717 | R3: =IF(L3<25-Z1+1,(C3-D3-F3-AF8)*((1+AF4)/(1+AF3))^L3,0) -> 0.7770089965 | S3: =+C3-D3-F3-AG2 -> -0.8023799124 | T3: =+M3*T2+B3 -> 50.20307602 | U3: =+M3*U2+AB2 -> 49.31933892 | V3: =+M3*V2+P3 -> 49.88889289 | W3: =+M3*W2+AF2 -> 49.01799867 | X3: =+M3*X2+S3 -> 49.70069611 | AA3: b_0 | AB3: =+U2 -> 50.19 | AC3: =+AB3 -> 50.19 | AE3: r | AF3: =+Principal!H25 -> 0.06130045299 | AJ3: =+(AB13+AB47+AB81+AB115+AB149+AB183+AB217+AB251+AB285+AB319+AB353) -> 0.01625286033 | AM3: =+Principal!J3+1 -> 2017 | AN3: -1.183737099 | AO3: 13.71418313 | AQ3: =+AM3 -> 2017 | AR3: =+AF2 -> -1.485077353 | AS3: =+AG2 -> 13.90237991 | AT3: 2
A4: =+A3+1 -> 2017 | B4: =+Pronósticos!B3 -> -0.9 | C4: =+Pronósticos!C3 -> 20.2 | D4: =+Pronósticos!D3 -> 3.7 | E4: =+Pronósticos!E3 -> 13.5 | F4: =+Pronósticos!F3 -> 3.9 | G4: =+Pronósticos!G3 -> 0.0424 | H4: =+Pronósticos!H3 -> 0.03 | I4: =+Pronósticos!I3 -> 20.2 | J4: =+Pronósticos!J3 -> 21.1 | K4: =+Pronósticos!K3 -> 2.9 | L4: =+L3+1 -> 2 | M4: =(1+G4)/(1+H4) -> 1.012038835 | N4: =+PRODUCT(M2:M4) -> 1.018351748 | O4: =+'Multiplicatoria inversa'!F4 -> 1.012038835 | P4: =+C4-D4-F4-AC2 -> -1.11418313 | Q4: =+IF(L4=AB5,1,VLOOKUP(AB5,'Multiplicatoria inversa'!E3:AK32,L4+4,FALSE))*P4 -> -2.01392538 | R4: =IF(L4<25-Z1+1,(C4-D4-F4-AF8)*((1+AF4)/(1+AF3))^L4,0) -> 0.2830045222 | S4: =+C4-D4-F4-AG2 -> -1.302379912 | T4: 49.90746257 | U4: =+M4*U3+AB2 -> 48.72934921 | V4: 49.37531391 | W4: =+M4*W3+AF2 -> 48.12304091 | X4: 48.99665468 | AA4: b_T | AB4: =+Principal!J9 -> 50.19 | AC4: =+AB4 -> 50.19 | AE4: c_y | AF4: =+Principal!H26 -> 0.0308 | AM4: =+AM3+1 -> 2018 | AN4: -1.231537864 | AO4: 13.73117793 | AQ4: =+AQ3+1 -> 2018 | AR4: =+AF36 -> -1.485464261 | AS4: =+AG36 -> 13.88256641 | AT4: 36 | AU4: =+AT4-AT3 -> 34
A5: =+A4+1 -> 2018 | B5: =+Pronósticos!B4 -> -1.1 | C5: =+Pronósticos!C4 -> 19.9 | D5: =+Pronósticos!D4 -> 3.6 | E5: =+Pronósticos!E4 -> 13.5 | F5: =+Pronósticos!F4 -> 3.9 | G5: =+Pronósticos!G4 -> 0.0496 | H5: =+Pronósticos!H4 -> 0.035 | I5: =+Pronósticos!I4 -> 19.9 | J5: =+Pronósticos!J4 -> 21 | K5: =+Pronósticos!K4 -> 3.1 | L5: =+L4+1 -> 3 | M5: 1.01410628 | N5: =+PRODUCT(M2:M5) -> 1.032716903 | O5: =+'Multiplicatoria inversa'!F5 -> 2.040421219 | P5: =+C5-D5-F5-AC2 -> -1.31418313 | Q5: =+IF(L5=AB5,1,VLOOKUP(AB5,'Multiplicatoria inversa'!E3:AK32,L5+4,FALSE))*P5 -> -2.342390037 | R5: =IF(L5<25-Z1+1,(C5-D5-F5-AF8)*((1+AF4)/(1+AF3))^L5,0) -> 0.09162377492 | S5: =+C5-D5-F5-AG2 -> -1.502379912 | T5: 49.51147122 | U5: =+M5*U4+AB2 -> 48.23300196 | V5: 48.75763279 | W5: =+M5*W4+AF2 -> 47.31680066 | X5: 48.1854353 | AA5: T | AB5: =+Principal!J7 -> 25 | AC5: =+AB5 -> 25 | AE5: g | AF5: =+C8 -> 20.1 | AJ5: validar | AM5: =+AM4+1 -> 2019 | AN5: -1.250230958 | AO5: 13.74431317 | AQ5: =+AQ4+1 -> 2019 | AR5: =+AF70 -> -1.476717322 | AS5: =+AG70 -> 13.86781591 | AT5: =+AT4+$AU$4 -> 70
A6: 2019 | B6: =+Pronósticos!B5 -> -1.1 | C6: =+Pronósticos!C5 -> 19.8 | D6: =+Pronósticos!D5 -> 3.5 | E6: =+Pronósticos!E5 -> 13.6 | F6: =+Pronósticos!F5 -> 3.8 | G6: =+Pronósticos!G5 -> 0.0518 | H6: =+Pronósticos!H5 -> 0.035 | I6: =+Pronósticos!I5 -> 19.8 | J6: =+Pronósticos!J5 -> 20.9 | K6: =+Pronósticos!K5 -> 3.1 | L6: 4 | M6: 1.016231884 | N6: =+PRODUCT(M2:M6) -> 1.049479844 | O6: =+'Multiplicatoria inversa'!F6 -> 3.089772983 | P6: =+C6-D6-F6-AC2 -> -1.21418313 | Q6: =+IF(L6=AB5,1,VLOOKUP(AB5,'Multiplicatoria inversa'!E3:AK32,L6+4,FALSE))*P6 -> -2.129583641 | R6: =IF(L6<25-Z1+1,(C6-D6-F6-AF8)*((1+AF4)/(1+AF3))^L6,0) -> 0.1779812435 | S6: =+C6-D6-F6-AG2 -> -1.402379912 | T6: 49.21513568 | U6: =+M6*U5+AB2 -> 47.83217736 | V6: 48.3348779 | W6: =+M6*W5+AF2 -> 46.59976413 | X6: 47.56519579 | AA6: Pi_t b_0 | AB6: =+VLOOKUP(AB5,L3:N32,3,FALSE)*AB3 -> 92.38507277 | AC6: =+AB6 -> 92.38507277 | AE6: ip | AF6: =+D8 -> 3.9 | AJ6: =+SUM(AB11:AC11)+SUM(AB45:AC45)+SUM(AB79:AC79)+SUM(AB113:AC113)+SUM(AB147:AC147)+SUM(AB181:AC181)+SUM(AB215:AC215)+SUM(AB249:AC249)+SUM(AB283:AC283)+SUM(AB317:AC317)+SUM(AB351:AC351) -> -0.0001920908489 | AM6: 2020 | AN6: -1.259116005 | AO6: 13.75870678 | AQ6: 2020 | AR6: =+AF104 -> -1.465000291 | AS6: =+AG104 -> 13.85583549 | AT6: =+AT5+$AU$4 -> 104
A7: 2020 | B7: =+Pronósticos!B6 -> -1.2 | C7: =+Pronósticos!C6 -> 20 | D7: =+Pronósticos!D6 -> 3.7 | E7: =+Pronósticos!E6 -> 13.7 | F7: =+Pronósticos!F6 -> 3.8 | G7: =+Pronósticos!G6 -> 0.05349593496 | H7: =+Pronósticos!H6 -> 0.045 | I7: =+Pronósticos!I6 -> 20 | J7: =+Pronósticos!J6 -> 21.2 | K7: =+Pronósticos!K6 -> 3.2 | L7: 5 | M7: 1.008130081 | N7: =+PRODUCT(M2:M7) -> 1.0580122 | O7: =+'Multiplicatoria inversa'!F7 -> 4.12302317 | P7: =+C7-D7-F7-AC2 -> -1.21418313 | Q7: =+IF(L7=AB5,1,VLOOKUP(AB5,'Multiplicatoria inversa'!E3:AK32,L7+4,FALSE))*P7 -> -2.11240958 | R7: =IF(L7<25-Z1+1,(C7-D7-F7-AF8)*((1+AF4)/(1+AF3))^L7,0) -> 0.1728662843 | S7: =+C7-D7-F7-AG2 -> -1.402379912 | T7: 48.41525874 | U7: =+M7*U6+AB2 -> 47.03731975 | V7: 47.51366126 | W7: =+M7*W6+AF2 -> 45.49354665 | X7: 46.54952479 | AA7: sum dpt | AB7: =+VLOOKUP(AB5,L3:O32,4,FALSE) -> 34.64584677 | AC7: =+SUM(Q3:Q31) -> -42.19500138 | AE7: iotros | AF7: =+F8 -> 3.9 | AM7: 2021 | AN7: -1.268961152 | AO7: 13.76846361 | AQ7: 2021 | AR7: =+AF138 -> -1.456231987 | AS7: =+AG138 -> 13.8438371 | AT7: 138
A8: 2021 | B8: =+Pronósticos!B7 -> -1.4 | C8: =+Pronósticos!C7 -> 20.1 | D8: =+Pronósticos!D7 -> 3.9 | E8: =+Pronósticos!E7 -> 13.7 | F8: =+Pronósticos!F7 -> 3.9 | G8: =+Pronósticos!G7 -> 0.0602 | H8: =+Pronósticos!H7 -> 0.045 | I8: =+Pronósticos!I7 -> 20.1 | J8: =+Pronósticos!J7 -> 21.5 | K8: =+Pronósticos!K7 -> 3.4 | L8: 6 | M8: 1.014545455 | N8: =+PRODUCT(M2:M8) -> 1.073401469 | O8: =+'Multiplicatoria inversa'!F8 -> 5.197539871 | P8: =+C8-D8-F8-AC2 -> -1.41418313 | Q8: =+IF(L8=AB5,1,VLOOKUP(AB5,'Multiplicatoria inversa'!E3:AK32,L8+4,FALSE))*P8 -> -2.425091205 | R8: =IF(L8<25-Z1+1,(C8-D8-F8-AF8)*((1+AF4)/(1+AF3))^L8,0) -> 0 | S8: =+C8-D8-F8-AG2 -> -1.602379912 | T8: 47.71948068 | U8: =+M8*U7+AB2 -> 46.53776185 | V8: 46.79058593 | W8: =+M8*W7+AF2 -> 44.67019361 | X8: 45.62422887 | AA8: f | AB8: =+AB6+AB2*(AB7+1) -> 50.18976151 | AC8: =+AC6+AC7 -> 50.19007138 | AE8: omega | AF8: =+AF5-AF6-AF7 -> 12.3 | AM8: 2022 | AN8: -1.273409618 | AO8: 13.77287134 | AQ8: 2022 | AR8: =+AF172 -> -1.432564341 | AS8: =+AG172 -> 13.81684379 | AT8: 172
A9: 2022 | B9: =+Pronósticos!B8 -> -1.4 | C9: =+Pronósticos!C8 -> 20.1 | D9: =+Pronósticos!D8 -> 3.9 | E9: =+Pronósticos!E8 -> 13.7 | F9: =+Pronósticos!F8 -> 3.9 | G9: =+Pronósticos!G8 -> 0.0602 | H9: =+Pronósticos!H8 -> 0.045 | I9: =+Pronósticos!I8 -> 20.1 | J9: =+Pronósticos!J8 -> 21.5 | K9: =+Pronósticos!K8 -> 3.4 | L9: 7 | M9: 1.014545455 | N9: =+PRODUCT(M2:M9) -> 1.089014581 | O9: =+'Multiplicatoria inversa'!F9 -> 6.287685905 | P9: =+C9-D9-F9-AC2 -> -1.41418313 | Q9: =+IF(L9=AB5,1,VLOOKUP(AB5,'Multiplicatoria inversa'!E3:AK32,L9+4,FALSE))*P9 -> -2.390322873 | R9: =IF(L9<25-Z1+1,(C9-D9-F9-AF8)*((1+AF4)/(1+AF3))^L9,0) -> 0 | S9: =+C9-D9-F9-AG2 -> -1.602379912 | T9: 47.01358222 | U9: =+M9*U8+AB2 -> 46.03093765 | V9: 46.05699314 | W9: =+M9*W8+AF2 -> 43.83486453 | X9: 44.68547411 | AA9: dif | AB9: =+AB4-AB8 -> 0.0002384903641 | AC9: =+AC4-AC8 -> -7.138394058e-05 | AE9: 25 se vuelve constante | AM9: 2023 | AN9: -1.264796029 | AO9: 13.77786954 | AQ9: 2023 | AR9: =+AF206 -> -1.411976889 | AS9: =+AG206 -> 13.79875009 | AT9: 206
A10: 2023 | B10: =+Pronósticos!B9 -> -1.057142857 | C10: =+Pronósticos!C9 -> 20.14285714 | D10: =+Pronósticos!D9 -> 3.728571429 | E10: =+Pronósticos!E9 -> 13.58571429 | F10: =+Pronósticos!F9 -> 3.885714286 | G10: =+Pronósticos!G9 -> 0.06130045299 | H10: =+Pronósticos!H9 -> 0.0308 | I10: =+Pronósticos!I9 -> 20.14285714 | J10: =+Pronósticos!J9 -> 21.2 | K10: =+Pronósticos!K9 -> 3.128571429 | L10: 8 | M10: 1.029589108 | N10: =+PRODUCT(M2:M10) -> 1.121237552 | O10: =+'Multiplicatoria inversa'!F10 -> 7.503322034 | P10: =+C10-D10-F10-AC2 -> -1.185611702 | Q10: =+IF(L10=AB5,1,VLOOKUP(AB5,'Multiplicatoria inversa'!E3:AK32,L10+4,FALSE))*P10 -> -1.946388152 | R10: =IF(L10<25-Z1+1,(C10-D10-F10-AF8)*((1+AF4)/(1+AF3))^L10,0) -> 0.1810132746 | S10: =+C10-D10-F10-AG2 -> -1.373808484 | T10: 47.34752934 | U10: =+M10*U9+AB2 -> 46.20921495 | V10: 46.2341668 | W10: =+M10*W9+AF2 -> 43.64682173 | X10: 44.63386896 | AA10: Validar | AB10: =+VLOOKUP(AB5,L3:U32,10,FALSE) -> 50.18976151 | AC10: =+VLOOKUP(AC5,L3:V32,11,FALSE) -> 50.19007138 | AE10: sum 1 a 24 | AF10: =+SUM(R3:R26) -> 3.964383035 | AM10: 2024 | AN10: -1.25500472 | AO10: 13.78348251 | AQ10: 2024 | AR10: =+AF240 -> -1.391089983 | AS10: =+AG240 -> 13.78043072 | AT10: 240
A11: 2024 | B11: =+Pronósticos!B10 -> -1.057142857 | C11: =+Pronósticos!C10 -> 20.14285714 | D11: =+Pronósticos!D10 -> 3.728571429 | E11: =+Pronósticos!E10 -> 13.58571429 | F11: =+Pronósticos!F10 -> 3.885714286 | G11: =+Pronósticos!G10 -> 0.06130045299 | H11: =+Pronósticos!H10 -> 0.0308 | I11: =+Pronósticos!I10 -> 20.14285714 | J11: =+Pronósticos!J10 -> 21.2 | K11: =+Pronósticos!K10 -> 3.128571429 | L11: 9 | M11: 1.029589108 | N11: =+PRODUCT(M2:M11) -> 1.154413971 | O11: =+'Multiplicatoria inversa'!F11 -> 8.754927752 | P11: =+C11-D11-F11-AC2 -> -1.185611702 | Q11: =+IF(L11=AB5,1,VLOOKUP(AB5,'Multiplicatoria inversa'!E3:AK32,L11+4,FALSE))*P11 -> -1.890451381 | R11: =IF(L11<25-Z1+1,(C11-D11-F11-AF8)*((1+AF4)/(1+AF3))^L11,0) -> 0.1758111785 | S11: =+C11-D11-F11-AG2 -> -1.373808484 | T11: 47.69135767 | U11: =+M11*U10+AB2 -> 46.39276733 | V11: 46.41658288 | W11: =+M11*W10+AF2 -> 43.45321492 | X11: 44.58073687 | AB11: =+IFERROR(ABS(AB10/AB4)-1,0) -> -4.751750628e-06 | AC11: =+IFERROR(ABS(AC10/AC4)-1,0) -> 1.42227417e-06 | AE11: f | AF11: =+(AF10+$AB$3)*(AF3-AF4)/(1+AF4)+AF8 -> 13.90237991 | AM11: 2025 | AN11: -1.26986218 | AO11: 13.79845075 | AQ11: 2025 | AR11: =+AF274 -> -1.40097118 | AS11: =+AG274 -> 13.78619221 | AT11: 274
A12: 2025 | B12: =+Pronósticos!B11 -> -1.057142857 | C12: =+Pronósticos!C11 -> 20.14285714 | D12: =+Pronósticos!D11 -> 3.728571429 | E12: =+Pronósticos!E11 -> 13.58571429 | F12: =+Pronósticos!F11 -> 3.885714286 | G12: =+Pronósticos!G11 -> 0.06130045299 | H12: =+Pronósticos!H11 -> 0.0308 | I12: =+Pronósticos!I11 -> 20.14285714 | J12: =+Pronósticos!J11 -> 21.2 | K12: =+Pronósticos!K11 -> 3.128571429 | L12: 10 | M12: 1.029589108 | N12: =+PRODUCT(M2:M12) -> 1.188572051 | O12: =+'Multiplicatoria inversa'!F12 -> 10.04356737 | P12: =+C12-D12-F12-AC2 -> -1.185611702 | Q12: =+IF(L12=AB5,1,VLOOKUP(AB5,'Multiplicatoria inversa'!E3:AK32,L12+4,FALSE))*P12 -> -1.836122163 | R12: =IF(L12<25-Z1+1,(C12-D12-F12-AF8)*((1+AF4)/(1+AF3))^L12,0) -> 0.1707585843 | S12: =+C12-D12-F12-AG2 -> -1.373808484 | T12: 48.04535956 | U12: =+M12*U11+AB2 -> 46.58175085 | V12: 46.60439648 | W12: =+M12*W11+AF2 -> 43.25387946 | X12: 44.52603264 | AM12: 2026 | AN12: -1.2868116 | AO12: 13.8153759 | AQ12: 2026 | AR12: =+AF308 -> -1.411144754 | AS12: =+AG308 -> 13.79212417 | AT12: 308
A13: 2026 | B13: =+Pronósticos!B12 -> -1.057142857 | C13: =+Pronósticos!C12 -> 20.14285714 | D13: =+Pronósticos!D12 -> 3.728571429 | E13: =+Pronósticos!E12 -> 13.58571429 | F13: =+Pronósticos!F12 -> 3.885714286 | G13: =+Pronósticos!G12 -> 0.06130045299 | H13: =+Pronósticos!H12 -> 0.0308 | I13: =+Pronósticos!I12 -> 20.14285714 | J13: =+Pronósticos!J12 -> 21.2 | K13: =+Pronósticos!K12 -> 3.128571429 | L13: 11 | M13: 1.029589108 | N13: =+PRODUCT(M2:M13) -> 1.223740839 | O13: =+'Multiplicatoria inversa'!F13 -> 11.37033668 | P13: =+C13-D13-F13-AC2 -> -1.185611702 | Q13: =+IF(L13=AB5,1,VLOOKUP(AB5,'Multiplicatoria inversa'!E3:AK32,L13+4,FALSE))*P13 -> -1.783354299 | R13: =IF(L13<25-Z1+1,(C13-D13-F13-AF8)*((1+AF4)/(1+AF3))^L13,0) -> 0.1658511953 | S13: =+C13-D13-F13-AG2 -> -1.373808484 | T13: 48.40983606 | U13: =+M13*U12+AB2 -> 46.77632623 | V13: 46.79776732 | W13: =+M13*W12+AF2 -> 43.04864584 | X13: 44.46970976 | AA13: g | AB13: =IFERROR(ABS(AB9)+ABS(AC9),0) -> 0.0003098743047 | AM13: 2027 | AN13: -1.305924736 | AO13: 13.83453124 | AQ13: 2027 | AR13: =+AF342 -> -1.421619354 | AS13: =+AG342 -> 13.79823166 | AT13: 342
A14: 2027 | B14: =+Pronósticos!B13 -> -1.057142857 | C14: =+Pronósticos!C13 -> 20.14285714 | D14: =+Pronósticos!D13 -> 3.728571429 | E14: =+Pronósticos!E13 -> 13.58571429 | F14: =+Pronósticos!F13 -> 3.885714286 | G14: =+Pronósticos!G13 -> 0.06130045299 | H14: =+Pronósticos!H13 -> 0.0308 | I14: =+Pronósticos!I13 -> 20.14285714 | J14: =+Pronósticos!J13 -> 21.2 | K14: =+Pronósticos!K13 -> 3.128571429 | L14: 12 | M14: 1.029589108 | N14: =+PRODUCT(M2:M14) -> 1.259950239 | O14: =+'Multiplicatoria inversa'!F14 -> 12.73636391 | P14: =+C14-D14-F14-AC2 -> -1.185611702 | Q14: =+IF(L14=AB5,1,VLOOKUP(AB5,'Multiplicatoria inversa'!E3:AK32,L14+4,FALSE))*P14 -> -1.732102918 | R14: =IF(L14<25-Z1+1,(C14-D14-F14-AF8)*((1+AF4)/(1+AF3))^L14,0) -> 0.1610848385 | S14: =+C14-D14-F14-AG2 -> -1.373808484 | T14: 48.78509709 | U14: =+M14*U13+AB2 -> 46.97665892 | V14: 46.99685983 | W14: =+M14*W13+AF2 -> 42.83733953 | X14: 44.41172035 | AB14: Pronosticada
A15: 2028 | B15: =+Pronósticos!B14 -> -1.057142857 | C15: =+Pronósticos!C14 -> 20.14285714 | D15: =+Pronósticos!D14 -> 3.728571429 | E15: =+Pronósticos!E14 -> 13.58571429 | F15: =+Pronósticos!F14 -> 3.885714286 | G15: =+Pronósticos!G14 -> 0.06130045299 | H15: =+Pronósticos!H14 -> 0.0308 | I15: =+Pronósticos!I14 -> 20.14285714 | J15: =+Pronósticos!J14 -> 21.2 | K15: =+Pronósticos!K14 -> 3.128571429 | L15: 13 | M15: 1.029589108 | N15: =+PRODUCT(M2:M15) -> 1.297231043 | O15: =+'Multiplicatoria inversa'!F15 -> 14.14281067 | P15: =+C15-D15-F15-AC2 -> -1.185611702 | Q15: =+IF(L15=AB5,1,VLOOKUP(AB5,'Multiplicatoria inversa'!E3:AK32,L15+4,FALSE))*P15 -> -1.682324438 | R15: =IF(L15<25-Z1+1,(C15-D15-F15-AF8)*((1+AF4)/(1+AF3))^L15,0) -> 0.1564554609 | S15: =+C15-D15-F15-AG2 -> -1.373808484 | T15: 49.17146176 | U15: =+M15*U14+AB2 -> 47.18291927 | V15: 47.20184331 | W15: =+M15*W14+AF2 -> 42.61978086 | X15: 44.35201507 | AA15: b_t_star dc (finito) | AB15: Ajuste al déficit primario
A16: 2029 | B16: =+Pronósticos!B15 -> -1.057142857 | C16: =+Pronósticos!C15 -> 20.14285714 | D16: =+Pronósticos!D15 -> 3.728571429 | E16: =+Pronósticos!E15 -> 13.58571429 | F16: =+Pronósticos!F15 -> 3.885714286 | G16: =+Pronósticos!G15 -> 0.06130045299 | H16: =+Pronósticos!H15 -> 0.0308 | I16: =+Pronósticos!I15 -> 20.14285714 | J16: =+Pronósticos!J15 -> 21.2 | K16: =+Pronósticos!K15 -> 3.128571429 | L16: 14 | M16: 1.029589108 | N16: =+PRODUCT(M2:M16) -> 1.335614953 | O16: =+'Multiplicatoria inversa'!F16 -> 15.59087294 | P16: =+C16-D16-F16-AC2 -> -1.185611702 | Q16: =+IF(L16=AB5,1,VLOOKUP(AB5,'Multiplicatoria inversa'!E3:AK32,L16+4,FALSE))*P16 -> -1.633976529 | R16: =IF(L16<25-Z1+1,(C16-D16-F16-AF8)*((1+AF4)/(1+AF3))^L16,0) -> 0.1519591259 | S16: =+C16-D16-F16-AG2 -> -1.373808484 | T16: 49.56925862 | U16: =+M16*U15+AB2 -> 47.39528269 | V16: 47.41289207 | W16: =+M16*W15+AF2 -> 42.39578483 | X16: 44.29054317 | AA16: b_t_star tau (finito) | AB16: Ajuste al ingreso tributario
A17: 2030 | B17: =+Pronósticos!B16 -> -1.057142857 | C17: =+Pronósticos!C16 -> 20.14285714 | D17: =+Pronósticos!D16 -> 3.728571429 | E17: =+Pronósticos!E16 -> 13.58571429 | F17: =+Pronósticos!F16 -> 3.885714286 | G17: =+Pronósticos!G16 -> 0.06130045299 | H17: =+Pronósticos!H16 -> 0.0308 | I17: =+Pronósticos!I16 -> 20.14285714 | J17: =+Pronósticos!J16 -> 21.2 | K17: =+Pronósticos!K16 -> 3.128571429 | L17: 15 | M17: 1.029589108 | N17: =+PRODUCT(M2:M17) -> 1.375134609 | O17: =+'Multiplicatoria inversa'!F17 -> 17.08178208 | P17: =+C17-D17-F17-AC2 -> -1.185611702 | Q17: =+IF(L17=AB5,1,VLOOKUP(AB5,'Multiplicatoria inversa'!E3:AK32,L17+4,FALSE))*P17 -> -1.587018079 | R17: =IF(L17<25-Z1+1,(C17-D17-F17-AF8)*((1+AF4)/(1+AF3))^L17,0) -> 0.1475920099 | S17: =+C17-D17-F17-AG2 -> -1.373808484 | T17: 49.97882593 | U17: =+M17*U16+AB2 -> 47.61392975 | V17: 47.63018557 | W17: =+M17*W16+AF2 -> 42.16516095 | X17: 44.22725237 | AA17: b_t_star dc (infinito) | AB17: Ajuste al déficit primario | AM17: Análisis de sensiblidad
A18: 2031 | B18: =+Pronósticos!B17 -> -1.057142857 | C18: =+Pronósticos!C17 -> 20.14285714 | D18: =+Pronósticos!D17 -> 3.728571429 | E18: =+Pronósticos!E17 -> 13.58571429 | F18: =+Pronósticos!F17 -> 3.885714286 | G18: =+Pronósticos!G17 -> 0.06130045299 | H18: =+Pronósticos!H17 -> 0.0308 | I18: =+Pronósticos!I17 -> 20.14285714 | J18: =+Pronósticos!J17 -> 21.2 | K18: =+Pronósticos!K17 -> 3.128571429 | L18: 16 | M18: 1.029589108 | N18: =+PRODUCT(M2:M18) -> 1.415823616 | O18: =+'Multiplicatoria inversa'!F18 -> 18.61680589 | P18: =+C18-D18-F18-AC2 -> -1.185611702 | Q18: =+IF(L18=AB5,1,VLOOKUP(AB5,'Multiplicatoria inversa'!E3:AK32,L18+4,FALSE))*P18 -> -1.541409157 | R18: =IF(L18<25-Z1+1,(C18-D18-F18-AF8)*((1+AF4)/(1+AF3))^L18,0) -> 0.1433503994 | S18: =+C18-D18-F18-AG2 -> -1.373808484 | T18: 50.40051198 | U18: =+M18*U17+AB2 -> 47.83904638 | V18: 47.8539086 | W18: =+M18*W17+AF2 -> 41.92771312 | X18: 44.16208885 | AA18: b_t_star tau (infinito) | AB18: Ajuste al ingreso tributario | AL18: H infinito | AM18: pd_s
A19: 2032 | B19: =+Pronósticos!B18 -> -1.057142857 | C19: =+Pronósticos!C18 -> 20.14285714 | D19: =+Pronósticos!D18 -> 3.728571429 | E19: =+Pronósticos!E18 -> 13.58571429 | F19: =+Pronósticos!F18 -> 3.885714286 | G19: =+Pronósticos!G18 -> 0.06130045299 | H19: =+Pronósticos!H18 -> 0.0308 | I19: =+Pronósticos!I18 -> 20.14285714 | J19: =+Pronósticos!J18 -> 21.2 | K19: =+Pronósticos!K18 -> 3.128571429 | L19: 17 | M19: 1.029589108 | N19: =+PRODUCT(M2:M19) -> 1.457716574 | O19: =+'Multiplicatoria inversa'!F19 -> 20.19724969 | P19: =+C19-D19-F19-AC2 -> -1.185611702 | Q19: =+IF(L19=AB5,1,VLOOKUP(AB5,'Multiplicatoria inversa'!E3:AK32,L19+4,FALSE))*P19 -> -1.497110977 | R19: =IF(L19<25-Z1+1,(C19-D19-F19-AF8)*((1+AF4)/(1+AF3))^L19,0) -> 0.1392306874 | S19: =+C19-D19-F19-AG2 -> -1.373808484 | T19: 50.83467533 | U19: =+M19*U18+AB2 -> 48.07082401 | V19: 48.08425139 | W19: =+M19*W18+AF2 -> 41.68323942 | X19: 44.09499721 | AM19: =+(AM20-AM21)/(1+AM21)*(-$AB$3) -> -1.485077353
A20: 2033 | B20: =+Pronósticos!B19 -> -1.057142857 | C20: =+Pronósticos!C19 -> 20.14285714 | D20: =+Pronósticos!D19 -> 3.728571429 | E20: =+Pronósticos!E19 -> 13.58571429 | F20: =+Pronósticos!F19 -> 3.885714286 | G20: =+Pronósticos!G19 -> 0.06130045299 | H20: =+Pronósticos!H19 -> 0.0308 | I20: =+Pronósticos!I19 -> 20.14285714 | J20: =+Pronósticos!J19 -> 21.2 | K20: =+Pronósticos!K19 -> 3.128571429 | L20: 18 | M20: 1.029589108 | N20: =+PRODUCT(M2:M20) -> 1.500849108 | O20: =+'Multiplicatoria inversa'!F20 -> 21.82445741 | P20: =+C20-D20-F20-AC2 -> -1.185611702 | Q20: =+IF(L20=AB5,1,VLOOKUP(AB5,'Multiplicatoria inversa'!E3:AK32,L20+4,FALSE))*P20 -> -1.454085873 | R20: =IF(L20<25-Z1+1,(C20-D20-F20-AF8)*((1+AF4)/(1+AF3))^L20,0) -> 0.1352293709 | S20: =+C20-D20-F20-AG2 -> -1.373808484 | T20: 51.2816852 | U20: =+M20*U19+AB2 -> 48.30945974 | V20: 48.32140981 | W20: =+M20*W19+AF2 -> 41.43153196 | X20: 44.02592038 | AL20: r | AM20: =+AF3 -> 0.06130045299 | AN20: c_y/r | AO20: 0 | AP20: 0.01 | AQ20: 0.02 | AR20: 0.03 | AS20: 0.04 | AT20: 0.05 | AU20: 0.06 | AV20: 0.07 | AW20: 0.08 | AX20: 0.09 | AY20: 0.1
A21: 2034 | B21: =+Pronósticos!B20 -> -1.057142857 | C21: =+Pronósticos!C20 -> 20.14285714 | D21: =+Pronósticos!D20 -> 3.728571429 | E21: =+Pronósticos!E20 -> 13.58571429 | F21: =+Pronósticos!F20 -> 3.885714286 | G21: =+Pronósticos!G20 -> 0.06130045299 | H21: =+Pronósticos!H20 -> 0.0308 | I21: =+Pronósticos!I20 -> 20.14285714 | J21: =+Pronósticos!J20 -> 21.2 | K21: =+Pronósticos!K20 -> 3.128571429 | L21: 19 | M21: 1.029589108 | N21: =+PRODUCT(M2:M21) -> 1.545257895 | O21: =+'Multiplicatoria inversa'!F21 -> 23.49981275 | P21: =+C21-D21-F21-AC2 -> -1.185611702 | Q21: =+IF(L21=AB5,1,VLOOKUP(AB5,'Multiplicatoria inversa'!E3:AK32,L21+4,FALSE))*P21 -> -1.412297256 | R21: =IF(L21<25-Z1+1,(C21-D21-F21-AF8)*((1+AF4)/(1+AF3))^L21,0) -> 0.1313430473 | S21: =+C21-D21-F21-AG2 -> -1.373808484 | T21: 51.74192168 | U21: =+M21*U20+AB2 -> 48.55515648 | V21: 48.56558555 | W21: =+M21*W20+AF2 -> 41.17237669 | X21: 43.95479963 | AL21: c_y | AM21: =+AF4 -> 0.0308 | AN21: 0 | AO21: =+IF(AO$20<$AN21,"",(AO$20-$AN21)/(1+$AN21)*(-$AB$3)) -> 0 | AP21: =+IF(AP$20<$AN21,"",(AP$20-$AN21)/(1+$AN21)*(-$AB$3)) -> -0.5019 | AQ21: =+IF(AQ$20<$AN21,"",(AQ$20-$AN21)/(1+$AN21)*(-$AB$3)) -> -1.0038 | AR21: -1.5057 | AS21: -2.0076 | AT21: -2.5095 | AU21: -3.0114 | AV21: -3.5133 | AW21: -4.0152 | AX21: -4.5171 | AY21: -5.019
A22: 2035 | B22: =+Pronósticos!B21 -> -1.057142857 | C22: =+Pronósticos!C21 -> 20.14285714 | D22: =+Pronósticos!D21 -> 3.728571429 | E22: =+Pronósticos!E21 -> 13.58571429 | F22: =+Pronósticos!F21 -> 3.885714286 | G22: =+Pronósticos!G21 -> 0.06130045299 | H22: =+Pronósticos!H21 -> 0.0308 | I22: =+Pronósticos!I21 -> 20.14285714 | J22: =+Pronósticos!J21 -> 21.2 | K22: =+Pronósticos!K21 -> 3.128571429 | L22: 20 | M22: 1.029589108 | N22: =+PRODUCT(M2:M22) -> 1.590980699 | O22: =+'Multiplicatoria inversa'!F22 -> 25.22474037 | P22: =+C22-D22-F22-AC2 -> -1.185611702 | Q22: =+IF(L22=AB5,1,VLOOKUP(AB5,'Multiplicatoria inversa'!E3:AK32,L22+4,FALSE))*P22 -> -1.371709592 | R22: =IF(L22<25-Z1+1,(C22-D22-F22-AF8)*((1+AF4)/(1+AF3))^L22,0) -> 0.1275684117 | S22: =+C22-D22-F22-AG2 -> -1.373808484 | T22: 52.21577616 | U22: =+M22*U21+AB2 -> 48.80812318 | V22: 48.81698622 | W22: =+M22*W21+AF2 -> 40.90555326 | X22: 43.88157448 | AL22: g | AM22: 20.1 | AN22: 0.01 | AO22: =+IF(AO$20<$AN22,"",(AO$20-$AN22)/(1+$AN22)*(-$AB$3)) ->  | AP22: 0 | AQ22: -0.4969306931 | AR22: -0.9938613861 | AS22: -1.490792079 | AT22: -1.987722772 | AU22: -2.484653465 | AV22: -2.981584158 | AW22: -3.478514851 | AX22: -3.975445545 | AY22: -4.472376238
A23: 2036 | B23: =+Pronósticos!B22 -> -1.057142857 | C23: =+Pronósticos!C22 -> 20.14285714 | D23: =+Pronósticos!D22 -> 3.728571429 | E23: =+Pronósticos!E22 -> 13.58571429 | F23: =+Pronósticos!F22 -> 3.885714286 | G23: =+Pronósticos!G22 -> 0.06130045299 | H23: =+Pronósticos!H22 -> 0.0308 | I23: =+Pronósticos!I22 -> 20.14285714 | J23: =+Pronósticos!J22 -> 21.2 | K23: =+Pronósticos!K22 -> 3.128571429 | L23: 21 | M23: 1.029589108 | N23: =+PRODUCT(M2:M23) -> 1.638056399 | O23: =+'Multiplicatoria inversa'!F23 -> 27.00070706 | P23: =+C23-D23-F23-AC2 -> -1.185611702 | Q23: =+IF(L23=AB5,1,VLOOKUP(AB5,'Multiplicatoria inversa'!E3:AK32,L23+4,FALSE))*P23 -> -1.332288367 | R23: =IF(L23<25-Z1+1,(C23-D23-F23-AF8)*((1+AF4)/(1+AF3))^L23,0) -> 0.1239022544 | S23: =+C23-D23-F23-AG2 -> -1.373808484 | T23: 52.70365157 | U23: =+M23*U22+AB2 -> 49.06857493 | V23: 49.07582562 | W23: =+M23*W22+AF2 -> 40.63083476 | X23: 43.80618266 | AL23: ip | AM23: 3.9 | AN23: 0.02 | AO23: =+IF(AO$20<$AN23,"",(AO$20-$AN23)/(1+$AN23)*(-$AB$3)) ->  | AQ23: 0 | AR23: -0.4920588235 | AS23: -0.9841176471 | AT23: -1.476176471 | AU23: -1.968235294 | AV23: -2.460294118 | AW23: -2.952352941 | AX23: -3.444411765 | AY23: -3.936470588
A24: 2037 | B24: =+Pronósticos!B23 -> -1.057142857 | C24: =+Pronósticos!C23 -> 20.14285714 | D24: =+Pronósticos!D23 -> 3.728571429 | E24: =+Pronósticos!E23 -> 13.58571429 | F24: =+Pronósticos!F23 -> 3.885714286 | G24: =+Pronósticos!G23 -> 0.06130045299 | H24: =+Pronósticos!H23 -> 0.0308 | I24: =+Pronósticos!I23 -> 20.14285714 | J24: =+Pronósticos!J23 -> 21.2 | K24: =+Pronósticos!K23 -> 3.128571429 | L24: 22 | M24: 1.029589108 | N24: =+PRODUCT(M2:M24) -> 1.686525028 | O24: =+'Multiplicatoria inversa'!F24 -> 28.82922301 | P24: =+C24-D24-F24-AC2 -> -1.185611702 | Q24: =+IF(L24=AB5,1,VLOOKUP(AB5,'Multiplicatoria inversa'!E3:AK32,L24+4,FALSE))*P24 -> -1.294000059 | R24: =IF(L24<25-Z1+1,(C24-D24-F24-AF8)*((1+AF4)/(1+AF3))^L24,0) -> 0.120341458 | S24: =+C24-D24-F24-AG2 -> -1.373808484 | T24: 53.20596277 | U24: =+M24*U23+AB2 -> 49.33673321 | V24: 49.34232384 | W24: =+M24*W23+AF2 -> 40.34798758 | X24: 43.72856006 | AL24: iotros | AM24: 3.9 | AN24: 0.03 | AR24: =+IF(AR$20<$AN24,"",(AR$20-$AN24)/(1+$AN24)*(-$AB$3)) -> 0 | AS24: -0.4872815534 | AT24: -0.9745631068 | AU24: -1.46184466 | AV24: -1.949126214 | AW24: -2.436407767 | AX24: -2.92368932 | AY24: -3.410970874
A25: 2038 | B25: =+Pronósticos!B24 -> -1.057142857 | C25: =+Pronósticos!C24 -> 20.14285714 | D25: =+Pronósticos!D24 -> 3.728571429 | E25: =+Pronósticos!E24 -> 13.58571429 | F25: =+Pronósticos!F24 -> 3.885714286 | G25: =+Pronósticos!G24 -> 0.06130045299 | H25: =+Pronósticos!H24 -> 0.0308 | I25: =+Pronósticos!I24 -> 20.14285714 | J25: =+Pronósticos!J24 -> 21.2 | K25: =+Pronósticos!K24 -> 3.128571429 | L25: 23 | M25: 1.029589108 | N25: =+PRODUCT(M2:M25) -> 1.736427799 | O25: =+'Multiplicatoria inversa'!F25 -> 30.71184313 | P25: =+C25-D25-F25-AC2 -> -1.185611702 | Q25: =+IF(L25=AB5,1,VLOOKUP(AB5,'Multiplicatoria inversa'!E3:AK32,L25+4,FALSE))*P25 -> -1.256812109 | R25: =IF(L25<25-Z1+1,(C25-D25-F25-AF8)*((1+AF4)/(1+AF3))^L25,0) -> 0.1168829944 | S25: =+C25-D25-F25-AG2 -> -1.373808484 | T25: 53.72313692 | U25: =+M25*U24+AB2 -> 49.61282606 | V25: 49.61670751 | W25: =+M25*W24+AF2 -> 40.05677121 | X25: 43.64864068 | AL25: omega | AM25: 12.3 | AN25: 0.04 | AS25: 0 | AT25: -0.4825961538 | AU25: -0.9651923077 | AV25: -1.447788462 | AW25: -1.930384615 | AX25: -2.412980769 | AY25: -2.895576923
A26: 2039 | B26: =+Pronósticos!B25 -> -1.057142857 | C26: =+Pronósticos!C25 -> 20.14285714 | D26: =+Pronósticos!D25 -> 3.728571429 | E26: =+Pronósticos!E25 -> 13.58571429 | F26: =+Pronósticos!F25 -> 3.885714286 | G26: =+Pronósticos!G25 -> 0.06130045299 | H26: =+Pronósticos!H25 -> 0.0308 | I26: =+Pronósticos!I25 -> 20.14285714 | J26: =+Pronósticos!J25 -> 21.2 | K26: =+Pronósticos!K25 -> 3.128571429 | L26: 24 | M26: 1.029589108 | N26: =+PRODUCT(M2:M26) -> 1.78780715 | O26: =+'Multiplicatoria inversa'!F26 -> 32.65016829 | P26: =+C26-D26-F26-AC2 -> -1.185611702 | Q26: =+IF(L26=AB5,1,VLOOKUP(AB5,'Multiplicatoria inversa'!E3:AK32,L26+4,FALSE))*P26 -> -1.220692895 | R26: =IF(L26<25-Z1+1,(C26-D26-F26-AF8)*((1+AF4)/(1+AF3))^L26,0) -> 0.1135239227 | S26: =+C26-D26-F26-AG2 -> -1.373808484 | T26: 54.25561378 | U26: =+M26*U25+AB2 -> 49.89708825 | V26: 49.89920995 | W26: =+M26*W25+AF2 -> 39.756938 | X26: 43.56635656 | AL26: 25 se vuelve constante | AM26: 0 | AN26: 0.05 | AT26: 0 | AU26: -0.478 | AV26: -0.956 | AW26: -1.434 | AX26: -1.912 | AY26: -2.39
A27: 2040 | B27: =+Pronósticos!B26 -> -1.057142857 | C27: =+Pronósticos!C26 -> 20.14285714 | D27: =+Pronósticos!D26 -> 3.728571429 | E27: =+Pronósticos!E26 -> 13.58571429 | F27: =+Pronósticos!F26 -> 3.885714286 | G27: =+Pronósticos!G26 -> 0.06130045299 | H27: =+Pronósticos!H26 -> 0.0308 | I27: =+Pronósticos!I26 -> 20.14285714 | J27: =+Pronósticos!J26 -> 21.2 | K27: =+Pronósticos!K26 -> 3.128571429 | L27: 25 | M27: 1.029589108 | N27: =+PRODUCT(M2:M27) -> 1.84070677 | O27: =+'Multiplicatoria inversa'!F27 -> 34.64584677 | P27: =+C27-D27-F27-AC2 -> -1.185611702 | Q27: =+IF(L27=AB5,1,VLOOKUP(AB5,'Multiplicatoria inversa'!E3:AK32,L27+4,FALSE))*P27 -> -1.185611702 | R27: =IF(L27<25-Z1+1,(C27-D27-F27-AF8)*((1+AF4)/(1+AF3))^L27,0) -> 0 | S27: =+C27-D27-F27-AG2 -> -1.373808484 | T27: 54.80384616 | U27: =+M27*U26+AB2 -> 50.18976151 | V27: 50.19007138 | W27: =+M27*W26+AF2 -> 39.448233 | X27: 43.48163773 | AL27: sum 1 a 24 | AM27: 3.964383035
A28: 2041 | B28: =+Pronósticos!B27 -> -1.057142857 | C28: =+Pronósticos!C27 -> 20.14285714 | D28: =+Pronósticos!D27 -> 3.728571429 | E28: =+Pronósticos!E27 -> 13.58571429 | F28: =+Pronósticos!F27 -> 3.885714286 | G28: =+Pronósticos!G27 -> 0.06130045299 | H28: =+Pronósticos!H27 -> 0.0308 | I28: =+Pronósticos!I27 -> 20.14285714 | J28: =+Pronósticos!J27 -> 21.2 | K28: =+Pronósticos!K27 -> 3.128571429 | L28: 26 | M28: 1.029589108 | N28: =+PRODUCT(M2:M28) -> 1.895171642 | O28: =+'Multiplicatoria inversa'!F28 -> 36.7005756 | P28: =+C28-D28-F28-AC2 -> -1.185611702 | Q28: =+IF(L28=AB5,1,VLOOKUP(AB5,'Multiplicatoria inversa'!E3:AK32,L28+4,FALSE))*P28 -> 0 | R28: =IF(L28<25-Z1+1,(C28-D28-F28-AF8)*((1+AF4)/(1+AF3))^L28,0) -> 0 | S28: =+C28-D28-F28-AG2 -> -1.373808484 | T28: 55.36830026 | U28: =+M28*U27+AB2 -> 50.49109471 | V28: 50.48953915 | W28: =+M28*W27+AF2 -> 39.13039369 | X28: 43.39441214 | AL28: f | AM28: 13.90237991
A29: 2042 | B29: =+Pronósticos!B28 -> -1.057142857 | C29: =+Pronósticos!C28 -> 20.14285714 | D29: =+Pronósticos!D28 -> 3.728571429 | E29: =+Pronósticos!E28 -> 13.58571429 | F29: =+Pronósticos!F28 -> 3.885714286 | G29: =+Pronósticos!G28 -> 0.06130045299 | H29: =+Pronósticos!H28 -> 0.0308 | I29: =+Pronósticos!I28 -> 20.14285714 | J29: =+Pronósticos!J28 -> 21.2 | K29: =+Pronósticos!K28 -> 3.128571429 | L29: 27 | M29: 1.029589108 | N29: =+PRODUCT(M2:M29) -> 1.951248081 | O29: =+'Multiplicatoria inversa'!F29 -> 38.81610202 | P29: =+C29-D29-F29-AC2 -> -1.185611702 | Q29: =+IF(L29=AB5,1,VLOOKUP(AB5,'Multiplicatoria inversa'!E3:AK32,L29+4,FALSE))*P29 -> 0 | R29: =IF(L29<25-Z1+1,(C29-D29-F29-AF8)*((1+AF4)/(1+AF3))^L29,0) -> 0 | S29: =+C29-D29-F29-AG2 -> -1.373808484 | T29: 55.94945604 | U29: =+M29*U28+AB2 -> 50.80134408 | V29: 50.79786789 | W29: =+M29*W28+AF2 -> 38.8031498 | X29: 43.30460562
A30: 2043 | B30: =+Pronósticos!B29 -> -1.057142857 | C30: =+Pronósticos!C29 -> 20.14285714 | D30: =+Pronósticos!D29 -> 3.728571429 | E30: =+Pronósticos!E29 -> 13.58571429 | F30: =+Pronósticos!F29 -> 3.885714286 | G30: =+Pronósticos!G29 -> 0.06130045299 | H30: =+Pronósticos!H29 -> 0.0308 | I30: =+Pronósticos!I29 -> 20.14285714 | J30: =+Pronósticos!J29 -> 21.2 | K30: =+Pronósticos!K29 -> 3.128571429 | L30: 28 | M30: 1.029589108 | N30: =+PRODUCT(M2:M30) -> 2.008983772 | O30: =+'Multiplicatoria inversa'!F30 -> 40.99422498 | P30: =+C30-D30-F30-AC2 -> -1.185611702 | Q30: =+IF(L30=AB5,1,VLOOKUP(AB5,'Multiplicatoria inversa'!E3:AK32,L30+4,FALSE))*P30 -> 0 | R30: =IF(L30<25-Z1+1,(C30-D30-F30-AF8)*((1+AF4)/(1+AF3))^L30,0) -> 0 | S30: =+C30-D30-F30-AG2 -> -1.373808484 | T30: 56.5478077 | U30: =+M30*U29+AB2 -> 51.12077346 | V30: 51.11531981 | W30: =+M30*W29+AF2 -> 38.46622306 | X30: 43.21214181 | AM30: Análisis de sensiblidad
A31: 2044 | B31: =+Pronósticos!B30 -> -1.057142857 | C31: =+Pronósticos!C30 -> 20.14285714 | D31: =+Pronósticos!D30 -> 3.728571429 | E31: =+Pronósticos!E30 -> 13.58571429 | F31: =+Pronósticos!F30 -> 3.885714286 | G31: =+Pronósticos!G30 -> 0.06130045299 | H31: =+Pronósticos!H30 -> 0.0308 | I31: =+Pronósticos!I30 -> 20.14285714 | J31: =+Pronósticos!J30 -> 21.2 | K31: =+Pronósticos!K30 -> 3.128571429 | L31: 29 | M31: 1.029589108 | N31: =+PRODUCT(M2:M31) -> 2.068427811 | O31: =+'Multiplicatoria inversa'!F31 -> 43.23679666 | P31: =+C31-D31-F31-AC2 -> -1.185611702 | Q31: =+IF(L31=AB5,1,VLOOKUP(AB5,'Multiplicatoria inversa'!E3:AK32,L31+4,FALSE))*P31 -> 0 | R31: =IF(L31<25-Z1+1,(C31-D31-F31-AF8)*((1+AF4)/(1+AF3))^L31,0) -> 0 | S31: =+C31-D31-F31-AG2 -> -1.373808484 | T31: 57.16386406 | U31: =+M31*U30+AB2 -> 51.44965447 | V31: 51.44216485 | W31: =+M31*W30+AF2 -> 38.11932695 | X31: 43.11694208 | AL31: H infinito | AM31: tau_s
A32: 2045 | B32: =+Pronósticos!B31 -> -1.057142857 | C32: =+Pronósticos!C31 -> 20.14285714 | D32: =+Pronósticos!D31 -> 3.728571429 | E32: =+Pronósticos!E31 -> 13.58571429 | F32: =+Pronósticos!F31 -> 3.885714286 | G32: =+Pronósticos!G31 -> 0.06130045299 | H32: =+Pronósticos!H31 -> 0.0308 | I32: =+Pronósticos!I31 -> 20.14285714 | J32: =+Pronósticos!J31 -> 21.2 | K32: =+Pronósticos!K31 -> 3.128571429 | L32: 30 | M32: 1.029589108 | N32: =+PRODUCT(M2:M32) -> 2.129630746 | O32: =+'Multiplicatoria inversa'!F32 -> 45.54572403 | P32: =+C32-D32-F32-AC2 -> -1.185611702 | R32: =IF(L32<25-Z1+1,(C32-D32-F32-AF8)*((1+AF4)/(1+AF3))^L32,0) -> 0 | S32: =+C32-D32-F32-AG2 -> -1.373808484 | T32: 57.79814898 | U32: =+M32*U31+AB2 -> 51.78826678 | V32: 51.77868095 | W32: =+M32*W31+AF2 -> 37.7621665 | X32: 43.01892547 | AM32: =+(AM33-AM34)/(1+AM34)*(-$AB$3) -> -1.485077353
AL33: r | AM33: =+AM20 -> 0.06130045299 | AN33: c_y/r | AO33: 0 | AP33: 0.01 | AQ33: 0.02 | AR33: 0.03 | AS33: 0.04 | AT33: 0.05 | AU33: 0.06 | AV33: 0.07 | AW33: 0.08 | AX33: 0.09 | AY33: 0.1
AL34: c_y | AM34: =+AM21 -> 0.0308 | AN34: 0 | AO34: =+IF(AO$20<$AN34,"",($AM$40+$AB$3)*(AO$33-$AN34)/(1+$AN34)+$AM$38) -> 12.3 | AP34: =+IF(AP$20<$AN34,"",($AM$40+$AB$3)*(AP$33-$AN34)/(1+$AN34)+$AM$38) -> 12.84154383 | AQ34: 13.38308766 | AR34: 13.92463149 | AS34: 14.46617532 | AT34: 15.00771915 | AU34: 15.54926298 | AV34: 16.09080681 | AW34: 16.63235064 | AX34: 17.17389447 | AY34: 17.7154383
A35: Fecha(Anual) | B35: dp_t | C35: g_t | D35: ip_t | E35: tau_t | F35: i_otros_t | G35: r_t | H35: c_y_t | I35: Gasto__neto | J35: I_presupuestarios | K35: Costo_finan | L35: t | M35: 1+r_t / 1+c_y_t | N35: Multiplicatoria simple | O35: Multiplicatoria inversa | P35: gt - ipt - iotros - tau_s | Q35: (gt - ipt - iotros + tau_s) | R35: (gt - ipt - iotros - omega)(1+r/1+c_y)^t | S35: gt - ipt - iotros - tau_s (inf) | T35: b_t | U35: b_t_star dc (finito) | V35: b_t_star tau (finito) | W35: b_t_star dc (infinito) | X35: b_t_star tau (infinito) | Z35: 2 | AA35: H Finito | AB35: pd_s | AC35: tau_s | AE35: H infinito | AF35: pd_s | AG35: tau_s | AL35: g | AM35: 20.1 | AN35: 0.01 | AO35: =+IF(AO$20<$AN35,"",($AM$40+$AB$3)*(AO$33-$AN35)/(1+$AN35)+$AM$38) ->  | AP35: 12.3 | AQ35: 12.83618201 | AR35: 13.37236402 | AS35: 13.90854603 | AT35: 14.44472804 | AU35: 14.98091005 | AV35: 15.51709206 | AW35: 16.05327407 | AX35: 16.58945608 | AY35: 17.12563809
A36: =+A3 -> 2016 | L36: 0 | M36: =(1+G36)/(1+H36) -> 1 | T36: =+T3 -> 50.20307602 | U36: =+T36 -> 50.20307602 | V36: =+T36 -> 50.20307602 | W36: =+T36 -> 50.20307602 | X36: =+T36 -> 50.20307602 | AB36: =+AN4 -> -1.231537864 | AC36: =+AO4 -> 13.73117793 | AF36: =+(AF37-AF38)/(1+AF38)*(-AB37) -> -1.485464261 | AG36: =+AF45 -> 13.88256641 | AL36: ip | AM36: 3.9 | AN36: 0.02 | AQ36: 12.3 | AR36: 12.83092532 | AS36: 13.36185065 | AT36: 13.89277597 | AU36: 14.4237013 | AV36: 14.95462662 | AW36: 15.48555194 | AX36: 16.01647727 | AY36: 16.54740259
A37: =+A36+1 -> 2017 | B37: =+B4 -> -0.9 | C37: =+C4 -> 20.2 | D37: 3.7 | E37: 13.5 | F37: 3.9 | G37: 0.0424 | H37: 0.03 | I37: 20.2 | J37: 21.1 | K37: 2.9 | L37: 1 | M37: =(1+G37)/(1+H37) -> 1.012038835 | N37: =+PRODUCT(M36:M37) -> 1.012038835 | O37: =+'Multiplicatoria inversa'!F37 -> 0 | P37: =+C37-D37-F37-AC36 -> -1.131177935 | Q37: =+IF(L37=AB39,1,VLOOKUP(AB39,'Multiplicatoria inversa'!E37:AK66,L37+4,FALSE))*P37 -> -2.04464409 | R37: =IF(L37<25-Z35+1,(C37-D37-F37-AF42)*((1+AF38)/(1+AF37))^L37,0) -> 0.2913783737 | S37: =+C37-D37-F37-AG36 -> -1.282566412 | T37: =+M37*T36+B37 -> 49.90746257 | U37: =+M37*U36+AB36 -> 49.57592471 | V37: =+M37*V36+P37 -> 49.67628463 | W37: =+M37*W36+AF36 -> 49.32199831 | X37: =+M37*X36+S37 -> 49.52489616 | AA37: b_0 | AB37: =+U36 -> 50.20307602 | AC37: =+AB37 -> 50.20307602 | AE37: r | AF37: =+AF3 -> 0.06130045299 | AL37: iotros | AM37: 3.9 | AN37: 0.03 | AR37: 12.3 | AS37: 12.82577071 | AT37: 13.35154142 | AU37: 13.87731213 | AV37: 14.40308284 | AW37: 14.92885355 | AX37: 15.45462425 | AY37: 15.98039496
A38: =+A37+1 -> 2018 | B38: =+B5 -> -1.1 | C38: 19.9 | D38: 3.6 | E38: 13.5 | F38: 3.9 | G38: 0.0496 | H38: 0.035 | I38: 19.9 | J38: 21 | K38: 3.1 | L38: =+L37+1 -> 2 | M38: =(1+G38)/(1+H38) -> 1.01410628 | N38: =+PRODUCT(M36:M38) -> 1.026314938 | O38: =+'Multiplicatoria inversa'!F38 -> 1.01410628 | P38: =+C38-D38-F38-AC36 -> -1.331177935 | Q38: =+IF(L38=AB39,1,VLOOKUP(AB39,'Multiplicatoria inversa'!E37:AK66,L38+4,FALSE))*P38 -> -2.372681448 | R38: =IF(L38<25-Z35+1,(C38-D38-F38-AF42)*((1+AF38)/(1+AF37))^L38,0) -> 0.09433484073 | S38: =+C38-D38-F38-AG36 -> -1.482566412 | T38: 49.51147122 | U38: =+M38*U37+AB36 -> 49.04371873 | V38: 49.04585429 | W38: =+M38*W37+AF36 -> 48.53228398 | X38: 48.74094181 | AA38: b_T | AB38: =+AB4 -> 50.19 | AC38: =+AC4 -> 50.19 | AE38: c_y | AF38: =+AF4 -> 0.0308 | AL38: omega | AM38: 12.3 | AN38: 0.04 | AS38: 12.3 | AT38: 12.82071522 | AU38: 13.34143044 | AV38: 13.86214566 | AW38: 14.38286089 | AX38: 14.90357611 | AY38: 15.42429133
A39: 2019 | B39: =+B6 -> -1.1 | C39: 19.8 | D39: 3.5 | E39: 13.6 | F39: 3.8 | G39: 0.0518 | H39: 0.035 | I39: 19.8 | J39: 20.9 | K39: 3.1 | L39: =+L38+1 -> 3 | M39: 1.016231884 | N39: =+PRODUCT(M36:M39) -> 1.042973963 | O39: =+'Multiplicatoria inversa'!F39 -> 2.04679902 | P39: =+C39-D39-F39-AC36 -> -1.231177935 | Q39: =+IF(L39=AB39,1,VLOOKUP(AB39,'Multiplicatoria inversa'!E37:AK66,L39+4,FALSE))*P39 -> -2.159391219 | R39: =IF(L39<25-Z35+1,(C39-D39-F39-AF42)*((1+AF38)/(1+AF37))^L39,0) -> 0.1832475498 | S39: =+C39-D39-F39-AG36 -> -1.382566412 | T39: 49.21513568 | U39: =+M39*U38+AB36 -> 48.60825282 | V39: 48.61078298 | W39: =+M39*W38+AF36 -> 47.83459012 | X39: 48.14953271 | AA39: T | AB39: =+AB5-1 -> 24 | AC39: =+AB39 -> 24 | AE39: g | AF39: =+AF5 -> 20.1 | AL39: 25 se vuelve constante | AM39: 0 | AN39: 0.05 | AT39: 12.3 | AU39: 12.81575603 | AV39: 13.33151206 | AW39: 13.84726809 | AX39: 14.36302412 | AY39: 14.87878014
A40: 2020 | B40: =+B7 -> -1.2 | C40: 20 | D40: 3.7 | E40: 13.7 | F40: 3.8 | G40: 0.05349593496 | H40: 0.045 | I40: 20 | J40: 21.2 | K40: 3.2 | L40: 4 | M40: 1.008130081 | N40: =+PRODUCT(M36:M40) -> 1.051453427 | O40: =+'Multiplicatoria inversa'!F40 -> 3.071569744 | P40: =+C40-D40-F40-AC36 -> -1.231177935 | Q40: =+IF(L40=AB39,1,VLOOKUP(AB39,'Multiplicatoria inversa'!E37:AK66,L40+4,FALSE))*P40 -> -2.141976774 | R40: =IF(L40<25-Z35+1,(C40-D40-F40-AF42)*((1+AF38)/(1+AF37))^L40,0) -> 0.1779812435 | S40: =+C40-D40-F40-AG36 -> -1.382566412 | T40: 48.41525874 | U40: =+M40*U39+AB36 -> 47.771904 | V40: 47.77481466 | W40: =+M40*W39+AF36 -> 46.73802497 | X40: 47.15842592 | AA40: Pi_t b_0 | AB40: =+VLOOKUP(AB39,L37:N66,3,FALSE)*AB37 -> 91.83628398 | AC40: =+AB40 -> 91.83628398 | AE40: ip | AF40: =+AF6 -> 3.9 | AL40: sum 1 a 24 | AM40: =+AM27 -> 3.964383035
A41: 2021 | B41: =+B8 -> -1.4 | C41: 20.1 | D41: 3.9 | E41: 13.7 | F41: 3.9 | G41: 0.0602 | H41: 0.045 | I41: 20.1 | J41: 21.5 | K41: 3.4 | L41: 5 | M41: 1.014545455 | N41: =+PRODUCT(M36:M41) -> 1.066747295 | O41: =+'Multiplicatoria inversa'!F41 -> 4.130792576 | P41: =+C41-D41-F41-AC36 -> -1.431177935 | Q41: =+IF(L41=AB39,1,VLOOKUP(AB39,'Multiplicatoria inversa'!E37:AK66,L41+4,FALSE))*P41 -> -2.454234497 | R41: =IF(L41<25-Z35+1,(C41-D41-F41-AF42)*((1+AF38)/(1+AF37))^L41,0) -> 0 | S41: =+C41-D41-F41-AG36 -> -1.582566412 | T41: 47.71948068 | U41: =+M41*U40+AB36 -> 47.23523019 | V41: 47.03854312 | W41: =+M41*W40+AF36 -> 45.93238652 | X41: 46.26180025 | AA41: sum dpt | AB41: =+VLOOKUP(AB39,L37:O66,4,FALSE) -> 32.81655082 | AC41: =+SUM(Q37:Q65) -> -41.64618434 | AE41: iotros | AF41: 3.9 | AL41: f | AM41: =+(AM40+$AB$3)*(AM33-AM34)/(1+AM34)+AM38 -> 13.90237991
A42: 2022 | B42: =+B9 -> -1.4 | C42: 20.1 | D42: 3.9 | E42: 13.7 | F42: 3.9 | G42: 0.0602 | H42: 0.045 | I42: 20.1 | J42: 21.5 | K42: 3.4 | L42: 6 | M42: 1.014545455 | N42: =+PRODUCT(M36:M42) -> 1.082263619 | O42: =+'Multiplicatoria inversa'!F42 -> 5.205422286 | P42: =+C42-D42-F42-AC36 -> -1.431177935 | Q42: =+IF(L42=AB39,1,VLOOKUP(AB39,'Multiplicatoria inversa'!E37:AK66,L42+4,FALSE))*P42 -> -2.419048339 | R42: =IF(L42<25-Z35+1,(C42-D42-F42-AF42)*((1+AF38)/(1+AF37))^L42,0) -> 0 | S42: =+C42-D42-F42-AG36 -> -1.582566412 | T42: 47.01358222 | U42: =+M42*U41+AB36 -> 46.69075022 | V42: 46.29156217 | W42: =+M42*W41+AF36 -> 45.1150297 | X42: 45.35213275 | AA42: f | AB42: =+AB40+AB36*(AB41+1) -> 50.18992121 | AC42: =+AC40+AC41 -> 50.19009964 | AE42: omega | AF42: 12.3
A43: 2023 | B43: =+B10 -> -1.057142857 | C43: 20.14285714 | D43: 3.728571429 | E43: 13.58571429 | F43: 3.885714286 | G43: 0.06130045299 | H43: 0.0308 | I43: 20.14285714 | J43: 21.2 | K43: 3.128571429 | L43: 7 | M43: 1.029589108 | N43: =+PRODUCT(M36:M43) -> 1.114286834 | O43: =+'Multiplicatoria inversa'!F43 -> 6.389035199 | P43: =+C43-D43-F43-AC36 -> -1.202606506 | Q43: =+IF(L43=AB39,1,VLOOKUP(AB39,'Multiplicatoria inversa'!E37:AK66,L43+4,FALSE))*P43 -> -1.974288084 | R43: =IF(L43<25-Z35+1,(C43-D43-F43-AF42)*((1+AF38)/(1+AF37))^L43,0) -> 0.186369296 | S43: =+C43-D43-F43-AG36 -> -1.353994983 | T43: 47.34752934 | U43: =+M43*U42+AB36 -> 46.84075003 | V43: 46.45868172 | W43: =+M43*W42+AF36 -> 44.96447895 | X43: 45.34006694 | AA43: dif | AB43: =+AB38-AB42 -> 7.879382329e-05 | AC43: =+AC38-AC42 -> -9.96437302e-05 | AE43: 25 se vuelve constante
A44: 2024 | B44: =+B11 -> -1.057142857 | C44: 20.14285714 | D44: 3.728571429 | E44: 13.58571429 | F44: 3.885714286 | G44: 0.06130045299 | H44: 0.0308 | I44: 20.14285714 | J44: 21.2 | K44: 3.128571429 | L44: 8 | M44: 1.029589108 | N44: =+PRODUCT(M36:M44) -> 1.147257588 | O44: =+'Multiplicatoria inversa'!F44 -> 7.607670163 | P44: =+C44-D44-F44-AC36 -> -1.202606506 | Q44: =+IF(L44=AB39,1,VLOOKUP(AB39,'Multiplicatoria inversa'!E37:AK66,L44+4,FALSE))*P44 -> -1.917549504 | R44: =IF(L44<25-Z35+1,(C44-D44-F44-AF42)*((1+AF38)/(1+AF37))^L44,0) -> 0.1810132746 | S44: =+C44-D44-F44-AG36 -> -1.353994983 | T44: 47.69135767 | U44: =+M44*U43+AB36 -> 46.9951882 | V44: 46.63074619 | W44: =+M44*W43+AF36 -> 44.80947353 | X44: 45.32764411 | AA44: Validar | AB44: =+VLOOKUP(AB39,L37:U66,10,FALSE) -> 50.18992121 | AC44: =+VLOOKUP(AC39,L37:V66,11,FALSE) -> 50.19009964 | AE44: sum 1 a 24 | AF44: =+SUM(R37:R60) -> 3.281685595
A45: 2025 | B45: =+B12 -> -1.057142857 | C45: 20.14285714 | D45: 3.728571429 | E45: 13.58571429 | F45: 3.885714286 | G45: 0.06130045299 | H45: 0.0308 | I45: 20.14285714 | J45: 21.2 | K45: 3.128571429 | L45: 9 | M45: 1.029589108 | N45: =+PRODUCT(M36:M45) -> 1.181203918 | O45: =+'Multiplicatoria inversa'!F45 -> 8.862363449 | P45: =+C45-D45-F45-AC36 -> -1.202606506 | Q45: =+IF(L45=AB39,1,VLOOKUP(AB39,'Multiplicatoria inversa'!E37:AK66,L45+4,FALSE))*P45 -> -1.86244152 | R45: =IF(L45<25-Z35+1,(C45-D45-F45-AF42)*((1+AF38)/(1+AF37))^L45,0) -> 0.1758111785 | S45: =+C45-D45-F45-AG36 -> -1.353994983 | T45: 48.04535956 | U45: =+M45*U44+AB36 -> 47.15419605 | V45: 46.80790189 | W45: =+M45*W44+AF36 -> 44.64988164 | X45: 45.31485371 | AB45: =+IFERROR(ABS(AB44/AB38)-1,0) -> -1.569910807e-06 | AC45: =+IFERROR(ABS(AC44/AC38)-1,0) -> 1.985330348e-06 | AE45: f | AF45: =+(AF44+AB37)*(AF37-AF38)/(1+AF38)+AF42 -> 13.88256641
A46: 2026 | B46: =+B13 -> -1.057142857 | C46: 20.14285714 | D46: 3.728571429 | E46: 13.58571429 | F46: 3.885714286 | G46: 0.06130045299 | H46: 0.0308 | I46: 20.14285714 | J46: 21.2 | K46: 3.128571429 | L46: 10 | M46: 1.029589108 | N46: =+PRODUCT(M36:M46) -> 1.216154688 | O46: =+'Multiplicatoria inversa'!F46 -> 10.15418199 | P46: =+C46-D46-F46-AC36 -> -1.202606506 | Q46: =+IF(L46=AB39,1,VLOOKUP(AB39,'Multiplicatoria inversa'!E37:AK66,L46+4,FALSE))*P46 -> -1.80891727 | R46: =IF(L46<25-Z35+1,(C46-D46-F46-AF42)*((1+AF38)/(1+AF37))^L46,0) -> 0.1707585843 | S46: =+C46-D46-F46-AG36 -> -1.353994983 | T46: 48.40983606 | U46: =+M46*U45+AB36 -> 47.31790881 | V46: 46.99029946 | W46: =+M46*W45+AF36 -> 44.48556757 | X46: 45.30168484
A47: 2027 | B47: =+B14 -> -1.057142857 | C47: 20.14285714 | D47: 3.728571429 | E47: 13.58571429 | F47: 3.885714286 | G47: 0.06130045299 | H47: 0.0308 | I47: 20.14285714 | J47: 21.2 | K47: 3.128571429 | L47: 11 | M47: 1.029589108 | N47: =+PRODUCT(M36:M47) -> 1.252139621 | O47: =+'Multiplicatoria inversa'!F47 -> 11.48422429 | P47: =+C47-D47-F47-AC36 -> -1.202606506 | Q47: =+IF(L47=AB39,1,VLOOKUP(AB39,'Multiplicatoria inversa'!E37:AK66,L47+4,FALSE))*P47 -> -1.756931241 | R47: =IF(L47<25-Z35+1,(C47-D47-F47-AF42)*((1+AF38)/(1+AF37))^L47,0) -> 0.1658511953 | S47: =+C47-D47-F47-AG36 -> -1.353994983 | T47: 48.78509709 | U47: =+M47*U46+AB36 -> 47.48646568 | V47: 47.17809403 | W47: =+M47*W46+AF36 -> 44.3163916 | X47: 45.28812633 | AA47: g | AB47: =IFERROR(ABS(AB43)+ABS(AC43),0) -> 0.0001784375535
A48: 2028 | B48: =+B15 -> -1.057142857 | C48: 20.14285714 | D48: 3.728571429 | E48: 13.58571429 | F48: 3.885714286 | G48: 0.06130045299 | H48: 0.0308 | I48: 20.14285714 | J48: 21.2 | K48: 3.128571429 | L48: 12 | M48: 1.029589108 | N48: =+PRODUCT(M36:M48) -> 1.289189316 | O48: =+'Multiplicatoria inversa'!F48 -> 12.85362136 | P48: =+C48-D48-F48-AC36 -> -1.202606506 | Q48: =+IF(L48=AB39,1,VLOOKUP(AB39,'Multiplicatoria inversa'!E37:AK66,L48+4,FALSE))*P48 -> -1.706439226 | R48: =IF(L48<25-Z35+1,(C48-D48-F48-AF42)*((1+AF38)/(1+AF37))^L48,0) -> 0.1610848385 | S48: =+C48-D48-F48-AG36 -> -1.353994983 | T48: 49.17146176 | U48: =+M48*U47+AB36 -> 47.66001 | V48: 47.37144526 | W48: =+M48*W47+AF36 -> 44.14220985 | X48: 45.27416662 | AB48: Pronosticada
A49: 2029 | B49: =+B16 -> -1.057142857 | C49: 20.14285714 | D49: 3.728571429 | E49: 13.58571429 | F49: 3.885714286 | G49: 0.06130045299 | H49: 0.0308 | I49: 20.14285714 | J49: 21.2 | K49: 3.128571429 | L49: 13 | M49: 1.029589108 | N49: =+PRODUCT(M36:M49) -> 1.327335279 | O49: =+'Multiplicatoria inversa'!F49 -> 14.26353766 | P49: =+C49-D49-F49-AC36 -> -1.202606506 | Q49: =+IF(L49=AB39,1,VLOOKUP(AB39,'Multiplicatoria inversa'!E37:AK66,L49+4,FALSE))*P49 -> -1.657398288 | R49: =IF(L49<25-Z35+1,(C49-D49-F49-AF42)*((1+AF38)/(1+AF37))^L49,0) -> 0.1564554609 | S49: =+C49-D49-F49-AG36 -> -1.353994983 | T49: 49.56925862 | U49: =+M49*U48+AB36 -> 47.83868934 | V49: 47.57051758 | W49: =+M49*W48+AF36 -> 43.96287423 | X49: 45.25979387 | AA49: b_t_star dc (finito) | AB49: Ajuste al déficit primario
A50: 2030 | B50: =+B17 -> -1.057142857 | C50: 20.14285714 | D50: 3.728571429 | E50: 13.58571429 | F50: 3.885714286 | G50: 0.06130045299 | H50: 0.0308 | I50: 20.14285714 | J50: 21.2 | K50: 3.128571429 | L50: 14 | M50: 1.029589108 | N50: =+PRODUCT(M36:M50) -> 1.366609946 | O50: =+'Multiplicatoria inversa'!F50 -> 15.71517213 | P50: =+C50-D50-F50-AC36 -> -1.202606506 | Q50: =+IF(L50=AB39,1,VLOOKUP(AB39,'Multiplicatoria inversa'!E37:AK66,L50+4,FALSE))*P50 -> -1.609766726 | R50: =IF(L50<25-Z35+1,(C50-D50-F50-AF42)*((1+AF38)/(1+AF37))^L50,0) -> 0.1519591259 | S50: =+C50-D50-F50-AG36 -> -1.353994983 | T50: 49.97882593 | U50: =+M50*U49+AB36 -> 48.02265564 | V50: 47.77548028 | W50: =+M50*W49+AF36 -> 43.77823222 | X50: 45.24499583 | AA50: b_t_star tau (finito) | AB50: Ajuste al ingreso tributario
A51: 2031 | B51: =+B18 -> -1.057142857 | C51: 20.14285714 | D51: 3.728571429 | E51: 13.58571429 | F51: 3.885714286 | G51: 0.06130045299 | H51: 0.0308 | I51: 20.14285714 | J51: 21.2 | K51: 3.128571429 | L51: 15 | M51: 1.029589108 | N51: =+PRODUCT(M36:M51) -> 1.407046716 | O51: =+'Multiplicatoria inversa'!F51 -> 17.20975917 | P51: =+C51-D51-F51-AC36 -> -1.202606506 | Q51: =+IF(L51=AB39,1,VLOOKUP(AB39,'Multiplicatoria inversa'!E37:AK66,L51+4,FALSE))*P51 -> -1.563504036 | R51: =IF(L51<25-Z35+1,(C51-D51-F51-AF42)*((1+AF38)/(1+AF37))^L51,0) -> 0.1475920099 | S51: =+C51-D51-F51-AG36 -> -1.353994983 | T51: 50.40051198 | U51: =+M51*U50+AB36 -> 48.21206534 | V51: 47.98650764 | W51: =+M51*W50+AF36 -> 43.58812682 | X51: 45.22975994 | AA51: b_t_star dc (infinito) | AB51: Ajuste al déficit primario
A52: 2032 | B52: =+B19 -> -1.057142857 | C52: 20.14285714 | D52: 3.728571429 | E52: 13.58571429 | F52: 3.885714286 | G52: 0.06130045299 | H52: 0.0308 | I52: 20.14285714 | J52: 21.2 | K52: 3.128571429 | L52: 16 | M52: 1.029589108 | N52: =+PRODUCT(M36:M52) -> 1.448679974 | O52: =+'Multiplicatoria inversa'!F52 -> 18.74856971 | P52: =+C52-D52-F52-AC36 -> -1.202606506 | Q52: =+IF(L52=AB39,1,VLOOKUP(AB39,'Multiplicatoria inversa'!E37:AK66,L52+4,FALSE))*P52 -> -1.518570877 | R52: =IF(L52<25-Z35+1,(C52-D52-F52-AF42)*((1+AF38)/(1+AF37))^L52,0) -> 0.1433503994 | S52: =+C52-D52-F52-AG36 -> -1.353994983 | T52: 50.83467533 | U52: =+M52*U51+AB36 -> 48.40707951 | V52: 48.20377911 | W52: =+M52*W51+AF36 -> 43.39239637 | X52: 45.21407323 | AA52: b_t_star tau (infinito) | AB52: Ajuste al ingreso tributario
A53: 2033 | B53: =+B20 -> -1.057142857 | C53: 20.14285714 | D53: 3.728571429 | E53: 13.58571429 | F53: 3.885714286 | G53: 0.06130045299 | H53: 0.0308 | I53: 20.14285714 | J53: 21.2 | K53: 3.128571429 | L53: 17 | M53: 1.029589108 | N53: =+PRODUCT(M36:M53) -> 1.491545123 | O53: =+'Multiplicatoria inversa'!F53 -> 20.33291228 | P53: =+C53-D53-F53-AC36 -> -1.202606506 | Q53: =+IF(L53=AB39,1,VLOOKUP(AB39,'Multiplicatoria inversa'!E37:AK66,L53+4,FALSE))*P53 -> -1.474929042 | R53: =IF(L53<25-Z35+1,(C53-D53-F53-AF42)*((1+AF38)/(1+AF37))^L53,0) -> 0.1392306874 | S53: =+C53-D53-F53-AG36 -> -1.353994983 | T53: 51.2816852 | U53: =+M53*U52+AB36 -> 48.60786397 | V53: 48.42747946 | W53: =+M53*W52+AF36 -> 43.19087443 | X53: 45.19792236
A54: 2034 | B54: =+B21 -> -1.057142857 | C54: 20.14285714 | D54: 3.728571429 | E54: 13.58571429 | F54: 3.885714286 | G54: 0.06130045299 | H54: 0.0308 | I54: 20.14285714 | J54: 21.2 | K54: 3.128571429 | L54: 18 | M54: 1.029589108 | N54: =+PRODUCT(M36:M54) -> 1.535678613 | O54: =+'Multiplicatoria inversa'!F54 -> 21.96413414 | P54: =+C54-D54-F54-AC36 -> -1.202606506 | Q54: =+IF(L54=AB39,1,VLOOKUP(AB39,'Multiplicatoria inversa'!E37:AK66,L54+4,FALSE))*P54 -> -1.432541419 | R54: =IF(L54<25-Z35+1,(C54-D54-F54-AF42)*((1+AF38)/(1+AF37))^L54,0) -> 0.1352293709 | S54: =+C54-D54-F54-AG36 -> -1.353994983 | T54: 51.74192168 | U54: =+M54*U53+AB36 -> 48.81458946 | V54: 48.65779889 | W54: =+M54*W53+AF36 -> 42.98338964 | X54: 45.1812936
A55: 2035 | B55: =+B22 -> -1.057142857 | C55: 20.14285714 | D55: 3.728571429 | E55: 13.58571429 | F55: 3.885714286 | G55: 0.06130045299 | H55: 0.0308 | I55: 20.14285714 | J55: 21.2 | K55: 3.128571429 | L55: 19 | M55: 1.029589108 | N55: =+PRODUCT(M36:M55) -> 1.581117974 | O55: =+'Multiplicatoria inversa'!F55 -> 23.64362239 | P55: =+C55-D55-F55-AC36 -> -1.202606506 | Q55: =+IF(L55=AB39,1,VLOOKUP(AB39,'Multiplicatoria inversa'!E37:AK66,L55+4,FALSE))*P55 -> -1.391371963 | R55: =IF(L55<25-Z35+1,(C55-D55-F55-AF42)*((1+AF38)/(1+AF37))^L55,0) -> 0.1313430473 | S55: =+C55-D55-F55-AG36 -> -1.353994983 | T55: 52.21577616 | U55: =+M55*U54+AB36 -> 49.02743178 | V55: 48.89493327 | W55: =+M55*W54+AF36 -> 42.76976555 | X55: 45.16417282
A56: 2036 | B56: =+B23 -> -1.057142857 | C56: 20.14285714 | D56: 3.728571429 | E56: 13.58571429 | F56: 3.885714286 | G56: 0.06130045299 | H56: 0.0308 | I56: 20.14285714 | J56: 21.2 | K56: 3.128571429 | L56: 20 | M56: 1.029589108 | N56: =+PRODUCT(M36:M56) -> 1.627901846 | O56: =+'Multiplicatoria inversa'!F56 -> 25.37280521 | P56: =+C56-D56-F56-AC36 -> -1.202606506 | Q56: =+IF(L56=AB39,1,VLOOKUP(AB39,'Multiplicatoria inversa'!E37:AK66,L56+4,FALSE))*P56 -> -1.351385666 | R56: =IF(L56<25-Z35+1,(C56-D56-F56-AF42)*((1+AF38)/(1+AF37))^L56,0) -> 0.1275684117 | S56: =+C56-D56-F56-AG36 -> -1.353994983 | T56: 52.70365157 | U56: =+M56*U55+AB36 -> 49.24657191 | V56: 49.13908425 | W56: =+M56*W55+AF36 -> 42.54982052 | X56: 45.14654544
A57: 2037 | B57: =+B24 -> -1.057142857 | C57: 20.14285714 | D57: 3.728571429 | E57: 13.58571429 | F57: 3.885714286 | G57: 0.06130045299 | H57: 0.0308 | I57: 20.14285714 | J57: 21.2 | K57: 3.128571429 | L57: 21 | M57: 1.029589108 | N57: =+PRODUCT(M36:M57) -> 1.67607001 | O57: =+'Multiplicatoria inversa'!F57 -> 27.153153 | P57: =+C57-D57-F57-AC36 -> -1.202606506 | Q57: =+IF(L57=AB39,1,VLOOKUP(AB39,'Multiplicatoria inversa'!E37:AK66,L57+4,FALSE))*P57 -> -1.312548525 | R57: =IF(L57<25-Z35+1,(C57-D57-F57-AF42)*((1+AF38)/(1+AF37))^L57,0) -> 0.1239022544 | S57: =+C57-D57-F57-AG36 -> -1.353994983 | T57: 53.20596277 | U57: =+M57*U56+AB36 -> 49.4721962 | V57: 49.39045944 | W57: =+M57*W56+AF36 -> 42.32336752 | X57: 45.12839648
A58: 2038 | B58: =+B25 -> -1.057142857 | C58: 20.14285714 | D58: 3.728571429 | E58: 13.58571429 | F58: 3.885714286 | G58: 0.06130045299 | H58: 0.0308 | I58: 20.14285714 | J58: 21.2 | K58: 3.128571429 | L58: 22 | M58: 1.029589108 | N58: =+PRODUCT(M36:M58) -> 1.725663427 | O58: =+'Multiplicatoria inversa'!F58 -> 28.9861797 | P58: =+C58-D58-F58-AC36 -> -1.202606506 | Q58: =+IF(L58=AB39,1,VLOOKUP(AB39,'Multiplicatoria inversa'!E37:AK66,L58+4,FALSE))*P58 -> -1.274827515 | R58: =IF(L58<25-Z35+1,(C58-D58-F58-AF42)*((1+AF38)/(1+AF37))^L58,0) -> 0.120341458 | S58: =+C58-D58-F58-AG36 -> -1.353994983 | T58: 53.72313692 | U58: =+M58*U57+AB36 -> 49.70449652 | V58: 49.64927259 | W58: =+M58*W57+AF36 -> 42.09021397 | X58: 45.10971052
A59: 2039 | B59: =+B26 -> -1.057142857 | C59: 20.14285714 | D59: 3.728571429 | E59: 13.58571429 | F59: 3.885714286 | G59: 0.06130045299 | H59: 0.0308 | I59: 20.14285714 | J59: 21.2 | K59: 3.128571429 | L59: 23 | M59: 1.029589108 | N59: =+PRODUCT(M36:M59) -> 1.77672427 | O59: =+'Multiplicatoria inversa'!F59 -> 30.87344402 | P59: =+C59-D59-F59-AC36 -> -1.202606506 | Q59: =+IF(L59=AB39,1,VLOOKUP(AB39,'Multiplicatoria inversa'!E37:AK66,L59+4,FALSE))*P59 -> -1.238190561 | R59: =IF(L59<25-Z35+1,(C59-D59-F59-AF42)*((1+AF38)/(1+AF37))^L59,0) -> 0.1168829944 | S59: =+C59-D59-F59-AG36 -> -1.353994983 | T59: 54.25561378 | U59: =+M59*U58+AB36 -> 49.94367039 | V59: 49.91574379 | W59: =+M59*W58+AF36 -> 41.85016161 | X59: 45.09047165
A60: 2040 | B60: =+B27 -> -1.057142857 | C60: 20.14285714 | D60: 3.728571429 | E60: 13.58571429 | F60: 3.885714286 | G60: 0.06130045299 | H60: 0.0308 | I60: 20.14285714 | J60: 21.2 | K60: 3.128571429 | L60: 24 | M60: 1.029589108 | N60: =+PRODUCT(M36:M60) -> 1.829295957 | O60: =+'Multiplicatoria inversa'!F60 -> 32.81655082 | P60: =+C60-D60-F60-AC36 -> -1.202606506 | Q60: =+IF(L60=AB39,1,VLOOKUP(AB39,'Multiplicatoria inversa'!E37:AK66,L60+4,FALSE))*P60 -> -1.202606506 | R60: =IF(L60<25-Z35+1,(C60-D60-F60-AF42)*((1+AF38)/(1+AF37))^L60,0) -> 0 | S60: =+C60-D60-F60-AG36 -> -1.353994983 | T60: 54.80384616 | U60: =+M60*U59+AB36 -> 50.18992121 | V60: 50.19009964 | W60: =+M60*W59+AF36 -> 41.60300632 | X60: 45.07066353
A61: 2041 | B61: =+B28 -> -1.057142857 | C61: 20.14285714 | D61: 3.728571429 | E61: 13.58571429 | F61: 3.885714286 | G61: 0.06130045299 | H61: 0.0308 | I61: 20.14285714 | J61: 21.2 | K61: 3.128571429 | L61: 25 | M61: 1.029589108 | N61: =+PRODUCT(M36:M61) -> 1.883423193 | O61: =+'Multiplicatoria inversa'!F61 -> 34.8171524 | P61: =+C61-D61-F61-AC36 -> -1.202606506 | Q61: =+IF(L61=AB39,1,VLOOKUP(AB39,'Multiplicatoria inversa'!E37:AK66,L61+4,FALSE))*P61 -> 0 | R61: =IF(L61<25-Z35+1,(C61-D61-F61-AF42)*((1+AF38)/(1+AF37))^L61,0) -> 0 | S61: =+C61-D61-F61-AG36 -> -1.353994983 | T61: 55.36830026 | U61: =+M61*U60+AB36 -> 50.44345836 | V61: 50.47257344 | W61: =+M61*W60+AF36 -> 41.34853793 | X61: 45.05026929
A62: 2042 | B62: =+B29 -> -1.057142857 | C62: 20.14285714 | D62: 3.728571429 | E62: 13.58571429 | F62: 3.885714286 | G62: 0.06130045299 | H62: 0.0308 | I62: 20.14285714 | J62: 21.2 | K62: 3.128571429 | L62: 26 | M62: 1.029589108 | N62: =+PRODUCT(M36:M62) -> 1.939152006 | O62: =+'Multiplicatoria inversa'!F62 -> 36.87695001 | P62: =+C62-D62-F62-AC36 -> -1.202606506 | Q62: =+IF(L62=AB39,1,VLOOKUP(AB39,'Multiplicatoria inversa'!E37:AK66,L62+4,FALSE))*P62 -> 0 | R62: =IF(L62<25-Z35+1,(C62-D62-F62-AF42)*((1+AF38)/(1+AF37))^L62,0) -> 0 | S62: =+C62-D62-F62-AG36 -> -1.353994983 | T62: 55.94945604 | U62: =+M62*U61+AB36 -> 50.70449746 | V62: 50.76340538 | W62: =+M62*W61+AF36 -> 41.08654004 | X62: 45.02927161
A63: 2043 | B63: =+B30 -> -1.057142857 | C63: 20.14285714 | D63: 3.728571429 | E63: 13.58571429 | F63: 3.885714286 | G63: 0.06130045299 | H63: 0.0308 | I63: 20.14285714 | J63: 21.2 | K63: 3.128571429 | L63: 27 | M63: 1.029589108 | N63: =+PRODUCT(M36:M63) -> 1.996529785 | O63: =+'Multiplicatoria inversa'!F63 -> 38.99769519 | P63: =+C63-D63-F63-AC36 -> -1.202606506 | Q63: =+IF(L63=AB39,1,VLOOKUP(AB39,'Multiplicatoria inversa'!E37:AK66,L63+4,FALSE))*P63 -> 0 | R63: =IF(L63<25-Z35+1,(C63-D63-F63-AF42)*((1+AF38)/(1+AF37))^L63,0) -> 0 | S63: =+C63-D63-F63-AG36 -> -1.353994983 | T63: 56.5478077 | U63: =+M63*U62+AB36 -> 50.97326047 | V63: 51.06284278 | W63: =+M63*W62+AF36 -> 40.81678987 | X63: 45.00765263
A64: 2044 | B64: =+B31 -> -1.057142857 | C64: 20.14285714 | D64: 3.728571429 | E64: 13.58571429 | F64: 3.885714286 | G64: 0.06130045299 | H64: 0.0308 | I64: 20.14285714 | J64: 21.2 | K64: 3.128571429 | L64: 28 | M64: 1.029589108 | N64: =+PRODUCT(M36:M64) -> 2.055605321 | O64: =+'Multiplicatoria inversa'!F64 -> 41.18119133 | P64: =+C64-D64-F64-AC36 -> -1.202606506 | Q64: =+IF(L64=AB39,1,VLOOKUP(AB39,'Multiplicatoria inversa'!E37:AK66,L64+4,FALSE))*P64 -> 0 | R64: =IF(L64<25-Z35+1,(C64-D64-F64-AF42)*((1+AF38)/(1+AF37))^L64,0) -> 0 | S64: =+C64-D64-F64-AG36 -> -1.353994983 | T64: 57.16386406 | U64: =+M64*U63+AB36 -> 51.24997594 | V64: 51.37114027 | W64: =+M64*W63+AF36 -> 40.53905803 | X64: 44.98539396
A65: 2045 | B65: =+B32 -> -1.057142857 | C65: 20.14285714 | D65: 3.728571429 | E65: 13.58571429 | F65: 3.885714286 | G65: 0.06130045299 | H65: 0.0308 | I65: 20.14285714 | J65: 21.2 | K65: 3.128571429 | L65: 29 | M65: 1.029589108 | N65: =+PRODUCT(M36:M65) -> 2.11642885 | O65: =+'Multiplicatoria inversa'!F65 -> 43.42929518 | P65: =+C65-D65-F65-AC36 -> -1.202606506 | Q65: =+IF(L65=AB39,1,VLOOKUP(AB39,'Multiplicatoria inversa'!E37:AK66,L65+4,FALSE))*P65 -> 0 | R65: =IF(L65<25-Z35+1,(C65-D65-F65-AF42)*((1+AF38)/(1+AF37))^L65,0) -> 0 | S65: =+C65-D65-F65-AG36 -> -1.353994983 | T65: 57.79814898 | U65: =+M65*U64+AB36 -> 51.53487917 | V65: 51.68856 | W65: =+M65*W64+AF36 -> 40.25310835 | X65: 44.96247668
A66: 2046 | B66: =+B33 -> 0 | C66: 0 | D66: 0 | E66: 0 | F66: 0 | G66: 0 | H66: 0 | I66: 0 | J66: 0 | K66: 0 | L66: 30 | M66: 1 | N66: =+PRODUCT(M36:M66) -> 2.11642885 | O66: =+'Multiplicatoria inversa'!F66 -> 44.42929518 | P66: =+C66-D66-F66-AC36 -> -13.73117793 | R66: =IF(L66<25-Z35+1,(C66-D66-F66-AF42)*((1+AF38)/(1+AF37))^L66,0) -> 0 | S66: =+C66-D66-F66-AG36 -> -13.88256641 | T66: 57.79814898 | U66: =+M66*U65+AB36 -> 50.3033413 | V66: 37.95738207 | W66: =+M66*W65+AF36 -> 38.76764409 | X66: 31.07991027
A69: Fecha(Anual) | B69: dp_t | C69: g_t | D69: ip_t | E69: tau_t | F69: i_otros_t | G69: r_t | H69: c_y_t | I69: Gasto__neto | J69: I_presupuestarios | K69: Costo_finan | L69: t | M69: 1+r_t / 1+c_y_t | N69: Multiplicatoria simple | O69: Multiplicatoria inversa | P69: gt - ipt - iotros - tau_s | Q69: (gt - ipt - iotros + tau_s) | R69: (gt - ipt - iotros - omega)(1+r/1+c_y)^t | S69: gt - ipt - iotros - tau_s (inf) | T69: b_t | U69: b_t_star dc (finito) | V69: b_t_star tau (finito) | W69: b_t_star dc (infinito) | X69: b_t_star tau (infinito) | Z69: 3 | AA69: H Finito | AB69: pd_s | AC69: tau_s | AE69: H infinito | AF69: pd_s | AG69: tau_s
A70: =+A37 -> 2017 | L70: 0 | M70: =(1+G70)/(1+H70) -> 1 | T70: =+T37 -> 49.90746257 | U70: =+T70 -> 49.90746257 | V70: =+T70 -> 49.90746257 | W70: =+T70 -> 49.90746257 | X70: =+T70 -> 49.90746257 | AB70: =+AN5 -> -1.250230958 | AC70: =+AO5 -> 13.74431317 | AF70: =+(AF71-AF72)/(1+AF72)*(-AB71) -> -1.476717322 | AG70: =+AF79 -> 13.86781591
A71: =+A70+1 -> 2018 | B71: =+B38 -> -1.1 | C71: =+C38 -> 19.9 | D71: 3.6 | E71: 13.5 | F71: 3.9 | G71: 0.0496 | H71: 0.035 | I71: 19.9 | J71: 21 | K71: 3.1 | L71: 1 | M71: =(1+G71)/(1+H71) -> 1.01410628 | N71: =+PRODUCT(M70:M71) -> 1.01410628 | O71: =+'Multiplicatoria inversa'!F71 -> 0 | P71: =+C71-D71-F71-AC70 -> -1.344313173 | Q71: =+IF(L71=AB73,1,VLOOKUP(AB73,'Multiplicatoria inversa'!E71:AK100,L71+4,FALSE))*P71 -> -2.396093597 | R71: =IF(L71<25-Z69+1,(C71-D71-F71-AF76)*((1+AF72)/(1+AF71))^L71,0) -> 0.09712612457 | S71: =+C71-D71-F71-AG70 -> -1.467815907 | T71: =+M71*T70+B71 -> 49.51147122 | U71: =+M71*U70+AB70 -> 49.36124026 | V71: =+M71*V70+P71 -> 49.26715805 | W71: =+M71*W70+AF70 -> 49.1347539 | X71: =+M71*X70+S71 -> 49.14365531 | AA71: b_0 | AB71: =+U70 -> 49.90746257 | AC71: =+AB71 -> 49.90746257 | AE71: r | AF71: =+AF37 -> 0.06130045299
A72: =+A71+1 -> 2019 | B72: =+B39 -> -1.1 | C72: 19.8 | D72: 3.5 | E72: 13.6 | F72: 3.8 | G72: 0.0518 | H72: 0.035 | I72: 19.8 | J72: 20.9 | K72: 3.1 | L72: =+L71+1 -> 2 | M72: =(1+G72)/(1+H72) -> 1.016231884 | N72: =+PRODUCT(M70:M72) -> 1.030567136 | O72: =+'Multiplicatoria inversa'!F72 -> 1.016231884 | P72: =+C72-D72-F72-AC70 -> -1.244313173 | Q72: =+IF(L72=AB73,1,VLOOKUP(AB73,'Multiplicatoria inversa'!E71:AK100,L72+4,FALSE))*P72 -> -2.182429415 | R72: =IF(L72<25-Z69+1,(C72-D72-F72-AF76)*((1+AF72)/(1+AF71))^L72,0) -> 0.1886696815 | S72: =+C72-D72-F72-AG70 -> -1.367815907 | T72: 49.21513568 | U72: =+M72*U71+AB70 -> 48.91223523 | V72: 48.82254367 | W72: =+M72*W71+AF70 -> 48.4555862 | X72: 48.57353352 | AA72: b_T | AB72: =+AB38 -> 50.19 | AC72: =+AC38 -> 50.19 | AE72: c_y | AF72: =+AF38 -> 0.0308
A73: 2020 | B73: =+B40 -> -1.2 | C73: 20 | D73: 3.7 | E73: 13.7 | F73: 3.8 | G73: 0.05349593496 | H73: 0.045 | I73: 20 | J73: 21.2 | K73: 3.2 | L73: =+L72+1 -> 3 | M73: 1.008130081 | N73: =+PRODUCT(M70:M73) -> 1.03894573 | O73: =+'Multiplicatoria inversa'!F73 -> 2.032624013 | P73: =+C73-D73-F73-AC70 -> -1.244313173 | Q73: =+IF(L73=AB73,1,VLOOKUP(AB73,'Multiplicatoria inversa'!E71:AK100,L73+4,FALSE))*P73 -> -2.164829178 | R73: =IF(L73<25-Z69+1,(C73-D73-F73-AF76)*((1+AF72)/(1+AF71))^L73,0) -> 0.1832475498 | S73: =+C73-D73-F73-AG70 -> -1.367815907 | T73: 48.41525874 | U73: =+M73*U72+AB70 -> 48.05966473 | V73: 47.97516175 | W73: =+M73*W72+AF70 -> 47.37281674 | X73: 47.60062439 | AA73: T | AB73: =+AB39-1 -> 23 | AC73: =+AB73 -> 23 | AE73: g | AF73: =+AF39 -> 20.1
A74: 2021 | B74: =+B41 -> -1.4 | C74: 20.1 | D74: 3.9 | E74: 13.7 | F74: 3.9 | G74: 0.0602 | H74: 0.045 | I74: 20.1 | J74: 21.5 | K74: 3.4 | L74: 4 | M74: 1.014545455 | N74: =+PRODUCT(M70:M74) -> 1.054057668 | O74: =+'Multiplicatoria inversa'!F74 -> 3.076734908 | P74: =+C74-D74-F74-AC70 -> -1.444313173 | Q74: =+IF(L74=AB73,1,VLOOKUP(AB73,'Multiplicatoria inversa'!E71:AK100,L74+4,FALSE))*P74 -> -2.476759268 | R74: =IF(L74<25-Z69+1,(C74-D74-F74-AF76)*((1+AF72)/(1+AF71))^L74,0) -> 0 | S74: =+C74-D74-F74-AG70 -> -1.567815907 | T74: 47.71948068 | U74: =+M74*U73+AB70 -> 47.50848344 | V74: 47.22866911 | W74: =+M74*W73+AF70 -> 46.58515857 | X74: 46.7251812 | AA74: Pi_t b_0 | AB74: =+VLOOKUP(AB73,L71:N100,3,FALSE)*AB71 -> 90.20950218 | AC74: =+AB74 -> 90.20950218 | AE74: ip | AF74: =+AF40 -> 3.9
A75: 2022 | B75: =+B42 -> -1.4 | C75: 20.1 | D75: 3.9 | E75: 13.7 | F75: 3.9 | G75: 0.0602 | H75: 0.045 | I75: 20.1 | J75: 21.5 | K75: 3.4 | L75: 5 | M75: 1.014545455 | N75: =+PRODUCT(M70:M75) -> 1.069389416 | O75: =+'Multiplicatoria inversa'!F75 -> 4.13603287 | P75: =+C75-D75-F75-AC70 -> -1.444313173 | Q75: =+IF(L75=AB73,1,VLOOKUP(AB73,'Multiplicatoria inversa'!E71:AK100,L75+4,FALSE))*P75 -> -2.441250174 | R75: =IF(L75<25-Z69+1,(C75-D75-F75-AF76)*((1+AF72)/(1+AF71))^L75,0) -> 0 | S75: =+C75-D75-F75-AG70 -> -1.567815907 | T75: 47.01358222 | U75: =+M75*U74+AB70 -> 46.94928496 | V75: 46.47131839 | W75: =+M75*W74+AF70 -> 45.78604355 | X75: 45.8370043 | AA75: sum dpt | AB75: =+VLOOKUP(AB73,L71:O100,4,FALSE) -> 31.00901548 | AC75: =+SUM(Q71:Q99) -> -40.0219863 | AE75: iotros | AF75: 3.9
A76: 2023 | B76: =+B43 -> -1.057142857 | C76: 20.14285714 | D76: 3.728571429 | E76: 13.58571429 | F76: 3.885714286 | G76: 0.06130045299 | H76: 0.0308 | I76: 20.14285714 | J76: 21.2 | K76: 3.128571429 | L76: 6 | M76: 1.029589108 | N76: =+PRODUCT(M70:M76) -> 1.101031696 | O76: =+'Multiplicatoria inversa'!F76 -> 5.288003504 | P76: =+C76-D76-F76-AC70 -> -1.215741745 | Q76: =+IF(L76=AB73,1,VLOOKUP(AB73,'Multiplicatoria inversa'!E71:AK100,L76+4,FALSE))*P76 -> -1.995851866 | R76: =IF(L76<25-Z69+1,(C76-D76-F76-AF76)*((1+AF72)/(1+AF71))^L76,0) -> 0.1918837973 | S76: =+C76-D76-F76-AG70 -> -1.339244478 | T76: 47.34752934 | U76: =+M76*U75+AB70 -> 47.08824149 | V76: 46.63062153 | W76: =+M76*W75+AF70 -> 45.66409444 | X76: 45.85403591 | AA76: f | AB76: =+AB74+AB70*(AB75+1) -> 50.1908401 | AC76: =+AC74+AC75 -> 50.18751588 | AE76: omega | AF76: 12.3
A77: 2024 | B77: =+B44 -> -1.057142857 | C77: 20.14285714 | D77: 3.728571429 | E77: 13.58571429 | F77: 3.885714286 | G77: 0.06130045299 | H77: 0.0308 | I77: 20.14285714 | J77: 21.2 | K77: 3.128571429 | L77: 7 | M77: 1.029589108 | N77: =+PRODUCT(M70:M77) -> 1.133610242 | O77: =+'Multiplicatoria inversa'!F77 -> 6.474059921 | P77: =+C77-D77-F77-AC70 -> -1.215741745 | Q77: =+IF(L77=AB73,1,VLOOKUP(AB73,'Multiplicatoria inversa'!E71:AK100,L77+4,FALSE))*P77 -> -1.93849357 | R77: =IF(L77<25-Z69+1,(C77-D77-F77-AF76)*((1+AF72)/(1+AF71))^L77,0) -> 0.186369296 | S77: =+C77-D77-F77-AG70 -> -1.339244478 | T77: 47.69135767 | U77: =+M77*U76+AB70 -> 47.23130962 | V77: 46.7946383 | W77: =+M77*W76+AF70 -> 45.53853696 | X77: 45.87157147 | AA77: dif | AB77: =+AB72-AB76 -> -0.0008400983262 | AC77: =+AC72-AC76 -> 0.00248412351 | AE77: 25 se vuelve constante
A78: 2025 | B78: =+B45 -> -1.057142857 | C78: 20.14285714 | D78: 3.728571429 | E78: 13.58571429 | F78: 3.885714286 | G78: 0.06130045299 | H78: 0.0308 | I78: 20.14285714 | J78: 21.2 | K78: 3.128571429 | L78: 8 | M78: 1.029589108 | N78: =+PRODUCT(M70:M78) -> 1.167152758 | O78: =+'Multiplicatoria inversa'!F78 -> 7.695210691 | P78: =+C78-D78-F78-AC70 -> -1.215741745 | Q78: =+IF(L78=AB73,1,VLOOKUP(AB73,'Multiplicatoria inversa'!E71:AK100,L78+4,FALSE))*P78 -> -1.882783679 | R78: =IF(L78<25-Z69+1,(C78-D78-F78-AF76)*((1+AF72)/(1+AF71))^L78,0) -> 0.1810132746 | S78: =+C78-D78-F78-AG70 -> -1.339244478 | T78: 48.04535956 | U78: =+M78*U77+AB70 -> 47.378611 | V78: 46.96350818 | W78: =+M78*W77+AF70 -> 45.40926434 | X78: 45.8896259 | AA78: Validar | AB78: =+VLOOKUP(AB73,L71:U100,10,FALSE) -> 50.1908401 | AC78: =+VLOOKUP(AC73,L71:V100,11,FALSE) -> 50.18751588 | AE78: sum 1 a 24 | AF78: =+SUM(R71:R94) -> 3.078787746
A79: 2026 | B79: =+B46 -> -1.057142857 | C79: 20.14285714 | D79: 3.728571429 | E79: 13.58571429 | F79: 3.885714286 | G79: 0.06130045299 | H79: 0.0308 | I79: 20.14285714 | J79: 21.2 | K79: 3.128571429 | L79: 9 | M79: 1.029589108 | N79: =+PRODUCT(M70:M79) -> 1.201687768 | O79: =+'Multiplicatoria inversa'!F79 -> 8.952494223 | P79: =+C79-D79-F79-AC70 -> -1.215741745 | Q79: =+IF(L79=AB73,1,VLOOKUP(AB73,'Multiplicatoria inversa'!E71:AK100,L79+4,FALSE))*P79 -> -1.828674822 | R79: =IF(L79<25-Z69+1,(C79-D79-F79-AF76)*((1+AF72)/(1+AF71))^L79,0) -> 0.1758111785 | S79: =+C79-D79-F79-AG70 -> -1.339244478 | T79: 48.40983606 | U79: =+M79*U78+AB70 -> 47.5302709 | V79: 47.13737478 | W79: =+M79*W78+AF70 -> 45.27616667 | X79: 45.90821454 | AB79: =+IFERROR(ABS(AB78/AB72)-1,0) -> 1.673836075e-05 | AC79: =+IFERROR(ABS(AC78/AC72)-1,0) -> -4.949439151e-05 | AE79: f | AF79: =+(AF78+AB71)*(AF71-AF72)/(1+AF72)+AF76 -> 13.86781591
A80: 2027 | B80: =+B47 -> -1.057142857 | C80: 20.14285714 | D80: 3.728571429 | E80: 13.58571429 | F80: 3.885714286 | G80: 0.06130045299 | H80: 0.0308 | I80: 20.14285714 | J80: 21.2 | K80: 3.128571429 | L80: 10 | M80: 1.029589108 | N80: =+PRODUCT(M70:M80) -> 1.237244637 | O80: =+'Multiplicatoria inversa'!F80 -> 10.24697965 | P80: =+C80-D80-F80-AC70 -> -1.215741745 | Q80: =+IF(L80=AB73,1,VLOOKUP(AB73,'Multiplicatoria inversa'!E71:AK100,L80+4,FALSE))*P80 -> -1.776120985 | R80: =IF(L80<25-Z69+1,(C80-D80-F80-AF76)*((1+AF72)/(1+AF71))^L80,0) -> 0.1707585843 | S80: =+C80-D80-F80-AG70 -> -1.339244478 | T80: 48.78509709 | U80: =+M80*U79+AB70 -> 47.68641829 | V80: 47.31638592 | W80: =+M80*W79+AF70 -> 45.13913075 | X80: 45.9273532
A81: 2028 | B81: =+B48 -> -1.057142857 | C81: 20.14285714 | D81: 3.728571429 | E81: 13.58571429 | F81: 3.885714286 | G81: 0.06130045299 | H81: 0.0308 | I81: 20.14285714 | J81: 21.2 | K81: 3.128571429 | L81: 11 | M81: 1.029589108 | N81: =+PRODUCT(M70:M81) -> 1.273853603 | O81: =+'Multiplicatoria inversa'!F81 -> 11.57976775 | P81: =+C81-D81-F81-AC70 -> -1.215741745 | Q81: =+IF(L81=AB73,1,VLOOKUP(AB73,'Multiplicatoria inversa'!E71:AK100,L81+4,FALSE))*P81 -> -1.725077481 | R81: =IF(L81<25-Z69+1,(C81-D81-F81-AF76)*((1+AF72)/(1+AF71))^L81,0) -> 0.1658511953 | S81: =+C81-D81-F81-AG70 -> -1.339244478 | T81: 49.17146176 | U81: =+M81*U80+AB70 -> 47.84718593 | V81: 47.50069385 | W81: =+M81*W80+AF70 -> 44.99804007 | X81: 45.94705815 | AA81: g | AB81: =IFERROR(ABS(AB77)+ABS(AC77),0) -> 0.003324221836
A82: 2029 | B82: =+B49 -> -1.057142857 | C82: 20.14285714 | D82: 3.728571429 | E82: 13.58571429 | F82: 3.885714286 | G82: 0.06130045299 | H82: 0.0308 | I82: 20.14285714 | J82: 21.2 | K82: 3.128571429 | L82: 12 | M82: 1.029589108 | N82: =+PRODUCT(M70:M82) -> 1.311545796 | O82: =+'Multiplicatoria inversa'!F82 -> 12.95199187 | P82: =+C82-D82-F82-AC70 -> -1.215741745 | Q82: =+IF(L82=AB73,1,VLOOKUP(AB73,'Multiplicatoria inversa'!E71:AK100,L82+4,FALSE))*P82 -> -1.675500903 | R82: =IF(L82<25-Z69+1,(C82-D82-F82-AF76)*((1+AF72)/(1+AF71))^L82,0) -> 0.1610848385 | S82: =+C82-D82-F82-AG70 -> -1.339244478 | T82: 49.56925862 | U82: =+M82*U81+AB70 -> 48.01271055 | V82: 47.69045529 | W82: =+M82*W81+AF70 -> 44.85277463 | X82: 45.96734616 | AB82: Pronosticada
A83: 2030 | B83: =+B50 -> -1.057142857 | C83: 20.14285714 | D83: 3.728571429 | E83: 13.58571429 | F83: 3.885714286 | G83: 0.06130045299 | H83: 0.0308 | I83: 20.14285714 | J83: 21.2 | K83: 3.128571429 | L83: 13 | M83: 1.029589108 | N83: =+PRODUCT(M70:M83) -> 1.350353266 | O83: =+'Multiplicatoria inversa'!F83 -> 14.36481887 | P83: =+C83-D83-F83-AC70 -> -1.215741745 | Q83: =+IF(L83=AB73,1,VLOOKUP(AB73,'Multiplicatoria inversa'!E71:AK100,L83+4,FALSE))*P83 -> -1.627349094 | R83: =IF(L83<25-Z69+1,(C83-D83-F83-AF76)*((1+AF72)/(1+AF71))^L83,0) -> 0.1564554609 | S83: =+C83-D83-F83-AG70 -> -1.339244478 | T83: 49.97882593 | U83: =+M83*U82+AB70 -> 48.18313289 | V83: 47.8858316 | W83: =+M83*W82+AF70 -> 44.70321092 | X83: 45.98823447 | AA83: b_t_star dc (finito) | AB83: Ajuste al déficit primario
A84: 2031 | B84: =+B51 -> -1.057142857 | C84: 20.14285714 | D84: 3.728571429 | E84: 13.58571429 | F84: 3.885714286 | G84: 0.06130045299 | H84: 0.0308 | I84: 20.14285714 | J84: 21.2 | K84: 3.128571429 | L84: 14 | M84: 1.029589108 | N84: =+PRODUCT(M70:M84) -> 1.390309016 | O84: =+'Multiplicatoria inversa'!F84 -> 15.81945016 | P84: =+C84-D84-F84-AC70 -> -1.215741745 | Q84: =+IF(L84=AB73,1,VLOOKUP(AB73,'Multiplicatoria inversa'!E71:AK100,L84+4,FALSE))*P84 -> -1.580581108 | R84: =IF(L84<25-Z69+1,(C84-D84-F84-AF76)*((1+AF72)/(1+AF71))^L84,0) -> 0.1519591259 | S84: =+C84-D84-F84-AG70 -> -1.339244478 | T84: 50.40051198 | U84: =+M84*U83+AB70 -> 48.35859787 | V84: 48.08698892 | W84: =+M84*W83+AF70 -> 44.54922175 | X84: 46.00974085 | AA84: b_t_star tau (finito) | AB84: Ajuste al ingreso tributario
A85: 2032 | B85: =+B52 -> -1.057142857 | C85: 20.14285714 | D85: 3.728571429 | E85: 13.58571429 | F85: 3.885714286 | G85: 0.06130045299 | H85: 0.0308 | I85: 20.14285714 | J85: 21.2 | K85: 3.128571429 | L85: 15 | M85: 1.029589108 | N85: =+PRODUCT(M70:M85) -> 1.43144702 | O85: =+'Multiplicatoria inversa'!F85 -> 17.31712269 | P85: =+C85-D85-F85-AC70 -> -1.215741745 | Q85: =+IF(L85=AB73,1,VLOOKUP(AB73,'Multiplicatoria inversa'!E71:AK100,L85+4,FALSE))*P85 -> -1.535157176 | R85: =IF(L85<25-Z69+1,(C85-D85-F85-AF76)*((1+AF72)/(1+AF71))^L85,0) -> 0.1475920099 | S85: =+C85-D85-F85-AG70 -> -1.339244478 | T85: 50.83467533 | U85: =+M85*U84+AB70 -> 48.53925471 | V85: 48.2940983 | W85: =+M85*W84+AF70 -> 44.39067619 | X85: 46.03188359 | AA85: b_t_star dc (infinito) | AB85: Ajuste al déficit primario
A86: 2033 | B86: =+B53 -> -1.057142857 | C86: 20.14285714 | D86: 3.728571429 | E86: 13.58571429 | F86: 3.885714286 | G86: 0.06130045299 | H86: 0.0308 | I86: 20.14285714 | J86: 21.2 | K86: 3.128571429 | L86: 16 | M86: 1.029589108 | N86: =+PRODUCT(M70:M86) -> 1.473802261 | O86: =+'Multiplicatoria inversa'!F86 -> 18.85911002 | P86: =+C86-D86-F86-AC70 -> -1.215741745 | Q86: =+IF(L86=AB73,1,VLOOKUP(AB73,'Multiplicatoria inversa'!E71:AK100,L86+4,FALSE))*P86 -> -1.491038671 | R86: =IF(L86<25-Z69+1,(C86-D86-F86-AF76)*((1+AF72)/(1+AF71))^L86,0) -> 0.1433503994 | S86: =+C86-D86-F86-AG70 -> -1.339244478 | T86: 51.2816852 | U86: =+M86*U85+AB70 -> 48.72525703 | V86: 48.50733587 | W86: =+M86*W85+AF70 -> 44.2274394 | X86: 46.0546815 | AA86: b_t_star tau (infinito) | AB86: Ajuste al ingreso tributario
A87: 2034 | B87: =+B54 -> -1.057142857 | C87: 20.14285714 | D87: 3.728571429 | E87: 13.58571429 | F87: 3.885714286 | G87: 0.06130045299 | H87: 0.0308 | I87: 20.14285714 | J87: 21.2 | K87: 3.128571429 | L87: 17 | M87: 1.029589108 | N87: =+PRODUCT(M70:M87) -> 1.517410756 | O87: =+'Multiplicatoria inversa'!F87 -> 20.44672338 | P87: =+C87-D87-F87-AC70 -> -1.215741745 | Q87: =+IF(L87=AB73,1,VLOOKUP(AB73,'Multiplicatoria inversa'!E71:AK100,L87+4,FALSE))*P87 -> -1.448188077 | R87: =IF(L87<25-Z69+1,(C87-D87-F87-AF76)*((1+AF72)/(1+AF71))^L87,0) -> 0.1392306874 | S87: =+C87-D87-F87-AG70 -> -1.339244478 | T87: 51.74192168 | U87: =+M87*U86+AB70 -> 48.91676298 | V87: 48.72688295 | W87: =+M87*W86+AF70 -> 44.05937257 | X87: 46.07815399
A88: 2035 | B88: =+B55 -> -1.057142857 | C88: 20.14285714 | D88: 3.728571429 | E88: 13.58571429 | F88: 3.885714286 | G88: 0.06130045299 | H88: 0.0308 | I88: 20.14285714 | J88: 21.2 | K88: 3.128571429 | L88: 18 | M88: 1.029589108 | N88: =+PRODUCT(M70:M88) -> 1.562309587 | O88: =+'Multiplicatoria inversa'!F88 -> 22.08131281 | P88: =+C88-D88-F88-AC70 -> -1.215741745 | Q88: =+IF(L88=AB73,1,VLOOKUP(AB73,'Multiplicatoria inversa'!E71:AK100,L88+4,FALSE))*P88 -> -1.406568956 | R88: =IF(L88<25-Z69+1,(C88-D88-F88-AF76)*((1+AF72)/(1+AF71))^L88,0) -> 0.1352293709 | S88: =+C88-D88-F88-AG70 -> -1.339244478 | T88: 52.21577616 | U88: =+M88*U87+AB70 -> 49.11393543 | V88: 48.95292623 | W88: =+M88*W87+AF70 -> 43.8863328 | X88: 46.10232101
A89: 2036 | B89: =+B56 -> -1.057142857 | C89: 20.14285714 | D89: 3.728571429 | E89: 13.58571429 | F89: 3.885714286 | G89: 0.06130045299 | H89: 0.0308 | I89: 20.14285714 | J89: 21.2 | K89: 3.128571429 | L89: 19 | M89: 1.029589108 | N89: =+PRODUCT(M70:M89) -> 1.608536935 | O89: =+'Multiplicatoria inversa'!F89 -> 23.76426828 | P89: =+C89-D89-F89-AC70 -> -1.215741745 | Q89: =+IF(L89=AB73,1,VLOOKUP(AB73,'Multiplicatoria inversa'!E71:AK100,L89+4,FALSE))*P89 -> -1.366145916 | R89: =IF(L89<25-Z69+1,(C89-D89-F89-AF76)*((1+AF72)/(1+AF71))^L89,0) -> 0.1313430473 | S89: =+C89-D89-F89-AG70 -> -1.339244478 | T89: 52.70365157 | U89: =+M89*U88+AB70 -> 49.31694203 | V89: 49.18565792 | W89: =+M89*W88+AF70 -> 43.70817294 | X89: 46.12720311
A90: 2037 | B90: =+B57 -> -1.057142857 | C90: 20.14285714 | D90: 3.728571429 | E90: 13.58571429 | F90: 3.885714286 | G90: 0.06130045299 | H90: 0.0308 | I90: 20.14285714 | J90: 21.2 | K90: 3.128571429 | L90: 20 | M90: 1.029589108 | N90: =+PRODUCT(M70:M90) -> 1.656132109 | O90: =+'Multiplicatoria inversa'!F90 -> 25.49702089 | P90: =+C90-D90-F90-AC70 -> -1.215741745 | Q90: =+IF(L90=AB73,1,VLOOKUP(AB73,'Multiplicatoria inversa'!E71:AK100,L90+4,FALSE))*P90 -> -1.326884584 | R90: =IF(L90<25-Z69+1,(C90-D90-F90-AF76)*((1+AF72)/(1+AF71))^L90,0) -> 0.1275684117 | S90: =+C90-D90-F90-AG70 -> -1.339244478 | T90: 53.20596277 | U90: =+M90*U89+AB70 -> 49.52595542 | V90: 49.42527595 | W90: =+M90*W89+AF70 -> 43.52474149 | X90: 46.15282144
A91: 2038 | B91: =+B58 -> -1.057142857 | C91: 20.14285714 | D91: 3.728571429 | E91: 13.58571429 | F91: 3.885714286 | G91: 0.06130045299 | H91: 0.0308 | I91: 20.14285714 | J91: 21.2 | K91: 3.128571429 | L91: 21 | M91: 1.029589108 | N91: =+PRODUCT(M70:M91) -> 1.705135581 | O91: =+'Multiplicatoria inversa'!F91 -> 27.28104412 | P91: =+C91-D91-F91-AC70 -> -1.215741745 | Q91: =+IF(L91=AB73,1,VLOOKUP(AB73,'Multiplicatoria inversa'!E71:AK100,L91+4,FALSE))*P91 -> -1.288751574 | R91: =IF(L91<25-Z69+1,(C91-D91-F91-AF76)*((1+AF72)/(1+AF71))^L91,0) -> 0.1239022544 | S91: =+C91-D91-F91-AG70 -> -1.339244478 | T91: 53.72313692 | U91: =+M91*U90+AB70 -> 49.74115333 | V91: 49.67198405 | W91: =+M91*W90+AF70 -> 43.33588246 | X91: 46.1791978
A92: 2039 | B92: =+B59 -> -1.057142857 | C92: 20.14285714 | D92: 3.728571429 | E92: 13.58571429 | F92: 3.885714286 | G92: 0.06130045299 | H92: 0.0308 | I92: 20.14285714 | J92: 21.2 | K92: 3.128571429 | L92: 22 | M92: 1.029589108 | N92: =+PRODUCT(M70:M92) -> 1.755589023 | O92: =+'Multiplicatoria inversa'!F92 -> 29.117855 | P92: =+C92-D92-F92-AC70 -> -1.215741745 | Q92: =+IF(L92=AB73,1,VLOOKUP(AB73,'Multiplicatoria inversa'!E71:AK100,L92+4,FALSE))*P92 -> -1.251714459 | R92: =IF(L92<25-Z69+1,(C92-D92-F92-AF76)*((1+AF72)/(1+AF71))^L92,0) -> 0.120341458 | S92: =+C92-D92-F92-AG70 -> -1.339244478 | T92: 54.25561378 | U92: =+M92*U91+AB70 -> 49.96271875 | V92: 49.92599203 | W92: =+M92*W91+AF70 -> 43.14143527 | X92: 46.20635462
A93: 2040 | B93: =+B60 -> -1.057142857 | C93: 20.14285714 | D93: 3.728571429 | E93: 13.58571429 | F93: 3.885714286 | G93: 0.06130045299 | H93: 0.0308 | I93: 20.14285714 | J93: 21.2 | K93: 3.128571429 | L93: 23 | M93: 1.029589108 | N93: =+PRODUCT(M70:M93) -> 1.807535337 | O93: =+'Multiplicatoria inversa'!F93 -> 31.00901548 | P93: =+C93-D93-F93-AC70 -> -1.215741745 | Q93: =+IF(L93=AB73,1,VLOOKUP(AB73,'Multiplicatoria inversa'!E71:AK100,L93+4,FALSE))*P93 -> -1.215741745 | R93: =IF(L93<25-Z69+1,(C93-D93-F93-AF76)*((1+AF72)/(1+AF71))^L93,0) -> 0 | S93: =+C93-D93-F93-AG70 -> -1.339244478 | T93: 54.80384616 | U93: =+M93*U92+AB70 -> 50.1908401 | V93: 50.18751588 | W93: =+M93*W92+AF70 -> 42.94123455 | X93: 46.23431498
A94: 2041 | B94: =+B61 -> -1.057142857 | C94: 20.14285714 | D94: 3.728571429 | E94: 13.58571429 | F94: 3.885714286 | G94: 0.06130045299 | H94: 0.0308 | I94: 20.14285714 | J94: 21.2 | K94: 3.128571429 | L94: 24 | M94: 1.029589108 | N94: =+PRODUCT(M70:M94) -> 1.861018696 | O94: =+'Multiplicatoria inversa'!F94 -> 32.95613371 | P94: =+C94-D94-F94-AC70 -> -1.215741745 | Q94: =+IF(L94=AB73,1,VLOOKUP(AB73,'Multiplicatoria inversa'!E71:AK100,L94+4,FALSE))*P94 -> 0 | R94: =IF(L94<25-Z69+1,(C94-D94-F94-AF76)*((1+AF72)/(1+AF71))^L94,0) -> 0 | S94: =+C94-D94-F94-AG70 -> -1.339244478 | T94: 55.36830026 | U94: =+M94*U93+AB70 -> 50.42571135 | V94: 50.45677798 | W94: =+M94*W93+AF70 -> 42.73511008 | X94: 46.26310266
A95: 2042 | B95: =+B62 -> -1.057142857 | C95: 20.14285714 | D95: 3.728571429 | E95: 13.58571429 | F95: 3.885714286 | G95: 0.06130045299 | H95: 0.0308 | I95: 20.14285714 | J95: 21.2 | K95: 3.128571429 | L95: 25 | M95: 1.029589108 | N95: =+PRODUCT(M70:M95) -> 1.91608458 | O95: =+'Multiplicatoria inversa'!F95 -> 34.96086543 | P95: =+C95-D95-F95-AC70 -> -1.215741745 | Q95: =+IF(L95=AB73,1,VLOOKUP(AB73,'Multiplicatoria inversa'!E71:AK100,L95+4,FALSE))*P95 -> 0 | R95: =IF(L95<25-Z69+1,(C95-D95-F95-AF76)*((1+AF72)/(1+AF71))^L95,0) -> 0 | S95: =+C95-D95-F95-AG70 -> -1.339244478 | T95: 55.94945604 | U95: =+M95*U94+AB70 -> 50.66753224 | V95: 50.73400731 | W95: =+M95*W94+AF70 -> 42.52288656 | X95: 46.29274214
A96: 2043 | B96: =+B63 -> -1.057142857 | C96: 20.14285714 | D96: 3.728571429 | E96: 13.58571429 | F96: 3.885714286 | G96: 0.06130045299 | H96: 0.0308 | I96: 20.14285714 | J96: 21.2 | K96: 3.128571429 | L96: 26 | M96: 1.029589108 | N96: =+PRODUCT(M70:M96) -> 1.972779815 | O96: =+'Multiplicatoria inversa'!F96 -> 37.02491538 | P96: =+C96-D96-F96-AC70 -> -1.215741745 | Q96: =+IF(L96=AB73,1,VLOOKUP(AB73,'Multiplicatoria inversa'!E71:AK100,L96+4,FALSE))*P96 -> 0 | R96: =IF(L96<25-Z69+1,(C96-D96-F96-AF76)*((1+AF72)/(1+AF71))^L96,0) -> 0 | S96: =+C96-D96-F96-AG70 -> -1.339244478 | T96: 56.5478077 | U96: =+M96*U95+AB70 -> 50.91650838 | V96: 51.01943961 | W96: =+M96*W95+AF70 -> 42.30438354 | X96: 46.32325863
A97: 2044 | B97: =+B64 -> -1.057142857 | C97: 20.14285714 | D97: 3.728571429 | E97: 13.58571429 | F97: 3.885714286 | G97: 0.06130045299 | H97: 0.0308 | I97: 20.14285714 | J97: 21.2 | K97: 3.128571429 | L97: 27 | M97: 1.029589108 | N97: =+PRODUCT(M70:M97) -> 2.03115261 | O97: =+'Multiplicatoria inversa'!F97 -> 39.15003872 | P97: =+C97-D97-F97-AC70 -> -1.215741745 | Q97: =+IF(L97=AB73,1,VLOOKUP(AB73,'Multiplicatoria inversa'!E71:AK100,L97+4,FALSE))*P97 -> 0 | R97: =IF(L97<25-Z69+1,(C97-D97-F97-AF76)*((1+AF72)/(1+AF71))^L97,0) -> 0 | S97: =+C97-D97-F97-AG70 -> -1.339244478 | T97: 57.16386406 | U97: =+M97*U96+AB70 -> 51.17285151 | V97: 51.3133176 | W97: =+M97*W96+AF70 -> 42.07941521 | X97: 46.35467808
A98: 2045 | B98: =+B65 -> -1.057142857 | C98: 20.14285714 | D98: 3.728571429 | E98: 13.58571429 | F98: 3.885714286 | G98: 0.06130045299 | H98: 0.0308 | I98: 20.14285714 | J98: 21.2 | K98: 3.128571429 | L98: 28 | M98: 1.029589108 | N98: =+PRODUCT(M70:M98) -> 2.091252605 | O98: =+'Multiplicatoria inversa'!F98 -> 41.33804257 | P98: =+C98-D98-F98-AC70 -> -1.215741745 | Q98: =+IF(L98=AB73,1,VLOOKUP(AB73,'Multiplicatoria inversa'!E71:AK100,L98+4,FALSE))*P98 -> 0 | R98: =IF(L98<25-Z69+1,(C98-D98-F98-AF76)*((1+AF72)/(1+AF71))^L98,0) -> 0 | S98: =+C98-D98-F98-AG70 -> -1.339244478 | T98: 57.79814898 | U98: =+M98*U97+AB70 -> 51.43677961 | V98: 51.61589117 | W98: =+M98*W97+AF70 -> 41.84779027 | X98: 46.38702719
A99: 2046 | B99: =+B66 -> 0 | C99: 0 | D99: 0 | E99: 0 | F99: 0 | G99: 0 | H99: 0 | I99: 0 | J99: 0 | K99: 0 | L99: 29 | M99: 1 | N99: =+PRODUCT(M70:M99) -> 2.091252605 | O99: =+'Multiplicatoria inversa'!F99 -> 42.33804257 | P99: =+C99-D99-F99-AC70 -> -13.74431317 | Q99: =+IF(L99=AB73,1,VLOOKUP(AB73,'Multiplicatoria inversa'!E71:AK100,L99+4,FALSE))*P99 -> 0 | R99: =IF(L99<25-Z69+1,(C99-D99-F99-AF76)*((1+AF72)/(1+AF71))^L99,0) -> 0 | S99: =+C99-D99-F99-AG70 -> -13.86781591 | T99: 57.79814898 | U99: =+M99*U98+AB70 -> 50.18654865 | V99: 37.871578 | W99: =+M99*W98+AF70 -> 40.37107295 | X99: 32.51921129
A100: 2047 | B100: =+B67 -> 0 | C100: 0 | D100: 0 | E100: 0 | F100: 0 | G100: 0 | H100: 0 | I100: 0 | J100: 0 | K100: 0 | L100: 30 | M100: 1 | N100: =+PRODUCT(M70:M100) -> 2.091252605 | O100: =+'Multiplicatoria inversa'!F100 -> 43.33804257 | P100: =+C100-D100-F100-AC70 -> -13.74431317 | R100: =IF(L100<25-Z69+1,(C100-D100-F100-AF76)*((1+AF72)/(1+AF71))^L100,0) -> 0 | S100: =+C100-D100-F100-AG70 -> -13.86781591 | T100: 57.79814898 | U100: =+M100*U99+AB70 -> 48.93631769 | V100: 24.12726483 | W100: =+M100*W99+AF70 -> 38.89435562 | X100: 18.65139538
A103: Fecha(Anual) | B103: dp_t | C103: g_t | D103: ip_t | E103: tau_t | F103: i_otros_t | G103: r_t | H103: c_y_t | I103: Gasto__neto | J103: I_presupuestarios | K103: Costo_finan | L103: t | M103: 1+r_t / 1+c_y_t | N103: Multiplicatoria simple | O103: Multiplicatoria inversa | P103: gt - ipt - iotros - tau_s | Q103: (gt - ipt - iotros + tau_s) | R103: (gt - ipt - iotros - omega)(1+r/1+c_y)^t | S103: gt - ipt - iotros - tau_s (inf) | T103: b_t | U103: b_t_star dc (finito) | V103: b_t_star tau (finito) | W103: b_t_star dc (infinito) | X103: b_t_star tau (infinito) | Z103: 4 | AA103: H Finito | AB103: pd_s | AC103: tau_s | AE103: H infinito | AF103: pd_s | AG103: tau_s
A104: =+A71 -> 2018 | L104: 0 | M104: =(1+G104)/(1+H104) -> 1 | T104: =+T71 -> 49.51147122 | U104: =+T104 -> 49.51147122 | V104: =+T104 -> 49.51147122 | W104: =+T104 -> 49.51147122 | X104: =+T104 -> 49.51147122 | AB104: =+AN6 -> -1.259116005 | AC104: =+AO6 -> 13.75870678 | AF104: =+(AF105-AF106)/(1+AF106)*(-AB105) -> -1.465000291 | AG104: =+AF113 -> 13.85583549
A105: =+A104+1 -> 2019 | B105: =+B72 -> -1.1 | C105: =+C72 -> 19.8 | D105: 3.5 | E105: 13.6 | F105: 3.8 | G105: 0.0518 | H105: 0.035 | I105: 19.8 | J105: 20.9 | K105: 3.1 | L105: 1 | M105: =(1+G105)/(1+H105) -> 1.016231884 | N105: =+PRODUCT(M104:M105) -> 1.016231884 | O105: =+'Multiplicatoria inversa'!F105 -> 0 | P105: =+C105-D105-F105-AC104 -> -1.258706781 | Q105: =+IF(L105=AB107,1,VLOOKUP(AB107,'Multiplicatoria inversa'!E105:AK134,L105+4,FALSE))*P105 -> -2.207674694 | R105: =IF(L105<25-Z103+1,(C105-D105-F105-AF110)*((1+AF106)/(1+AF105))^L105,0) -> 0.1942522491 | S105: =+C105-D105-F105-AG104 -> -1.355835491 | T105: =+M105*T104+B105 -> 49.21513568 | U105: =+M105*U104+AB104 -> 49.05601968 | V105: =+M105*V104+P105 -> 49.0564289 | W105: =+M105*W104+AF104 -> 48.85013539 | X105: =+M105*X104+S105 -> 48.95930019 | AA105: b_0 | AB105: =+U104 -> 49.51147122 | AC105: =+AB105 -> 49.51147122 | AE105: r | AF105: =+AF71 -> 0.06130045299
A106: =+A105+1 -> 2020 | B106: =+B73 -> -1.2 | C106: 20 | D106: 3.7 | E106: 13.7 | F106: 3.8 | G106: 0.05349593496 | H106: 0.045 | I106: 20 | J106: 21.2 | K106: 3.2 | L106: =+L105+1 -> 2 | M106: =(1+G106)/(1+H106) -> 1.008130081 | N106: =+PRODUCT(M104:M106) -> 1.024493932 | O106: =+'Multiplicatoria inversa'!F106 -> 1.008130081 | P106: =+C106-D106-F106-AC104 -> -1.258706781 | Q106: =+IF(L106=AB107,1,VLOOKUP(AB107,'Multiplicatoria inversa'!E105:AK134,L106+4,FALSE))*P106 -> -2.189870866 | R106: =IF(L106<25-Z103+1,(C106-D106-F106-AF110)*((1+AF106)/(1+AF105))^L106,0) -> 0.1886696815 | S106: =+C106-D106-F106-AG104 -> -1.355835491 | T106: 48.41525874 | U106: =+M106*U105+AB104 -> 48.1957331 | V106: 48.19655487 | W106: =+M106*W105+AF104 -> 47.78229067 | X106: 48.00150779 | AA106: b_T | AB106: =+AB72 -> 50.19 | AC106: =+AC72 -> 50.19 | AE106: c_y | AF106: =+AF72 -> 0.0308
A107: 2021 | B107: =+B74 -> -1.4 | C107: 20.1 | D107: 3.9 | E107: 13.7 | F107: 3.9 | G107: 0.0602 | H107: 0.045 | I107: 20.1 | J107: 21.5 | K107: 3.4 | L107: =+L106+1 -> 3 | M107: 1.014545455 | N107: =+PRODUCT(M104:M107) -> 1.039395662 | O107: =+'Multiplicatoria inversa'!F107 -> 2.037339246 | P107: =+C107-D107-F107-AC104 -> -1.458706781 | Q107: =+IF(L107=AB107,1,VLOOKUP(AB107,'Multiplicatoria inversa'!E105:AK134,L107+4,FALSE))*P107 -> -2.501441935 | R107: =IF(L107<25-Z103+1,(C107-D107-F107-AF110)*((1+AF106)/(1+AF105))^L107,0) -> 0 | S107: =+C107-D107-F107-AG104 -> -1.555835491 | T107: 47.71948068 | U107: =+M107*U106+AB104 -> 47.63764594 | V107: 47.43888889 | W107: =+M107*W106+AF104 -> 47.01230552 | X107: 47.14387605 | AA107: T | AB107: =+AB73-1 -> 22 | AC107: =+AB107 -> 22 | AE107: g | AF107: =+AF73 -> 20.1
A108: 2022 | B108: =+B75 -> -1.4 | C108: 20.1 | D108: 3.9 | E108: 13.7 | F108: 3.9 | G108: 0.0602 | H108: 0.045 | I108: 20.1 | J108: 21.5 | K108: 3.4 | L108: 4 | M108: 1.014545455 | N108: =+PRODUCT(M104:M108) -> 1.054514144 | O108: =+'Multiplicatoria inversa'!F108 -> 3.081518726 | P108: =+C108-D108-F108-AC104 -> -1.458706781 | Q108: =+IF(L108=AB107,1,VLOOKUP(AB107,'Multiplicatoria inversa'!E105:AK134,L108+4,FALSE))*P108 -> -2.465578969 | R108: =IF(L108<25-Z103+1,(C108-D108-F108-AF110)*((1+AF106)/(1+AF105))^L108,0) -> 0 | S108: =+C108-D108-F108-AG104 -> -1.555835491 | T108: 47.01358222 | U108: =+M108*U107+AB104 -> 47.07144115 | V108: 46.67020231 | W108: =+M108*W107+AF104 -> 46.23112058 | X108: 46.27376966 | AA108: Pi_t b_0 | AB108: =+VLOOKUP(AB107,L105:N134,3,FALSE)*AB105 -> 88.24887052 | AC108: =+AB108 -> 88.24887052 | AE108: ip | AF108: =+AF74 -> 3.9
A109: 2023 | B109: =+B76 -> -1.057142857 | C109: 20.14285714 | D109: 3.728571429 | E109: 13.58571429 | F109: 3.885714286 | G109: 0.06130045299 | H109: 0.0308 | I109: 20.14285714 | J109: 21.2 | K109: 3.128571429 | L109: 5 | M109: 1.029589108 | N109: =+PRODUCT(M104:M109) -> 1.085716278 | O109: =+'Multiplicatoria inversa'!F109 -> 4.202287226 | P109: =+C109-D109-F109-AC104 -> -1.230135353 | Q109: =+IF(L109=AB107,1,VLOOKUP(AB107,'Multiplicatoria inversa'!E105:AK134,L109+4,FALSE))*P109 -> -2.019481481 | R109: =IF(L109<25-Z103+1,(C109-D109-F109-AF110)*((1+AF106)/(1+AF105))^L109,0) -> 0.1975614678 | S109: =+C109-D109-F109-AG104 -> -1.327264062 | T109: 47.34752934 | U109: =+M109*U108+AB104 -> 47.20512712 | V109: 46.82099664 | W109: =+M109*W108+AF104 -> 46.13405793 | X109: 46.31570519 | AA109: sum dpt | AB109: =+VLOOKUP(AB107,L105:O134,4,FALSE) -> 29.22662307 | AC109: =+SUM(Q105:Q133) -> -38.06096286 | AE109: iotros | AF109: 3.9
A110: 2024 | B110: =+B77 -> -1.057142857 | C110: 20.14285714 | D110: 3.728571429 | E110: 13.58571429 | F110: 3.885714286 | G110: 0.06130045299 | H110: 0.0308 | I110: 20.14285714 | J110: 21.2 | K110: 3.128571429 | L110: 6 | M110: 1.029589108 | N110: =+PRODUCT(M104:M110) -> 1.117841654 | O110: =+'Multiplicatoria inversa'!F110 -> 5.356218267 | P110: =+C110-D110-F110-AC104 -> -1.230135353 | Q110: =+IF(L110=AB107,1,VLOOKUP(AB107,'Multiplicatoria inversa'!E105:AK134,L110+4,FALSE))*P110 -> -1.961444099 | R110: =IF(L110<25-Z103+1,(C110-D110-F110-AF110)*((1+AF106)/(1+AF105))^L110,0) -> 0.1918837973 | S110: =+C110-D110-F110-AG104 -> -1.327264062 | T110: 47.69135767 | U110: =+M110*U109+AB104 -> 47.34276874 | V110: 46.97625283 | W110: =+M110*W109+AF104 -> 46.03412328 | X110: 46.35888155 | AA110: f | AB110: =+AB108+AB104*(AB109+1) -> 50.19004565 | AC110: =+AC108+AC109 -> 50.18790766 | AE110: omega | AF110: 12.3
A111: 2025 | B111: =+B78 -> -1.057142857 | C111: 20.14285714 | D111: 3.728571429 | E111: 13.58571429 | F111: 3.885714286 | G111: 0.06130045299 | H111: 0.0308 | I111: 20.14285714 | J111: 21.2 | K111: 3.128571429 | L111: 7 | M111: 1.029589108 | N111: =+PRODUCT(M104:M111) -> 1.150917592 | O111: =+'Multiplicatoria inversa'!F111 -> 6.544293099 | P111: =+C111-D111-F111-AC104 -> -1.230135353 | Q111: =+IF(L111=AB107,1,VLOOKUP(AB107,'Multiplicatoria inversa'!E105:AK134,L111+4,FALSE))*P111 -> -1.905074639 | R111: =IF(L111<25-Z103+1,(C111-D111-F111-AF110)*((1+AF106)/(1+AF105))^L111,0) -> 0.186369296 | S111: =+C111-D111-F111-AG104 -> -1.327264062 | T111: 48.04535956 | U111: =+M111*U110+AB104 -> 47.48448306 | V111: 47.13610292 | W111: =+M111*W110+AF104 -> 45.93123165 | X111: 46.40333546 | AA111: dif | AB111: =+AB106-AB110 -> -4.565038466e-05 | AC111: =+AC106-AC110 -> 0.002092338863 | AE111: 25 se vuelve constante
A112: 2026 | B112: =+B79 -> -1.057142857 | C112: 20.14285714 | D112: 3.728571429 | E112: 13.58571429 | F112: 3.885714286 | G112: 0.06130045299 | H112: 0.0308 | I112: 20.14285714 | J112: 21.2 | K112: 3.128571429 | L112: 8 | M112: 1.029589108 | N112: =+PRODUCT(M104:M112) -> 1.184972218 | O112: =+'Multiplicatoria inversa'!F112 -> 7.767522005 | P112: =+C112-D112-F112-AC104 -> -1.230135353 | Q112: =+IF(L112=AB107,1,VLOOKUP(AB107,'Multiplicatoria inversa'!E105:AK134,L112+4,FALSE))*P112 -> -1.850325167 | R112: =IF(L112<25-Z103+1,(C112-D112-F112-AF110)*((1+AF106)/(1+AF105))^L112,0) -> 0.1810132746 | S112: =+C112-D112-F112-AG104 -> -1.327264062 | T112: 48.40983606 | U112: =+M112*U111+AB104 -> 47.63039057 | V112: 47.30068282 | W112: =+M112*W111+AF104 -> 45.82529556 | X112: 46.44910473 | AA112: Validar | AB112: =+VLOOKUP(AB107,L105:U134,10,FALSE) -> 50.19004565 | AC112: =+VLOOKUP(AC107,L105:V134,11,FALSE) -> 50.18790766 | AE112: sum 1 a 24 | AF112: =+SUM(R105:R128) -> 3.06988633
A113: 2027 | B113: =+B80 -> -1.057142857 | C113: 20.14285714 | D113: 3.728571429 | E113: 13.58571429 | F113: 3.885714286 | G113: 0.06130045299 | H113: 0.0308 | I113: 20.14285714 | J113: 21.2 | K113: 3.128571429 | L113: 9 | M113: 1.029589108 | N113: =+PRODUCT(M104:M113) -> 1.220034489 | O113: =+'Multiplicatoria inversa'!F113 -> 9.026945165 | P113: =+C113-D113-F113-AC104 -> -1.230135353 | Q113: =+IF(L113=AB107,1,VLOOKUP(AB107,'Multiplicatoria inversa'!E105:AK134,L113+4,FALSE))*P113 -> -1.797149127 | R113: =IF(L113<25-Z103+1,(C113-D113-F113-AF110)*((1+AF106)/(1+AF105))^L113,0) -> 0.1758111785 | S113: =+C113-D113-F113-AG104 -> -1.327264062 | T113: 48.78509709 | U113: =+M113*U112+AB104 -> 47.78061536 | V113: 47.47013251 | W113: =+M113*W112+AF104 -> 45.71622491 | X113: 46.49622826 | AB113: =+IFERROR(ABS(AB112/AB106)-1,0) -> 9.09551396e-07 | AC113: =+IFERROR(ABS(AC112/AC106)-1,0) -> -4.168836148e-05 | AE113: f | AF113: =+(AF112+AB105)*(AF105-AF106)/(1+AF106)+AF110 -> 13.85583549
A114: 2028 | B114: =+B81 -> -1.057142857 | C114: 20.14285714 | D114: 3.728571429 | E114: 13.58571429 | F114: 3.885714286 | G114: 0.06130045299 | H114: 0.0308 | I114: 20.14285714 | J114: 21.2 | K114: 3.128571429 | L114: 10 | M114: 1.029589108 | N114: =+PRODUCT(M104:M114) -> 1.256134222 | O114: =+'Multiplicatoria inversa'!F114 -> 10.32363353 | P114: =+C114-D114-F114-AC104 -> -1.230135353 | Q114: =+IF(L114=AB107,1,VLOOKUP(AB107,'Multiplicatoria inversa'!E105:AK134,L114+4,FALSE))*P114 -> -1.745501299 | R114: =IF(L114<25-Z103+1,(C114-D114-F114-AF110)*((1+AF106)/(1+AF105))^L114,0) -> 0.1707585843 | S114: =+C114-D114-F114-AG104 -> -1.327264062 | T114: 49.17146176 | U114: =+M114*U113+AB104 -> 47.93528516 | V114: 47.64459605 | W114: =+M114*W113+AF104 -> 45.60392695 | X114: 46.54474614
A115: 2029 | B115: =+B82 -> -1.057142857 | C115: 20.14285714 | D115: 3.728571429 | E115: 13.58571429 | F115: 3.885714286 | G115: 0.06130045299 | H115: 0.0308 | I115: 20.14285714 | J115: 21.2 | K115: 3.128571429 | L115: 11 | M115: 1.029589108 | N115: =+PRODUCT(M104:M115) -> 1.293302114 | O115: =+'Multiplicatoria inversa'!F115 -> 11.65868975 | P115: =+C115-D115-F115-AC104 -> -1.230135353 | Q115: =+IF(L115=AB107,1,VLOOKUP(AB107,'Multiplicatoria inversa'!E105:AK134,L115+4,FALSE))*P115 -> -1.695337766 | R115: =IF(L115<25-Z103+1,(C115-D115-F115-AF110)*((1+AF106)/(1+AF105))^L115,0) -> 0.1658511953 | S115: =+C115-D115-F115-AG104 -> -1.327264062 | T115: 49.56925862 | U115: =+M115*U114+AB104 -> 48.09453151 | V115: 47.82422182 | W115: =+M115*W114+AF104 -> 45.4883062 | X115: 46.59469962 | AA115: g | AB115: =IFERROR(ABS(AB111)+ABS(AC111),0) -> 0.002137989247
A116: 2030 | B116: =+B83 -> -1.057142857 | C116: 20.14285714 | D116: 3.728571429 | E116: 13.58571429 | F116: 3.885714286 | G116: 0.06130045299 | H116: 0.0308 | I116: 20.14285714 | J116: 21.2 | K116: 3.128571429 | L116: 12 | M116: 1.029589108 | N116: =+PRODUCT(M104:M116) -> 1.33156977 | O116: =+'Multiplicatoria inversa'!F116 -> 13.0332491 | P116: =+C116-D116-F116-AC104 -> -1.230135353 | Q116: =+IF(L116=AB107,1,VLOOKUP(AB107,'Multiplicatoria inversa'!E105:AK134,L116+4,FALSE))*P116 -> -1.646615871 | R116: =IF(L116<25-Z103+1,(C116-D116-F116-AF110)*((1+AF106)/(1+AF105))^L116,0) -> 0.1610848385 | S116: =+C116-D116-F116-AG104 -> -1.327264062 | T116: 49.97882593 | U116: =+M116*U115+AB104 -> 48.25848981 | V116: 48.00916255 | W116: =+M116*W115+AF104 -> 45.36926433 | X116: 46.64613118 | AB116: Pronosticada
A117: 2031 | B117: =+B84 -> -1.057142857 | C117: 20.14285714 | D117: 3.728571429 | E117: 13.58571429 | F117: 3.885714286 | G117: 0.06130045299 | H117: 0.0308 | I117: 20.14285714 | J117: 21.2 | K117: 3.128571429 | L117: 13 | M117: 1.029589108 | N117: =+PRODUCT(M104:M117) -> 1.370969732 | O117: =+'Multiplicatoria inversa'!F117 -> 14.44848043 | P117: =+C117-D117-F117-AC104 -> -1.230135353 | Q117: =+IF(L117=AB107,1,VLOOKUP(AB107,'Multiplicatoria inversa'!E105:AK134,L117+4,FALSE))*P117 -> -1.599294182 | R117: =IF(L117<25-Z103+1,(C117-D117-F117-AF110)*((1+AF106)/(1+AF105))^L117,0) -> 0.1564554609 | S117: =+C117-D117-F117-AG104 -> -1.327264062 | T117: 50.40051198 | U117: =+M117*U116+AB104 -> 48.42729949 | V117: 48.19957551 | W117: =+M117*W116+AF104 -> 45.24670012 | X117: 46.69908455 | AA117: b_t_star dc (finito) | AB117: Ajuste al déficit primario
A118: 2032 | B118: =+B85 -> -1.057142857 | C118: 20.14285714 | D118: 3.728571429 | E118: 13.58571429 | F118: 3.885714286 | G118: 0.06130045299 | H118: 0.0308 | I118: 20.14285714 | J118: 21.2 | K118: 3.128571429 | L118: 14 | M118: 1.029589108 | N118: =+PRODUCT(M104:M118) -> 1.411535504 | O118: =+'Multiplicatoria inversa'!F118 -> 15.90558719 | P118: =+C118-D118-F118-AC104 -> -1.230135353 | Q118: =+IF(L118=AB107,1,VLOOKUP(AB107,'Multiplicatoria inversa'!E105:AK134,L118+4,FALSE))*P118 -> -1.553332459 | R118: =IF(L118<25-Z103+1,(C118-D118-F118-AF110)*((1+AF106)/(1+AF105))^L118,0) -> 0.1519591259 | S118: =+C118-D118-F118-AG104 -> -1.327264062 | T118: 50.83467533 | U118: =+M118*U117+AB104 -> 48.60110411 | V118: 48.39562263 | W118: =+M118*W117+AF104 -> 45.12050935 | X118: 46.75360476 | AA118: b_t_star tau (finito) | AB118: Ajuste al ingreso tributario
A119: 2033 | B119: =+B86 -> -1.057142857 | C119: 20.14285714 | D119: 3.728571429 | E119: 13.58571429 | F119: 3.885714286 | G119: 0.06130045299 | H119: 0.0308 | I119: 20.14285714 | J119: 21.2 | K119: 3.128571429 | L119: 15 | M119: 1.029589108 | N119: =+PRODUCT(M104:M119) -> 1.453301582 | O119: =+'Multiplicatoria inversa'!F119 -> 17.40580844 | P119: =+C119-D119-F119-AC104 -> -1.230135353 | Q119: =+IF(L119=AB107,1,VLOOKUP(AB107,'Multiplicatoria inversa'!E105:AK134,L119+4,FALSE))*P119 -> -1.508691619 | R119: =IF(L119<25-Z103+1,(C119-D119-F119-AF110)*((1+AF106)/(1+AF105))^L119,0) -> 0.1475920099 | S119: =+C119-D119-F119-AG104 -> -1.327264062 | T119: 51.2816852 | U119: =+M119*U118+AB104 -> 48.78005144 | V119: 48.5974706 | W119: =+M119*W118+AF104 -> 44.9905847 | X119: 46.80973818 | AA119: b_t_star dc (infinito) | AB119: Ajuste al déficit primario
A120: 2034 | B120: =+B87 -> -1.057142857 | C120: 20.14285714 | D120: 3.728571429 | E120: 13.58571429 | F120: 3.885714286 | G120: 0.06130045299 | H120: 0.0308 | I120: 20.14285714 | J120: 21.2 | K120: 3.128571429 | L120: 16 | M120: 1.029589108 | N120: =+PRODUCT(M104:M120) -> 1.49630348 | O120: =+'Multiplicatoria inversa'!F120 -> 18.9504199 | P120: =+C120-D120-F120-AC104 -> -1.230135353 | Q120: =+IF(L120=AB107,1,VLOOKUP(AB107,'Multiplicatoria inversa'!E105:AK134,L120+4,FALSE))*P120 -> -1.465333701 | R120: =IF(L120<25-Z103+1,(C120-D120-F120-AF110)*((1+AF106)/(1+AF105))^L120,0) -> 0.1433503994 | S120: =+C120-D120-F120-AG104 -> -1.327264062 | T120: 51.74192168 | U120: =+M120*U119+AB104 -> 48.96429367 | V120: 48.80529108 | W120: =+M120*W119+AF104 -> 44.8568157 | X120: 46.86753254 | AA120: b_t_star tau (infinito) | AB120: Ajuste al ingreso tributario
A121: 2035 | B121: =+B88 -> -1.057142857 | C121: 20.14285714 | D121: 3.728571429 | E121: 13.58571429 | F121: 3.885714286 | G121: 0.06130045299 | H121: 0.0308 | I121: 20.14285714 | J121: 21.2 | K121: 3.128571429 | L121: 17 | M121: 1.029589108 | N121: =+PRODUCT(M104:M121) -> 1.540577766 | O121: =+'Multiplicatoria inversa'!F121 -> 20.54073504 | P121: =+C121-D121-F121-AC104 -> -1.230135353 | Q121: =+IF(L121=AB107,1,VLOOKUP(AB107,'Multiplicatoria inversa'!E105:AK134,L121+4,FALSE))*P121 -> -1.423221836 | R121: =IF(L121<25-Z103+1,(C121-D121-F121-AF110)*((1+AF106)/(1+AF105))^L121,0) -> 0.1392306874 | S121: =+C121-D121-F121-AG104 -> -1.327264062 | T121: 52.21577616 | U121: =+M121*U120+AB104 -> 49.15398746 | V121: 49.01926077 | W121: =+M121*W120+AF104 -> 44.7190886 | X121: 46.92703698
A122: 2036 | B122: =+B89 -> -1.057142857 | C122: 20.14285714 | D122: 3.728571429 | E122: 13.58571429 | F122: 3.885714286 | G122: 0.06130045299 | H122: 0.0308 | I122: 20.14285714 | J122: 21.2 | K122: 3.128571429 | L122: 18 | M122: 1.029589108 | N122: =+PRODUCT(M104:M122) -> 1.586162088 | O122: =+'Multiplicatoria inversa'!F122 -> 22.17810619 | P122: =+C122-D122-F122-AC104 -> -1.230135353 | Q122: =+IF(L122=AB107,1,VLOOKUP(AB107,'Multiplicatoria inversa'!E105:AK134,L122+4,FALSE))*P122 -> -1.382320214 | R122: =IF(L122<25-Z103+1,(C122-D122-F122-AF110)*((1+AF106)/(1+AF105))^L122,0) -> 0.1352293709 | S122: =+C122-D122-F122-AG104 -> -1.327264062 | T122: 52.70365157 | U122: =+M122*U121+AB104 -> 49.34929412 | V122: 49.23956164 | W122: =+M122*W121+AF104 -> 44.57728627 | X122: 46.9883021
A123: 2037 | B123: =+B90 -> -1.057142857 | C123: 20.14285714 | D123: 3.728571429 | E123: 13.58571429 | F123: 3.885714286 | G123: 0.06130045299 | H123: 0.0308 | I123: 20.14285714 | J123: 21.2 | K123: 3.128571429 | L123: 19 | M123: 1.029589108 | N123: =+PRODUCT(M104:M123) -> 1.63309521 | O123: =+'Multiplicatoria inversa'!F123 -> 23.86392568 | P123: =+C123-D123-F123-AC104 -> -1.230135353 | Q123: =+IF(L123=AB107,1,VLOOKUP(AB107,'Multiplicatoria inversa'!E105:AK134,L123+4,FALSE))*P123 -> -1.342594052 | R123: =IF(L123<25-Z103+1,(C123-D123-F123-AF110)*((1+AF106)/(1+AF105))^L123,0) -> 0.1313430473 | S123: =+C123-D123-F123-AG104 -> -1.327264062 | T123: 53.20596277 | U123: =+M123*U122+AB104 -> 49.55037973 | V123: 49.46638102 | W123: =+M123*W122+AF104 -> 44.43128813 | X123: 47.05138001
A124: 2038 | B124: =+B91 -> -1.057142857 | C124: 20.14285714 | D124: 3.728571429 | E124: 13.58571429 | F124: 3.885714286 | G124: 0.06130045299 | H124: 0.0308 | I124: 20.14285714 | J124: 21.2 | K124: 3.128571429 | L124: 20 | M124: 1.029589108 | N124: =+PRODUCT(M104:M124) -> 1.681417041 | O124: =+'Multiplicatoria inversa'!F124 -> 25.59962708 | P124: =+C124-D124-F124-AC104 -> -1.230135353 | Q124: =+IF(L124=AB107,1,VLOOKUP(AB107,'Multiplicatoria inversa'!E105:AK134,L124+4,FALSE))*P124 -> -1.304009572 | R124: =IF(L124<25-Z103+1,(C124-D124-F124-AF110)*((1+AF106)/(1+AF105))^L124,0) -> 0.1275684117 | S124: =+C124-D124-F124-AG104 -> -1.327264062 | T124: 53.72313692 | U124: =+M124*U123+AB104 -> 49.75741529 | V124: 49.69991178 | W124: =+M124*W123+AF104 -> 44.28097004 | X124: 47.11632433
A125: 2039 | B125: =+B92 -> -1.057142857 | C125: 20.14285714 | D125: 3.728571429 | E125: 13.58571429 | F125: 3.885714286 | G125: 0.06130045299 | H125: 0.0308 | I125: 20.14285714 | J125: 21.2 | K125: 3.128571429 | L125: 21 | M125: 1.029589108 | N125: =+PRODUCT(M104:M125) -> 1.731168673 | O125: =+'Multiplicatoria inversa'!F125 -> 27.38668633 | P125: =+C125-D125-F125-AC104 -> -1.230135353 | Q125: =+IF(L125=AB107,1,VLOOKUP(AB107,'Multiplicatoria inversa'!E105:AK134,L125+4,FALSE))*P125 -> -1.266533961 | R125: =IF(L125<25-Z103+1,(C125-D125-F125-AF110)*((1+AF106)/(1+AF105))^L125,0) -> 0.1239022544 | S125: =+C125-D125-F125-AG104 -> -1.327264062 | T125: 54.25561378 | U125: =+M125*U124+AB104 -> 49.97057684 | V125: 49.94035251 | W125: =+M125*W124+AF104 -> 44.12620418 | X125: 47.1831903
A126: 2040 | B126: =+B93 -> -1.057142857 | C126: 20.14285714 | D126: 3.728571429 | E126: 13.58571429 | F126: 3.885714286 | G126: 0.06130045299 | H126: 0.0308 | I126: 20.14285714 | J126: 21.2 | K126: 3.128571429 | L126: 22 | M126: 1.029589108 | N126: =+PRODUCT(M104:M126) -> 1.78239241 | O126: =+'Multiplicatoria inversa'!F126 -> 29.22662307 | P126: =+C126-D126-F126-AC104 -> -1.230135353 | Q126: =+IF(L126=AB107,1,VLOOKUP(AB107,'Multiplicatoria inversa'!E105:AK134,L126+4,FALSE))*P126 -> -1.230135353 | R126: =IF(L126<25-Z103+1,(C126-D126-F126-AF110)*((1+AF106)/(1+AF105))^L126,0) -> 0 | S126: =+C126-D126-F126-AG104 -> -1.327264062 | T126: 54.80384616 | U126: =+M126*U125+AB104 -> 50.19004565 | V126: 50.18790766 | W126: =+M126*W125+AF104 -> 43.96685893 | X126: 47.25203477
A127: 2041 | B127: =+B94 -> -1.057142857 | C127: 20.14285714 | D127: 3.728571429 | E127: 13.58571429 | F127: 3.885714286 | G127: 0.06130045299 | H127: 0.0308 | I127: 20.14285714 | J127: 21.2 | K127: 3.128571429 | L127: 23 | M127: 1.029589108 | N127: =+PRODUCT(M104:M127) -> 1.835131813 | O127: =+'Multiplicatoria inversa'!F127 -> 31.1210019 | P127: =+C127-D127-F127-AC104 -> -1.230135353 | Q127: =+IF(L127=AB107,1,VLOOKUP(AB107,'Multiplicatoria inversa'!E105:AK134,L127+4,FALSE))*P127 -> 0 | R127: =IF(L127<25-Z103+1,(C127-D127-F127-AF110)*((1+AF106)/(1+AF105))^L127,0) -> 0 | S127: =+C127-D127-F127-AG104 -> -1.327264062 | T127: 55.36830026 | U127: =+M127*U126+AB104 -> 50.41600835 | V127: 50.44278775 | W127: =+M127*W126+AF104 -> 43.80279879 | X127: 47.32291629
A128: 2042 | B128: =+B95 -> -1.057142857 | C128: 20.14285714 | D128: 3.728571429 | E128: 13.58571429 | F128: 3.885714286 | G128: 0.06130045299 | H128: 0.0308 | I128: 20.14285714 | J128: 21.2 | K128: 3.128571429 | L128: 24 | M128: 1.029589108 | N128: =+PRODUCT(M104:M128) -> 1.889431727 | O128: =+'Multiplicatoria inversa'!F128 -> 33.0714337 | P128: =+C128-D128-F128-AC104 -> -1.230135353 | Q128: =+IF(L128=AB107,1,VLOOKUP(AB107,'Multiplicatoria inversa'!E105:AK134,L128+4,FALSE))*P128 -> 0 | R128: =IF(L128<25-Z103+1,(C128-D128-F128-AF110)*((1+AF106)/(1+AF105))^L128,0) -> 0 | S128: =+C128-D128-F128-AG104 -> -1.327264062 | T128: 55.94945604 | U128: =+M128*U127+AB104 -> 50.64865708 | V128: 50.70520952 | W128: =+M128*W127+AF104 -> 43.63388426 | X128: 47.39589513
A129: 2043 | B129: =+B96 -> -1.057142857 | C129: 20.14285714 | D129: 3.728571429 | E129: 13.58571429 | F129: 3.885714286 | G129: 0.06130045299 | H129: 0.0308 | I129: 20.14285714 | J129: 21.2 | K129: 3.128571429 | L129: 25 | M129: 1.029589108 | N129: =+PRODUCT(M104:M129) -> 1.945338327 | O129: =+'Multiplicatoria inversa'!F129 -> 35.07957705 | P129: =+C129-D129-F129-AC104 -> -1.230135353 | Q129: =+IF(L129=AB107,1,VLOOKUP(AB107,'Multiplicatoria inversa'!E105:AK134,L129+4,FALSE))*P129 -> 0 | R129: =IF(L129<25-Z103+1,(C129-D129-F129-AF110)*((1+AF106)/(1+AF105))^L129,0) -> 0 | S129: =+C129-D129-F129-AG104 -> -1.327264062 | T129: 56.5478077 | U129: =+M129*U128+AB104 -> 50.88818969 | V129: 50.97539611 | W129: =+M129*W128+AF104 -> 43.45997171 | X129: 47.47103335
A130: 2044 | B130: =+B97 -> -1.057142857 | C130: 20.14285714 | D130: 3.728571429 | E130: 13.58571429 | F130: 3.885714286 | G130: 0.06130045299 | H130: 0.0308 | I130: 20.14285714 | J130: 21.2 | K130: 3.128571429 | L130: 26 | M130: 1.029589108 | N130: =+PRODUCT(M104:M130) -> 2.002899154 | O130: =+'Multiplicatoria inversa'!F130 -> 37.14713957 | P130: =+C130-D130-F130-AC104 -> -1.230135353 | Q130: =+IF(L130=AB107,1,VLOOKUP(AB107,'Multiplicatoria inversa'!E105:AK134,L130+4,FALSE))*P130 -> 0 | R130: =IF(L130<25-Z103+1,(C130-D130-F130-AF110)*((1+AF106)/(1+AF105))^L130,0) -> 0 | S130: =+C130-D130-F130-AG104 -> -1.327264062 | T130: 57.16386406 | U130: =+M130*U129+AB104 -> 51.13480984 | V130: 51.25357728 | W130: =+M130*W129+AF104 -> 43.28091323 | X130: 47.54839484
A131: 2045 | B131: =+B98 -> -1.057142857 | C131: 20.14285714 | D131: 3.728571429 | E131: 13.58571429 | F131: 3.885714286 | G131: 0.06130045299 | H131: 0.0308 | I131: 20.14285714 | J131: 21.2 | K131: 3.128571429 | L131: 27 | M131: 1.029589108 | N131: =+PRODUCT(M104:M131) -> 2.062163154 | O131: =+'Multiplicatoria inversa'!F131 -> 39.27587942 | P131: =+C131-D131-F131-AC104 -> -1.230135353 | Q131: =+IF(L131=AB107,1,VLOOKUP(AB107,'Multiplicatoria inversa'!E105:AK134,L131+4,FALSE))*P131 -> 0 | R131: =IF(L131<25-Z103+1,(C131-D131-F131-AF110)*((1+AF106)/(1+AF105))^L131,0) -> 0 | S131: =+C131-D131-F131-AG104 -> -1.327264062 | T131: 57.79814898 | U131: =+M131*U130+AB104 -> 51.38872727 | V131: 51.53998958 | W131: =+M131*W130+AF104 -> 43.09655658 | X131: 47.62804539
A132: 2046 | B132: =+B99 -> 0 | C132: 0 | D132: 0 | E132: 0 | F132: 0 | G132: 0 | H132: 0 | I132: 0 | J132: 0 | K132: 0 | L132: 28 | M132: 1 | N132: =+PRODUCT(M104:M132) -> 2.062163154 | O132: =+'Multiplicatoria inversa'!F132 -> 40.27587942 | P132: =+C132-D132-F132-AC104 -> -13.75870678 | Q132: =+IF(L132=AB107,1,VLOOKUP(AB107,'Multiplicatoria inversa'!E105:AK134,L132+4,FALSE))*P132 -> 0 | R132: =IF(L132<25-Z103+1,(C132-D132-F132-AF110)*((1+AF106)/(1+AF105))^L132,0) -> 0 | S132: =+C132-D132-F132-AG104 -> -13.85583549 | T132: 57.79814898 | U132: =+M132*U131+AB104 -> 50.12961127 | V132: 37.7812828 | W132: =+M132*W131+AF104 -> 41.63155628 | X132: 33.7722099
A133: 2047 | B133: =+B100 -> 0 | C133: 0 | D133: 0 | E133: 0 | F133: 0 | G133: 0 | H133: 0 | I133: 0 | J133: 0 | K133: 0 | L133: 29 | M133: 1 | N133: =+PRODUCT(M104:M133) -> 2.062163154 | O133: =+'Multiplicatoria inversa'!F133 -> 41.27587942 | P133: =+C133-D133-F133-AC104 -> -13.75870678 | Q133: =+IF(L133=AB107,1,VLOOKUP(AB107,'Multiplicatoria inversa'!E105:AK134,L133+4,FALSE))*P133 -> 0 | R133: =IF(L133<25-Z103+1,(C133-D133-F133-AF110)*((1+AF106)/(1+AF105))^L133,0) -> 0 | S133: =+C133-D133-F133-AG104 -> -13.85583549 | T133: 57.79814898 | U133: =+M133*U132+AB104 -> 48.87049526 | V133: 24.02257602 | W133: =+M133*W132+AF104 -> 40.16655599 | X133: 19.91637441
A134: 2048 | B134: =+B101 -> 0 | C134: 0 | D134: 0 | E134: 0 | F134: 0 | G134: 0 | H134: 0 | I134: 0 | J134: 0 | K134: 0 | L134: 30 | M134: 1 | N134: =+PRODUCT(M104:M134) -> 2.062163154 | O134: =+'Multiplicatoria inversa'!F134 -> 42.27587942 | P134: =+C134-D134-F134-AC104 -> -13.75870678 | R134: =IF(L134<25-Z103+1,(C134-D134-F134-AF110)*((1+AF106)/(1+AF105))^L134,0) -> 0 | S134: =+C134-D134-F134-AG104 -> -13.85583549 | T134: 57.79814898 | U134: =+M134*U133+AB104 -> 47.61137926 | V134: 10.26386924 | W134: =+M134*W133+AF104 -> 38.7015557 | X134: 6.060538919
A137: Fecha(Anual) | B137: dp_t | C137: g_t | D137: ip_t | E137: tau_t | F137: i_otros_t | G137: r_t | H137: c_y_t | I137: Gasto__neto | J137: I_presupuestarios | K137: Costo_finan | L137: t | M137: 1+r_t / 1+c_y_t | N137: Multiplicatoria simple | O137: Multiplicatoria inversa | P137: gt - ipt - iotros - tau_s | Q137: (gt - ipt - iotros + tau_s) | R137: (gt - ipt - iotros - omega)(1+r/1+c_y)^t | S137: gt - ipt - iotros - tau_s (inf) | T137: b_t | U137: b_t_star dc (finito) | V137: b_t_star tau (finito) | W137: b_t_star dc (infinito) | X137: b_t_star tau (infinito) | Z137: 5 | AA137: H Finito | AB137: pd_s | AC137: tau_s | AE137: H infinito | AF137: pd_s | AG137: tau_s
A138: =+A105 -> 2019 | L138: 0 | M138: =(1+G138)/(1+H138) -> 1 | T138: =+T105 -> 49.21513568 | U138: =+T138 -> 49.21513568 | V138: =+T138 -> 49.21513568 | W138: =+T138 -> 49.21513568 | X138: =+T138 -> 49.21513568 | AB138: =+AN7 -> -1.268961152 | AC138: =+AO7 -> 13.76846361 | AF138: =+(AF139-AF140)/(1+AF140)*(-AB139) -> -1.456231987 | AG138: =+AF147 -> 13.8438371
A139: =+A138+1 -> 2020 | B139: =+B106 -> -1.2 | C139: =+C106 -> 20 | D139: 3.7 | E139: 13.7 | F139: 3.8 | G139: 0.05349593496 | H139: 0.045 | I139: 20 | J139: 21.2 | K139: 3.2 | L139: 1 | M139: =(1+G139)/(1+H139) -> 1.008130081 | N139: =+PRODUCT(M138:M139) -> 1.008130081 | O139: =+'Multiplicatoria inversa'!F139 -> 0 | P139: =+C139-D139-F139-AC138 -> -1.268463608 | Q139: =+IF(L139=AB141,1,VLOOKUP(AB141,'Multiplicatoria inversa'!E139:AK168,L139+4,FALSE))*P139 -> -2.206845582 | R139: =IF(L139<25-Z137+1,(C139-D139-F139-AF144)*((1+AF140)/(1+AF139))^L139,0) -> 0.1942522491 | S139: =+C139-D139-F139-AG138 -> -1.343837097 | T139: =+M139*T138+B139 -> 48.41525874 | U139: =+M139*U138+AB138 -> 48.34629758 | V139: =+M139*V138+P139 -> 48.34679513 | W139: =+M139*W138+AF138 -> 48.15902675 | X139: =+M139*X138+S139 -> 48.27142164 | AA139: b_0 | AB139: =+U138 -> 49.21513568 | AC139: =+AB139 -> 49.21513568 | AE139: r | AF139: =+AF105 -> 0.06130045299
A140: =+A139+1 -> 2021 | B140: =+B107 -> -1.4 | C140: 20.1 | D140: 3.9 | E140: 13.7 | F140: 3.9 | G140: 0.0602 | H140: 0.045 | I140: 20.1 | J140: 21.5 | K140: 3.4 | L140: =+L139+1 -> 2 | M140: =(1+G140)/(1+H140) -> 1.014545455 | N140: =+PRODUCT(M138:M140) -> 1.022793792 | O140: =+'Multiplicatoria inversa'!F140 -> 1.014545455 | P140: =+C140-D140-F140-AC138 -> -1.468463608 | Q140: =+IF(L140=AB141,1,VLOOKUP(AB141,'Multiplicatoria inversa'!E139:AK168,L140+4,FALSE))*P140 -> -2.518173286 | R140: =IF(L140<25-Z137+1,(C140-D140-F140-AF144)*((1+AF140)/(1+AF139))^L140,0) -> 0 | S140: =+C140-D140-F140-AG138 -> -1.543837097 | T140: 47.71948068 | U140: =+M140*U139+AB138 -> 47.7805553 | V140: 47.58155763 | W140: =+M140*W139+AF138 -> 47.4032897 | X140: 47.42971431 | AA140: b_T | AB140: =+AB106 -> 50.19 | AC140: =+AC106 -> 50.19 | AE140: c_y | AF140: =+AF106 -> 0.0308
A141: 2022 | B141: =+B108 -> -1.4 | C141: 20.1 | D141: 3.9 | E141: 13.7 | F141: 3.9 | G141: 0.0602 | H141: 0.045 | I141: 20.1 | J141: 21.5 | K141: 3.4 | L141: =+L140+1 -> 3 | M141: 1.014545455 | N141: =+PRODUCT(M138:M141) -> 1.037670792 | O141: =+'Multiplicatoria inversa'!F141 -> 2.043847934 | P141: =+C141-D141-F141-AC138 -> -1.468463608 | Q141: =+IF(L141=AB141,1,VLOOKUP(AB141,'Multiplicatoria inversa'!E139:AK168,L141+4,FALSE))*P141 -> -2.482070444 | R141: =IF(L141<25-Z137+1,(C141-D141-F141-AF144)*((1+AF140)/(1+AF139))^L141,0) -> 0 | S141: =+C141-D141-F141-AG138 -> -1.543837097 | T141: 47.01358222 | U141: =+M141*U140+AB138 -> 47.20658405 | V141: 46.80518941 | W141: =+M141*W140+AF138 -> 46.6365601 | X141: 46.57576397 | AA141: T | AB141: =+AB107-1 -> 21 | AC141: =+AB141 -> 21 | AE141: g | AF141: =+AF107 -> 20.1
A142: 2023 | B142: =+B109 -> -1.057142857 | C142: 20.14285714 | D142: 3.728571429 | E142: 13.58571429 | F142: 3.885714286 | G142: 0.06130045299 | H142: 0.0308 | I142: 20.14285714 | J142: 21.2 | K142: 3.128571429 | L142: 4 | M142: 1.029589108 | N142: =+PRODUCT(M138:M142) -> 1.068374546 | O142: =+'Multiplicatoria inversa'!F142 -> 3.13391268 | P142: =+C142-D142-F142-AC138 -> -1.239892179 | Q142: =+IF(L142=AB141,1,VLOOKUP(AB141,'Multiplicatoria inversa'!E139:AK168,L142+4,FALSE))*P142 -> -2.035499012 | R142: =IF(L142<25-Z137+1,(C142-D142-F142-AF144)*((1+AF140)/(1+AF139))^L142,0) -> 0.2034071355 | S142: =+C142-D142-F142-AG138 -> -1.315265669 | T142: 47.34752934 | U142: =+M142*U141+AB138 -> 47.33442363 | V142: 46.95022105 | W142: =+M142*W141+AF138 -> 46.56026235 | X142: 46.63863363 | AA142: Pi_t b_0 | AB142: =+VLOOKUP(AB141,L139:N168,3,FALSE)*AB139 -> 86.31955529 | AC142: =+AB142 -> 86.31955529 | AE142: ip | AF142: =+AF108 -> 3.9
A143: 2024 | B143: =+B110 -> -1.057142857 | C143: 20.14285714 | D143: 3.728571429 | E143: 13.58571429 | F143: 3.885714286 | G143: 0.06130045299 | H143: 0.0308 | I143: 20.14285714 | J143: 21.2 | K143: 3.128571429 | L143: 5 | M143: 1.029589108 | N143: =+PRODUCT(M138:M143) -> 1.099986796 | O143: =+'Multiplicatoria inversa'!F143 -> 4.256231471 | P143: =+C143-D143-F143-AC138 -> -1.239892179 | Q143: =+IF(L143=AB141,1,VLOOKUP(AB141,'Multiplicatoria inversa'!E139:AK168,L143+4,FALSE))*P143 -> -1.977001306 | R143: =IF(L143<25-Z137+1,(C143-D143-F143-AF144)*((1+AF140)/(1+AF139))^L143,0) -> 0.1975614678 | S143: =+C143-D143-F143-AG138 -> -1.315265669 | T143: 47.69135767 | U143: =+M143*U142+AB138 -> 47.46604587 | V143: 47.09954405 | W143: =+M143*W142+AF138 -> 46.48170702 | X143: 46.70336355 | AA143: sum dpt | AB143: =+VLOOKUP(AB141,L139:O168,4,FALSE) -> 27.47270013 | AC143: =+SUM(Q139:Q167) -> -36.13109137 | AE143: iotros | AF143: 3.9
A144: 2025 | B144: =+B111 -> -1.057142857 | C144: 20.14285714 | D144: 3.728571429 | E144: 13.58571429 | F144: 3.885714286 | G144: 0.06130045299 | H144: 0.0308 | I144: 20.14285714 | J144: 21.2 | K144: 3.128571429 | L144: 6 | M144: 1.029589108 | N144: =+PRODUCT(M138:M144) -> 1.132534425 | O144: =+'Multiplicatoria inversa'!F144 -> 5.411758674 | P144: =+C144-D144-F144-AC138 -> -1.239892179 | Q144: =+IF(L144=AB141,1,VLOOKUP(AB141,'Multiplicatoria inversa'!E139:AK168,L144+4,FALSE))*P144 -> -1.920184751 | R144: =IF(L144<25-Z137+1,(C144-D144-F144-AF144)*((1+AF140)/(1+AF139))^L144,0) -> 0.1918837973 | S144: =+C144-D144-F144-AG138 -> -1.315265669 | T144: 48.04535956 | U144: =+M144*U143+AB138 -> 47.6015627 | V144: 47.25328539 | W144: =+M144*W143+AF138 -> 46.4008273 | X144: 46.77000877 | AA144: f | AB144: =+AB142+AB138*(AB143+1) -> 50.18880492 | AC144: =+AC142+AC143 -> 50.18846393 | AE144: omega | AF144: 12.3
A145: 2026 | B145: =+B112 -> -1.057142857 | C145: 20.14285714 | D145: 3.728571429 | E145: 13.58571429 | F145: 3.885714286 | G145: 0.06130045299 | H145: 0.0308 | I145: 20.14285714 | J145: 21.2 | K145: 3.128571429 | L145: 7 | M145: 1.029589108 | N145: =+PRODUCT(M138:M145) -> 1.166045109 | O145: =+'Multiplicatoria inversa'!F145 -> 6.601476897 | P145: =+C145-D145-F145-AC138 -> -1.239892179 | Q145: =+IF(L145=AB141,1,VLOOKUP(AB141,'Multiplicatoria inversa'!E139:AK168,L145+4,FALSE))*P145 -> -1.865001033 | R145: =IF(L145<25-Z137+1,(C145-D145-F145-AF144)*((1+AF140)/(1+AF139))^L145,0) -> 0.186369296 | S145: =+C145-D145-F145-AG138 -> -1.315265669 | T145: 48.40983606 | U145: =+M145*U144+AB138 -> 47.74108935 | V145: 47.4115758 | W145: =+M145*W144+AF138 -> 46.31755442 | X145: 46.83862596 | AA145: dif | AB145: =+AB140-AB144 -> 0.00119507753 | AC145: =+AC140-AC144 -> 0.001536072729 | AE145: 25 se vuelve constante
A146: 2027 | B146: =+B113 -> -1.057142857 | C146: 20.14285714 | D146: 3.728571429 | E146: 13.58571429 | F146: 3.885714286 | G146: 0.06130045299 | H146: 0.0308 | I146: 20.14285714 | J146: 21.2 | K146: 3.128571429 | L146: 8 | M146: 1.029589108 | N146: =+PRODUCT(M138:M146) -> 1.200547344 | O146: =+'Multiplicatoria inversa'!F146 -> 7.826397821 | P146: =+C146-D146-F146-AC138 -> -1.239892179 | Q146: =+IF(L146=AB141,1,VLOOKUP(AB141,'Multiplicatoria inversa'!E139:AK168,L146+4,FALSE))*P146 -> -1.811403227 | R146: =IF(L146<25-Z137+1,(C146-D146-F146-AF144)*((1+AF140)/(1+AF139))^L146,0) -> 0.1810132746 | S146: =+C146-D146-F146-AG138 -> -1.315265669 | T146: 48.78509709 | U146: =+M146*U145+AB138 -> 47.88474446 | V146: 47.57454988 | W146: =+M146*W145+AF138 -> 46.23181758 | X146: 46.90927348 | AA146: Validar | AB146: =+VLOOKUP(AB141,L139:U168,10,FALSE) -> 50.18880492 | AC146: =+VLOOKUP(AC141,L139:V168,11,FALSE) -> 50.18846393 | AE146: sum 1 a 24 | AF146: =+SUM(R139:R162) -> 2.96072153
A147: 2028 | B147: =+B114 -> -1.057142857 | C147: 20.14285714 | D147: 3.728571429 | E147: 13.58571429 | F147: 3.885714286 | G147: 0.06130045299 | H147: 0.0308 | I147: 20.14285714 | J147: 21.2 | K147: 3.128571429 | L147: 9 | M147: 1.029589108 | N147: =+PRODUCT(M138:M147) -> 1.236070469 | O147: =+'Multiplicatoria inversa'!F147 -> 9.087563063 | P147: =+C147-D147-F147-AC138 -> -1.239892179 | Q147: =+IF(L147=AB141,1,VLOOKUP(AB141,'Multiplicatoria inversa'!E139:AK168,L147+4,FALSE))*P147 -> -1.759345754 | R147: =IF(L147<25-Z137+1,(C147-D147-F147-AF144)*((1+AF140)/(1+AF139))^L147,0) -> 0.1758111785 | S147: =+C147-D147-F147-AG138 -> -1.315265669 | T147: 49.17146176 | U147: =+M147*U146+AB138 -> 48.03265021 | V147: 47.74234621 | W147: =+M147*W146+AF138 -> 46.14354386 | X147: 46.98201139 | AB147: =+IFERROR(ABS(AB146/AB140)-1,0) -> -2.381106853e-05 | AC147: =+IFERROR(ABS(AC146/AC140)-1,0) -> -3.0605155e-05 | AE147: f | AF147: =+(AF146+AB139)*(AF139-AF140)/(1+AF140)+AF144 -> 13.8438371
A148: 2029 | B148: =+B115 -> -1.057142857 | C148: 20.14285714 | D148: 3.728571429 | E148: 13.58571429 | F148: 3.885714286 | G148: 0.06130045299 | H148: 0.0308 | I148: 20.14285714 | J148: 21.2 | K148: 3.128571429 | L148: 10 | M148: 1.029589108 | N148: =+PRODUCT(M138:M148) -> 1.272644692 | O148: =+'Multiplicatoria inversa'!F148 -> 10.38604506 | P148: =+C148-D148-F148-AC138 -> -1.239892179 | Q148: =+IF(L148=AB141,1,VLOOKUP(AB141,'Multiplicatoria inversa'!E139:AK168,L148+4,FALSE))*P148 -> -1.708784349 | R148: =IF(L148<25-Z137+1,(C148-D148-F148-AF144)*((1+AF140)/(1+AF139))^L148,0) -> 0.1707585843 | S148: =+C148-D148-F148-AG138 -> -1.315265669 | T148: 49.56925862 | U148: =+M148*U147+AB138 -> 48.18493235 | V148: 47.91510749 | W148: =+M148*W147+AF138 -> 46.05265819 | X148: 47.05690155
A149: 2030 | B149: =+B116 -> -1.057142857 | C149: 20.14285714 | D149: 3.728571429 | E149: 13.58571429 | F149: 3.885714286 | G149: 0.06130045299 | H149: 0.0308 | I149: 20.14285714 | J149: 21.2 | K149: 3.128571429 | L149: 11 | M149: 1.029589108 | N149: =+PRODUCT(M138:M149) -> 1.310301114 | O149: =+'Multiplicatoria inversa'!F149 -> 11.72294798 | P149: =+C149-D149-F149-AC138 -> -1.239892179 | Q149: =+IF(L149=AB141,1,VLOOKUP(AB141,'Multiplicatoria inversa'!E139:AK168,L149+4,FALSE))*P149 -> -1.659676015 | R149: =IF(L149<25-Z137+1,(C149-D149-F149-AF144)*((1+AF140)/(1+AF139))^L149,0) -> 0.1658511953 | S149: =+C149-D149-F149-AG138 -> -1.315265669 | T149: 49.97882593 | U149: =+M149*U148+AB138 -> 48.34172039 | V149: 48.09298063 | W149: =+M149*W148+AF138 -> 45.9590833 | X149: 47.13400764 | AA149: g | AB149: =IFERROR(ABS(AB145)+ABS(AC145),0) -> 0.002731150259
A150: 2031 | B150: =+B117 -> -1.057142857 | C150: 20.14285714 | D150: 3.728571429 | E150: 13.58571429 | F150: 3.885714286 | G150: 0.06130045299 | H150: 0.0308 | I150: 20.14285714 | J150: 21.2 | K150: 3.128571429 | L150: 12 | M150: 1.029589108 | N150: =+PRODUCT(M138:M150) -> 1.349071756 | O150: =+'Multiplicatoria inversa'!F150 -> 13.09940867 | P150: =+C150-D150-F150-AC138 -> -1.239892179 | Q150: =+IF(L150=AB141,1,VLOOKUP(AB141,'Multiplicatoria inversa'!E139:AK168,L150+4,FALSE))*P150 -> -1.611978994 | R150: =IF(L150<25-Z137+1,(C150-D150-F150-AF144)*((1+AF140)/(1+AF139))^L150,0) -> 0.1610848385 | S150: =+C150-D150-F150-AG138 -> -1.315265669 | T150: 50.40051198 | U150: =+M150*U149+AB138 -> 48.50314764 | V150: 48.27611687 | W150: =+M150*W149+AF138 -> 45.86273962 | X150: 47.21339524 | AB150: Pronosticada
A151: 2032 | B151: =+B118 -> -1.057142857 | C151: 20.14285714 | D151: 3.728571429 | E151: 13.58571429 | F151: 3.885714286 | G151: 0.06130045299 | H151: 0.0308 | I151: 20.14285714 | J151: 21.2 | K151: 3.128571429 | L151: 13 | M151: 1.029589108 | N151: =+PRODUCT(M138:M151) -> 1.388989587 | O151: =+'Multiplicatoria inversa'!F151 -> 14.5165976 | P151: =+C151-D151-F151-AC138 -> -1.239892179 | Q151: =+IF(L151=AB141,1,VLOOKUP(AB141,'Multiplicatoria inversa'!E139:AK168,L151+4,FALSE))*P151 -> -1.565652726 | R151: =IF(L151<25-Z137+1,(C151-D151-F151-AF144)*((1+AF140)/(1+AF139))^L151,0) -> 0.1564554609 | S151: =+C151-D151-F151-AG138 -> -1.315265669 | T151: 50.83467533 | U151: =+M151*U150+AB138 -> 48.66935139 | V151: 48.46467194 | W151: =+M151*W150+AF138 -> 45.76354521 | X151: 47.29513184 | AA151: b_t_star dc (finito) | AB151: Ajuste al déficit primario
A152: 2033 | B152: =+B119 -> -1.057142857 | C152: 20.14285714 | D152: 3.728571429 | E152: 13.58571429 | F152: 3.885714286 | G152: 0.06130045299 | H152: 0.0308 | I152: 20.14285714 | J152: 21.2 | K152: 3.128571429 | L152: 14 | M152: 1.029589108 | N152: =+PRODUCT(M138:M152) -> 1.43008855 | O152: =+'Multiplicatoria inversa'!F152 -> 15.97571989 | P152: =+C152-D152-F152-AC138 -> -1.239892179 | Q152: =+IF(L152=AB141,1,VLOOKUP(AB141,'Multiplicatoria inversa'!E139:AK168,L152+4,FALSE))*P152 -> -1.520657817 | R152: =IF(L152<25-Z137+1,(C152-D152-F152-AF144)*((1+AF140)/(1+AF139))^L152,0) -> 0.1519591259 | S152: =+C152-D152-F152-AG138 -> -1.315265669 | T152: 51.2816852 | U152: =+M152*U151+AB138 -> 48.84047295 | V152: 48.6588062 | W152: =+M152*W151+AF138 -> 45.66141572 | X152: 47.37928696 | AA152: b_t_star tau (finito) | AB152: Ajuste al ingreso tributario
A153: 2034 | B153: =+B120 -> -1.057142857 | C153: 20.14285714 | D153: 3.728571429 | E153: 13.58571429 | F153: 3.885714286 | G153: 0.06130045299 | H153: 0.0308 | I153: 20.14285714 | J153: 21.2 | K153: 3.128571429 | L153: 15 | M153: 1.029589108 | N153: =+PRODUCT(M138:M153) -> 1.472403595 | O153: =+'Multiplicatoria inversa'!F153 -> 17.47801631 | P153: =+C153-D153-F153-AC138 -> -1.239892179 | Q153: =+IF(L153=AB141,1,VLOOKUP(AB141,'Multiplicatoria inversa'!E139:AK168,L153+4,FALSE))*P153 -> -1.476956005 | R153: =IF(L153<25-Z137+1,(C153-D153-F153-AF144)*((1+AF140)/(1+AF139))^L153,0) -> 0.1475920099 | S153: =+C153-D153-F153-AG138 -> -1.315265669 | T153: 51.74192168 | U153: =+M153*U152+AB138 -> 49.01665785 | V153: 48.85868471 | W153: =+M153*W152+AF138 -> 45.55626432 | X153: 47.46593215 | AA153: b_t_star dc (infinito) | AB153: Ajuste al déficit primario
A154: 2035 | B154: =+B121 -> -1.057142857 | C154: 20.14285714 | D154: 3.728571429 | E154: 13.58571429 | F154: 3.885714286 | G154: 0.06130045299 | H154: 0.0308 | I154: 20.14285714 | J154: 21.2 | K154: 3.128571429 | L154: 16 | M154: 1.029589108 | N154: =+PRODUCT(M138:M154) -> 1.515970705 | O154: =+'Multiplicatoria inversa'!F154 -> 19.02476434 | P154: =+C154-D154-F154-AC138 -> -1.239892179 | Q154: =+IF(L154=AB141,1,VLOOKUP(AB141,'Multiplicatoria inversa'!E139:AK168,L154+4,FALSE))*P154 -> -1.43451013 | R154: =IF(L154<25-Z137+1,(C154-D154-F154-AF144)*((1+AF140)/(1+AF139))^L154,0) -> 0.1433503994 | S154: =+C154-D154-F154-AG138 -> -1.315265669 | T154: 52.21577616 | U154: =+M154*U153+AB138 -> 49.1980559 | V154: 49.06447745 | W154: =+M154*W153+AF138 -> 45.44800157 | X154: 47.55514109 | AA154: b_t_star tau (infinito) | AB154: Ajuste al ingreso tributario
A155: 2036 | B155: =+B122 -> -1.057142857 | C155: 20.14285714 | D155: 3.728571429 | E155: 13.58571429 | F155: 3.885714286 | G155: 0.06130045299 | H155: 0.0308 | I155: 20.14285714 | J155: 21.2 | K155: 3.128571429 | L155: 17 | M155: 1.029589108 | N155: =+PRODUCT(M138:M155) -> 1.560826926 | O155: =+'Multiplicatoria inversa'!F155 -> 20.61727926 | P155: =+C155-D155-F155-AC138 -> -1.239892179 | Q155: =+IF(L155=AB141,1,VLOOKUP(AB141,'Multiplicatoria inversa'!E139:AK168,L155+4,FALSE))*P155 -> -1.393284095 | R155: =IF(L155<25-Z137+1,(C155-D155-F155-AF144)*((1+AF140)/(1+AF139))^L155,0) -> 0.1392306874 | S155: =+C155-D155-F155-AG138 -> -1.315265669 | T155: 52.70365157 | U155: =+M155*U154+AB138 -> 49.38482136 | V155: 49.27635942 | W155: =+M155*W154+AF138 -> 45.33653543 | X155: 47.64698965
A156: 2037 | B156: =+B123 -> -1.057142857 | C156: 20.14285714 | D156: 3.728571429 | E156: 13.58571429 | F156: 3.885714286 | G156: 0.06130045299 | H156: 0.0308 | I156: 20.14285714 | J156: 21.2 | K156: 3.128571429 | L156: 18 | M156: 1.029589108 | N156: =+PRODUCT(M138:M156) -> 1.607010404 | O156: =+'Multiplicatoria inversa'!F156 -> 22.25691528 | P156: =+C156-D156-F156-AC138 -> -1.239892179 | Q156: =+IF(L156=AB141,1,VLOOKUP(AB141,'Multiplicatoria inversa'!E139:AK168,L156+4,FALSE))*P156 -> -1.353242846 | R156: =IF(L156<25-Z137+1,(C156-D156-F156-AF144)*((1+AF140)/(1+AF139))^L156,0) -> 0.1352293709 | S156: =+C156-D156-F156-AG138 -> -1.315265669 | T156: 53.20596277 | U156: =+M156*U155+AB138 -> 49.57711304 | V156: 49.49451078 | W156: =+M156*W155+AF138 -> 45.22177111 | X156: 47.74155593
A157: 2038 | B157: =+B124 -> -1.057142857 | C157: 20.14285714 | D157: 3.728571429 | E157: 13.58571429 | F157: 3.885714286 | G157: 0.06130045299 | H157: 0.0308 | I157: 20.14285714 | J157: 21.2 | K157: 3.128571429 | L157: 19 | M157: 1.029589108 | N157: =+PRODUCT(M138:M157) -> 1.654560409 | O157: =+'Multiplicatoria inversa'!F157 -> 23.94506667 | P157: =+C157-D157-F157-AC138 -> -1.239892179 | Q157: =+IF(L157=AB141,1,VLOOKUP(AB141,'Multiplicatoria inversa'!E139:AK168,L157+4,FALSE))*P157 -> -1.314352332 | R157: =IF(L157<25-Z137+1,(C157-D157-F157-AF144)*((1+AF140)/(1+AF139))^L157,0) -> 0.1313430473 | S157: =+C157-D157-F157-AG138 -> -1.315265669 | T157: 53.72313692 | U157: =+M157*U156+AB138 -> 49.77509446 | V157: 49.71911705 | W157: =+M157*W156+AF138 -> 45.10361101 | X157: 47.83892033
A158: 2039 | B158: =+B125 -> -1.057142857 | C158: 20.14285714 | D158: 3.728571429 | E158: 13.58571429 | F158: 3.885714286 | G158: 0.06130045299 | H158: 0.0308 | I158: 20.14285714 | J158: 21.2 | K158: 3.128571429 | L158: 20 | M158: 1.029589108 | N158: =+PRODUCT(M138:M158) -> 1.703517376 | O158: =+'Multiplicatoria inversa'!F158 -> 25.68316895 | P158: =+C158-D158-F158-AC138 -> -1.239892179 | Q158: =+IF(L158=AB141,1,VLOOKUP(AB141,'Multiplicatoria inversa'!E139:AK168,L158+4,FALSE))*P158 -> -1.276579484 | R158: =IF(L158<25-Z137+1,(C158-D158-F158-AF144)*((1+AF140)/(1+AF139))^L158,0) -> 0.1275684117 | S158: =+C158-D158-F158-AG138 -> -1.315265669 | T158: 54.25561378 | U158: =+M158*U157+AB138 -> 49.97893398 | V158: 49.95036922 | W158: =+M158*W157+AF138 -> 44.98195466 | X158: 47.93916567
A159: 2040 | B159: =+B126 -> -1.057142857 | C159: 20.14285714 | D159: 3.728571429 | E159: 13.58571429 | F159: 3.885714286 | G159: 0.06130045299 | H159: 0.0308 | I159: 20.14285714 | J159: 21.2 | K159: 3.128571429 | L159: 21 | M159: 1.029589108 | N159: =+PRODUCT(M138:M159) -> 1.753922937 | O159: =+'Multiplicatoria inversa'!F159 -> 27.47270013 | P159: =+C159-D159-F159-AC138 -> -1.239892179 | Q159: =+IF(L159=AB141,1,VLOOKUP(AB141,'Multiplicatoria inversa'!E139:AK168,L159+4,FALSE))*P159 -> -1.239892179 | R159: =IF(L159<25-Z137+1,(C159-D159-F159-AF144)*((1+AF140)/(1+AF139))^L159,0) -> 0 | S159: =+C159-D159-F159-AG138 -> -1.315265669 | T159: 54.80384616 | U159: =+M159*U158+AB138 -> 50.18880492 | V159: 50.18846393 | W159: =+M159*W158+AF138 -> 44.85669861 | X159: 48.04237717
A160: 2041 | B160: =+B127 -> -1.057142857 | C160: 20.14285714 | D160: 3.728571429 | E160: 13.58571429 | F160: 3.885714286 | G160: 0.06130045299 | H160: 0.0308 | I160: 20.14285714 | J160: 21.2 | K160: 3.128571429 | L160: 22 | M160: 1.029589108 | N160: =+PRODUCT(M138:M160) -> 1.805819952 | O160: =+'Multiplicatoria inversa'!F160 -> 29.31518194 | P160: =+C160-D160-F160-AC138 -> -1.239892179 | Q160: =+IF(L160=AB141,1,VLOOKUP(AB141,'Multiplicatoria inversa'!E139:AK168,L160+4,FALSE))*P160 -> 0 | R160: =IF(L160<25-Z137+1,(C160-D160-F160-AF144)*((1+AF140)/(1+AF139))^L160,0) -> 0 | S160: =+C160-D160-F160-AG138 -> -1.315265669 | T160: 55.36830026 | U160: =+M160*U159+AB138 -> 50.40488576 | V160: 50.43360365 | W160: =+M160*W159+AF138 -> 44.72773634 | X160: 48.14864261
A161: 2042 | B161: =+B128 -> -1.057142857 | C161: 20.14285714 | D161: 3.728571429 | E161: 13.58571429 | F161: 3.885714286 | G161: 0.06130045299 | H161: 0.0308 | I161: 20.14285714 | J161: 21.2 | K161: 3.128571429 | L161: 23 | M161: 1.029589108 | N161: =+PRODUCT(M138:M161) -> 1.859252555 | O161: =+'Multiplicatoria inversa'!F161 -> 31.21218115 | P161: =+C161-D161-F161-AC138 -> -1.239892179 | Q161: =+IF(L161=AB141,1,VLOOKUP(AB141,'Multiplicatoria inversa'!E139:AK168,L161+4,FALSE))*P161 -> 0 | R161: =IF(L161<25-Z137+1,(C161-D161-F161-AF144)*((1+AF140)/(1+AF139))^L161,0) -> 0 | S161: =+C161-D161-F161-AG138 -> -1.315265669 | T161: 55.94945604 | U161: =+M161*U160+AB138 -> 50.62736024 | V161: 50.68599684 | W161: =+M161*W160+AF138 -> 44.5949582 | X161: 48.25805235
A162: 2043 | B162: =+B129 -> -1.057142857 | C162: 20.14285714 | D162: 3.728571429 | E162: 13.58571429 | F162: 3.885714286 | G162: 0.06130045299 | H162: 0.0308 | I162: 20.14285714 | J162: 21.2 | K162: 3.128571429 | L162: 24 | M162: 1.029589108 | N162: =+PRODUCT(M138:M162) -> 1.91426618 | O162: =+'Multiplicatoria inversa'!F162 -> 33.16531087 | P162: =+C162-D162-F162-AC138 -> -1.239892179 | Q162: =+IF(L162=AB141,1,VLOOKUP(AB141,'Multiplicatoria inversa'!E139:AK168,L162+4,FALSE))*P162 -> 0 | R162: =IF(L162<25-Z137+1,(C162-D162-F162-AF144)*((1+AF140)/(1+AF139))^L162,0) -> 0 | S162: =+C162-D162-F162-AG138 -> -1.315265669 | T162: 56.5478077 | U162: =+M162*U161+AB138 -> 50.85641754 | V162: 50.94585812 | W162: =+M162*W161+AF138 -> 44.45825127 | X162: 48.37069942
A163: 2044 | B163: =+B130 -> -1.057142857 | C163: 20.14285714 | D163: 3.728571429 | E163: 13.58571429 | F163: 3.885714286 | G163: 0.06130045299 | H163: 0.0308 | I163: 20.14285714 | J163: 21.2 | K163: 3.128571429 | L163: 25 | M163: 1.029589108 | N163: =+PRODUCT(M138:M163) -> 1.97090761 | O163: =+'Multiplicatoria inversa'!F163 -> 35.17623196 | P163: =+C163-D163-F163-AC138 -> -1.239892179 | Q163: =+IF(L163=AB141,1,VLOOKUP(AB141,'Multiplicatoria inversa'!E139:AK168,L163+4,FALSE))*P163 -> 0 | R163: =IF(L163<25-Z137+1,(C163-D163-F163-AF144)*((1+AF140)/(1+AF139))^L163,0) -> 0 | S163: =+C163-D163-F163-AG138 -> -1.315265669 | T163: 57.16386406 | U163: =+M163*U162+AB138 -> 51.09225244 | V163: 51.21340846 | W163: =+M163*W162+AF138 -> 44.3174993 | X163: 48.48667963
A164: 2045 | B164: =+B131 -> -1.057142857 | C164: 20.14285714 | D164: 3.728571429 | E164: 13.58571429 | F164: 3.885714286 | G164: 0.06130045299 | H164: 0.0308 | I164: 20.14285714 | J164: 21.2 | K164: 3.128571429 | L164: 26 | M164: 1.029589108 | N164: =+PRODUCT(M138:M164) -> 2.029225009 | O164: =+'Multiplicatoria inversa'!F164 -> 37.24665441 | P164: =+C164-D164-F164-AC138 -> -1.239892179 | Q164: =+IF(L164=AB141,1,VLOOKUP(AB141,'Multiplicatoria inversa'!E139:AK168,L164+4,FALSE))*P164 -> 0 | R164: =IF(L164<25-Z137+1,(C164-D164-F164-AF144)*((1+AF140)/(1+AF139))^L164,0) -> 0 | S164: =+C164-D164-F164-AG138 -> -1.315265669 | T164: 57.79814898 | U164: =+M164*U163+AB138 -> 51.33506549 | V164: 51.48887537 | W164: =+M164*W163+AF138 -> 44.1725826 | X164: 48.60609158
A165: 2046 | B165: =+B132 -> 0 | C165: 0 | D165: 0 | E165: 0 | F165: 0 | G165: 0 | H165: 0 | I165: 0 | J165: 0 | K165: 0 | L165: 27 | M165: 1 | N165: =+PRODUCT(M138:M165) -> 2.029225009 | O165: =+'Multiplicatoria inversa'!F165 -> 38.24665441 | P165: =+C165-D165-F165-AC138 -> -13.76846361 | Q165: =+IF(L165=AB141,1,VLOOKUP(AB141,'Multiplicatoria inversa'!E139:AK168,L165+4,FALSE))*P165 -> 0 | R165: =IF(L165<25-Z137+1,(C165-D165-F165-AF144)*((1+AF140)/(1+AF139))^L165,0) -> 0 | S165: =+C165-D165-F165-AG138 -> -13.8438371 | T165: 57.79814898 | U165: =+M165*U164+AB138 -> 50.06610433 | V165: 37.72041177 | W165: =+M165*W164+AF138 -> 42.71635062 | X165: 34.76225448
A166: 2047 | B166: =+B133 -> 0 | C166: 0 | D166: 0 | E166: 0 | F166: 0 | G166: 0 | H166: 0 | I166: 0 | J166: 0 | K166: 0 | L166: 28 | M166: 1 | N166: =+PRODUCT(M138:M166) -> 2.029225009 | O166: =+'Multiplicatoria inversa'!F166 -> 39.24665441 | P166: =+C166-D166-F166-AC138 -> -13.76846361 | Q166: =+IF(L166=AB141,1,VLOOKUP(AB141,'Multiplicatoria inversa'!E139:AK168,L166+4,FALSE))*P166 -> 0 | R166: =IF(L166<25-Z137+1,(C166-D166-F166-AF144)*((1+AF140)/(1+AF139))^L166,0) -> 0 | S166: =+C166-D166-F166-AG138 -> -13.8438371 | T166: 57.79814898 | U166: =+M166*U165+AB138 -> 48.79714318 | V166: 23.95194816 | W166: =+M166*W165+AF138 -> 41.26011863 | X166: 20.91841738
A167: 2048 | B167: =+B134 -> 0 | C167: 0 | D167: 0 | E167: 0 | F167: 0 | G167: 0 | H167: 0 | I167: 0 | J167: 0 | K167: 0 | L167: 29 | M167: 1 | N167: =+PRODUCT(M138:M167) -> 2.029225009 | O167: =+'Multiplicatoria inversa'!F167 -> 40.24665441 | P167: =+C167-D167-F167-AC138 -> -13.76846361 | Q167: =+IF(L167=AB141,1,VLOOKUP(AB141,'Multiplicatoria inversa'!E139:AK168,L167+4,FALSE))*P167 -> 0 | R167: =IF(L167<25-Z137+1,(C167-D167-F167-AF144)*((1+AF140)/(1+AF139))^L167,0) -> 0 | S167: =+C167-D167-F167-AG138 -> -13.8438371 | T167: 57.79814898 | U167: =+M167*U166+AB138 -> 47.52818203 | V167: 10.18348455 | W167: =+M167*W166+AF138 -> 39.80388664 | X167: 7.074580286
A168: 2049 | B168: =+B135 -> 0 | C168: 0 | D168: 0 | E168: 0 | F168: 0 | G168: 0 | H168: 0 | I168: 0 | J168: 0 | K168: 0 | L168: 30 | M168: 1 | N168: =+PRODUCT(M138:M168) -> 2.029225009 | O168: =+'Multiplicatoria inversa'!F168 -> 41.24665441 | P168: =+C168-D168-F168-AC138 -> -13.76846361 | R168: =IF(L168<25-Z137+1,(C168-D168-F168-AF144)*((1+AF140)/(1+AF139))^L168,0) -> 0 | S168: =+C168-D168-F168-AG138 -> -13.8438371 | T168: 57.79814898 | U168: =+M168*U167+AB138 -> 46.25922088 | V168: -3.584979058 | W168: =+M168*W167+AF138 -> 38.34765466 | X168: -6.769256811
A171: Fecha(Anual) | B171: dp_t | C171: g_t | D171: ip_t | E171: tau_t | F171: i_otros_t | G171: r_t | H171: c_y_t | I171: Gasto__neto | J171: I_presupuestarios | K171: Costo_finan | L171: t | M171: 1+r_t / 1+c_y_t | N171: Multiplicatoria simple | O171: Multiplicatoria inversa | P171: gt - ipt - iotros - tau_s | Q171: (gt - ipt - iotros + tau_s) | R171: (gt - ipt - iotros - omega)(1+r/1+c_y)^t | S171: gt - ipt - iotros - tau_s (inf) | T171: b_t | U171: b_t_star dc (finito) | V171: b_t_star tau (finito) | W171: b_t_star dc (infinito) | X171: b_t_star tau (infinito) | Z171: 6 | AA171: H Finito | AB171: pd_s | AC171: tau_s | AE171: H infinito | AF171: pd_s | AG171: tau_s
A172: =+A139 -> 2020 | L172: 0 | M172: =(1+G172)/(1+H172) -> 1 | T172: =+T139 -> 48.41525874 | U172: =+T172 -> 48.41525874 | V172: =+T172 -> 48.41525874 | W172: =+T172 -> 48.41525874 | X172: =+T172 -> 48.41525874 | AB172: =+AN8 -> -1.273409618 | AC172: =+AO8 -> 13.77287134 | AF172: =+(AF173-AF174)/(1+AF174)*(-AB173) -> -1.432564341 | AG172: =+AF181 -> 13.81684379
A173: =+A172+1 -> 2021 | B173: =+B140 -> -1.4 | C173: =+C140 -> 20.1 | D173: 3.9 | E173: 13.7 | F173: 3.9 | G173: 0.0602 | H173: 0.045 | I173: 20.1 | J173: 21.5 | K173: 3.4 | L173: 1 | M173: =(1+G173)/(1+H173) -> 1.014545455 | N173: =+PRODUCT(M172:M173) -> 1.014545455 | O173: =+'Multiplicatoria inversa'!F173 -> 0 | P173: =+C173-D173-F173-AC172 -> -1.472871342 | Q173: =+IF(L173=AB175,1,VLOOKUP(AB175,'Multiplicatoria inversa'!E173:AK202,L173+4,FALSE))*P173 -> -2.525731825 | R173: =IF(L173<25-Z171+1,(C173-D173-F173-AF178)*((1+AF174)/(1+AF173))^L173,0) -> 0 | S173: =+C173-D173-F173-AG172 -> -1.516843787 | T173: =+M173*T172+B173 -> 47.71948068 | U173: =+M173*U172+AB172 -> 47.84607106 | V173: =+M173*V172+P173 -> 47.64660934 | W173: =+M173*W172+AF172 -> 47.68691634 | X173: =+M173*X172+S173 -> 47.60263689 | AA173: b_0 | AB173: =+U172 -> 48.41525874 | AC173: =+AB173 -> 48.41525874 | AE173: r | AF173: =+AF139 -> 0.06130045299
A174: =+A173+1 -> 2022 | B174: =+B141 -> -1.4 | C174: 20.1 | D174: 3.9 | E174: 13.7 | F174: 3.9 | G174: 0.0602 | H174: 0.045 | I174: 20.1 | J174: 21.5 | K174: 3.4 | L174: =+L173+1 -> 2 | M174: =(1+G174)/(1+H174) -> 1.014545455 | N174: =+PRODUCT(M172:M174) -> 1.029302479 | O174: =+'Multiplicatoria inversa'!F174 -> 1.014545455 | P174: =+C174-D174-F174-AC172 -> -1.472871342 | Q174: =+IF(L174=AB175,1,VLOOKUP(AB175,'Multiplicatoria inversa'!E173:AK202,L174+4,FALSE))*P174 -> -2.489520616 | R174: =IF(L174<25-Z171+1,(C174-D174-F174-AF178)*((1+AF174)/(1+AF173))^L174,0) -> 0 | S174: =+C174-D174-F174-AG172 -> -1.516843787 | T174: 47.01358222 | U174: =+M174*U173+AB172 -> 47.2686043 | V174: 46.86677959 | W174: =+M174*W173+AF172 -> 46.94797987 | X174: 46.7781951 | AA174: b_T | AB174: =+AB140 -> 50.19 | AC174: =+AC140 -> 50.19 | AE174: c_y | AF174: =+AF140 -> 0.0308
A175: 2023 | B175: =+B142 -> -1.057142857 | C175: 20.14285714 | D175: 3.728571429 | E175: 13.58571429 | F175: 3.885714286 | G175: 0.06130045299 | H175: 0.0308 | I175: 20.14285714 | J175: 21.2 | K175: 3.128571429 | L175: =+L174+1 -> 3 | M175: 1.029589108 | N175: =+PRODUCT(M172:M175) -> 1.059758622 | O175: =+'Multiplicatoria inversa'!F175 -> 2.074154058 | P175: =+C175-D175-F175-AC172 -> -1.244299914 | Q175: =+IF(L175=AB175,1,VLOOKUP(AB175,'Multiplicatoria inversa'!E173:AK202,L175+4,FALSE))*P175 -> -2.042735076 | R175: =IF(L175<25-Z171+1,(C175-D175-F175-AF178)*((1+AF174)/(1+AF173))^L175,0) -> 0.2094257713 | S175: =+C175-D175-F175-AG172 -> -1.288272358 | T175: 47.34752934 | U175: =+M175*U174+AB172 -> 47.39383054 | V175: 47.0092259 | W175: =+M175*W174+AF172 -> 46.9045644 | X175: 46.87404783 | AA175: T | AB175: =+AB141-1 -> 20 | AC175: =+AB175 -> 20 | AE175: g | AF175: =+AF141 -> 20.1
A176: 2024 | B176: =+B143 -> -1.057142857 | C176: 20.14285714 | D176: 3.728571429 | E176: 13.58571429 | F176: 3.885714286 | G176: 0.06130045299 | H176: 0.0308 | I176: 20.14285714 | J176: 21.2 | K176: 3.128571429 | L176: 4 | M176: 1.029589108 | N176: =+PRODUCT(M172:M176) -> 1.091115935 | O176: =+'Multiplicatoria inversa'!F176 -> 3.165115536 | P176: =+C176-D176-F176-AC172 -> -1.244299914 | Q176: =+IF(L176=AB175,1,VLOOKUP(AB175,'Multiplicatoria inversa'!E173:AK202,L176+4,FALSE))*P176 -> -1.984029414 | R176: =IF(L176<25-Z171+1,(C176-D176-F176-AF178)*((1+AF174)/(1+AF173))^L176,0) -> 0.2034071355 | S176: =+C176-D176-F176-AG172 -> -1.288272358 | T176: 47.69135767 | U176: =+M176*U175+AB172 -> 47.52276211 | V176: 47.15588706 | W176: =+M176*W175+AF172 -> 46.8598643 | X176: 46.97273675 | AA176: Pi_t b_0 | AB176: =+VLOOKUP(AB175,L173:N202,3,FALSE)*AB173 -> 84.23182122 | AC176: =+AB176 -> 84.23182122 | AE176: ip | AF176: =+AF142 -> 3.9
A177: 2025 | B177: =+B144 -> -1.057142857 | C177: 20.14285714 | D177: 3.728571429 | E177: 13.58571429 | F177: 3.885714286 | G177: 0.06130045299 | H177: 0.0308 | I177: 20.14285714 | J177: 21.2 | K177: 3.128571429 | L177: 5 | M177: 1.029589108 | N177: =+PRODUCT(M172:M177) -> 1.123401083 | O177: =+'Multiplicatoria inversa'!F177 -> 4.288357592 | P177: =+C177-D177-F177-AC172 -> -1.244299914 | Q177: =+IF(L177=AB175,1,VLOOKUP(AB175,'Multiplicatoria inversa'!E173:AK202,L177+4,FALSE))*P177 -> -1.92701088 | R177: =IF(L177<25-Z171+1,(C177-D177-F177-AF178)*((1+AF174)/(1+AF173))^L177,0) -> 0.1975614678 | S177: =+C177-D177-F177-AG172 -> -1.288272358 | T177: 48.04535956 | U177: =+M177*U176+AB172 -> 47.65550865 | V177: 47.30688781 | W177: =+M177*W176+AF172 -> 46.81384157 | X177: 47.0743458 | AA177: sum dpt | AB177: =+VLOOKUP(AB175,L173:O202,4,FALSE) -> 25.73292174 | AC177: =+SUM(Q173:Q201) -> -34.0420774 | AE177: iotros | AF177: 3.9
A178: 2026 | B178: =+B145 -> -1.057142857 | C178: 20.14285714 | D178: 3.728571429 | E178: 13.58571429 | F178: 3.885714286 | G178: 0.06130045299 | H178: 0.0308 | I178: 20.14285714 | J178: 21.2 | K178: 3.128571429 | L178: 6 | M178: 1.029589108 | N178: =+PRODUCT(M172:M178) -> 1.156641519 | O178: =+'Multiplicatoria inversa'!F178 -> 5.444835378 | P178: =+C178-D178-F178-AC172 -> -1.244299914 | Q178: =+IF(L178=AB175,1,VLOOKUP(AB175,'Multiplicatoria inversa'!E173:AK202,L178+4,FALSE))*P178 -> -1.871630988 | R178: =IF(L178<25-Z171+1,(C178-D178-F178-AF178)*((1+AF174)/(1+AF173))^L178,0) -> 0.1918837973 | S178: =+C178-D178-F178-AG172 -> -1.288272358 | T178: 48.40983606 | U178: =+M178*U177+AB172 -> 47.79218305 | V178: 47.46235653 | W178: =+M178*W177+AF172 -> 46.76645706 | X178: 47.17896136 | AA178: f | AB178: =+AB176+AB172*(AB177+1) -> 50.18986156 | AC178: =+AC176+AC177 -> 50.18974381 | AE178: omega | AF178: 12.3
A179: 2027 | B179: =+B146 -> -1.057142857 | C179: 20.14285714 | D179: 3.728571429 | E179: 13.58571429 | F179: 3.885714286 | G179: 0.06130045299 | H179: 0.0308 | I179: 20.14285714 | J179: 21.2 | K179: 3.128571429 | L179: 7 | M179: 1.029589108 | N179: =+PRODUCT(M172:M179) -> 1.19086551 | O179: =+'Multiplicatoria inversa'!F179 -> 6.635532311 | P179: =+C179-D179-F179-AC172 -> -1.244299914 | Q179: =+IF(L179=AB175,1,VLOOKUP(AB175,'Multiplicatoria inversa'!E173:AK202,L179+4,FALSE))*P179 -> -1.817842645 | R179: =IF(L179<25-Z171+1,(C179-D179-F179-AF178)*((1+AF174)/(1+AF173))^L179,0) -> 0.186369296 | S179: =+C179-D179-F179-AG172 -> -1.288272358 | T179: 48.78509709 | U179: =+M179*U178+AB172 -> 47.93290152 | V179: 47.62242543 | W179: =+M179*W178+AF172 -> 46.71767049 | X179: 47.28667241 | AA179: dif | AB179: =+AB174-AB178 -> 0.0001384414091 | AC179: =+AC174-AC178 -> 0.000256186133 | AE179: 25 se vuelve constante
A180: 2028 | B180: =+B147 -> -1.057142857 | C180: 20.14285714 | D180: 3.728571429 | E180: 13.58571429 | F180: 3.885714286 | G180: 0.06130045299 | H180: 0.0308 | I180: 20.14285714 | J180: 21.2 | K180: 3.128571429 | L180: 8 | M180: 1.029589108 | N180: =+PRODUCT(M172:M180) -> 1.226102159 | O180: =+'Multiplicatoria inversa'!F180 -> 7.861460904 | P180: =+C180-D180-F180-AC172 -> -1.244299914 | Q180: =+IF(L180=AB175,1,VLOOKUP(AB175,'Multiplicatoria inversa'!E173:AK202,L180+4,FALSE))*P180 -> -1.765600112 | R180: =IF(L180<25-Z171+1,(C180-D180-F180-AF178)*((1+AF174)/(1+AF173))^L180,0) -> 0.1810132746 | S180: =+C180-D180-F180-AG172 -> -1.288272358 | T180: 49.17146176 | U180: =+M180*U179+AB172 -> 48.07778372 | V180: 47.78723062 | W180: =+M180*W179+AF172 -> 46.66744037 | X180: 47.39757053 | AA180: Validar | AB180: =+VLOOKUP(AB175,L173:U202,10,FALSE) -> 50.18986156 | AC180: =+VLOOKUP(AC175,L173:V202,11,FALSE) -> 50.18974381 | AE180: sum 1 a 24 | AF180: =+SUM(R173:R196) -> 2.84832664
A181: 2029 | B181: =+B148 -> -1.057142857 | C181: 20.14285714 | D181: 3.728571429 | E181: 13.58571429 | F181: 3.885714286 | G181: 0.06130045299 | H181: 0.0308 | I181: 20.14285714 | J181: 21.2 | K181: 3.128571429 | L181: 9 | M181: 1.029589108 | N181: =+PRODUCT(M172:M181) -> 1.262381429 | O181: =+'Multiplicatoria inversa'!F181 -> 9.123663632 | P181: =+C181-D181-F181-AC172 -> -1.244299914 | Q181: =+IF(L181=AB175,1,VLOOKUP(AB175,'Multiplicatoria inversa'!E173:AK202,L181+4,FALSE))*P181 -> -1.714858964 | R181: =IF(L181<25-Z171+1,(C181-D181-F181-AF178)*((1+AF174)/(1+AF173))^L181,0) -> 0.1758111785 | S181: =+C181-D181-F181-AG172 -> -1.288272358 | T181: 49.56925862 | U181: =+M181*U180+AB172 -> 48.22695286 | V181: 47.95691226 | W181: =+M181*W180+AF172 -> 46.61572398 | X181: 47.51175002 | AB181: =+IFERROR(ABS(AB180/AB174)-1,0) -> -2.758346464e-06 | AC181: =+IFERROR(ABS(AC180/AC174)-1,0) -> -5.104326221e-06 | AE181: f | AF181: =+(AF180+AB173)*(AF173-AF174)/(1+AF174)+AF178 -> 13.81684379
A182: 2030 | B182: =+B149 -> -1.057142857 | C182: 20.14285714 | D182: 3.728571429 | E182: 13.58571429 | F182: 3.885714286 | G182: 0.06130045299 | H182: 0.0308 | I182: 20.14285714 | J182: 21.2 | K182: 3.128571429 | L182: 10 | M182: 1.029589108 | N182: =+PRODUCT(M172:M182) -> 1.29973417 | O182: =+'Multiplicatoria inversa'!F182 -> 10.42321381 | P182: =+C182-D182-F182-AC172 -> -1.244299914 | Q182: =+IF(L182=AB175,1,VLOOKUP(AB175,'Multiplicatoria inversa'!E173:AK202,L182+4,FALSE))*P182 -> -1.665576053 | R182: =IF(L182<25-Z171+1,(C182-D182-F182-AF178)*((1+AF174)/(1+AF173))^L182,0) -> 0.1707585843 | S182: =+C182-D182-F182-AG172 -> -1.288272358 | T182: 49.97882593 | U182: =+M182*U181+AB172 -> 48.38053578 | V182: 48.13161462 | W182: =+M182*W181+AF172 -> 46.56247735 | X182: 47.62930799
A183: 2031 | B183: =+B150 -> -1.057142857 | C183: 20.14285714 | D183: 3.728571429 | E183: 13.58571429 | F183: 3.885714286 | G183: 0.06130045299 | H183: 0.0308 | I183: 20.14285714 | J183: 21.2 | K183: 3.128571429 | L183: 11 | M183: 1.029589108 | N183: =+PRODUCT(M172:M183) -> 1.338192145 | O183: =+'Multiplicatoria inversa'!F183 -> 11.76121653 | P183: =+C183-D183-F183-AC172 -> -1.244299914 | Q183: =+IF(L183=AB175,1,VLOOKUP(AB175,'Multiplicatoria inversa'!E173:AK202,L183+4,FALSE))*P183 -> -1.617709472 | R183: =IF(L183<25-Z171+1,(C183-D183-F183-AF178)*((1+AF174)/(1+AF173))^L183,0) -> 0.1658511953 | S183: =+C183-D183-F183-AG172 -> -1.288272358 | T183: 50.40051198 | U183: =+M183*U182+AB172 -> 48.53866308 | V183: 48.31148627 | W183: =+M183*W182+AF172 -> 46.5076552 | X183: 47.75034439 | AA183: g | AB183: =IFERROR(ABS(AB179)+ABS(AC179),0) -> 0.0003946275421
A184: 2032 | B184: =+B151 -> -1.057142857 | C184: 20.14285714 | D184: 3.728571429 | E184: 13.58571429 | F184: 3.885714286 | G184: 0.06130045299 | H184: 0.0308 | I184: 20.14285714 | J184: 21.2 | K184: 3.128571429 | L184: 12 | M184: 1.029589108 | N184: =+PRODUCT(M172:M184) -> 1.377788058 | O184: =+'Multiplicatoria inversa'!F184 -> 13.13880955 | P184: =+C184-D184-F184-AC172 -> -1.244299914 | Q184: =+IF(L184=AB175,1,VLOOKUP(AB175,'Multiplicatoria inversa'!E173:AK202,L184+4,FALSE))*P184 -> -1.571218517 | R184: =IF(L184<25-Z171+1,(C184-D184-F184-AF178)*((1+AF174)/(1+AF173))^L184,0) -> 0.1610848385 | S184: =+C184-D184-F184-AG172 -> -1.288272358 | T184: 50.83467533 | U184: =+M184*U183+AB172 -> 48.70146923 | V184: 48.49668017 | W184: =+M184*W183+AF172 -> 46.45121091 | X184: 47.87496215 | AB184: Pronosticada
A185: 2033 | B185: =+B152 -> -1.057142857 | C185: 20.14285714 | D185: 3.728571429 | E185: 13.58571429 | F185: 3.885714286 | G185: 0.06130045299 | H185: 0.0308 | I185: 20.14285714 | J185: 21.2 | K185: 3.128571429 | L185: 13 | M185: 1.029589108 | N185: =+PRODUCT(M172:M185) -> 1.418555578 | O185: =+'Multiplicatoria inversa'!F185 -> 14.55716431 | P185: =+C185-D185-F185-AC172 -> -1.244299914 | Q185: =+IF(L185=AB175,1,VLOOKUP(AB175,'Multiplicatoria inversa'!E173:AK202,L185+4,FALSE))*P185 -> -1.526063654 | R185: =IF(L185<25-Z171+1,(C185-D185-F185-AF178)*((1+AF174)/(1+AF173))^L185,0) -> 0.1564554609 | S185: =+C185-D185-F185-AG172 -> -1.288272358 | T185: 51.2816852 | U185: =+M185*U184+AB172 -> 48.86909266 | V185: 48.68735378 | W185: =+M185*W184+AF172 -> 46.39309649 | X185: 48.00326724 | AA185: b_t_star dc (finito) | AB185: Ajuste al déficit primario
A186: 2034 | B186: =+B153 -> -1.057142857 | C186: 20.14285714 | D186: 3.728571429 | E186: 13.58571429 | F186: 3.885714286 | G186: 0.06130045299 | H186: 0.0308 | I186: 20.14285714 | J186: 21.2 | K186: 3.128571429 | L186: 14 | M186: 1.029589108 | N186: =+PRODUCT(M172:M186) -> 1.460529373 | O186: =+'Multiplicatoria inversa'!F186 -> 16.01748694 | P186: =+C186-D186-F186-AC172 -> -1.244299914 | Q186: =+IF(L186=AB175,1,VLOOKUP(AB175,'Multiplicatoria inversa'!E173:AK202,L186+4,FALSE))*P186 -> -1.482206486 | R186: =IF(L186<25-Z171+1,(C186-D186-F186-AF178)*((1+AF174)/(1+AF173))^L186,0) -> 0.1519591259 | S186: =+C186-D186-F186-AG172 -> -1.288272358 | T186: 51.74192168 | U186: =+M186*U185+AB172 -> 49.04167593 | V186: 48.88366926 | W186: =+M186*W185+AF172 -> 46.33326251 | X186: 48.13536876 | AA186: b_t_star tau (finito) | AB186: Ajuste al ingreso tributario
A187: 2035 | B187: =+B154 -> -1.057142857 | C187: 20.14285714 | D187: 3.728571429 | E187: 13.58571429 | F187: 3.885714286 | G187: 0.06130045299 | H187: 0.0308 | I187: 20.14285714 | J187: 21.2 | K187: 3.128571429 | L187: 15 | M187: 1.029589108 | N187: =+PRODUCT(M172:M187) -> 1.503745135 | O187: =+'Multiplicatoria inversa'!F187 -> 17.5210192 | P187: =+C187-D187-F187-AC172 -> -1.244299914 | Q187: =+IF(L187=AB175,1,VLOOKUP(AB175,'Multiplicatoria inversa'!E173:AK202,L187+4,FALSE))*P187 -> -1.439609718 | R187: =IF(L187<25-Z171+1,(C187-D187-F187-AF178)*((1+AF174)/(1+AF173))^L187,0) -> 0.1475920099 | S187: =+C187-D187-F187-AG172 -> -1.288272358 | T187: 52.21577616 | U187: =+M187*U186+AB172 -> 49.21936578 | V187: 49.08579354 | W187: =+M187*W186+AF172 -> 46.2716581 | X187: 48.27137905 | AA187: b_t_star dc (infinito) | AB187: Ajuste al déficit primario
A188: 2036 | B188: =+B155 -> -1.057142857 | C188: 20.14285714 | D188: 3.728571429 | E188: 13.58571429 | F188: 3.885714286 | G188: 0.06130045299 | H188: 0.0308 | I188: 20.14285714 | J188: 21.2 | K188: 3.128571429 | L188: 16 | M188: 1.029589108 | N188: =+PRODUCT(M172:M188) -> 1.548239613 | O188: =+'Multiplicatoria inversa'!F188 -> 19.06903965 | P188: =+C188-D188-F188-AC172 -> -1.244299914 | Q188: =+IF(L188=AB175,1,VLOOKUP(AB175,'Multiplicatoria inversa'!E173:AK202,L188+4,FALSE))*P188 -> -1.398237128 | R188: =IF(L188<25-Z171+1,(C188-D188-F188-AF178)*((1+AF174)/(1+AF173))^L188,0) -> 0.1433503994 | S188: =+C188-D188-F188-AG172 -> -1.288272358 | T188: 52.70365157 | U188: =+M188*U187+AB172 -> 49.40231331 | V188: 49.29389849 | W188: =+M188*W187+AF172 -> 46.20823087 | X188: 48.41141376 | AA188: b_t_star tau (infinito) | AB188: Ajuste al ingreso tributario
A189: 2037 | B189: =+B156 -> -1.057142857 | C189: 20.14285714 | D189: 3.728571429 | E189: 13.58571429 | F189: 3.885714286 | G189: 0.06130045299 | H189: 0.0308 | I189: 20.14285714 | J189: 21.2 | K189: 3.128571429 | L189: 17 | M189: 1.029589108 | N189: =+PRODUCT(M172:M189) -> 1.594050642 | O189: =+'Multiplicatoria inversa'!F189 -> 20.66286464 | P189: =+C189-D189-F189-AC172 -> -1.244299914 | Q189: =+IF(L189=AB175,1,VLOOKUP(AB175,'Multiplicatoria inversa'!E173:AK202,L189+4,FALSE))*P189 -> -1.358053535 | R189: =IF(L189<25-Z171+1,(C189-D189-F189-AF178)*((1+AF174)/(1+AF173))^L189,0) -> 0.1392306874 | S189: =+C189-D189-F189-AG172 -> -1.288272358 | T189: 53.20596277 | U189: =+M189*U188+AB172 -> 49.5906741 | V189: 49.50816108 | W189: =+M189*W188+AF172 -> 46.14292688 | X189: 48.55559197
A190: 2038 | B190: =+B157 -> -1.057142857 | C190: 20.14285714 | D190: 3.728571429 | E190: 13.58571429 | F190: 3.885714286 | G190: 0.06130045299 | H190: 0.0308 | I190: 20.14285714 | J190: 21.2 | K190: 3.128571429 | L190: 18 | M190: 1.029589108 | N190: =+PRODUCT(M172:M190) -> 1.64121718 | O190: =+'Multiplicatoria inversa'!F190 -> 22.30384949 | P190: =+C190-D190-F190-AC172 -> -1.244299914 | Q190: =+IF(L190=AB175,1,VLOOKUP(AB175,'Multiplicatoria inversa'!E173:AK202,L190+4,FALSE))*P190 -> -1.319024768 | R190: =IF(L190<25-Z171+1,(C190-D190-F190-AF178)*((1+AF174)/(1+AF173))^L190,0) -> 0.1352293709 | S190: =+C190-D190-F190-AG172 -> -1.288272358 | T190: 53.72313692 | U190: =+M190*U189+AB172 -> 49.78460831 | V190: 49.72876352 | W190: =+M190*W189+AF172 -> 46.0756906 | X190: 48.70403629
A191: 2039 | B191: =+B158 -> -1.057142857 | C191: 20.14285714 | D191: 3.728571429 | E191: 13.58571429 | F191: 3.885714286 | G191: 0.06130045299 | H191: 0.0308 | I191: 20.14285714 | J191: 21.2 | K191: 3.128571429 | L191: 19 | M191: 1.029589108 | N191: =+PRODUCT(M172:M191) -> 1.689779333 | O191: =+'Multiplicatoria inversa'!F191 -> 23.99338962 | P191: =+C191-D191-F191-AC172 -> -1.244299914 | Q191: =+IF(L191=AB175,1,VLOOKUP(AB175,'Multiplicatoria inversa'!E173:AK202,L191+4,FALSE))*P191 -> -1.281117639 | R191: =IF(L191<25-Z171+1,(C191-D191-F191-AF178)*((1+AF174)/(1+AF173))^L191,0) -> 0.1313430473 | S191: =+C191-D191-F191-AG172 -> -1.288272358 | T191: 54.25561378 | U191: =+M191*U190+AB172 -> 49.98428087 | V191: 49.95589338 | W191: =+M191*W190+AF172 -> 46.00646487 | X191: 48.85687294
A192: 2040 | B192: =+B159 -> -1.057142857 | C192: 20.14285714 | D192: 3.728571429 | E192: 13.58571429 | F192: 3.885714286 | G192: 0.06130045299 | H192: 0.0308 | I192: 20.14285714 | J192: 21.2 | K192: 3.128571429 | L192: 20 | M192: 1.029589108 | N192: =+PRODUCT(M172:M192) -> 1.739778397 | O192: =+'Multiplicatoria inversa'!F192 -> 25.73292174 | P192: =+C192-D192-F192-AC172 -> -1.244299914 | Q192: =+IF(L192=AB175,1,VLOOKUP(AB175,'Multiplicatoria inversa'!E173:AK202,L192+4,FALSE))*P192 -> -1.244299914 | R192: =IF(L192<25-Z171+1,(C192-D192-F192-AF178)*((1+AF174)/(1+AF173))^L192,0) -> 0 | S192: =+C192-D192-F192-AG172 -> -1.288272358 | T192: 54.80384616 | U192: =+M192*U191+AB172 -> 50.18986156 | V192: 50.18974381 | W192: =+M192*W191+AF172 -> 45.93519081 | X192: 49.01423189
A193: 2041 | B193: =+B160 -> -1.057142857 | C193: 20.14285714 | D193: 3.728571429 | E193: 13.58571429 | F193: 3.885714286 | G193: 0.06130045299 | H193: 0.0308 | I193: 20.14285714 | J193: 21.2 | K193: 3.128571429 | L193: 21 | M193: 1.029589108 | N193: =+PRODUCT(M172:M193) -> 1.791256888 | O193: =+'Multiplicatoria inversa'!F193 -> 27.52392506 | P193: =+C193-D193-F193-AC172 -> -1.244299914 | Q193: =+IF(L193=AB175,1,VLOOKUP(AB175,'Multiplicatoria inversa'!E173:AK202,L193+4,FALSE))*P193 -> 0 | R193: =IF(L193<25-Z171+1,(C193-D193-F193-AF178)*((1+AF174)/(1+AF173))^L193,0) -> 0 | S193: =+C193-D193-F193-AG172 -> -1.288272358 | T193: 55.36830026 | U193: =+M193*U192+AB172 -> 50.4015252 | V193: 50.43051367 | W193: =+M193*W192+AF172 -> 45.86180781 | X193: 49.17624696
A194: 2042 | B194: =+B161 -> -1.057142857 | C194: 20.14285714 | D194: 3.728571429 | E194: 13.58571429 | F194: 3.885714286 | G194: 0.06130045299 | H194: 0.0308 | I194: 20.14285714 | J194: 21.2 | K194: 3.128571429 | L194: 22 | M194: 1.029589108 | N194: =+PRODUCT(M172:M194) -> 1.844258583 | O194: =+'Multiplicatoria inversa'!F194 -> 29.36792257 | P194: =+C194-D194-F194-AC172 -> -1.244299914 | Q194: =+IF(L194=AB175,1,VLOOKUP(AB175,'Multiplicatoria inversa'!E173:AK202,L194+4,FALSE))*P194 -> 0 | R194: =IF(L194<25-Z171+1,(C194-D194-F194-AF178)*((1+AF174)/(1+AF173))^L194,0) -> 0 | S194: =+C194-D194-F194-AG172 -> -1.288272358 | T194: 55.94945604 | U194: =+M194*U193+AB172 -> 50.61945177 | V194: 50.6784077 | W194: =+M194*W193+AF172 -> 45.78625347 | X194: 49.3430559
A195: 2043 | B195: =+B162 -> -1.057142857 | C195: 20.14285714 | D195: 3.728571429 | E195: 13.58571429 | F195: 3.885714286 | G195: 0.06130045299 | H195: 0.0308 | I195: 20.14285714 | J195: 21.2 | K195: 3.128571429 | L195: 23 | M195: 1.029589108 | N195: =+PRODUCT(M172:M195) -> 1.89882855 | O195: =+'Multiplicatoria inversa'!F195 -> 31.26648232 | P195: =+C195-D195-F195-AC172 -> -1.244299914 | Q195: =+IF(L195=AB175,1,VLOOKUP(AB175,'Multiplicatoria inversa'!E173:AK202,L195+4,FALSE))*P195 -> 0 | R195: =IF(L195<25-Z171+1,(C195-D195-F195-AF178)*((1+AF174)/(1+AF173))^L195,0) -> 0 | S195: =+C195-D195-F195-AG172 -> -1.288272358 | T195: 56.5478077 | U195: =+M195*U194+AB172 -> 50.8438266 | V195: 50.93363668 | W195: =+M195*W194+AF172 -> 45.70846355 | X195: 49.51480058
A196: 2044 | B196: =+B163 -> -1.057142857 | C196: 20.14285714 | D196: 3.728571429 | E196: 13.58571429 | F196: 3.885714286 | G196: 0.06130045299 | H196: 0.0308 | I196: 20.14285714 | J196: 21.2 | K196: 3.128571429 | L196: 24 | M196: 1.029589108 | N196: =+PRODUCT(M172:M196) -> 1.955013194 | O196: =+'Multiplicatoria inversa'!F196 -> 33.22121877 | P196: =+C196-D196-F196-AC172 -> -1.244299914 | Q196: =+IF(L196=AB175,1,VLOOKUP(AB175,'Multiplicatoria inversa'!E173:AK202,L196+4,FALSE))*P196 -> 0 | R196: =IF(L196<25-Z171+1,(C196-D196-F196-AF178)*((1+AF174)/(1+AF173))^L196,0) -> 0 | S196: =+C196-D196-F196-AG172 -> -1.288272358 | T196: 57.16386406 | U196: =+M196*U195+AB172 -> 51.07484048 | V196: 51.19641767 | W196: =+M196*W195+AF172 -> 45.62837189 | X196: 49.69162702
A197: 2045 | B197: =+B164 -> -1.057142857 | C197: 20.14285714 | D197: 3.728571429 | E197: 13.58571429 | F197: 3.885714286 | G197: 0.06130045299 | H197: 0.0308 | I197: 20.14285714 | J197: 21.2 | K197: 3.128571429 | L197: 25 | M197: 1.029589108 | N197: =+PRODUCT(M172:M197) -> 2.012860291 | O197: =+'Multiplicatoria inversa'!F197 -> 35.23379412 | P197: =+C197-D197-F197-AC172 -> -1.244299914 | Q197: =+IF(L197=AB175,1,VLOOKUP(AB175,'Multiplicatoria inversa'!E173:AK202,L197+4,FALSE))*P197 -> 0 | R197: =IF(L197<25-Z171+1,(C197-D197-F197-AF178)*((1+AF174)/(1+AF173))^L197,0) -> 0 | S197: =+C197-D197-F197-AG172 -> -1.288272358 | T197: 57.79814898 | U197: =+M197*U196+AB172 -> 51.31268986 | V197: 51.46697411 | W197: =+M197*W196+AF172 -> 45.5459104 | X197: 49.87368561
A198: 2046 | B198: =+B165 -> 0 | C198: 0 | D198: 0 | E198: 0 | F198: 0 | G198: 0 | H198: 0 | I198: 0 | J198: 0 | K198: 0 | L198: 26 | M198: 1 | N198: =+PRODUCT(M172:M198) -> 2.012860291 | O198: =+'Multiplicatoria inversa'!F198 -> 36.23379412 | P198: =+C198-D198-F198-AC172 -> -13.77287134 | Q198: =+IF(L198=AB175,1,VLOOKUP(AB175,'Multiplicatoria inversa'!E173:AK202,L198+4,FALSE))*P198 -> 0 | R198: =IF(L198<25-Z171+1,(C198-D198-F198-AF178)*((1+AF174)/(1+AF173))^L198,0) -> 0 | S198: =+C198-D198-F198-AG172 -> -13.81684379 | T198: 57.79814898 | U198: =+M198*U197+AB172 -> 50.03928024 | V198: 37.69410277 | W198: =+M198*W197+AF172 -> 44.11334606 | X198: 36.05684182
A199: 2047 | B199: =+B166 -> 0 | C199: 0 | D199: 0 | E199: 0 | F199: 0 | G199: 0 | H199: 0 | I199: 0 | J199: 0 | K199: 0 | L199: 27 | M199: 1 | N199: =+PRODUCT(M172:M199) -> 2.012860291 | O199: =+'Multiplicatoria inversa'!F199 -> 37.23379412 | P199: =+C199-D199-F199-AC172 -> -13.77287134 | Q199: =+IF(L199=AB175,1,VLOOKUP(AB175,'Multiplicatoria inversa'!E173:AK202,L199+4,FALSE))*P199 -> 0 | R199: =IF(L199<25-Z171+1,(C199-D199-F199-AF178)*((1+AF174)/(1+AF173))^L199,0) -> 0 | S199: =+C199-D199-F199-AG172 -> -13.81684379 | T199: 57.79814898 | U199: =+M199*U198+AB172 -> 48.76587062 | V199: 23.92123143 | W199: =+M199*W198+AF172 -> 42.68078171 | X199: 22.23999803
A200: 2048 | B200: =+B167 -> 0 | C200: 0 | D200: 0 | E200: 0 | F200: 0 | G200: 0 | H200: 0 | I200: 0 | J200: 0 | K200: 0 | L200: 28 | M200: 1 | N200: =+PRODUCT(M172:M200) -> 2.012860291 | O200: =+'Multiplicatoria inversa'!F200 -> 38.23379412 | P200: =+C200-D200-F200-AC172 -> -13.77287134 | Q200: =+IF(L200=AB175,1,VLOOKUP(AB175,'Multiplicatoria inversa'!E173:AK202,L200+4,FALSE))*P200 -> 0 | R200: =IF(L200<25-Z171+1,(C200-D200-F200-AF178)*((1+AF174)/(1+AF173))^L200,0) -> 0 | S200: =+C200-D200-F200-AG172 -> -13.81684379 | T200: 57.79814898 | U200: =+M200*U199+AB172 -> 47.49246101 | V200: 10.14836008 | W200: =+M200*W199+AF172 -> 41.24821737 | X200: 8.423154245
A201: 2049 | B201: =+B168 -> 0 | C201: 0 | D201: 0 | E201: 0 | F201: 0 | G201: 0 | H201: 0 | I201: 0 | J201: 0 | K201: 0 | L201: 29 | M201: 1 | N201: =+PRODUCT(M172:M201) -> 2.012860291 | O201: =+'Multiplicatoria inversa'!F201 -> 39.23379412 | P201: =+C201-D201-F201-AC172 -> -13.77287134 | Q201: =+IF(L201=AB175,1,VLOOKUP(AB175,'Multiplicatoria inversa'!E173:AK202,L201+4,FALSE))*P201 -> 0 | R201: =IF(L201<25-Z171+1,(C201-D201-F201-AF178)*((1+AF174)/(1+AF173))^L201,0) -> 0 | S201: =+C201-D201-F201-AG172 -> -13.81684379 | T201: 57.79814898 | U201: =+M201*U200+AB172 -> 46.21905139 | V201: -3.624511259 | W201: =+M201*W200+AF172 -> 39.81565303 | X201: -5.393689542
A202: 2050 | B202: =+B169 -> 0 | C202: 0 | D202: 0 | E202: 0 | F202: 0 | G202: 0 | H202: 0 | I202: 0 | J202: 0 | K202: 0 | L202: 30 | M202: 1 | N202: =+PRODUCT(M172:M202) -> 2.012860291 | O202: =+'Multiplicatoria inversa'!F202 -> 40.23379412 | P202: =+C202-D202-F202-AC172 -> -13.77287134 | R202: =IF(L202<25-Z171+1,(C202-D202-F202-AF178)*((1+AF174)/(1+AF173))^L202,0) -> 0 | S202: =+C202-D202-F202-AG172 -> -13.81684379 | T202: 57.79814898 | U202: =+M202*U201+AB172 -> 44.94564177 | V202: -17.3973826 | W202: =+M202*W201+AF172 -> 38.38308869 | X202: -19.21053333
A205: Fecha(Anual) | B205: dp_t | C205: g_t | D205: ip_t | E205: tau_t | F205: i_otros_t | G205: r_t | H205: c_y_t | I205: Gasto__neto | J205: I_presupuestarios | K205: Costo_finan | L205: t | M205: 1+r_t / 1+c_y_t | N205: Multiplicatoria simple | O205: Multiplicatoria inversa | P205: gt - ipt - iotros - tau_s | Q205: (gt - ipt - iotros + tau_s) | R205: (gt - ipt - iotros - omega)(1+r/1+c_y)^t | S205: gt - ipt - iotros - tau_s (inf) | T205: b_t | U205: b_t_star dc (finito) | V205: b_t_star tau (finito) | W205: b_t_star dc (infinito) | X205: b_t_star tau (infinito) | Z205: 7 | AA205: H Finito | AB205: pd_s | AC205: tau_s | AE205: H infinito | AF205: pd_s | AG205: tau_s
A206: =+A173 -> 2021 | L206: 0 | M206: =(1+G206)/(1+H206) -> 1 | T206: =+T173 -> 47.71948068 | U206: =+T206 -> 47.71948068 | V206: =+T206 -> 47.71948068 | W206: =+T206 -> 47.71948068 | X206: =+T206 -> 47.71948068 | AB206: =+AN9 -> -1.264796029 | AC206: =+AO9 -> 13.77786954 | AF206: =+(AF207-AF208)/(1+AF208)*(-AB207) -> -1.411976889 | AG206: =+AF215 -> 13.79875009
A207: =+A206+1 -> 2022 | B207: =+B174 -> -1.4 | C207: =+C174 -> 20.1 | D207: 3.9 | E207: 13.7 | F207: 3.9 | G207: 0.0602 | H207: 0.045 | I207: 20.1 | J207: 21.5 | K207: 3.4 | L207: 1 | M207: =(1+G207)/(1+H207) -> 1.014545455 | N207: =+PRODUCT(M206:M207) -> 1.014545455 | O207: =+'Multiplicatoria inversa'!F207 -> 0 | P207: =+C207-D207-F207-AC206 -> -1.477869544 | Q207: =+IF(L207=AB209,1,VLOOKUP(AB209,'Multiplicatoria inversa'!E207:AK236,L207+4,FALSE))*P207 -> -2.497968826 | R207: =IF(L207<25-Z205+1,(C207-D207-F207-AF212)*((1+AF208)/(1+AF207))^L207,0) -> 0 | S207: =+C207-D207-F207-AG206 -> -1.498750088 | T207: =+M207*T206+B207 -> 47.01358222 | U207: =+M207*U206+AB206 -> 47.14878619 | V207: =+M207*V206+P207 -> 46.93571267 | W207: =+M207*W206+AF206 -> 47.00160533 | X207: =+M207*X206+S207 -> 46.91483213 | AA207: b_0 | AB207: =+U206 -> 47.71948068 | AC207: =+AB207 -> 47.71948068 | AE207: r | AF207: =+AF173 -> 0.06130045299
A208: =+A207+1 -> 2023 | B208: =+B175 -> -1.057142857 | C208: 20.14285714 | D208: 3.728571429 | E208: 13.58571429 | F208: 3.885714286 | G208: 0.06130045299 | H208: 0.0308 | I208: 20.14285714 | J208: 21.2 | K208: 3.128571429 | L208: =+L207+1 -> 2 | M208: =(1+G208)/(1+H208) -> 1.029589108 | N208: =+PRODUCT(M206:M208) -> 1.04456495 | O208: =+'Multiplicatoria inversa'!F208 -> 1.029589108 | P208: =+C208-D208-F208-AC206 -> -1.249298116 | Q208: =+IF(L208=AB209,1,VLOOKUP(AB209,'Multiplicatoria inversa'!E207:AK236,L208+4,FALSE))*P208 -> -2.050940495 | R208: =IF(L208<25-Z205+1,(C208-D208-F208-AF212)*((1+AF208)/(1+AF207))^L208,0) -> 0.2156224931 | S208: =+C208-D208-F208-AG206 -> -1.27017866 | T208: 47.34752934 | U208: =+M208*U207+AB206 -> 47.27908071 | V208: 47.07520045 | W208: =+M208*W207+AF206 -> 46.98036404 | X208: 47.03282153 | AA208: b_T | AB208: =+AB174 -> 50.19 | AC208: =+AC174 -> 50.19 | AE208: c_y | AF208: =+AF174 -> 0.0308
A209: 2024 | B209: =+B176 -> -1.057142857 | C209: 20.14285714 | D209: 3.728571429 | E209: 13.58571429 | F209: 3.885714286 | G209: 0.06130045299 | H209: 0.0308 | I209: 20.14285714 | J209: 21.2 | K209: 3.128571429 | L209: =+L208+1 -> 3 | M209: 1.029589108 | N209: =+PRODUCT(M206:M209) -> 1.075472696 | O209: =+'Multiplicatoria inversa'!F209 -> 2.089642841 | P209: =+C209-D209-F209-AC206 -> -1.249298116 | Q209: =+IF(L209=AB209,1,VLOOKUP(AB209,'Multiplicatoria inversa'!E207:AK236,L209+4,FALSE))*P209 -> -1.99199902 | R209: =IF(L209<25-Z205+1,(C209-D209-F209-AF212)*((1+AF208)/(1+AF207))^L209,0) -> 0.2094257713 | S209: =+C209-D209-F209-AG206 -> -1.27017866 | T209: 47.69135767 | U209: =+M209*U208+AB206 -> 47.41323052 | V209: 47.21881555 | W209: =+M209*W208+AF206 -> 46.95849423 | X209: 47.15430212 | AA209: T | AB209: =+AB175-1 -> 19 | AC209: =+AB209 -> 19 | AE209: g | AF209: =+AF175 -> 20.1
A210: 2025 | B210: =+B177 -> -1.057142857 | C210: 20.14285714 | D210: 3.728571429 | E210: 13.58571429 | F210: 3.885714286 | G210: 0.06130045299 | H210: 0.0308 | I210: 20.14285714 | J210: 21.2 | K210: 3.128571429 | L210: 4 | M210: 1.029589108 | N210: =+PRODUCT(M206:M210) -> 1.107294974 | O210: =+'Multiplicatoria inversa'!F210 -> 3.181062618 | P210: =+C210-D210-F210-AC206 -> -1.249298116 | Q210: =+IF(L210=AB209,1,VLOOKUP(AB209,'Multiplicatoria inversa'!E207:AK236,L210+4,FALSE))*P210 -> -1.934751449 | R210: =IF(L210<25-Z205+1,(C210-D210-F210-AF212)*((1+AF208)/(1+AF207))^L210,0) -> 0.2034071355 | S210: =+C210-D210-F210-AG206 -> -1.27017866 | T210: 48.04535956 | U210: =+M210*U209+AB206 -> 47.55134971 | V210: 47.36668008 | W210: =+M210*W209+AF206 -> 46.93597732 | X210: 47.27937722 | AA210: Pi_t b_0 | AB210: =+VLOOKUP(AB209,L207:N236,3,FALSE)*AB207 -> 81.83105175 | AC210: =+AB210 -> 81.83105175 | AE210: ip | AF210: =+AF176 -> 3.9
... 154 more rows

Sheet Multiplicatoria inversa (hidden)
A1: Fecha(Anual) | B1: r_t | C1: c_y_t | D1: 1+r_t / 1+c_y_t | E1: t | F1: Multiplicatoria inversa | G1: 0 | H1: =+G1+1 -> 1 | I1: =+H1+1 -> 2 | J1: 3 | K1: 4 | L1: 5 | M1: 6 | N1: 7 | O1: 8 | P1: 9 | Q1: 10 | R1: 11 | S1: 12 | T1: 13 | U1: 14 | V1: 15 | W1: 16 | X1: 17 | Y1: 18 | Z1: 19 | AA1: 20 | AB1: 21 | AC1: 22 | AD1: 23 | AE1: 24 | AF1: 25 | AG1: 26 | AH1: 27 | AI1: 28 | AJ1: 29 | AK1: 30
A2: =+T!A2 -> 2015 | D2: 1 | E2: 0
A3: =+T!A3 -> 2016 | B3: =+T!G3 -> 0.0324 | C3: =+T!H3 -> 0.026 | D3: =(1+B3)/(1+C3) -> 1.006237817 | E3: 1 | H3: 1
A4: =+T!A4 -> 2017 | B4: =+T!G4 -> 0.0424 | C4: =+T!H4 -> 0.03 | D4: =(1+B4)/(1+C4) -> 1.012038835 | E4: =+E3+1 -> 2 | F4: =+SUM(I4:AK4) -> 1.012038835 | H4: 1 | I4: =+PRODUCT(D4:D4) -> 1.012038835
A5: =+T!A5 -> 2018 | B5: =+T!G5 -> 0.0496 | C5: =+T!H5 -> 0.035 | D5: 1.01410628 | E5: =+E4+1 -> 3 | F5: =+SUM(I5:AK5) -> 2.040421219 | H5: 1 | I5: =+PRODUCT(D4:D5) -> 1.026314938 | J5: =+PRODUCT(D5:D5) -> 1.01410628
A6: =+T!A6 -> 2019 | B6: =+T!G6 -> 0.0518 | C6: =+T!H6 -> 0.035 | D6: 1.016231884 | E6: 4 | F6: 3.089772983 | H6: 1 | I6: =+PRODUCT(D4:D6) -> 1.042973963 | J6: =+PRODUCT(D5:D6) -> 1.030567136 | K6: =+PRODUCT(D6:D6) -> 1.016231884 | L6: =+IF(L1>E6,"",1) -> 
A7: =+T!A7 -> 2020 | B7: =+T!G7 -> 0.05349593496 | C7: =+T!H7 -> 0.045 | D7: 1.008130081 | E7: 5 | F7: 4.12302317 | H7: 1 | I7: =+PRODUCT(D4:D7) -> 1.051453427 | J7: =+PRODUCT(D5:D7) -> 1.03894573 | K7: =+PRODUCT(D6:D7) -> 1.024493932 | L7: =+PRODUCT(D7:D7) -> 1.008130081
A8: =+T!A8 -> 2021 | B8: =+T!G8 -> 0.0602 | C8: =+T!H8 -> 0.045 | D8: 1.014545455 | E8: 6 | F8: 5.197539871 | H8: 1 | I8: =+PRODUCT(D4:D8) -> 1.066747295 | J8: =+PRODUCT(D5:D8) -> 1.054057668 | K8: =+PRODUCT(D6:D8) -> 1.039395662 | L8: =+PRODUCT(D7:D8) -> 1.022793792 | M8: =+PRODUCT(D8:D8) -> 1.014545455
A9: =+T!A9 -> 2022 | B9: =+T!G9 -> 0.0602 | C9: =+T!H9 -> 0.045 | D9: 1.014545455 | E9: 7 | F9: 6.287685905 | H9: 1 | I9: =+PRODUCT(D4:D9) -> 1.082263619 | J9: =+PRODUCT(D5:D9) -> 1.069389416 | K9: =+PRODUCT(D6:D9) -> 1.054514144 | L9: =+PRODUCT(D7:D9) -> 1.037670792 | M9: =+PRODUCT(D8:D9) -> 1.029302479 | N9: =+PRODUCT(D9:D9) -> 1.014545455
A10: =+T!A10 -> 2023 | B10: =+T!G10 -> 0.06130045299 | C10: =+T!H10 -> 0.0308 | D10: 1.029589108 | E10: 8 | F10: 7.503322034 | H10: 1 | I10: =+PRODUCT(D4:D10) -> 1.114286834 | J10: =+PRODUCT(D5:D10) -> 1.101031696 | K10: =+PRODUCT(D6:D10) -> 1.085716278 | L10: =+PRODUCT(D7:D10) -> 1.068374546 | M10: =+PRODUCT(D8:D10) -> 1.059758622 | N10: =+PRODUCT(D9:D10) -> 1.04456495 | O10: =+PRODUCT(D10:D10) -> 1.029589108
A11: =+T!A11 -> 2024 | B11: =+T!G11 -> 0.06130045299 | C11: =+T!H11 -> 0.0308 | D11: 1.029589108 | E11: 9 | F11: 8.754927752 | H11: 1 | I11: =+PRODUCT(D4:D11) -> 1.147257588 | J11: =+PRODUCT(D5:D11) -> 1.133610242 | K11: =+PRODUCT(D6:D11) -> 1.117841654 | L11: =+PRODUCT(D7:D11) -> 1.099986796 | M11: =+PRODUCT(D8:D11) -> 1.091115935 | N11: =+PRODUCT(D9:D11) -> 1.075472696 | O11: =+PRODUCT(D10:D11) -> 1.060053732 | P11: =+PRODUCT(D11:D11) -> 1.029589108
A12: =+T!A12 -> 2025 | B12: =+T!G12 -> 0.06130045299 | C12: =+T!H12 -> 0.0308 | D12: 1.029589108 | E12: 10 | F12: 10.04356737 | H12: 1 | I12: =+PRODUCT(D4:D12) -> 1.181203918 | J12: =+PRODUCT(D5:D12) -> 1.167152758 | K12: =+PRODUCT(D6:D12) -> 1.150917592 | L12: =+PRODUCT(D7:D12) -> 1.132534425 | M12: =+PRODUCT(D8:D12) -> 1.123401083 | N12: =+PRODUCT(D9:D12) -> 1.107294974 | O12: =+PRODUCT(D10:D12) -> 1.091419777 | P12: =+PRODUCT(D11:D12) -> 1.060053732 | Q12: =+PRODUCT(D12:D12) -> 1.029589108
A13: =+T!A13 -> 2026 | B13: =+T!G13 -> 0.06130045299 | C13: =+T!H13 -> 0.0308 | D13: 1.029589108 | E13: 11 | F13: 11.37033668 | H13: 1 | I13: =+PRODUCT(D4:D13) -> 1.216154688 | J13: =+PRODUCT(D5:D13) -> 1.201687768 | K13: =+PRODUCT(D6:D13) -> 1.184972218 | L13: =+PRODUCT(D7:D13) -> 1.166045109 | M13: =+PRODUCT(D8:D13) -> 1.156641519 | N13: =+PRODUCT(D9:D13) -> 1.140058845 | O13: =+PRODUCT(D10:D13) -> 1.123713915 | P13: =+PRODUCT(D11:D13) -> 1.091419777 | Q13: =+PRODUCT(D12:D13) -> 1.060053732 | R13: =+PRODUCT(D13:D13) -> 1.029589108
A14: =+T!A14 -> 2027 | B14: =+T!G14 -> 0.06130045299 | C14: =+T!H14 -> 0.0308 | D14: 1.029589108 | E14: 12 | F14: 12.73636391 | H14: 1 | I14: =+PRODUCT(D4:D14) -> 1.252139621 | J14: =+PRODUCT(D5:D14) -> 1.237244637 | K14: =+PRODUCT(D6:D14) -> 1.220034489 | L14: =+PRODUCT(D7:D14) -> 1.200547344 | M14: =+PRODUCT(D8:D14) -> 1.19086551 | N14: =+PRODUCT(D9:D14) -> 1.17379217 | O14: =+PRODUCT(D10:D14) -> 1.156963608 | P14: =+PRODUCT(D11:D14) -> 1.123713915 | Q14: =+PRODUCT(D12:D14) -> 1.091419777 | R14: =+PRODUCT(D13:D14) -> 1.060053732 | S14: =+PRODUCT(D14:D14) -> 1.029589108
A15: =+T!A15 -> 2028 | B15: =+T!G15 -> 0.06130045299 | C15: =+T!H15 -> 0.0308 | D15: 1.029589108 | E15: 13 | F15: 14.14281067 | H15: 1 | I15: =+PRODUCT(D4:D15) -> 1.289189316 | J15: =+PRODUCT(D5:D15) -> 1.273853603 | K15: =+PRODUCT(D6:D15) -> 1.256134222 | L15: =+PRODUCT(D7:D15) -> 1.236070469 | M15: =+PRODUCT(D8:D15) -> 1.226102159 | N15: =+PRODUCT(D9:D15) -> 1.208523633 | O15: =+PRODUCT(D10:D15) -> 1.19119713 | P15: =+PRODUCT(D11:D15) -> 1.156963608 | Q15: =+PRODUCT(D12:D15) -> 1.123713915 | R15: =+PRODUCT(D13:D15) -> 1.091419777 | S15: =+PRODUCT(D14:D15) -> 1.060053732 | T15: =+PRODUCT(D15:D15) -> 1.029589108
A16: =+T!A16 -> 2029 | B16: =+T!G16 -> 0.06130045299 | C16: =+T!H16 -> 0.0308 | D16: 1.029589108 | E16: 14 | F16: 15.59087294 | H16: 1 | I16: =+PRODUCT(D4:D16) -> 1.327335279 | J16: =+PRODUCT(D5:D16) -> 1.311545796 | K16: =+PRODUCT(D6:D16) -> 1.293302114 | L16: =+PRODUCT(D7:D16) -> 1.272644692 | M16: =+PRODUCT(D8:D16) -> 1.262381429 | N16: =+PRODUCT(D9:D16) -> 1.24428277 | O16: =+PRODUCT(D10:D16) -> 1.226443591 | P16: =+PRODUCT(D11:D16) -> 1.19119713 | Q16: =+PRODUCT(D12:D16) -> 1.156963608 | R16: =+PRODUCT(D13:D16) -> 1.123713915 | S16: =+PRODUCT(D14:D16) -> 1.091419777 | T16: =+PRODUCT(D15:D16) -> 1.060053732 | U16: =+PRODUCT(D16:D16) -> 1.029589108
A17: =+T!A17 -> 2030 | B17: =+T!G17 -> 0.06130045299 | C17: =+T!H17 -> 0.0308 | D17: 1.029589108 | E17: 15 | F17: 17.08178208 | H17: 1 | I17: =+PRODUCT(D4:D17) -> 1.366609946 | J17: =+PRODUCT(D5:D17) -> 1.350353266 | K17: =+PRODUCT(D6:D17) -> 1.33156977 | L17: =+PRODUCT(D7:D17) -> 1.310301114 | M17: =+PRODUCT(D8:D17) -> 1.29973417 | N17: =+PRODUCT(D9:D17) -> 1.281099988 | O17: =+PRODUCT(D10:D17) -> 1.262732963 | P17: =+PRODUCT(D11:D17) -> 1.226443591 | Q17: =+PRODUCT(D12:D17) -> 1.19119713 | R17: =+PRODUCT(D13:D17) -> 1.156963608 | S17: =+PRODUCT(D14:D17) -> 1.123713915 | T17: =+PRODUCT(D15:D17) -> 1.091419777 | U17: =+PRODUCT(D16:D17) -> 1.060053732 | V17: =+PRODUCT(D17:D17) -> 1.029589108
A18: =+T!A18 -> 2031 | B18: =+T!G18 -> 0.06130045299 | C18: =+T!H18 -> 0.0308 | D18: 1.029589108 | E18: 16 | F18: 18.61680589 | H18: 1 | I18: =+PRODUCT(D4:D18) -> 1.407046716 | J18: =+PRODUCT(D5:D18) -> 1.390309016 | K18: =+PRODUCT(D6:D18) -> 1.370969732 | L18: =+PRODUCT(D7:D18) -> 1.349071756 | M18: =+PRODUCT(D8:D18) -> 1.338192145 | N18: =+PRODUCT(D9:D18) -> 1.319006595 | O18: =+PRODUCT(D10:D18) -> 1.300096106 | P18: =+PRODUCT(D11:D18) -> 1.262732963 | Q18: =+PRODUCT(D12:D18) -> 1.226443591 | R18: =+PRODUCT(D13:D18) -> 1.19119713 | S18: =+PRODUCT(D14:D18) -> 1.156963608 | T18: =+PRODUCT(D15:D18) -> 1.123713915 | U18: =+PRODUCT(D16:D18) -> 1.091419777 | V18: =+PRODUCT(D17:D18) -> 1.060053732 | W18: =+PRODUCT(D18:D18) -> 1.029589108
A19: =+T!A19 -> 2032 | B19: =+T!G19 -> 0.06130045299 | C19: =+T!H19 -> 0.0308 | D19: 1.029589108 | E19: 17 | F19: 20.19724969 | H19: 1 | I19: =+PRODUCT(D4:D19) -> 1.448679974 | J19: =+PRODUCT(D5:D19) -> 1.43144702 | K19: =+PRODUCT(D6:D19) -> 1.411535504 | L19: =+PRODUCT(D7:D19) -> 1.388989587 | M19: =+PRODUCT(D8:D19) -> 1.377788058 | N19: =+PRODUCT(D9:D19) -> 1.358034824 | O19: =+PRODUCT(D10:D19) -> 1.33856479 | P19: =+PRODUCT(D11:D19) -> 1.300096106 | Q19: =+PRODUCT(D12:D19) -> 1.262732963 | R19: =+PRODUCT(D13:D19) -> 1.226443591 | S19: =+PRODUCT(D14:D19) -> 1.19119713 | T19: =+PRODUCT(D15:D19) -> 1.156963608 | U19: =+PRODUCT(D16:D19) -> 1.123713915 | V19: =+PRODUCT(D17:D19) -> 1.091419777 | W19: =+PRODUCT(D18:D19) -> 1.060053732 | X19: =+PRODUCT(D19:D19) -> 1.029589108
A20: =+T!A20 -> 2033 | B20: =+T!G20 -> 0.06130045299 | C20: =+T!H20 -> 0.0308 | D20: 1.029589108 | E20: 18 | F20: 21.82445741 | H20: 1 | I20: =+PRODUCT(D4:D20) -> 1.491545123 | J20: =+PRODUCT(D5:D20) -> 1.473802261 | K20: =+PRODUCT(D6:D20) -> 1.453301582 | L20: =+PRODUCT(D7:D20) -> 1.43008855 | M20: =+PRODUCT(D8:D20) -> 1.418555578 | N20: =+PRODUCT(D9:D20) -> 1.398217863 | O20: =+PRODUCT(D10:D20) -> 1.378171729 | P20: =+PRODUCT(D11:D20) -> 1.33856479 | Q20: =+PRODUCT(D12:D20) -> 1.300096106 | R20: =+PRODUCT(D13:D20) -> 1.262732963 | S20: =+PRODUCT(D14:D20) -> 1.226443591 | T20: =+PRODUCT(D15:D20) -> 1.19119713 | U20: =+PRODUCT(D16:D20) -> 1.156963608 | V20: =+PRODUCT(D17:D20) -> 1.123713915 | W20: =+PRODUCT(D18:D20) -> 1.091419777 | X20: =+PRODUCT(D19:D20) -> 1.060053732 | Y20: =+PRODUCT(D20:D20) -> 1.029589108
A21: =+T!A21 -> 2034 | B21: =+T!G21 -> 0.06130045299 | C21: =+T!H21 -> 0.0308 | D21: 1.029589108 | E21: 19 | F21: 23.49981275 | H21: 1 | I21: =+PRODUCT(D4:D21) -> 1.535678613 | J21: =+PRODUCT(D5:D21) -> 1.517410756 | K21: =+PRODUCT(D6:D21) -> 1.49630348 | L21: =+PRODUCT(D7:D21) -> 1.472403595 | M21: =+PRODUCT(D8:D21) -> 1.460529373 | N21: =+PRODUCT(D9:D21) -> 1.439589883 | O21: =+PRODUCT(D10:D21) -> 1.418950602 | P21: =+PRODUCT(D11:D21) -> 1.378171729 | Q21: =+PRODUCT(D12:D21) -> 1.33856479 | R21: =+PRODUCT(D13:D21) -> 1.300096106 | S21: =+PRODUCT(D14:D21) -> 1.262732963 | T21: =+PRODUCT(D15:D21) -> 1.226443591 | U21: =+PRODUCT(D16:D21) -> 1.19119713 | V21: =+PRODUCT(D17:D21) -> 1.156963608 | W21: =+PRODUCT(D18:D21) -> 1.123713915 | X21: =+PRODUCT(D19:D21) -> 1.091419777 | Y21: =+PRODUCT(D20:D21) -> 1.060053732 | Z21: =+PRODUCT(D21:D21) -> 1.029589108
A22: =+T!A22 -> 2035 | B22: =+T!G22 -> 0.06130045299 | C22: =+T!H22 -> 0.0308 | D22: 1.029589108 | E22: 20 | F22: 25.22474037 | H22: 1 | I22: =+PRODUCT(D4:D22) -> 1.581117974 | J22: =+PRODUCT(D5:D22) -> 1.562309587 | K22: =+PRODUCT(D6:D22) -> 1.540577766 | L22: =+PRODUCT(D7:D22) -> 1.515970705 | M22: =+PRODUCT(D8:D22) -> 1.503745135 | N22: =+PRODUCT(D9:D22) -> 1.482186065 | O22: =+PRODUCT(D10:D22) -> 1.460936085 | P22: =+PRODUCT(D11:D22) -> 1.418950602 | Q22: =+PRODUCT(D12:D22) -> 1.378171729 | R22: =+PRODUCT(D13:D22) -> 1.33856479 | S22: =+PRODUCT(D14:D22) -> 1.300096106 | T22: =+PRODUCT(D15:D22) -> 1.262732963 | U22: =+PRODUCT(D16:D22) -> 1.226443591 | V22: =+PRODUCT(D17:D22) -> 1.19119713 | W22: =+PRODUCT(D18:D22) -> 1.156963608 | X22: =+PRODUCT(D19:D22) -> 1.123713915 | Y22: =+PRODUCT(D20:D22) -> 1.091419777 | Z22: =+PRODUCT(D21:D22) -> 1.060053732 | AA22: =+PRODUCT(D22:D22) -> 1.029589108
A23: =+T!A23 -> 2036 | B23: =+T!G23 -> 0.06130045299 | C23: =+T!H23 -> 0.0308 | D23: 1.029589108 | E23: 21 | F23: 27.00070706 | H23: 1 | I23: =+PRODUCT(D4:D23) -> 1.627901846 | J23: =+PRODUCT(D5:D23) -> 1.608536935 | K23: =+PRODUCT(D6:D23) -> 1.586162088 | L23: =+PRODUCT(D7:D23) -> 1.560826926 | M23: =+PRODUCT(D8:D23) -> 1.548239613 | N23: =+PRODUCT(D9:D23) -> 1.526042629 | O23: =+PRODUCT(D10:D23) -> 1.504163881 | P23: =+PRODUCT(D11:D23) -> 1.460936085 | Q23: =+PRODUCT(D12:D23) -> 1.418950602 | R23: =+PRODUCT(D13:D23) -> 1.378171729 | S23: =+PRODUCT(D14:D23) -> 1.33856479 | T23: =+PRODUCT(D15:D23) -> 1.300096106 | U23: =+PRODUCT(D16:D23) -> 1.262732963 | V23: =+PRODUCT(D17:D23) -> 1.226443591 | W23: =+PRODUCT(D18:D23) -> 1.19119713 | X23: =+PRODUCT(D19:D23) -> 1.156963608 | Y23: =+PRODUCT(D20:D23) -> 1.123713915 | Z23: =+PRODUCT(D21:D23) -> 1.091419777 | AA23: =+PRODUCT(D22:D23) -> 1.060053732 | AB23: =+PRODUCT(D23:D23) -> 1.029589108
A24: =+T!A24 -> 2037 | B24: =+T!G24 -> 0.06130045299 | C24: =+T!H24 -> 0.0308 | D24: 1.029589108 | E24: 22 | F24: 28.82922301 | H24: 1 | I24: =+PRODUCT(D4:D24) -> 1.67607001 | J24: =+PRODUCT(D5:D24) -> 1.656132109 | K24: =+PRODUCT(D6:D24) -> 1.63309521 | L24: =+PRODUCT(D7:D24) -> 1.607010404 | M24: =+PRODUCT(D8:D24) -> 1.594050642 | N24: =+PRODUCT(D9:D24) -> 1.57119687 | O24: =+PRODUCT(D10:D24) -> 1.54867075 | P24: =+PRODUCT(D11:D24) -> 1.504163881 | Q24: =+PRODUCT(D12:D24) -> 1.460936085 | R24: =+PRODUCT(D13:D24) -> 1.418950602 | S24: =+PRODUCT(D14:D24) -> 1.378171729 | T24: =+PRODUCT(D15:D24) -> 1.33856479 | U24: =+PRODUCT(D16:D24) -> 1.300096106 | V24: =+PRODUCT(D17:D24) -> 1.262732963 | W24: =+PRODUCT(D18:D24) -> 1.226443591 | X24: =+PRODUCT(D19:D24) -> 1.19119713 | Y24: =+PRODUCT(D20:D24) -> 1.156963608 | Z24: =+PRODUCT(D21:D24) -> 1.123713915 | AA24: =+PRODUCT(D22:D24) -> 1.091419777 | AB24: =+PRODUCT(D23:D24) -> 1.060053732 | AC24: =+PRODUCT(D24:D24) -> 1.029589108
A25: =+T!A25 -> 2038 | B25: =+T!G25 -> 0.06130045299 | C25: =+T!H25 -> 0.0308 | D25: 1.029589108 | E25: 23 | F25: 30.71184313 | H25: 1 | I25: =+PRODUCT(D4:D25) -> 1.725663427 | J25: =+PRODUCT(D5:D25) -> 1.705135581 | K25: =+PRODUCT(D6:D25) -> 1.681417041 | L25: =+PRODUCT(D7:D25) -> 1.654560409 | M25: =+PRODUCT(D8:D25) -> 1.64121718 | N25: =+PRODUCT(D9:D25) -> 1.617687184 | O25: =+PRODUCT(D10:D25) -> 1.594494536 | P25: =+PRODUCT(D11:D25) -> 1.54867075 | Q25: =+PRODUCT(D12:D25) -> 1.504163881 | R25: =+PRODUCT(D13:D25) -> 1.460936085 | S25: =+PRODUCT(D14:D25) -> 1.418950602 | T25: =+PRODUCT(D15:D25) -> 1.378171729 | U25: =+PRODUCT(D16:D25) -> 1.33856479 | V25: =+PRODUCT(D17:D25) -> 1.300096106 | W25: =+PRODUCT(D18:D25) -> 1.262732963 | X25: =+PRODUCT(D19:D25) -> 1.226443591 | Y25: =+PRODUCT(D20:D25) -> 1.19119713 | Z25: =+PRODUCT(D21:D25) -> 1.156963608 | AA25: =+PRODUCT(D22:D25) -> 1.123713915 | AB25: =+PRODUCT(D23:D25) -> 1.091419777 | AC25: =+PRODUCT(D24:D25) -> 1.060053732 | AD25: =+PRODUCT(D25:D25) -> 1.029589108
A26: =+T!A26 -> 2039 | B26: =+T!G26 -> 0.06130045299 | C26: =+T!H26 -> 0.0308 | D26: 1.029589108 | E26: 24 | F26: 32.65016829 | H26: 1 | I26: =+PRODUCT(D4:D26) -> 1.77672427 | J26: =+PRODUCT(D5:D26) -> 1.755589023 | K26: =+PRODUCT(D6:D26) -> 1.731168673 | L26: =+PRODUCT(D7:D26) -> 1.703517376 | M26: =+PRODUCT(D8:D26) -> 1.689779333 | N26: =+PRODUCT(D9:D26) -> 1.665553106 | O26: =+PRODUCT(D10:D26) -> 1.641674208 | P26: =+PRODUCT(D11:D26) -> 1.594494536 | Q26: =+PRODUCT(D12:D26) -> 1.54867075 | R26: =+PRODUCT(D13:D26) -> 1.504163881 | S26: =+PRODUCT(D14:D26) -> 1.460936085 | T26: =+PRODUCT(D15:D26) -> 1.418950602 | U26: =+PRODUCT(D16:D26) -> 1.378171729 | V26: =+PRODUCT(D17:D26) -> 1.33856479 | W26: =+PRODUCT(D18:D26) -> 1.300096106 | X26: =+PRODUCT(D19:D26) -> 1.262732963 | Y26: =+PRODUCT(D20:D26) -> 1.226443591 | Z26: =+PRODUCT(D21:D26) -> 1.19119713 | AA26: =+PRODUCT(D22:D26) -> 1.156963608 | AB26: =+PRODUCT(D23:D26) -> 1.123713915 | AC26: =+PRODUCT(D24:D26) -> 1.091419777 | AD26: =+PRODUCT(D25:D26) -> 1.060053732 | AE26: =+PRODUCT(D26:D26) -> 1.029589108
A27: =+T!A27 -> 2040 | B27: =+T!G27 -> 0.06130045299 | C27: =+T!H27 -> 0.0308 | D27: 1.029589108 | E27: 25 | F27: 34.64584677 | H27: 1 | I27: =+PRODUCT(D4:D27) -> 1.829295957 | J27: =+PRODUCT(D5:D27) -> 1.807535337 | K27: =+PRODUCT(D6:D27) -> 1.78239241 | L27: =+PRODUCT(D7:D27) -> 1.753922937 | M27: =+PRODUCT(D8:D27) -> 1.739778397 | N27: =+PRODUCT(D9:D27) -> 1.714835337 | O27: =+PRODUCT(D10:D27) -> 1.690249884 | P27: =+PRODUCT(D11:D27) -> 1.641674208 | Q27: =+PRODUCT(D12:D27) -> 1.594494536 | R27: =+PRODUCT(D13:D27) -> 1.54867075 | S27: =+PRODUCT(D14:D27) -> 1.504163881 | T27: =+PRODUCT(D15:D27) -> 1.460936085 | U27: =+PRODUCT(D16:D27) -> 1.418950602 | V27: =+PRODUCT(D17:D27) -> 1.378171729 | W27: =+PRODUCT(D18:D27) -> 1.33856479 | X27: =+PRODUCT(D19:D27) -> 1.300096106 | Y27: =+PRODUCT(D20:D27) -> 1.262732963 | Z27: =+PRODUCT(D21:D27) -> 1.226443591 | AA27: =+PRODUCT(D22:D27) -> 1.19119713 | AB27: =+PRODUCT(D23:D27) -> 1.156963608 | AC27: =+PRODUCT(D24:D27) -> 1.123713915 | AD27: =+PRODUCT(D25:D27) -> 1.091419777 | AE27: =+PRODUCT(D26:D27) -> 1.060053732 | AF27: =+PRODUCT(D27:D27) -> 1.029589108
A28: =+T!A28 -> 2041 | B28: =+T!G28 -> 0.06130045299 | C28: =+T!H28 -> 0.0308 | D28: 1.029589108 | E28: 26 | F28: 36.7005756 | H28: 1 | I28: =+PRODUCT(D4:D28) -> 1.883423193 | J28: =+PRODUCT(D5:D28) -> 1.861018696 | K28: =+PRODUCT(D6:D28) -> 1.835131813 | L28: =+PRODUCT(D7:D28) -> 1.805819952 | M28: =+PRODUCT(D8:D28) -> 1.791256888 | N28: =+PRODUCT(D9:D28) -> 1.765575786 | O28: =+PRODUCT(D10:D28) -> 1.740262872 | P28: =+PRODUCT(D11:D28) -> 1.690249884 | Q28: =+PRODUCT(D12:D28) -> 1.641674208 | R28: =+PRODUCT(D13:D28) -> 1.594494536 | S28: =+PRODUCT(D14:D28) -> 1.54867075 | T28: =+PRODUCT(D15:D28) -> 1.504163881 | U28: =+PRODUCT(D16:D28) -> 1.460936085 | V28: =+PRODUCT(D17:D28) -> 1.418950602 | W28: =+PRODUCT(D18:D28) -> 1.378171729 | X28: =+PRODUCT(D19:D28) -> 1.33856479 | Y28: =+PRODUCT(D20:D28) -> 1.300096106 | Z28: =+PRODUCT(D21:D28) -> 1.262732963 | AA28: =+PRODUCT(D22:D28) -> 1.226443591 | AB28: =+PRODUCT(D23:D28) -> 1.19119713 | AC28: =+PRODUCT(D24:D28) -> 1.156963608 | AD28: =+PRODUCT(D25:D28) -> 1.123713915 | AE28: =+PRODUCT(D26:D28) -> 1.091419777 | AF28: =+PRODUCT(D27:D28) -> 1.060053732 | AG28: =+PRODUCT(D28:D28) -> 1.029589108
A29: =+T!A29 -> 2042 | B29: =+T!G29 -> 0.06130045299 | C29: =+T!H29 -> 0.0308 | D29: 1.029589108 | E29: 27 | F29: 38.81610202 | H29: 1 | I29: =+PRODUCT(D4:D29) -> 1.939152006 | J29: =+PRODUCT(D5:D29) -> 1.91608458 | K29: =+PRODUCT(D6:D29) -> 1.889431727 | L29: =+PRODUCT(D7:D29) -> 1.859252555 | M29: =+PRODUCT(D8:D29) -> 1.844258583 | N29: =+PRODUCT(D9:D29) -> 1.817817599 | O29: =+PRODUCT(D10:D29) -> 1.791755698 | P29: =+PRODUCT(D11:D29) -> 1.740262872 | Q29: =+PRODUCT(D12:D29) -> 1.690249884 | R29: =+PRODUCT(D13:D29) -> 1.641674208 | S29: =+PRODUCT(D14:D29) -> 1.594494536 | T29: =+PRODUCT(D15:D29) -> 1.54867075 | U29: =+PRODUCT(D16:D29) -> 1.504163881 | V29: =+PRODUCT(D17:D29) -> 1.460936085 | W29: =+PRODUCT(D18:D29) -> 1.418950602 | X29: =+PRODUCT(D19:D29) -> 1.378171729 | Y29: =+PRODUCT(D20:D29) -> 1.33856479 | Z29: =+PRODUCT(D21:D29) -> 1.300096106 | AA29: =+PRODUCT(D22:D29) -> 1.262732963 | AB29: =+PRODUCT(D23:D29) -> 1.226443591 | AC29: =+PRODUCT(D24:D29) -> 1.19119713 | AD29: =+PRODUCT(D25:D29) -> 1.156963608 | AE29: =+PRODUCT(D26:D29) -> 1.123713915 | AF29: =+PRODUCT(D27:D29) -> 1.091419777 | AG29: =+PRODUCT(D28:D29) -> 1.060053732 | AH29: =+PRODUCT(D29:D29) -> 1.029589108
A30: =+T!A30 -> 2043 | B30: =+T!G30 -> 0.06130045299 | C30: =+T!H30 -> 0.0308 | D30: 1.029589108 | E30: 28 | F30: 40.99422498 | H30: 1 | I30: =+PRODUCT(D4:D30) -> 1.996529785 | J30: =+PRODUCT(D5:D30) -> 1.972779815 | K30: =+PRODUCT(D6:D30) -> 1.945338327 | L30: =+PRODUCT(D7:D30) -> 1.91426618 | M30: =+PRODUCT(D8:D30) -> 1.89882855 | N30: =+PRODUCT(D9:D30) -> 1.871605201 | O30: =+PRODUCT(D10:D30) -> 1.844772152 | P30: =+PRODUCT(D11:D30) -> 1.791755698 | Q30: =+PRODUCT(D12:D30) -> 1.740262872 | R30: =+PRODUCT(D13:D30) -> 1.690249884 | S30: =+PRODUCT(D14:D30) -> 1.641674208 | T30: =+PRODUCT(D15:D30) -> 1.594494536 | U30: =+PRODUCT(D16:D30) -> 1.54867075 | V30: =+PRODUCT(D17:D30) -> 1.504163881 | W30: =+PRODUCT(D18:D30) -> 1.460936085 | X30: =+PRODUCT(D19:D30) -> 1.418950602 | Y30: =+PRODUCT(D20:D30) -> 1.378171729 | Z30: =+PRODUCT(D21:D30) -> 1.33856479 | AA30: =+PRODUCT(D22:D30) -> 1.300096106 | AB30: =+PRODUCT(D23:D30) -> 1.262732963 | AC30: =+PRODUCT(D24:D30) -> 1.226443591 | AD30: =+PRODUCT(D25:D30) -> 1.19119713 | AE30: =+PRODUCT(D26:D30) -> 1.156963608 | AF30: =+PRODUCT(D27:D30) -> 1.123713915 | AG30: =+PRODUCT(D28:D30) -> 1.091419777 | AH30: =+PRODUCT(D29:D30) -> 1.060053732 | AI30: =+PRODUCT(D30:D30) -> 1.029589108
A31: =+T!A31 -> 2044 | B31: =+T!G31 -> 0.06130045299 | C31: =+T!H31 -> 0.0308 | D31: 1.029589108 | E31: 29 | F31: 43.23679666 | H31: 1 | I31: =+PRODUCT(D4:D31) -> 2.055605321 | J31: =+PRODUCT(D5:D31) -> 2.03115261 | K31: =+PRODUCT(D6:D31) -> 2.002899154 | L31: =+PRODUCT(D7:D31) -> 1.97090761 | M31: =+PRODUCT(D8:D31) -> 1.955013194 | N31: =+PRODUCT(D9:D31) -> 1.926984331 | O31: =+PRODUCT(D10:D31) -> 1.899357315 | P31: =+PRODUCT(D11:D31) -> 1.844772152 | Q31: =+PRODUCT(D12:D31) -> 1.791755698 | R31: =+PRODUCT(D13:D31) -> 1.740262872 | S31: =+PRODUCT(D14:D31) -> 1.690249884 | T31: =+PRODUCT(D15:D31) -> 1.641674208 | U31: =+PRODUCT(D16:D31) -> 1.594494536 | V31: =+PRODUCT(D17:D31) -> 1.54867075 | W31: =+PRODUCT(D18:D31) -> 1.504163881 | X31: =+PRODUCT(D19:D31) -> 1.460936085 | Y31: =+PRODUCT(D20:D31) -> 1.418950602 | Z31: =+PRODUCT(D21:D31) -> 1.378171729 | AA31: =+PRODUCT(D22:D31) -> 1.33856479 | AB31: =+PRODUCT(D23:D31) -> 1.300096106 | AC31: =+PRODUCT(D24:D31) -> 1.262732963 | AD31: =+PRODUCT(D25:D31) -> 1.226443591 | AE31: =+PRODUCT(D26:D31) -> 1.19119713 | AF31: =+PRODUCT(D27:D31) -> 1.156963608 | AG31: =+PRODUCT(D28:D31) -> 1.123713915 | AH31: =+PRODUCT(D29:D31) -> 1.091419777 | AI31: =+PRODUCT(D30:D31) -> 1.060053732 | AJ31: =+PRODUCT(D31:D31) -> 1.029589108
A32: =+T!A32 -> 2045 | B32: =+T!G32 -> 0.06130045299 | C32: =+T!H32 -> 0.0308 | D32: 1.029589108 | E32: 30 | F32: 45.54572403 | H32: 1 | I32: =+PRODUCT(D4:D32) -> 2.11642885 | J32: =+PRODUCT(D5:D32) -> 2.091252605 | K32: =+PRODUCT(D6:D32) -> 2.062163154 | L32: =+PRODUCT(D7:D32) -> 2.029225009 | M32: =+PRODUCT(D8:D32) -> 2.012860291 | N32: =+PRODUCT(D9:D32) -> 1.984002079 | O32: =+PRODUCT(D10:D32) -> 1.955557605 | P32: =+PRODUCT(D11:D32) -> 1.899357315 | Q32: =+PRODUCT(D12:D32) -> 1.844772152 | R32: =+PRODUCT(D13:D32) -> 1.791755698 | S32: =+PRODUCT(D14:D32) -> 1.740262872 | T32: =+PRODUCT(D15:D32) -> 1.690249884 | U32: =+PRODUCT(D16:D32) -> 1.641674208 | V32: =+PRODUCT(D17:D32) -> 1.594494536 | W32: =+PRODUCT(D18:D32) -> 1.54867075 | X32: =+PRODUCT(D19:D32) -> 1.504163881 | Y32: =+PRODUCT(D20:D32) -> 1.460936085 | Z32: =+PRODUCT(D21:D32) -> 1.418950602 | AA32: =+PRODUCT(D22:D32) -> 1.378171729 | AB32: =+PRODUCT(D23:D32) -> 1.33856479 | AC32: =+PRODUCT(D24:D32) -> 1.300096106 | AD32: =+PRODUCT(D25:D32) -> 1.262732963 | AE32: =+PRODUCT(D26:D32) -> 1.226443591 | AF32: =+PRODUCT(D27:D32) -> 1.19119713 | AG32: =+PRODUCT(D28:D32) -> 1.156963608 | AH32: =+PRODUCT(D29:D32) -> 1.123713915 | AI32: =+PRODUCT(D30:D32) -> 1.091419777 | AJ32: =+PRODUCT(D31:D32) -> 1.060053732 | AK32: =+PRODUCT(D32:D32) -> 1.029589108
A35: Fecha(Anual) | B35: r_t | C35: c_y_t | D35: 1+r_t / 1+c_y_t | E35: t | F35: Multiplicatoria inversa | G35: 0 | H35: =+G35+1 -> 1 | I35: =+H35+1 -> 2 | J35: =+I35+1 -> 3 | K35: =+J35+1 -> 4 | L35: =+K35+1 -> 5 | M35: =+L35+1 -> 6 | N35: =+M35+1 -> 7 | O35: =+N35+1 -> 8 | P35: =+O35+1 -> 9 | Q35: =+P35+1 -> 10 | R35: =+Q35+1 -> 11 | S35: =+R35+1 -> 12 | T35: =+S35+1 -> 13 | U35: =+T35+1 -> 14 | V35: =+U35+1 -> 15 | W35: =+V35+1 -> 16 | X35: =+W35+1 -> 17 | Y35: =+X35+1 -> 18 | Z35: =+Y35+1 -> 19 | AA35: =+Z35+1 -> 20 | AB35: =+AA35+1 -> 21 | AC35: =+AB35+1 -> 22 | AD35: =+AC35+1 -> 23 | AE35: =+AD35+1 -> 24 | AF35: =+AE35+1 -> 25 | AG35: =+AF35+1 -> 26 | AH35: =+AG35+1 -> 27 | AI35: =+AH35+1 -> 28 | AJ35: =+AI35+1 -> 29 | AK35: =+AJ35+1 -> 30
A36: =+A3 -> 2016 | D36: 1 | E36: 0
A37: =+A36+1 -> 2017 | B37: =+B4 -> 0.0424 | C37: =+C4 -> 0.03 | D37: =(1+B37)/(1+C37) -> 1.012038835 | E37: 1 | H37: 1
A38: =+A37+1 -> 2018 | B38: =+B5 -> 0.0496 | C38: 0.035 | D38: =(1+B38)/(1+C38) -> 1.01410628 | E38: =+E37+1 -> 2 | F38: =+SUM(I38:AK38) -> 1.01410628 | H38: 1 | I38: =+PRODUCT(D38:D38) -> 1.01410628
A39: 2019 | B39: =+B6 -> 0.0518 | C39: 0.035 | D39: 1.016231884 | E39: =+E38+1 -> 3 | F39: =+SUM(I39:AK39) -> 2.04679902 | H39: 1 | I39: =+PRODUCT(D38:D39) -> 1.030567136 | J39: =+PRODUCT(D39:D39) -> 1.016231884
A40: 2020 | B40: =+B7 -> 0.05349593496 | C40: 0.045 | D40: 1.008130081 | E40: 4 | F40: 3.071569744 | H40: 1 | I40: =+PRODUCT(D38:D40) -> 1.03894573 | J40: =+PRODUCT(D39:D40) -> 1.024493932 | K40: =+PRODUCT(D40:D40) -> 1.008130081 | L40: =+IF(L35>E40,"",1) -> 
A41: 2021 | B41: =+B8 -> 0.0602 | C41: 0.045 | D41: 1.014545455 | E41: 5 | F41: 4.130792576 | H41: 1 | I41: =+PRODUCT(D38:D41) -> 1.054057668 | J41: =+PRODUCT(D39:D41) -> 1.039395662 | K41: =+PRODUCT(D40:D41) -> 1.022793792 | L41: =+PRODUCT(D41:D41) -> 1.014545455
A42: 2022 | B42: =+B9 -> 0.0602 | C42: 0.045 | D42: 1.014545455 | E42: 6 | F42: 5.205422286 | H42: 1 | I42: =+PRODUCT(D38:D42) -> 1.069389416 | J42: =+PRODUCT(D39:D42) -> 1.054514144 | K42: =+PRODUCT(D40:D42) -> 1.037670792 | L42: =+PRODUCT(D41:D42) -> 1.029302479 | M42: =+PRODUCT(D42:D42) -> 1.014545455
A43: 2023 | B43: =+B10 -> 0.06130045299 | C43: 0.0308 | D43: 1.029589108 | E43: 7 | F43: 6.389035199 | H43: 1 | I43: =+PRODUCT(D38:D43) -> 1.101031696 | J43: =+PRODUCT(D39:D43) -> 1.085716278 | K43: =+PRODUCT(D40:D43) -> 1.068374546 | L43: =+PRODUCT(D41:D43) -> 1.059758622 | M43: =+PRODUCT(D42:D43) -> 1.04456495 | N43: =+PRODUCT(D43:D43) -> 1.029589108
A44: 2024 | B44: =+B11 -> 0.06130045299 | C44: 0.0308 | D44: 1.029589108 | E44: 8 | F44: 7.607670163 | H44: 1 | I44: =+PRODUCT(D38:D44) -> 1.133610242 | J44: =+PRODUCT(D39:D44) -> 1.117841654 | K44: =+PRODUCT(D40:D44) -> 1.099986796 | L44: =+PRODUCT(D41:D44) -> 1.091115935 | M44: =+PRODUCT(D42:D44) -> 1.075472696 | N44: =+PRODUCT(D43:D44) -> 1.060053732 | O44: =+PRODUCT(D44:D44) -> 1.029589108
A45: 2025 | B45: =+B12 -> 0.06130045299 | C45: 0.0308 | D45: 1.029589108 | E45: 9 | F45: 8.862363449 | H45: 1 | I45: =+PRODUCT(D38:D45) -> 1.167152758 | J45: =+PRODUCT(D39:D45) -> 1.150917592 | K45: =+PRODUCT(D40:D45) -> 1.132534425 | L45: =+PRODUCT(D41:D45) -> 1.123401083 | M45: =+PRODUCT(D42:D45) -> 1.107294974 | N45: =+PRODUCT(D43:D45) -> 1.091419777 | O45: =+PRODUCT(D44:D45) -> 1.060053732 | P45: =+PRODUCT(D45:D45) -> 1.029589108
A46: 2026 | B46: =+B13 -> 0.06130045299 | C46: 0.0308 | D46: 1.029589108 | E46: 10 | F46: 10.15418199 | H46: 1 | I46: =+PRODUCT(D38:D46) -> 1.201687768 | J46: =+PRODUCT(D39:D46) -> 1.184972218 | K46: =+PRODUCT(D40:D46) -> 1.166045109 | L46: =+PRODUCT(D41:D46) -> 1.156641519 | M46: =+PRODUCT(D42:D46) -> 1.140058845 | N46: =+PRODUCT(D43:D46) -> 1.123713915 | O46: =+PRODUCT(D44:D46) -> 1.091419777 | P46: =+PRODUCT(D45:D46) -> 1.060053732 | Q46: =+PRODUCT(D46:D46) -> 1.029589108
A47: 2027 | B47: =+B14 -> 0.06130045299 | C47: 0.0308 | D47: 1.029589108 | E47: 11 | F47: 11.48422429 | H47: 1 | I47: =+PRODUCT(D38:D47) -> 1.237244637 | J47: =+PRODUCT(D39:D47) -> 1.220034489 | K47: =+PRODUCT(D40:D47) -> 1.200547344 | L47: =+PRODUCT(D41:D47) -> 1.19086551 | M47: =+PRODUCT(D42:D47) -> 1.17379217 | N47: =+PRODUCT(D43:D47) -> 1.156963608 | O47: =+PRODUCT(D44:D47) -> 1.123713915 | P47: =+PRODUCT(D45:D47) -> 1.091419777 | Q47: =+PRODUCT(D46:D47) -> 1.060053732 | R47: =+PRODUCT(D47:D47) -> 1.029589108
A48: 2028 | B48: =+B15 -> 0.06130045299 | C48: 0.0308 | D48: 1.029589108 | E48: 12 | F48: 12.85362136 | H48: 1 | I48: =+PRODUCT(D38:D48) -> 1.273853603 | J48: =+PRODUCT(D39:D48) -> 1.256134222 | K48: =+PRODUCT(D40:D48) -> 1.236070469 | L48: =+PRODUCT(D41:D48) -> 1.226102159 | M48: =+PRODUCT(D42:D48) -> 1.208523633 | N48: =+PRODUCT(D43:D48) -> 1.19119713 | O48: =+PRODUCT(D44:D48) -> 1.156963608 | P48: =+PRODUCT(D45:D48) -> 1.123713915 | Q48: =+PRODUCT(D46:D48) -> 1.091419777 | R48: =+PRODUCT(D47:D48) -> 1.060053732 | S48: =+PRODUCT(D48:D48) -> 1.029589108
A49: 2029 | B49: =+B16 -> 0.06130045299 | C49: 0.0308 | D49: 1.029589108 | E49: 13 | F49: 14.26353766 | H49: 1 | I49: =+PRODUCT(D38:D49) -> 1.311545796 | J49: =+PRODUCT(D39:D49) -> 1.293302114 | K49: =+PRODUCT(D40:D49) -> 1.272644692 | L49: =+PRODUCT(D41:D49) -> 1.262381429 | M49: =+PRODUCT(D42:D49) -> 1.24428277 | N49: =+PRODUCT(D43:D49) -> 1.226443591 | O49: =+PRODUCT(D44:D49) -> 1.19119713 | P49: =+PRODUCT(D45:D49) -> 1.156963608 | Q49: =+PRODUCT(D46:D49) -> 1.123713915 | R49: =+PRODUCT(D47:D49) -> 1.091419777 | S49: =+PRODUCT(D48:D49) -> 1.060053732 | T49: =+PRODUCT(D49:D49) -> 1.029589108
A50: 2030 | B50: =+B17 -> 0.06130045299 | C50: 0.0308 | D50: 1.029589108 | E50: 14 | F50: 15.71517213 | H50: 1 | I50: =+PRODUCT(D38:D50) -> 1.350353266 | J50: =+PRODUCT(D39:D50) -> 1.33156977 | K50: =+PRODUCT(D40:D50) -> 1.310301114 | L50: =+PRODUCT(D41:D50) -> 1.29973417 | M50: =+PRODUCT(D42:D50) -> 1.281099988 | N50: =+PRODUCT(D43:D50) -> 1.262732963 | O50: =+PRODUCT(D44:D50) -> 1.226443591 | P50: =+PRODUCT(D45:D50) -> 1.19119713 | Q50: =+PRODUCT(D46:D50) -> 1.156963608 | R50: =+PRODUCT(D47:D50) -> 1.123713915 | S50: =+PRODUCT(D48:D50) -> 1.091419777 | T50: =+PRODUCT(D49:D50) -> 1.060053732 | U50: =+PRODUCT(D50:D50) -> 1.029589108
A51: 2031 | B51: =+B18 -> 0.06130045299 | C51: 0.0308 | D51: 1.029589108 | E51: 15 | F51: 17.20975917 | H51: 1 | I51: =+PRODUCT(D38:D51) -> 1.390309016 | J51: =+PRODUCT(D39:D51) -> 1.370969732 | K51: =+PRODUCT(D40:D51) -> 1.349071756 | L51: =+PRODUCT(D41:D51) -> 1.338192145 | M51: =+PRODUCT(D42:D51) -> 1.319006595 | N51: =+PRODUCT(D43:D51) -> 1.300096106 | O51: =+PRODUCT(D44:D51) -> 1.262732963 | P51: =+PRODUCT(D45:D51) -> 1.226443591 | Q51: =+PRODUCT(D46:D51) -> 1.19119713 | R51: =+PRODUCT(D47:D51) -> 1.156963608 | S51: =+PRODUCT(D48:D51) -> 1.123713915 | T51: =+PRODUCT(D49:D51) -> 1.091419777 | U51: =+PRODUCT(D50:D51) -> 1.060053732 | V51: =+PRODUCT(D51:D51) -> 1.029589108
A52: 2032 | B52: =+B19 -> 0.06130045299 | C52: 0.0308 | D52: 1.029589108 | E52: 16 | F52: 18.74856971 | H52: 1 | I52: =+PRODUCT(D38:D52) -> 1.43144702 | J52: =+PRODUCT(D39:D52) -> 1.411535504 | K52: =+PRODUCT(D40:D52) -> 1.388989587 | L52: =+PRODUCT(D41:D52) -> 1.377788058 | M52: =+PRODUCT(D42:D52) -> 1.358034824 | N52: =+PRODUCT(D43:D52) -> 1.33856479 | O52: =+PRODUCT(D44:D52) -> 1.300096106 | P52: =+PRODUCT(D45:D52) -> 1.262732963 | Q52: =+PRODUCT(D46:D52) -> 1.226443591 | R52: =+PRODUCT(D47:D52) -> 1.19119713 | S52: =+PRODUCT(D48:D52) -> 1.156963608 | T52: =+PRODUCT(D49:D52) -> 1.123713915 | U52: =+PRODUCT(D50:D52) -> 1.091419777 | V52: =+PRODUCT(D51:D52) -> 1.060053732 | W52: =+PRODUCT(D52:D52) -> 1.029589108
A53: 2033 | B53: =+B20 -> 0.06130045299 | C53: 0.0308 | D53: 1.029589108 | E53: 17 | F53: 20.33291228 | H53: 1 | I53: =+PRODUCT(D38:D53) -> 1.473802261 | J53: =+PRODUCT(D39:D53) -> 1.453301582 | K53: =+PRODUCT(D40:D53) -> 1.43008855 | L53: =+PRODUCT(D41:D53) -> 1.418555578 | M53: =+PRODUCT(D42:D53) -> 1.398217863 | N53: =+PRODUCT(D43:D53) -> 1.378171729 | O53: =+PRODUCT(D44:D53) -> 1.33856479 | P53: =+PRODUCT(D45:D53) -> 1.300096106 | Q53: =+PRODUCT(D46:D53) -> 1.262732963 | R53: =+PRODUCT(D47:D53) -> 1.226443591 | S53: =+PRODUCT(D48:D53) -> 1.19119713 | T53: =+PRODUCT(D49:D53) -> 1.156963608 | U53: =+PRODUCT(D50:D53) -> 1.123713915 | V53: =+PRODUCT(D51:D53) -> 1.091419777 | W53: =+PRODUCT(D52:D53) -> 1.060053732 | X53: =+PRODUCT(D53:D53) -> 1.029589108
A54: 2034 | B54: =+B21 -> 0.06130045299 | C54: 0.0308 | D54: 1.029589108 | E54: 18 | F54: 21.96413414 | H54: 1 | I54: =+PRODUCT(D38:D54) -> 1.517410756 | J54: =+PRODUCT(D39:D54) -> 1.49630348 | K54: =+PRODUCT(D40:D54) -> 1.472403595 | L54: =+PRODUCT(D41:D54) -> 1.460529373 | M54: =+PRODUCT(D42:D54) -> 1.439589883 | N54: =+PRODUCT(D43:D54) -> 1.418950602 | O54: =+PRODUCT(D44:D54) -> 1.378171729 | P54: =+PRODUCT(D45:D54) -> 1.33856479 | Q54: =+PRODUCT(D46:D54) -> 1.300096106 | R54: =+PRODUCT(D47:D54) -> 1.262732963 | S54: =+PRODUCT(D48:D54) -> 1.226443591 | T54: =+PRODUCT(D49:D54) -> 1.19119713 | U54: =+PRODUCT(D50:D54) -> 1.156963608 | V54: =+PRODUCT(D51:D54) -> 1.123713915 | W54: =+PRODUCT(D52:D54) -> 1.091419777 | X54: =+PRODUCT(D53:D54) -> 1.060053732 | Y54: =+PRODUCT(D54:D54) -> 1.029589108
A55: 2035 | B55: =+B22 -> 0.06130045299 | C55: 0.0308 | D55: 1.029589108 | E55: 19 | F55: 23.64362239 | H55: 1 | I55: =+PRODUCT(D38:D55) -> 1.562309587 | J55: =+PRODUCT(D39:D55) -> 1.540577766 | K55: =+PRODUCT(D40:D55) -> 1.515970705 | L55: =+PRODUCT(D41:D55) -> 1.503745135 | M55: =+PRODUCT(D42:D55) -> 1.482186065 | N55: =+PRODUCT(D43:D55) -> 1.460936085 | O55: =+PRODUCT(D44:D55) -> 1.418950602 | P55: =+PRODUCT(D45:D55) -> 1.378171729 | Q55: =+PRODUCT(D46:D55) -> 1.33856479 | R55: =+PRODUCT(D47:D55) -> 1.300096106 | S55: =+PRODUCT(D48:D55) -> 1.262732963 | T55: =+PRODUCT(D49:D55) -> 1.226443591 | U55: =+PRODUCT(D50:D55) -> 1.19119713 | V55: =+PRODUCT(D51:D55) -> 1.156963608 | W55: =+PRODUCT(D52:D55) -> 1.123713915 | X55: =+PRODUCT(D53:D55) -> 1.091419777 | Y55: =+PRODUCT(D54:D55) -> 1.060053732 | Z55: =+PRODUCT(D55:D55) -> 1.029589108
A56: 2036 | B56: =+B23 -> 0.06130045299 | C56: 0.0308 | D56: 1.029589108 | E56: 20 | F56: 25.37280521 | H56: 1 | I56: =+PRODUCT(D38:D56) -> 1.608536935 | J56: =+PRODUCT(D39:D56) -> 1.586162088 | K56: =+PRODUCT(D40:D56) -> 1.560826926 | L56: =+PRODUCT(D41:D56) -> 1.548239613 | M56: =+PRODUCT(D42:D56) -> 1.526042629 | N56: =+PRODUCT(D43:D56) -> 1.504163881 | O56: =+PRODUCT(D44:D56) -> 1.460936085 | P56: =+PRODUCT(D45:D56) -> 1.418950602 | Q56: =+PRODUCT(D46:D56) -> 1.378171729 | R56: =+PRODUCT(D47:D56) -> 1.33856479 | S56: =+PRODUCT(D48:D56) -> 1.300096106 | T56: =+PRODUCT(D49:D56) -> 1.262732963 | U56: =+PRODUCT(D50:D56) -> 1.226443591 | V56: =+PRODUCT(D51:D56) -> 1.19119713 | W56: =+PRODUCT(D52:D56) -> 1.156963608 | X56: =+PRODUCT(D53:D56) -> 1.123713915 | Y56: =+PRODUCT(D54:D56) -> 1.091419777 | Z56: =+PRODUCT(D55:D56) -> 1.060053732 | AA56: =+PRODUCT(D56:D56) -> 1.029589108
A57: 2037 | B57: =+B24 -> 0.06130045299 | C57: 0.0308 | D57: 1.029589108 | E57: 21 | F57: 27.153153 | H57: 1 | I57: =+PRODUCT(D38:D57) -> 1.656132109 | J57: =+PRODUCT(D39:D57) -> 1.63309521 | K57: =+PRODUCT(D40:D57) -> 1.607010404 | L57: =+PRODUCT(D41:D57) -> 1.594050642 | M57: =+PRODUCT(D42:D57) -> 1.57119687 | N57: =+PRODUCT(D43:D57) -> 1.54867075 | O57: =+PRODUCT(D44:D57) -> 1.504163881 | P57: =+PRODUCT(D45:D57) -> 1.460936085 | Q57: =+PRODUCT(D46:D57) -> 1.418950602 | R57: =+PRODUCT(D47:D57) -> 1.378171729 | S57: =+PRODUCT(D48:D57) -> 1.33856479 | T57: =+PRODUCT(D49:D57) -> 1.300096106 | U57: =+PRODUCT(D50:D57) -> 1.262732963 | V57: =+PRODUCT(D51:D57) -> 1.226443591 | W57: =+PRODUCT(D52:D57) -> 1.19119713 | X57: =+PRODUCT(D53:D57) -> 1.156963608 | Y57: =+PRODUCT(D54:D57) -> 1.123713915 | Z57: =+PRODUCT(D55:D57) -> 1.091419777 | AA57: =+PRODUCT(D56:D57) -> 1.060053732 | AB57: =+PRODUCT(D57:D57) -> 1.029589108
A58: 2038 | B58: =+B25 -> 0.06130045299 | C58: 0.0308 | D58: 1.029589108 | E58: 22 | F58: 28.9861797 | H58: 1 | I58: =+PRODUCT(D38:D58) -> 1.705135581 | J58: =+PRODUCT(D39:D58) -> 1.681417041 | K58: =+PRODUCT(D40:D58) -> 1.654560409 | L58: =+PRODUCT(D41:D58) -> 1.64121718 | M58: =+PRODUCT(D42:D58) -> 1.617687184 | N58: =+PRODUCT(D43:D58) -> 1.594494536 | O58: =+PRODUCT(D44:D58) -> 1.54867075 | P58: =+PRODUCT(D45:D58) -> 1.504163881 | Q58: =+PRODUCT(D46:D58) -> 1.460936085 | R58: =+PRODUCT(D47:D58) -> 1.418950602 | S58: =+PRODUCT(D48:D58) -> 1.378171729 | T58: =+PRODUCT(D49:D58) -> 1.33856479 | U58: =+PRODUCT(D50:D58) -> 1.300096106 | V58: =+PRODUCT(D51:D58) -> 1.262732963 | W58: =+PRODUCT(D52:D58) -> 1.226443591 | X58: =+PRODUCT(D53:D58) -> 1.19119713 | Y58: =+PRODUCT(D54:D58) -> 1.156963608 | Z58: =+PRODUCT(D55:D58) -> 1.123713915 | AA58: =+PRODUCT(D56:D58) -> 1.091419777 | AB58: =+PRODUCT(D57:D58) -> 1.060053732 | AC58: =+PRODUCT(D58:D58) -> 1.029589108
A59: 2039 | B59: =+B26 -> 0.06130045299 | C59: 0.0308 | D59: 1.029589108 | E59: 23 | F59: 30.87344402 | H59: 1 | I59: =+PRODUCT(D38:D59) -> 1.755589023 | J59: =+PRODUCT(D39:D59) -> 1.731168673 | K59: =+PRODUCT(D40:D59) -> 1.703517376 | L59: =+PRODUCT(D41:D59) -> 1.689779333 | M59: =+PRODUCT(D42:D59) -> 1.665553106 | N59: =+PRODUCT(D43:D59) -> 1.641674208 | O59: =+PRODUCT(D44:D59) -> 1.594494536 | P59: =+PRODUCT(D45:D59) -> 1.54867075 | Q59: =+PRODUCT(D46:D59) -> 1.504163881 | R59: =+PRODUCT(D47:D59) -> 1.460936085 | S59: =+PRODUCT(D48:D59) -> 1.418950602 | T59: =+PRODUCT(D49:D59) -> 1.378171729 | U59: =+PRODUCT(D50:D59) -> 1.33856479 | V59: =+PRODUCT(D51:D59) -> 1.300096106 | W59: =+PRODUCT(D52:D59) -> 1.262732963 | X59: =+PRODUCT(D53:D59) -> 1.226443591 | Y59: =+PRODUCT(D54:D59) -> 1.19119713 | Z59: =+PRODUCT(D55:D59) -> 1.156963608 | AA59: =+PRODUCT(D56:D59) -> 1.123713915 | AB59: =+PRODUCT(D57:D59) -> 1.091419777 | AC59: =+PRODUCT(D58:D59) -> 1.060053732 | AD59: =+PRODUCT(D59:D59) -> 1.029589108
A60: 2040 | B60: =+B27 -> 0.06130045299 | C60: 0.0308 | D60: 1.029589108 | E60: 24 | F60: 32.81655082 | H60: 1 | I60: =+PRODUCT(D38:D60) -> 1.807535337 | J60: =+PRODUCT(D39:D60) -> 1.78239241 | K60: =+PRODUCT(D40:D60) -> 1.753922937 | L60: =+PRODUCT(D41:D60) -> 1.739778397 | M60: =+PRODUCT(D42:D60) -> 1.714835337 | N60: =+PRODUCT(D43:D60) -> 1.690249884 | O60: =+PRODUCT(D44:D60) -> 1.641674208 | P60: =+PRODUCT(D45:D60) -> 1.594494536 | Q60: =+PRODUCT(D46:D60) -> 1.54867075 | R60: =+PRODUCT(D47:D60) -> 1.504163881 | S60: =+PRODUCT(D48:D60) -> 1.460936085 | T60: =+PRODUCT(D49:D60) -> 1.418950602 | U60: =+PRODUCT(D50:D60) -> 1.378171729 | V60: =+PRODUCT(D51:D60) -> 1.33856479 | W60: =+PRODUCT(D52:D60) -> 1.300096106 | X60: =+PRODUCT(D53:D60) -> 1.262732963 | Y60: =+PRODUCT(D54:D60) -> 1.226443591 | Z60: =+PRODUCT(D55:D60) -> 1.19119713 | AA60: =+PRODUCT(D56:D60) -> 1.156963608 | AB60: =+PRODUCT(D57:D60) -> 1.123713915 | AC60: =+PRODUCT(D58:D60) -> 1.091419777 | AD60: =+PRODUCT(D59:D60) -> 1.060053732 | AE60: =+PRODUCT(D60:D60) -> 1.029589108
A61: 2041 | B61: =+B28 -> 0.06130045299 | C61: 0.0308 | D61: 1.029589108 | E61: 25 | F61: 34.8171524 | H61: 1 | I61: =+PRODUCT(D38:D61) -> 1.861018696 | J61: =+PRODUCT(D39:D61) -> 1.835131813 | K61: =+PRODUCT(D40:D61) -> 1.805819952 | L61: =+PRODUCT(D41:D61) -> 1.791256888 | M61: =+PRODUCT(D42:D61) -> 1.765575786 | N61: =+PRODUCT(D43:D61) -> 1.740262872 | O61: =+PRODUCT(D44:D61) -> 1.690249884 | P61: =+PRODUCT(D45:D61) -> 1.641674208 | Q61: =+PRODUCT(D46:D61) -> 1.594494536 | R61: =+PRODUCT(D47:D61) -> 1.54867075 | S61: =+PRODUCT(D48:D61) -> 1.504163881 | T61: =+PRODUCT(D49:D61) -> 1.460936085 | U61: =+PRODUCT(D50:D61) -> 1.418950602 | V61: =+PRODUCT(D51:D61) -> 1.378171729 | W61: =+PRODUCT(D52:D61) -> 1.33856479 | X61: =+PRODUCT(D53:D61) -> 1.300096106 | Y61: =+PRODUCT(D54:D61) -> 1.262732963 | Z61: =+PRODUCT(D55:D61) -> 1.226443591 | AA61: =+PRODUCT(D56:D61) -> 1.19119713 | AB61: =+PRODUCT(D57:D61) -> 1.156963608 | AC61: =+PRODUCT(D58:D61) -> 1.123713915 | AD61: =+PRODUCT(D59:D61) -> 1.091419777 | AE61: =+PRODUCT(D60:D61) -> 1.060053732 | AF61: =+PRODUCT(D61:D61) -> 1.029589108
A62: 2042 | B62: =+B29 -> 0.06130045299 | C62: 0.0308 | D62: 1.029589108 | E62: 26 | F62: 36.87695001 | H62: 1 | I62: =+PRODUCT(D38:D62) -> 1.91608458 | J62: =+PRODUCT(D39:D62) -> 1.889431727 | K62: =+PRODUCT(D40:D62) -> 1.859252555 | L62: =+PRODUCT(D41:D62) -> 1.844258583 | M62: =+PRODUCT(D42:D62) -> 1.817817599 | N62: =+PRODUCT(D43:D62) -> 1.791755698 | O62: =+PRODUCT(D44:D62) -> 1.740262872 | P62: =+PRODUCT(D45:D62) -> 1.690249884 | Q62: =+PRODUCT(D46:D62) -> 1.641674208 | R62: =+PRODUCT(D47:D62) -> 1.594494536 | S62: =+PRODUCT(D48:D62) -> 1.54867075 | T62: =+PRODUCT(D49:D62) -> 1.504163881 | U62: =+PRODUCT(D50:D62) -> 1.460936085 | V62: =+PRODUCT(D51:D62) -> 1.418950602 | W62: =+PRODUCT(D52:D62) -> 1.378171729 | X62: =+PRODUCT(D53:D62) -> 1.33856479 | Y62: =+PRODUCT(D54:D62) -> 1.300096106 | Z62: =+PRODUCT(D55:D62) -> 1.262732963 | AA62: =+PRODUCT(D56:D62) -> 1.226443591 | AB62: =+PRODUCT(D57:D62) -> 1.19119713 | AC62: =+PRODUCT(D58:D62) -> 1.156963608 | AD62: =+PRODUCT(D59:D62) -> 1.123713915 | AE62: =+PRODUCT(D60:D62) -> 1.091419777 | AF62: =+PRODUCT(D61:D62) -> 1.060053732 | AG62: =+PRODUCT(D62:D62) -> 1.029589108
A63: 2043 | B63: =+B30 -> 0.06130045299 | C63: 0.0308 | D63: 1.029589108 | E63: 27 | F63: 38.99769519 | H63: 1 | I63: =+PRODUCT(D38:D63) -> 1.972779815 | J63: =+PRODUCT(D39:D63) -> 1.945338327 | K63: =+PRODUCT(D40:D63) -> 1.91426618 | L63: =+PRODUCT(D41:D63) -> 1.89882855 | M63: =+PRODUCT(D42:D63) -> 1.871605201 | N63: =+PRODUCT(D43:D63) -> 1.844772152 | O63: =+PRODUCT(D44:D63) -> 1.791755698 | P63: =+PRODUCT(D45:D63) -> 1.740262872 | Q63: =+PRODUCT(D46:D63) -> 1.690249884 | R63: =+PRODUCT(D47:D63) -> 1.641674208 | S63: =+PRODUCT(D48:D63) -> 1.594494536 | T63: =+PRODUCT(D49:D63) -> 1.54867075 | U63: =+PRODUCT(D50:D63) -> 1.504163881 | V63: =+PRODUCT(D51:D63) -> 1.460936085 | W63: =+PRODUCT(D52:D63) -> 1.418950602 | X63: =+PRODUCT(D53:D63) -> 1.378171729 | Y63: =+PRODUCT(D54:D63) -> 1.33856479 | Z63: =+PRODUCT(D55:D63) -> 1.300096106 | AA63: =+PRODUCT(D56:D63) -> 1.262732963 | AB63: =+PRODUCT(D57:D63) -> 1.226443591 | AC63: =+PRODUCT(D58:D63) -> 1.19119713 | AD63: =+PRODUCT(D59:D63) -> 1.156963608 | AE63: =+PRODUCT(D60:D63) -> 1.123713915 | AF63: =+PRODUCT(D61:D63) -> 1.091419777 | AG63: =+PRODUCT(D62:D63) -> 1.060053732 | AH63: =+PRODUCT(D63:D63) -> 1.029589108
A64: 2044 | B64: =+B31 -> 0.06130045299 | C64: 0.0308 | D64: 1.029589108 | E64: 28 | F64: 41.18119133 | H64: 1 | I64: =+PRODUCT(D38:D64) -> 2.03115261 | J64: =+PRODUCT(D39:D64) -> 2.002899154 | K64: =+PRODUCT(D40:D64) -> 1.97090761 | L64: =+PRODUCT(D41:D64) -> 1.955013194 | M64: =+PRODUCT(D42:D64) -> 1.926984331 | N64: =+PRODUCT(D43:D64) -> 1.899357315 | O64: =+PRODUCT(D44:D64) -> 1.844772152 | P64: =+PRODUCT(D45:D64) -> 1.791755698 | Q64: =+PRODUCT(D46:D64) -> 1.740262872 | R64: =+PRODUCT(D47:D64) -> 1.690249884 | S64: =+PRODUCT(D48:D64) -> 1.641674208 | T64: =+PRODUCT(D49:D64) -> 1.594494536 | U64: =+PRODUCT(D50:D64) -> 1.54867075 | V64: =+PRODUCT(D51:D64) -> 1.504163881 | W64: =+PRODUCT(D52:D64) -> 1.460936085 | X64: =+PRODUCT(D53:D64) -> 1.418950602 | Y64: =+PRODUCT(D54:D64) -> 1.378171729 | Z64: =+PRODUCT(D55:D64) -> 1.33856479 | AA64: =+PRODUCT(D56:D64) -> 1.300096106 | AB64: =+PRODUCT(D57:D64) -> 1.262732963 | AC64: =+PRODUCT(D58:D64) -> 1.226443591 | AD64: =+PRODUCT(D59:D64) -> 1.19119713 | AE64: =+PRODUCT(D60:D64) -> 1.156963608 | AF64: =+PRODUCT(D61:D64) -> 1.123713915 | AG64: =+PRODUCT(D62:D64) -> 1.091419777 | AH64: =+PRODUCT(D63:D64) -> 1.060053732 | AI64: =+PRODUCT(D64:D64) -> 1.029589108
A65: 2045 | B65: =+B32 -> 0.06130045299 | C65: 0.0308 | D65: 1.029589108 | E65: 29 | F65: 43.42929518 | H65: 1 | I65: =+PRODUCT(D38:D65) -> 2.091252605 | J65: =+PRODUCT(D39:D65) -> 2.062163154 | K65: =+PRODUCT(D40:D65) -> 2.029225009 | L65: =+PRODUCT(D41:D65) -> 2.012860291 | M65: =+PRODUCT(D42:D65) -> 1.984002079 | N65: =+PRODUCT(D43:D65) -> 1.955557605 | O65: =+PRODUCT(D44:D65) -> 1.899357315 | P65: =+PRODUCT(D45:D65) -> 1.844772152 | Q65: =+PRODUCT(D46:D65) -> 1.791755698 | R65: =+PRODUCT(D47:D65) -> 1.740262872 | S65: =+PRODUCT(D48:D65) -> 1.690249884 | T65: =+PRODUCT(D49:D65) -> 1.641674208 | U65: =+PRODUCT(D50:D65) -> 1.594494536 | V65: =+PRODUCT(D51:D65) -> 1.54867075 | W65: =+PRODUCT(D52:D65) -> 1.504163881 | X65: =+PRODUCT(D53:D65) -> 1.460936085 | Y65: =+PRODUCT(D54:D65) -> 1.418950602 | Z65: =+PRODUCT(D55:D65) -> 1.378171729 | AA65: =+PRODUCT(D56:D65) -> 1.33856479 | AB65: =+PRODUCT(D57:D65) -> 1.300096106 | AC65: =+PRODUCT(D58:D65) -> 1.262732963 | AD65: =+PRODUCT(D59:D65) -> 1.226443591 | AE65: =+PRODUCT(D60:D65) -> 1.19119713 | AF65: =+PRODUCT(D61:D65) -> 1.156963608 | AG65: =+PRODUCT(D62:D65) -> 1.123713915 | AH65: =+PRODUCT(D63:D65) -> 1.091419777 | AI65: =+PRODUCT(D64:D65) -> 1.060053732 | AJ65: =+PRODUCT(D65:D65) -> 1.029589108
A66: 2046 | B66: =+B33 -> 0 | C66: 0 | D66: 1 | E66: 30 | F66: 44.42929518 | H66: 1 | I66: =+PRODUCT(D38:D66) -> 2.091252605 | J66: =+PRODUCT(D39:D66) -> 2.062163154 | K66: =+PRODUCT(D40:D66) -> 2.029225009 | L66: =+PRODUCT(D41:D66) -> 2.012860291 | M66: =+PRODUCT(D42:D66) -> 1.984002079 | N66: =+PRODUCT(D43:D66) -> 1.955557605 | O66: =+PRODUCT(D44:D66) -> 1.899357315 | P66: =+PRODUCT(D45:D66) -> 1.844772152 | Q66: =+PRODUCT(D46:D66) -> 1.791755698 | R66: =+PRODUCT(D47:D66) -> 1.740262872 | S66: =+PRODUCT(D48:D66) -> 1.690249884 | T66: =+PRODUCT(D49:D66) -> 1.641674208 | U66: =+PRODUCT(D50:D66) -> 1.594494536 | V66: =+PRODUCT(D51:D66) -> 1.54867075 | W66: =+PRODUCT(D52:D66) -> 1.504163881 | X66: =+PRODUCT(D53:D66) -> 1.460936085 | Y66: =+PRODUCT(D54:D66) -> 1.418950602 | Z66: =+PRODUCT(D55:D66) -> 1.378171729 | AA66: =+PRODUCT(D56:D66) -> 1.33856479 | AB66: =+PRODUCT(D57:D66) -> 1.300096106 | AC66: =+PRODUCT(D58:D66) -> 1.262732963 | AD66: =+PRODUCT(D59:D66) -> 1.226443591 | AE66: =+PRODUCT(D60:D66) -> 1.19119713 | AF66: =+PRODUCT(D61:D66) -> 1.156963608 | AG66: =+PRODUCT(D62:D66) -> 1.123713915 | AH66: =+PRODUCT(D63:D66) -> 1.091419777 | AI66: =+PRODUCT(D64:D66) -> 1.060053732 | AJ66: =+PRODUCT(D65:D66) -> 1.029589108 | AK66: =+PRODUCT(D66:D66) -> 1
A69: Fecha(Anual) | B69: r_t | C69: c_y_t | D69: 1+r_t / 1+c_y_t | E69: t | F69: Multiplicatoria inversa | G69: 0 | H69: =+G69+1 -> 1 | I69: =+H69+1 -> 2 | J69: =+I69+1 -> 3 | K69: =+J69+1 -> 4 | L69: =+K69+1 -> 5 | M69: =+L69+1 -> 6 | N69: =+M69+1 -> 7 | O69: =+N69+1 -> 8 | P69: =+O69+1 -> 9 | Q69: =+P69+1 -> 10 | R69: =+Q69+1 -> 11 | S69: =+R69+1 -> 12 | T69: =+S69+1 -> 13 | U69: =+T69+1 -> 14 | V69: =+U69+1 -> 15 | W69: =+V69+1 -> 16 | X69: =+W69+1 -> 17 | Y69: =+X69+1 -> 18 | Z69: =+Y69+1 -> 19 | AA69: =+Z69+1 -> 20 | AB69: =+AA69+1 -> 21 | AC69: =+AB69+1 -> 22 | AD69: =+AC69+1 -> 23 | AE69: =+AD69+1 -> 24 | AF69: =+AE69+1 -> 25 | AG69: =+AF69+1 -> 26 | AH69: =+AG69+1 -> 27 | AI69: =+AH69+1 -> 28 | AJ69: =+AI69+1 -> 29 | AK69: =+AJ69+1 -> 30
A70: =+A37 -> 2017 | D70: 1 | E70: 0
A71: =+A70+1 -> 2018 | B71: =+B38 -> 0.0496 | C71: =+C38 -> 0.035 | D71: =(1+B71)/(1+C71) -> 1.01410628 | E71: 1 | H71: 1
A72: =+A71+1 -> 2019 | B72: =+B39 -> 0.0518 | C72: 0.035 | D72: =(1+B72)/(1+C72) -> 1.016231884 | E72: =+E71+1 -> 2 | F72: =+SUM(I72:AK72) -> 1.016231884 | H72: 1 | I72: =+PRODUCT(D72:D72) -> 1.016231884
A73: 2020 | B73: =+B40 -> 0.05349593496 | C73: 0.045 | D73: 1.008130081 | E73: =+E72+1 -> 3 | F73: =+SUM(I73:AK73) -> 2.032624013 | H73: 1 | I73: =+PRODUCT(D72:D73) -> 1.024493932 | J73: =+PRODUCT(D73:D73) -> 1.008130081
A74: 2021 | B74: =+B41 -> 0.0602 | C74: 0.045 | D74: 1.014545455 | E74: 4 | F74: 3.076734908 | H74: 1 | I74: =+PRODUCT(D72:D74) -> 1.039395662 | J74: =+PRODUCT(D73:D74) -> 1.022793792 | K74: =+PRODUCT(D74:D74) -> 1.014545455 | L74: =+IF(L69>E74,"",1) -> 
A75: 2022 | B75: =+B42 -> 0.0602 | C75: 0.045 | D75: 1.014545455 | E75: 5 | F75: 4.13603287 | H75: 1 | I75: =+PRODUCT(D72:D75) -> 1.054514144 | J75: =+PRODUCT(D73:D75) -> 1.037670792 | K75: =+PRODUCT(D74:D75) -> 1.029302479 | L75: =+PRODUCT(D75:D75) -> 1.014545455
A76: 2023 | B76: =+B43 -> 0.06130045299 | C76: 0.0308 | D76: 1.029589108 | E76: 6 | F76: 5.288003504 | H76: 1 | I76: =+PRODUCT(D72:D76) -> 1.085716278 | J76: =+PRODUCT(D73:D76) -> 1.068374546 | K76: =+PRODUCT(D74:D76) -> 1.059758622 | L76: =+PRODUCT(D75:D76) -> 1.04456495 | M76: =+PRODUCT(D76:D76) -> 1.029589108
A77: 2024 | B77: =+B44 -> 0.06130045299 | C77: 0.0308 | D77: 1.029589108 | E77: 7 | F77: 6.474059921 | H77: 1 | I77: =+PRODUCT(D72:D77) -> 1.117841654 | J77: =+PRODUCT(D73:D77) -> 1.099986796 | K77: =+PRODUCT(D74:D77) -> 1.091115935 | L77: =+PRODUCT(D75:D77) -> 1.075472696 | M77: =+PRODUCT(D76:D77) -> 1.060053732 | N77: =+PRODUCT(D77:D77) -> 1.029589108
A78: 2025 | B78: =+B45 -> 0.06130045299 | C78: 0.0308 | D78: 1.029589108 | E78: 8 | F78: 7.695210691 | H78: 1 | I78: =+PRODUCT(D72:D78) -> 1.150917592 | J78: =+PRODUCT(D73:D78) -> 1.132534425 | K78: =+PRODUCT(D74:D78) -> 1.123401083 | L78: =+PRODUCT(D75:D78) -> 1.107294974 | M78: =+PRODUCT(D76:D78) -> 1.091419777 | N78: =+PRODUCT(D77:D78) -> 1.060053732 | O78: =+PRODUCT(D78:D78) -> 1.029589108
A79: 2026 | B79: =+B46 -> 0.06130045299 | C79: 0.0308 | D79: 1.029589108 | E79: 9 | F79: 8.952494223 | H79: 1 | I79: =+PRODUCT(D72:D79) -> 1.184972218 | J79: =+PRODUCT(D73:D79) -> 1.166045109 | K79: =+PRODUCT(D74:D79) -> 1.156641519 | L79: =+PRODUCT(D75:D79) -> 1.140058845 | M79: =+PRODUCT(D76:D79) -> 1.123713915 | N79: =+PRODUCT(D77:D79) -> 1.091419777 | O79: =+PRODUCT(D78:D79) -> 1.060053732 | P79: =+PRODUCT(D79:D79) -> 1.029589108
A80: 2027 | B80: =+B47 -> 0.06130045299 | C80: 0.0308 | D80: 1.029589108 | E80: 10 | F80: 10.24697965 | H80: 1 | I80: =+PRODUCT(D72:D80) -> 1.220034489 | J80: =+PRODUCT(D73:D80) -> 1.200547344 | K80: =+PRODUCT(D74:D80) -> 1.19086551 | L80: =+PRODUCT(D75:D80) -> 1.17379217 | M80: =+PRODUCT(D76:D80) -> 1.156963608 | N80: =+PRODUCT(D77:D80) -> 1.123713915 | O80: =+PRODUCT(D78:D80) -> 1.091419777 | P80: =+PRODUCT(D79:D80) -> 1.060053732 | Q80: =+PRODUCT(D80:D80) -> 1.029589108
A81: 2028 | B81: =+B48 -> 0.06130045299 | C81: 0.0308 | D81: 1.029589108 | E81: 11 | F81: 11.57976775 | H81: 1 | I81: =+PRODUCT(D72:D81) -> 1.256134222 | J81: =+PRODUCT(D73:D81) -> 1.236070469 | K81: =+PRODUCT(D74:D81) -> 1.226102159 | L81: =+PRODUCT(D75:D81) -> 1.208523633 | M81: =+PRODUCT(D76:D81) -> 1.19119713 | N81: =+PRODUCT(D77:D81) -> 1.156963608 | O81: =+PRODUCT(D78:D81) -> 1.123713915 | P81: =+PRODUCT(D79:D81) -> 1.091419777 | Q81: =+PRODUCT(D80:D81) -> 1.060053732 | R81: =+PRODUCT(D81:D81) -> 1.029589108
A82: 2029 | B82: =+B49 -> 0.06130045299 | C82: 0.0308 | D82: 1.029589108 | E82: 12 | F82: 12.95199187 | H82: 1 | I82: =+PRODUCT(D72:D82) -> 1.293302114 | J82: =+PRODUCT(D73:D82) -> 1.272644692 | K82: =+PRODUCT(D74:D82) -> 1.262381429 | L82: =+PRODUCT(D75:D82) -> 1.24428277 | M82: =+PRODUCT(D76:D82) -> 1.226443591 | N82: =+PRODUCT(D77:D82) -> 1.19119713 | O82: =+PRODUCT(D78:D82) -> 1.156963608 | P82: =+PRODUCT(D79:D82) -> 1.123713915 | Q82: =+PRODUCT(D80:D82) -> 1.091419777 | R82: =+PRODUCT(D81:D82) -> 1.060053732 | S82: =+PRODUCT(D82:D82) -> 1.029589108
A83: 2030 | B83: =+B50 -> 0.06130045299 | C83: 0.0308 | D83: 1.029589108 | E83: 13 | F83: 14.36481887 | H83: 1 | I83: =+PRODUCT(D72:D83) -> 1.33156977 | J83: =+PRODUCT(D73:D83) -> 1.310301114 | K83: =+PRODUCT(D74:D83) -> 1.29973417 | L83: =+PRODUCT(D75:D83) -> 1.281099988 | M83: =+PRODUCT(D76:D83) -> 1.262732963 | N83: =+PRODUCT(D77:D83) -> 1.226443591 | O83: =+PRODUCT(D78:D83) -> 1.19119713 | P83: =+PRODUCT(D79:D83) -> 1.156963608 | Q83: =+PRODUCT(D80:D83) -> 1.123713915 | R83: =+PRODUCT(D81:D83) -> 1.091419777 | S83: =+PRODUCT(D82:D83) -> 1.060053732 | T83: =+PRODUCT(D83:D83) -> 1.029589108
A84: 2031 | B84: =+B51 -> 0.06130045299 | C84: 0.0308 | D84: 1.029589108 | E84: 14 | F84: 15.81945016 | H84: 1 | I84: =+PRODUCT(D72:D84) -> 1.370969732 | J84: =+PRODUCT(D73:D84) -> 1.349071756 | K84: =+PRODUCT(D74:D84) -> 1.338192145 | L84: =+PRODUCT(D75:D84) -> 1.319006595 | M84: =+PRODUCT(D76:D84) -> 1.300096106 | N84: =+PRODUCT(D77:D84) -> 1.262732963 | O84: =+PRODUCT(D78:D84) -> 1.226443591 | P84: =+PRODUCT(D79:D84) -> 1.19119713 | Q84: =+PRODUCT(D80:D84) -> 1.156963608 | R84: =+PRODUCT(D81:D84) -> 1.123713915 | S84: =+PRODUCT(D82:D84) -> 1.091419777 | T84: =+PRODUCT(D83:D84) -> 1.060053732 | U84: =+PRODUCT(D84:D84) -> 1.029589108
A85: 2032 | B85: =+B52 -> 0.06130045299 | C85: 0.0308 | D85: 1.029589108 | E85: 15 | F85: 17.31712269 | H85: 1 | I85: =+PRODUCT(D72:D85) -> 1.411535504 | J85: =+PRODUCT(D73:D85) -> 1.388989587 | K85: =+PRODUCT(D74:D85) -> 1.377788058 | L85: =+PRODUCT(D75:D85) -> 1.358034824 | M85: =+PRODUCT(D76:D85) -> 1.33856479 | N85: =+PRODUCT(D77:D85) -> 1.300096106 | O85: =+PRODUCT(D78:D85) -> 1.262732963 | P85: =+PRODUCT(D79:D85) -> 1.226443591 | Q85: =+PRODUCT(D80:D85) -> 1.19119713 | R85: =+PRODUCT(D81:D85) -> 1.156963608 | S85: =+PRODUCT(D82:D85) -> 1.123713915 | T85: =+PRODUCT(D83:D85) -> 1.091419777 | U85: =+PRODUCT(D84:D85) -> 1.060053732 | V85: =+PRODUCT(D85:D85) -> 1.029589108
A86: 2033 | B86: =+B53 -> 0.06130045299 | C86: 0.0308 | D86: 1.029589108 | E86: 16 | F86: 18.85911002 | H86: 1 | I86: =+PRODUCT(D72:D86) -> 1.453301582 | J86: =+PRODUCT(D73:D86) -> 1.43008855 | K86: =+PRODUCT(D74:D86) -> 1.418555578 | L86: =+PRODUCT(D75:D86) -> 1.398217863 | M86: =+PRODUCT(D76:D86) -> 1.378171729 | N86: =+PRODUCT(D77:D86) -> 1.33856479 | O86: =+PRODUCT(D78:D86) -> 1.300096106 | P86: =+PRODUCT(D79:D86) -> 1.262732963 | Q86: =+PRODUCT(D80:D86) -> 1.226443591 | R86: =+PRODUCT(D81:D86) -> 1.19119713 | S86: =+PRODUCT(D82:D86) -> 1.156963608 | T86: =+PRODUCT(D83:D86) -> 1.123713915 | U86: =+PRODUCT(D84:D86) -> 1.091419777 | V86: =+PRODUCT(D85:D86) -> 1.060053732 | W86: =+PRODUCT(D86:D86) -> 1.029589108
A87: 2034 | B87: =+B54 -> 0.06130045299 | C87: 0.0308 | D87: 1.029589108 | E87: 17 | F87: 20.44672338 | H87: 1 | I87: =+PRODUCT(D72:D87) -> 1.49630348 | J87: =+PRODUCT(D73:D87) -> 1.472403595 | K87: =+PRODUCT(D74:D87) -> 1.460529373 | L87: =+PRODUCT(D75:D87) -> 1.439589883 | M87: =+PRODUCT(D76:D87) -> 1.418950602 | N87: =+PRODUCT(D77:D87) -> 1.378171729 | O87: =+PRODUCT(D78:D87) -> 1.33856479 | P87: =+PRODUCT(D79:D87) -> 1.300096106 | Q87: =+PRODUCT(D80:D87) -> 1.262732963 | R87: =+PRODUCT(D81:D87) -> 1.226443591 | S87: =+PRODUCT(D82:D87) -> 1.19119713 | T87: =+PRODUCT(D83:D87) -> 1.156963608 | U87: =+PRODUCT(D84:D87) -> 1.123713915 | V87: =+PRODUCT(D85:D87) -> 1.091419777 | W87: =+PRODUCT(D86:D87) -> 1.060053732 | X87: =+PRODUCT(D87:D87) -> 1.029589108
A88: 2035 | B88: =+B55 -> 0.06130045299 | C88: 0.0308 | D88: 1.029589108 | E88: 18 | F88: 22.08131281 | H88: 1 | I88: =+PRODUCT(D72:D88) -> 1.540577766 | J88: =+PRODUCT(D73:D88) -> 1.515970705 | K88: =+PRODUCT(D74:D88) -> 1.503745135 | L88: =+PRODUCT(D75:D88) -> 1.482186065 | M88: =+PRODUCT(D76:D88) -> 1.460936085 | N88: =+PRODUCT(D77:D88) -> 1.418950602 | O88: =+PRODUCT(D78:D88) -> 1.378171729 | P88: =+PRODUCT(D79:D88) -> 1.33856479 | Q88: =+PRODUCT(D80:D88) -> 1.300096106 | R88: =+PRODUCT(D81:D88) -> 1.262732963 | S88: =+PRODUCT(D82:D88) -> 1.226443591 | T88: =+PRODUCT(D83:D88) -> 1.19119713 | U88: =+PRODUCT(D84:D88) -> 1.156963608 | V88: =+PRODUCT(D85:D88) -> 1.123713915 | W88: =+PRODUCT(D86:D88) -> 1.091419777 | X88: =+PRODUCT(D87:D88) -> 1.060053732 | Y88: =+PRODUCT(D88:D88) -> 1.029589108
A89: 2036 | B89: =+B56 -> 0.06130045299 | C89: 0.0308 | D89: 1.029589108 | E89: 19 | F89: 23.76426828 | H89: 1 | I89: =+PRODUCT(D72:D89) -> 1.586162088 | J89: =+PRODUCT(D73:D89) -> 1.560826926 | K89: =+PRODUCT(D74:D89) -> 1.548239613 | L89: =+PRODUCT(D75:D89) -> 1.526042629 | M89: =+PRODUCT(D76:D89) -> 1.504163881 | N89: =+PRODUCT(D77:D89) -> 1.460936085 | O89: =+PRODUCT(D78:D89) -> 1.418950602 | P89: =+PRODUCT(D79:D89) -> 1.378171729 | Q89: =+PRODUCT(D80:D89) -> 1.33856479 | R89: =+PRODUCT(D81:D89) -> 1.300096106 | S89: =+PRODUCT(D82:D89) -> 1.262732963 | T89: =+PRODUCT(D83:D89) -> 1.226443591 | U89: =+PRODUCT(D84:D89) -> 1.19119713 | V89: =+PRODUCT(D85:D89) -> 1.156963608 | W89: =+PRODUCT(D86:D89) -> 1.123713915 | X89: =+PRODUCT(D87:D89) -> 1.091419777 | Y89: =+PRODUCT(D88:D89) -> 1.060053732 | Z89: =+PRODUCT(D89:D89) -> 1.029589108
A90: 2037 | B90: =+B57 -> 0.06130045299 | C90: 0.0308 | D90: 1.029589108 | E90: 20 | F90: 25.49702089 | H90: 1 | I90: =+PRODUCT(D72:D90) -> 1.63309521 | J90: =+PRODUCT(D73:D90) -> 1.607010404 | K90: =+PRODUCT(D74:D90) -> 1.594050642 | L90: =+PRODUCT(D75:D90) -> 1.57119687 | M90: =+PRODUCT(D76:D90) -> 1.54867075 | N90: =+PRODUCT(D77:D90) -> 1.504163881 | O90: =+PRODUCT(D78:D90) -> 1.460936085 | P90: =+PRODUCT(D79:D90) -> 1.418950602 | Q90: =+PRODUCT(D80:D90) -> 1.378171729 | R90: =+PRODUCT(D81:D90) -> 1.33856479 | S90: =+PRODUCT(D82:D90) -> 1.300096106 | T90: =+PRODUCT(D83:D90) -> 1.262732963 | U90: =+PRODUCT(D84:D90) -> 1.226443591 | V90: =+PRODUCT(D85:D90) -> 1.19119713 | W90: =+PRODUCT(D86:D90) -> 1.156963608 | X90: =+PRODUCT(D87:D90) -> 1.123713915 | Y90: =+PRODUCT(D88:D90) -> 1.091419777 | Z90: =+PRODUCT(D89:D90) -> 1.060053732 | AA90: =+PRODUCT(D90:D90) -> 1.029589108
A91: 2038 | B91: =+B58 -> 0.06130045299 | C91: 0.0308 | D91: 1.029589108 | E91: 21 | F91: 27.28104412 | H91: 1 | I91: =+PRODUCT(D72:D91) -> 1.681417041 | J91: =+PRODUCT(D73:D91) -> 1.654560409 | K91: =+PRODUCT(D74:D91) -> 1.64121718 | L91: =+PRODUCT(D75:D91) -> 1.617687184 | M91: =+PRODUCT(D76:D91) -> 1.594494536 | N91: =+PRODUCT(D77:D91) -> 1.54867075 | O91: =+PRODUCT(D78:D91) -> 1.504163881 | P91: =+PRODUCT(D79:D91) -> 1.460936085 | Q91: =+PRODUCT(D80:D91) -> 1.418950602 | R91: =+PRODUCT(D81:D91) -> 1.378171729 | S91: =+PRODUCT(D82:D91) -> 1.33856479 | T91: =+PRODUCT(D83:D91) -> 1.300096106 | U91: =+PRODUCT(D84:D91) -> 1.262732963 | V91: =+PRODUCT(D85:D91) -> 1.226443591 | W91: =+PRODUCT(D86:D91) -> 1.19119713 | X91: =+PRODUCT(D87:D91) -> 1.156963608 | Y91: =+PRODUCT(D88:D91) -> 1.123713915 | Z91: =+PRODUCT(D89:D91) -> 1.091419777 | AA91: =+PRODUCT(D90:D91) -> 1.060053732 | AB91: =+PRODUCT(D91:D91) -> 1.029589108
A92: 2039 | B92: =+B59 -> 0.06130045299 | C92: 0.0308 | D92: 1.029589108 | E92: 22 | F92: 29.117855 | H92: 1 | I92: =+PRODUCT(D72:D92) -> 1.731168673 | J92: =+PRODUCT(D73:D92) -> 1.703517376 | K92: =+PRODUCT(D74:D92) -> 1.689779333 | L92: =+PRODUCT(D75:D92) -> 1.665553106 | M92: =+PRODUCT(D76:D92) -> 1.641674208 | N92: =+PRODUCT(D77:D92) -> 1.594494536 | O92: =+PRODUCT(D78:D92) -> 1.54867075 | P92: =+PRODUCT(D79:D92) -> 1.504163881 | Q92: =+PRODUCT(D80:D92) -> 1.460936085 | R92: =+PRODUCT(D81:D92) -> 1.418950602 | S92: =+PRODUCT(D82:D92) -> 1.378171729 | T92: =+PRODUCT(D83:D92) -> 1.33856479 | U92: =+PRODUCT(D84:D92) -> 1.300096106 | V92: =+PRODUCT(D85:D92) -> 1.262732963 | W92: =+PRODUCT(D86:D92) -> 1.226443591 | X92: =+PRODUCT(D87:D92) -> 1.19119713 | Y92: =+PRODUCT(D88:D92) -> 1.156963608 | Z92: =+PRODUCT(D89:D92) -> 1.123713915 | AA92: =+PRODUCT(D90:D92) -> 1.091419777 | AB92: =+PRODUCT(D91:D92) -> 1.060053732 | AC92: =+PRODUCT(D92:D92) -> 1.029589108
A93: 2040 | B93: =+B60 -> 0.06130045299 | C93: 0.0308 | D93: 1.029589108 | E93: 23 | F93: 31.00901548 | H93: 1 | I93: =+PRODUCT(D72:D93) -> 1.78239241 | J93: =+PRODUCT(D73:D93) -> 1.753922937 | K93: =+PRODUCT(D74:D93) -> 1.739778397 | L93: =+PRODUCT(D75:D93) -> 1.714835337 | M93: =+PRODUCT(D76:D93) -> 1.690249884 | N93: =+PRODUCT(D77:D93) -> 1.641674208 | O93: =+PRODUCT(D78:D93) -> 1.594494536 | P93: =+PRODUCT(D79:D93) -> 1.54867075 | Q93: =+PRODUCT(D80:D93) -> 1.504163881 | R93: =+PRODUCT(D81:D93) -> 1.460936085 | S93: =+PRODUCT(D82:D93) -> 1.418950602 | T93: =+PRODUCT(D83:D93) -> 1.378171729 | U93: =+PRODUCT(D84:D93) -> 1.33856479 | V93: =+PRODUCT(D85:D93) -> 1.300096106 | W93: =+PRODUCT(D86:D93) -> 1.262732963 | X93: =+PRODUCT(D87:D93) -> 1.226443591 | Y93: =+PRODUCT(D88:D93) -> 1.19119713 | Z93: =+PRODUCT(D89:D93) -> 1.156963608 | AA93: =+PRODUCT(D90:D93) -> 1.123713915 | AB93: =+PRODUCT(D91:D93) -> 1.091419777 | AC93: =+PRODUCT(D92:D93) -> 1.060053732 | AD93: =+PRODUCT(D93:D93) -> 1.029589108
A94: 2041 | B94: =+B61 -> 0.06130045299 | C94: 0.0308 | D94: 1.029589108 | E94: 24 | F94: 32.95613371 | H94: 1 | I94: =+PRODUCT(D72:D94) -> 1.835131813 | J94: =+PRODUCT(D73:D94) -> 1.805819952 | K94: =+PRODUCT(D74:D94) -> 1.791256888 | L94: =+PRODUCT(D75:D94) -> 1.765575786 | M94: =+PRODUCT(D76:D94) -> 1.740262872 | N94: =+PRODUCT(D77:D94) -> 1.690249884 | O94: =+PRODUCT(D78:D94) -> 1.641674208 | P94: =+PRODUCT(D79:D94) -> 1.594494536 | Q94: =+PRODUCT(D80:D94) -> 1.54867075 | R94: =+PRODUCT(D81:D94) -> 1.504163881 | S94: =+PRODUCT(D82:D94) -> 1.460936085 | T94: =+PRODUCT(D83:D94) -> 1.418950602 | U94: =+PRODUCT(D84:D94) -> 1.378171729 | V94: =+PRODUCT(D85:D94) -> 1.33856479 | W94: =+PRODUCT(D86:D94) -> 1.300096106 | X94: =+PRODUCT(D87:D94) -> 1.262732963 | Y94: =+PRODUCT(D88:D94) -> 1.226443591 | Z94: =+PRODUCT(D89:D94) -> 1.19119713 | AA94: =+PRODUCT(D90:D94) -> 1.156963608 | AB94: =+PRODUCT(D91:D94) -> 1.123713915 | AC94: =+PRODUCT(D92:D94) -> 1.091419777 | AD94: =+PRODUCT(D93:D94) -> 1.060053732 | AE94: =+PRODUCT(D94:D94) -> 1.029589108
A95: 2042 | B95: =+B62 -> 0.06130045299 | C95: 0.0308 | D95: 1.029589108 | E95: 25 | F95: 34.96086543 | H95: 1 | I95: =+PRODUCT(D72:D95) -> 1.889431727 | J95: =+PRODUCT(D73:D95) -> 1.859252555 | K95: =+PRODUCT(D74:D95) -> 1.844258583 | L95: =+PRODUCT(D75:D95) -> 1.817817599 | M95: =+PRODUCT(D76:D95) -> 1.791755698 | N95: =+PRODUCT(D77:D95) -> 1.740262872 | O95: =+PRODUCT(D78:D95) -> 1.690249884 | P95: =+PRODUCT(D79:D95) -> 1.641674208 | Q95: =+PRODUCT(D80:D95) -> 1.594494536 | R95: =+PRODUCT(D81:D95) -> 1.54867075 | S95: =+PRODUCT(D82:D95) -> 1.504163881 | T95: =+PRODUCT(D83:D95) -> 1.460936085 | U95: =+PRODUCT(D84:D95) -> 1.418950602 | V95: =+PRODUCT(D85:D95) -> 1.378171729 | W95: =+PRODUCT(D86:D95) -> 1.33856479 | X95: =+PRODUCT(D87:D95) -> 1.300096106 | Y95: =+PRODUCT(D88:D95) -> 1.262732963 | Z95: =+PRODUCT(D89:D95) -> 1.226443591 | AA95: =+PRODUCT(D90:D95) -> 1.19119713 | AB95: =+PRODUCT(D91:D95) -> 1.156963608 | AC95: =+PRODUCT(D92:D95) -> 1.123713915 | AD95: =+PRODUCT(D93:D95) -> 1.091419777 | AE95: =+PRODUCT(D94:D95) -> 1.060053732 | AF95: =+PRODUCT(D95:D95) -> 1.029589108
A96: 2043 | B96: =+B63 -> 0.06130045299 | C96: 0.0308 | D96: 1.029589108 | E96: 26 | F96: 37.02491538 | H96: 1 | I96: =+PRODUCT(D72:D96) -> 1.945338327 | J96: =+PRODUCT(D73:D96) -> 1.91426618 | K96: =+PRODUCT(D74:D96) -> 1.89882855 | L96: =+PRODUCT(D75:D96) -> 1.871605201 | M96: =+PRODUCT(D76:D96) -> 1.844772152 | N96: =+PRODUCT(D77:D96) -> 1.791755698 | O96: =+PRODUCT(D78:D96) -> 1.740262872 | P96: =+PRODUCT(D79:D96) -> 1.690249884 | Q96: =+PRODUCT(D80:D96) -> 1.641674208 | R96: =+PRODUCT(D81:D96) -> 1.594494536 | S96: =+PRODUCT(D82:D96) -> 1.54867075 | T96: =+PRODUCT(D83:D96) -> 1.504163881 | U96: =+PRODUCT(D84:D96) -> 1.460936085 | V96: =+PRODUCT(D85:D96) -> 1.418950602 | W96: =+PRODUCT(D86:D96) -> 1.378171729 | X96: =+PRODUCT(D87:D96) -> 1.33856479 | Y96: =+PRODUCT(D88:D96) -> 1.300096106 | Z96: =+PRODUCT(D89:D96) -> 1.262732963 | AA96: =+PRODUCT(D90:D96) -> 1.226443591 | AB96: =+PRODUCT(D91:D96) -> 1.19119713 | AC96: =+PRODUCT(D92:D96) -> 1.156963608 | AD96: =+PRODUCT(D93:D96) -> 1.123713915 | AE96: =+PRODUCT(D94:D96) -> 1.091419777 | AF96: =+PRODUCT(D95:D96) -> 1.060053732 | AG96: =+PRODUCT(D96:D96) -> 1.029589108
A97: 2044 | B97: =+B64 -> 0.06130045299 | C97: 0.0308 | D97: 1.029589108 | E97: 27 | F97: 39.15003872 | H97: 1 | I97: =+PRODUCT(D72:D97) -> 2.002899154 | J97: =+PRODUCT(D73:D97) -> 1.97090761 | K97: =+PRODUCT(D74:D97) -> 1.955013194 | L97: =+PRODUCT(D75:D97) -> 1.926984331 | M97: =+PRODUCT(D76:D97) -> 1.899357315 | N97: =+PRODUCT(D77:D97) -> 1.844772152 | O97: =+PRODUCT(D78:D97) -> 1.791755698 | P97: =+PRODUCT(D79:D97) -> 1.740262872 | Q97: =+PRODUCT(D80:D97) -> 1.690249884 | R97: =+PRODUCT(D81:D97) -> 1.641674208 | S97: =+PRODUCT(D82:D97) -> 1.594494536 | T97: =+PRODUCT(D83:D97) -> 1.54867075 | U97: =+PRODUCT(D84:D97) -> 1.504163881 | V97: =+PRODUCT(D85:D97) -> 1.460936085 | W97: =+PRODUCT(D86:D97) -> 1.418950602 | X97: =+PRODUCT(D87:D97) -> 1.378171729 | Y97: =+PRODUCT(D88:D97) -> 1.33856479 | Z97: =+PRODUCT(D89:D97) -> 1.300096106 | AA97: =+PRODUCT(D90:D97) -> 1.262732963 | AB97: =+PRODUCT(D91:D97) -> 1.226443591 | AC97: =+PRODUCT(D92:D97) -> 1.19119713 | AD97: =+PRODUCT(D93:D97) -> 1.156963608 | AE97: =+PRODUCT(D94:D97) -> 1.123713915 | AF97: =+PRODUCT(D95:D97) -> 1.091419777 | AG97: =+PRODUCT(D96:D97) -> 1.060053732 | AH97: =+PRODUCT(D97:D97) -> 1.029589108
A98: 2045 | B98: =+B65 -> 0.06130045299 | C98: 0.0308 | D98: 1.029589108 | E98: 28 | F98: 41.33804257 | H98: 1 | I98: =+PRODUCT(D72:D98) -> 2.062163154 | J98: =+PRODUCT(D73:D98) -> 2.029225009 | K98: =+PRODUCT(D74:D98) -> 2.012860291 | L98: =+PRODUCT(D75:D98) -> 1.984002079 | M98: =+PRODUCT(D76:D98) -> 1.955557605 | N98: =+PRODUCT(D77:D98) -> 1.899357315 | O98: =+PRODUCT(D78:D98) -> 1.844772152 | P98: =+PRODUCT(D79:D98) -> 1.791755698 | Q98: =+PRODUCT(D80:D98) -> 1.740262872 | R98: =+PRODUCT(D81:D98) -> 1.690249884 | S98: =+PRODUCT(D82:D98) -> 1.641674208 | T98: =+PRODUCT(D83:D98) -> 1.594494536 | U98: =+PRODUCT(D84:D98) -> 1.54867075 | V98: =+PRODUCT(D85:D98) -> 1.504163881 | W98: =+PRODUCT(D86:D98) -> 1.460936085 | X98: =+PRODUCT(D87:D98) -> 1.418950602 | Y98: =+PRODUCT(D88:D98) -> 1.378171729 | Z98: =+PRODUCT(D89:D98) -> 1.33856479 | AA98: =+PRODUCT(D90:D98) -> 1.300096106 | AB98: =+PRODUCT(D91:D98) -> 1.262732963 | AC98: =+PRODUCT(D92:D98) -> 1.226443591 | AD98: =+PRODUCT(D93:D98) -> 1.19119713 | AE98: =+PRODUCT(D94:D98) -> 1.156963608 | AF98: =+PRODUCT(D95:D98) -> 1.123713915 | AG98: =+PRODUCT(D96:D98) -> 1.091419777 | AH98: =+PRODUCT(D97:D98) -> 1.060053732 | AI98: =+PRODUCT(D98:D98) -> 1.029589108
A99: 2046 | B99: =+B66 -> 0 | C99: 0 | D99: 1 | E99: 29 | F99: 42.33804257 | H99: 1 | I99: =+PRODUCT(D72:D99) -> 2.062163154 | J99: =+PRODUCT(D73:D99) -> 2.029225009 | K99: =+PRODUCT(D74:D99) -> 2.012860291 | L99: =+PRODUCT(D75:D99) -> 1.984002079 | M99: =+PRODUCT(D76:D99) -> 1.955557605 | N99: =+PRODUCT(D77:D99) -> 1.899357315 | O99: =+PRODUCT(D78:D99) -> 1.844772152 | P99: =+PRODUCT(D79:D99) -> 1.791755698 | Q99: =+PRODUCT(D80:D99) -> 1.740262872 | R99: =+PRODUCT(D81:D99) -> 1.690249884 | S99: =+PRODUCT(D82:D99) -> 1.641674208 | T99: =+PRODUCT(D83:D99) -> 1.594494536 | U99: =+PRODUCT(D84:D99) -> 1.54867075 | V99: =+PRODUCT(D85:D99) -> 1.504163881 | W99: =+PRODUCT(D86:D99) -> 1.460936085 | X99: =+PRODUCT(D87:D99) -> 1.418950602 | Y99: =+PRODUCT(D88:D99) -> 1.378171729 | Z99: =+PRODUCT(D89:D99) -> 1.33856479 | AA99: =+PRODUCT(D90:D99) -> 1.300096106 | AB99: =+PRODUCT(D91:D99) -> 1.262732963 | AC99: =+PRODUCT(D92:D99) -> 1.226443591 | AD99: =+PRODUCT(D93:D99) -> 1.19119713 | AE99: =+PRODUCT(D94:D99) -> 1.156963608 | AF99: =+PRODUCT(D95:D99) -> 1.123713915 | AG99: =+PRODUCT(D96:D99) -> 1.091419777 | AH99: =+PRODUCT(D97:D99) -> 1.060053732 | AI99: =+PRODUCT(D98:D99) -> 1.029589108 | AJ99: =+PRODUCT(D99:D99) -> 1
A100: 2047 | B100: =+B67 -> 0 | C100: 0 | D100: 1 | E100: 30 | F100: 43.33804257 | H100: 1 | I100: =+PRODUCT(D72:D100) -> 2.062163154 | J100: =+PRODUCT(D73:D100) -> 2.029225009 | K100: =+PRODUCT(D74:D100) -> 2.012860291 | L100: =+PRODUCT(D75:D100) -> 1.984002079 | M100: =+PRODUCT(D76:D100) -> 1.955557605 | N100: =+PRODUCT(D77:D100) -> 1.899357315 | O100: =+PRODUCT(D78:D100) -> 1.844772152 | P100: =+PRODUCT(D79:D100) -> 1.791755698 | Q100: =+PRODUCT(D80:D100) -> 1.740262872 | R100: =+PRODUCT(D81:D100) -> 1.690249884 | S100: =+PRODUCT(D82:D100) -> 1.641674208 | T100: =+PRODUCT(D83:D100) -> 1.594494536 | U100: =+PRODUCT(D84:D100) -> 1.54867075 | V100: =+PRODUCT(D85:D100) -> 1.504163881 | W100: =+PRODUCT(D86:D100) -> 1.460936085 | X100: =+PRODUCT(D87:D100) -> 1.418950602 | Y100: =+PRODUCT(D88:D100) -> 1.378171729 | Z100: =+PRODUCT(D89:D100) -> 1.33856479 | AA100: =+PRODUCT(D90:D100) -> 1.300096106 | AB100: =+PRODUCT(D91:D100) -> 1.262732963 | AC100: =+PRODUCT(D92:D100) -> 1.226443591 | AD100: =+PRODUCT(D93:D100) -> 1.19119713 | AE100: =+PRODUCT(D94:D100) -> 1.156963608 | AF100: =+PRODUCT(D95:D100) -> 1.123713915 | AG100: =+PRODUCT(D96:D100) -> 1.091419777 | AH100: =+PRODUCT(D97:D100) -> 1.060053732 | AI100: =+PRODUCT(D98:D100) -> 1.029589108 | AJ100: =+PRODUCT(D99:D100) -> 1 | AK100: =+PRODUCT(D100:D100) -> 1
A103: Fecha(Anual) | B103: r_t | C103: c_y_t | D103: 1+r_t / 1+c_y_t | E103: t | F103: Multiplicatoria inversa | G103: 0 | H103: =+G103+1 -> 1 | I103: =+H103+1 -> 2 | J103: =+I103+1 -> 3 | K103: =+J103+1 -> 4 | L103: =+K103+1 -> 5 | M103: =+L103+1 -> 6 | N103: =+M103+1 -> 7 | O103: =+N103+1 -> 8 | P103: =+O103+1 -> 9 | Q103: =+P103+1 -> 10 | R103: =+Q103+1 -> 11 | S103: =+R103+1 -> 12 | T103: =+S103+1 -> 13 | U103: =+T103+1 -> 14 | V103: =+U103+1 -> 15 | W103: =+V103+1 -> 16 | X103: =+W103+1 -> 17 | Y103: =+X103+1 -> 18 | Z103: =+Y103+1 -> 19 | AA103: =+Z103+1 -> 20 | AB103: =+AA103+1 -> 21 | AC103: =+AB103+1 -> 22 | AD103: =+AC103+1 -> 23 | AE103: =+AD103+1 -> 24 | AF103: =+AE103+1 -> 25 | AG103: =+AF103+1 -> 26 | AH103: =+AG103+1 -> 27 | AI103: =+AH103+1 -> 28 | AJ103: =+AI103+1 -> 29 | AK103: =+AJ103+1 -> 30
A104: =+A71 -> 2018 | D104: 1 | E104: 0
A105: =+A104+1 -> 2019 | B105: =+B72 -> 0.0518 | C105: =+C72 -> 0.035 | D105: =(1+B105)/(1+C105) -> 1.016231884 | E105: 1 | H105: 1
A106: =+A105+1 -> 2020 | B106: =+B73 -> 0.05349593496 | C106: 0.045 | D106: =(1+B106)/(1+C106) -> 1.008130081 | E106: =+E105+1 -> 2 | F106: =+SUM(I106:AK106) -> 1.008130081 | H106: 1 | I106: =+PRODUCT(D106:D106) -> 1.008130081
A107: 2021 | B107: =+B74 -> 0.0602 | C107: 0.045 | D107: 1.014545455 | E107: =+E106+1 -> 3 | F107: =+SUM(I107:AK107) -> 2.037339246 | H107: 1 | I107: =+PRODUCT(D106:D107) -> 1.022793792 | J107: =+PRODUCT(D107:D107) -> 1.014545455
A108: 2022 | B108: =+B75 -> 0.0602 | C108: 0.045 | D108: 1.014545455 | E108: 4 | F108: 3.081518726 | H108: 1 | I108: =+PRODUCT(D106:D108) -> 1.037670792 | J108: =+PRODUCT(D107:D108) -> 1.029302479 | K108: =+PRODUCT(D108:D108) -> 1.014545455 | L108: =+IF(L103>E108,"",1) -> 
A109: 2023 | B109: =+B76 -> 0.06130045299 | C109: 0.0308 | D109: 1.029589108 | E109: 5 | F109: 4.202287226 | H109: 1 | I109: =+PRODUCT(D106:D109) -> 1.068374546 | J109: =+PRODUCT(D107:D109) -> 1.059758622 | K109: =+PRODUCT(D108:D109) -> 1.04456495 | L109: =+PRODUCT(D109:D109) -> 1.029589108
A110: 2024 | B110: =+B77 -> 0.06130045299 | C110: 0.0308 | D110: 1.029589108 | E110: 6 | F110: 5.356218267 | H110: 1 | I110: =+PRODUCT(D106:D110) -> 1.099986796 | J110: =+PRODUCT(D107:D110) -> 1.091115935 | K110: =+PRODUCT(D108:D110) -> 1.075472696 | L110: =+PRODUCT(D109:D110) -> 1.060053732 | M110: =+PRODUCT(D110:D110) -> 1.029589108
A111: 2025 | B111: =+B78 -> 0.06130045299 | C111: 0.0308 | D111: 1.029589108 | E111: 7 | F111: 6.544293099 | H111: 1 | I111: =+PRODUCT(D106:D111) -> 1.132534425 | J111: =+PRODUCT(D107:D111) -> 1.123401083 | K111: =+PRODUCT(D108:D111) -> 1.107294974 | L111: =+PRODUCT(D109:D111) -> 1.091419777 | M111: =+PRODUCT(D110:D111) -> 1.060053732 | N111: =+PRODUCT(D111:D111) -> 1.029589108
A112: 2026 | B112: =+B79 -> 0.06130045299 | C112: 0.0308 | D112: 1.029589108 | E112: 8 | F112: 7.767522005 | H112: 1 | I112: =+PRODUCT(D106:D112) -> 1.166045109 | J112: =+PRODUCT(D107:D112) -> 1.156641519 | K112: =+PRODUCT(D108:D112) -> 1.140058845 | L112: =+PRODUCT(D109:D112) -> 1.123713915 | M112: =+PRODUCT(D110:D112) -> 1.091419777 | N112: =+PRODUCT(D111:D112) -> 1.060053732 | O112: =+PRODUCT(D112:D112) -> 1.029589108
A113: 2027 | B113: =+B80 -> 0.06130045299 | C113: 0.0308 | D113: 1.029589108 | E113: 9 | F113: 9.026945165 | H113: 1 | I113: =+PRODUCT(D106:D113) -> 1.200547344 | J113: =+PRODUCT(D107:D113) -> 1.19086551 | K113: =+PRODUCT(D108:D113) -> 1.17379217 | L113: =+PRODUCT(D109:D113) -> 1.156963608 | M113: =+PRODUCT(D110:D113) -> 1.123713915 | N113: =+PRODUCT(D111:D113) -> 1.091419777 | O113: =+PRODUCT(D112:D113) -> 1.060053732 | P113: =+PRODUCT(D113:D113) -> 1.029589108
A114: 2028 | B114: =+B81 -> 0.06130045299 | C114: 0.0308 | D114: 1.029589108 | E114: 10 | F114: 10.32363353 | H114: 1 | I114: =+PRODUCT(D106:D114) -> 1.236070469 | J114: =+PRODUCT(D107:D114) -> 1.226102159 | K114: =+PRODUCT(D108:D114) -> 1.208523633 | L114: =+PRODUCT(D109:D114) -> 1.19119713 | M114: =+PRODUCT(D110:D114) -> 1.156963608 | N114: =+PRODUCT(D111:D114) -> 1.123713915 | O114: =+PRODUCT(D112:D114) -> 1.091419777 | P114: =+PRODUCT(D113:D114) -> 1.060053732 | Q114: =+PRODUCT(D114:D114) -> 1.029589108
A115: 2029 | B115: =+B82 -> 0.06130045299 | C115: 0.0308 | D115: 1.029589108 | E115: 11 | F115: 11.65868975 | H115: 1 | I115: =+PRODUCT(D106:D115) -> 1.272644692 | J115: =+PRODUCT(D107:D115) -> 1.262381429 | K115: =+PRODUCT(D108:D115) -> 1.24428277 | L115: =+PRODUCT(D109:D115) -> 1.226443591 | M115: =+PRODUCT(D110:D115) -> 1.19119713 | N115: =+PRODUCT(D111:D115) -> 1.156963608 | O115: =+PRODUCT(D112:D115) -> 1.123713915 | P115: =+PRODUCT(D113:D115) -> 1.091419777 | Q115: =+PRODUCT(D114:D115) -> 1.060053732 | R115: =+PRODUCT(D115:D115) -> 1.029589108
A116: 2030 | B116: =+B83 -> 0.06130045299 | C116: 0.0308 | D116: 1.029589108 | E116: 12 | F116: 13.0332491 | H116: 1 | I116: =+PRODUCT(D106:D116) -> 1.310301114 | J116: =+PRODUCT(D107:D116) -> 1.29973417 | K116: =+PRODUCT(D108:D116) -> 1.281099988 | L116: =+PRODUCT(D109:D116) -> 1.262732963 | M116: =+PRODUCT(D110:D116) -> 1.226443591 | N116: =+PRODUCT(D111:D116) -> 1.19119713 | O116: =+PRODUCT(D112:D116) -> 1.156963608 | P116: =+PRODUCT(D113:D116) -> 1.123713915 | Q116: =+PRODUCT(D114:D116) -> 1.091419777 | R116: =+PRODUCT(D115:D116) -> 1.060053732 | S116: =+PRODUCT(D116:D116) -> 1.029589108
A117: 2031 | B117: =+B84 -> 0.06130045299 | C117: 0.0308 | D117: 1.029589108 | E117: 13 | F117: 14.44848043 | H117: 1 | I117: =+PRODUCT(D106:D117) -> 1.349071756 | J117: =+PRODUCT(D107:D117) -> 1.338192145 | K117: =+PRODUCT(D108:D117) -> 1.319006595 | L117: =+PRODUCT(D109:D117) -> 1.300096106 | M117: =+PRODUCT(D110:D117) -> 1.262732963 | N117: =+PRODUCT(D111:D117) -> 1.226443591 | O117: =+PRODUCT(D112:D117) -> 1.19119713 | P117: =+PRODUCT(D113:D117) -> 1.156963608 | Q117: =+PRODUCT(D114:D117) -> 1.123713915 | R117: =+PRODUCT(D115:D117) -> 1.091419777 | S117: =+PRODUCT(D116:D117) -> 1.060053732 | T117: =+PRODUCT(D117:D117) -> 1.029589108
A118: 2032 | B118: =+B85 -> 0.06130045299 | C118: 0.0308 | D118: 1.029589108 | E118: 14 | F118: 15.90558719 | H118: 1 | I118: =+PRODUCT(D106:D118) -> 1.388989587 | J118: =+PRODUCT(D107:D118) -> 1.377788058 | K118: =+PRODUCT(D108:D118) -> 1.358034824 | L118: =+PRODUCT(D109:D118) -> 1.33856479 | M118: =+PRODUCT(D110:D118) -> 1.300096106 | N118: =+PRODUCT(D111:D118) -> 1.262732963 | O118: =+PRODUCT(D112:D118) -> 1.226443591 | P118: =+PRODUCT(D113:D118) -> 1.19119713 | Q118: =+PRODUCT(D114:D118) -> 1.156963608 | R118: =+PRODUCT(D115:D118) -> 1.123713915 | S118: =+PRODUCT(D116:D118) -> 1.091419777 | T118: =+PRODUCT(D117:D118) -> 1.060053732 | U118: =+PRODUCT(D118:D118) -> 1.029589108
A119: 2033 | B119: =+B86 -> 0.06130045299 | C119: 0.0308 | D119: 1.029589108 | E119: 15 | F119: 17.40580844 | H119: 1 | I119: =+PRODUCT(D106:D119) -> 1.43008855 | J119: =+PRODUCT(D107:D119) -> 1.418555578 | K119: =+PRODUCT(D108:D119) -> 1.398217863 | L119: =+PRODUCT(D109:D119) -> 1.378171729 | M119: =+PRODUCT(D110:D119) -> 1.33856479 | N119: =+PRODUCT(D111:D119) -> 1.300096106 | O119: =+PRODUCT(D112:D119) -> 1.262732963 | P119: =+PRODUCT(D113:D119) -> 1.226443591 | Q119: =+PRODUCT(D114:D119) -> 1.19119713 | R119: =+PRODUCT(D115:D119) -> 1.156963608 | S119: =+PRODUCT(D116:D119) -> 1.123713915 | T119: =+PRODUCT(D117:D119) -> 1.091419777 | U119: =+PRODUCT(D118:D119) -> 1.060053732 | V119: =+PRODUCT(D119:D119) -> 1.029589108
A120: 2034 | B120: =+B87 -> 0.06130045299 | C120: 0.0308 | D120: 1.029589108 | E120: 16 | F120: 18.9504199 | H120: 1 | I120: =+PRODUCT(D106:D120) -> 1.472403595 | J120: =+PRODUCT(D107:D120) -> 1.460529373 | K120: =+PRODUCT(D108:D120) -> 1.439589883 | L120: =+PRODUCT(D109:D120) -> 1.418950602 | M120: =+PRODUCT(D110:D120) -> 1.378171729 | N120: =+PRODUCT(D111:D120) -> 1.33856479 | O120: =+PRODUCT(D112:D120) -> 1.300096106 | P120: =+PRODUCT(D113:D120) -> 1.262732963 | Q120: =+PRODUCT(D114:D120) -> 1.226443591 | R120: =+PRODUCT(D115:D120) -> 1.19119713 | S120: =+PRODUCT(D116:D120) -> 1.156963608 | T120: =+PRODUCT(D117:D120) -> 1.123713915 | U120: =+PRODUCT(D118:D120) -> 1.091419777 | V120: =+PRODUCT(D119:D120) -> 1.060053732 | W120: =+PRODUCT(D120:D120) -> 1.029589108
A121: 2035 | B121: =+B88 -> 0.06130045299 | C121: 0.0308 | D121: 1.029589108 | E121: 17 | F121: 20.54073504 | H121: 1 | I121: =+PRODUCT(D106:D121) -> 1.515970705 | J121: =+PRODUCT(D107:D121) -> 1.503745135 | K121: =+PRODUCT(D108:D121) -> 1.482186065 | L121: =+PRODUCT(D109:D121) -> 1.460936085 | M121: =+PRODUCT(D110:D121) -> 1.418950602 | N121: =+PRODUCT(D111:D121) -> 1.378171729 | O121: =+PRODUCT(D112:D121) -> 1.33856479 | P121: =+PRODUCT(D113:D121) -> 1.300096106 | Q121: =+PRODUCT(D114:D121) -> 1.262732963 | R121: =+PRODUCT(D115:D121) -> 1.226443591 | S121: =+PRODUCT(D116:D121) -> 1.19119713 | T121: =+PRODUCT(D117:D121) -> 1.156963608 | U121: =+PRODUCT(D118:D121) -> 1.123713915 | V121: =+PRODUCT(D119:D121) -> 1.091419777 | W121: =+PRODUCT(D120:D121) -> 1.060053732 | X121: =+PRODUCT(D121:D121) -> 1.029589108
A122: 2036 | B122: =+B89 -> 0.06130045299 | C122: 0.0308 | D122: 1.029589108 | E122: 18 | F122: 22.17810619 | H122: 1 | I122: =+PRODUCT(D106:D122) -> 1.560826926 | J122: =+PRODUCT(D107:D122) -> 1.548239613 | K122: =+PRODUCT(D108:D122) -> 1.526042629 | L122: =+PRODUCT(D109:D122) -> 1.504163881 | M122: =+PRODUCT(D110:D122) -> 1.460936085 | N122: =+PRODUCT(D111:D122) -> 1.418950602 | O122: =+PRODUCT(D112:D122) -> 1.378171729 | P122: =+PRODUCT(D113:D122) -> 1.33856479 | Q122: =+PRODUCT(D114:D122) -> 1.300096106 | R122: =+PRODUCT(D115:D122) -> 1.262732963 | S122: =+PRODUCT(D116:D122) -> 1.226443591 | T122: =+PRODUCT(D117:D122) -> 1.19119713 | U122: =+PRODUCT(D118:D122) -> 1.156963608 | V122: =+PRODUCT(D119:D122) -> 1.123713915 | W122: =+PRODUCT(D120:D122) -> 1.091419777 | X122: =+PRODUCT(D121:D122) -> 1.060053732 | Y122: =+PRODUCT(D122:D122) -> 1.029589108
A123: 2037 | B123: =+B90 -> 0.06130045299 | C123: 0.0308 | D123: 1.029589108 | E123: 19 | F123: 23.86392568 | H123: 1 | I123: =+PRODUCT(D106:D123) -> 1.607010404 | J123: =+PRODUCT(D107:D123) -> 1.594050642 | K123: =+PRODUCT(D108:D123) -> 1.57119687 | L123: =+PRODUCT(D109:D123) -> 1.54867075 | M123: =+PRODUCT(D110:D123) -> 1.504163881 | N123: =+PRODUCT(D111:D123) -> 1.460936085 | O123: =+PRODUCT(D112:D123) -> 1.418950602 | P123: =+PRODUCT(D113:D123) -> 1.378171729 | Q123: =+PRODUCT(D114:D123) -> 1.33856479 | R123: =+PRODUCT(D115:D123) -> 1.300096106 | S123: =+PRODUCT(D116:D123) -> 1.262732963 | T123: =+PRODUCT(D117:D123) -> 1.226443591 | U123: =+PRODUCT(D118:D123) -> 1.19119713 | V123: =+PRODUCT(D119:D123) -> 1.156963608 | W123: =+PRODUCT(D120:D123) -> 1.123713915 | X123: =+PRODUCT(D121:D123) -> 1.091419777 | Y123: =+PRODUCT(D122:D123) -> 1.060053732 | Z123: =+PRODUCT(D123:D123) -> 1.029589108
A124: 2038 | B124: =+B91 -> 0.06130045299 | C124: 0.0308 | D124: 1.029589108 | E124: 20 | F124: 25.59962708 | H124: 1 | I124: =+PRODUCT(D106:D124) -> 1.654560409 | J124: =+PRODUCT(D107:D124) -> 1.64121718 | K124: =+PRODUCT(D108:D124) -> 1.617687184 | L124: =+PRODUCT(D109:D124) -> 1.594494536 | M124: =+PRODUCT(D110:D124) -> 1.54867075 | N124: =+PRODUCT(D111:D124) -> 1.504163881 | O124: =+PRODUCT(D112:D124) -> 1.460936085 | P124: =+PRODUCT(D113:D124) -> 1.418950602 | Q124: =+PRODUCT(D114:D124) -> 1.378171729 | R124: =+PRODUCT(D115:D124) -> 1.33856479 | S124: =+PRODUCT(D116:D124) -> 1.300096106 | T124: =+PRODUCT(D117:D124) -> 1.262732963 | U124: =+PRODUCT(D118:D124) -> 1.226443591 | V124: =+PRODUCT(D119:D124) -> 1.19119713 | W124: =+PRODUCT(D120:D124) -> 1.156963608 | X124: =+PRODUCT(D121:D124) -> 1.123713915 | Y124: =+PRODUCT(D122:D124) -> 1.091419777 | Z124: =+PRODUCT(D123:D124) -> 1.060053732 | AA124: =+PRODUCT(D124:D124) -> 1.029589108
A125: 2039 | B125: =+B92 -> 0.06130045299 | C125: 0.0308 | D125: 1.029589108 | E125: 21 | F125: 27.38668633 | H125: 1 | I125: =+PRODUCT(D106:D125) -> 1.703517376 | J125: =+PRODUCT(D107:D125) -> 1.689779333 | K125: =+PRODUCT(D108:D125) -> 1.665553106 | L125: =+PRODUCT(D109:D125) -> 1.641674208 | M125: =+PRODUCT(D110:D125) -> 1.594494536 | N125: =+PRODUCT(D111:D125) -> 1.54867075 | O125: =+PRODUCT(D112:D125) -> 1.504163881 | P125: =+PRODUCT(D113:D125) -> 1.460936085 | Q125: =+PRODUCT(D114:D125) -> 1.418950602 | R125: =+PRODUCT(D115:D125) -> 1.378171729 | S125: =+PRODUCT(D116:D125) -> 1.33856479 | T125: =+PRODUCT(D117:D125) -> 1.300096106 | U125: =+PRODUCT(D118:D125) -> 1.262732963 | V125: =+PRODUCT(D119:D125) -> 1.226443591 | W125: =+PRODUCT(D120:D125) -> 1.19119713 | X125: =+PRODUCT(D121:D125) -> 1.156963608 | Y125: =+PRODUCT(D122:D125) -> 1.123713915 | Z125: =+PRODUCT(D123:D125) -> 1.091419777 | AA125: =+PRODUCT(D124:D125) -> 1.060053732 | AB125: =+PRODUCT(D125:D125) -> 1.029589108
A126: 2040 | B126: =+B93 -> 0.06130045299 | C126: 0.0308 | D126: 1.029589108 | E126: 22 | F126: 29.22662307 | H126: 1 | I126: =+PRODUCT(D106:D126) -> 1.753922937 | J126: =+PRODUCT(D107:D126) -> 1.739778397 | K126: =+PRODUCT(D108:D126) -> 1.714835337 | L126: =+PRODUCT(D109:D126) -> 1.690249884 | M126: =+PRODUCT(D110:D126) -> 1.641674208 | N126: =+PRODUCT(D111:D126) -> 1.594494536 | O126: =+PRODUCT(D112:D126) -> 1.54867075 | P126: =+PRODUCT(D113:D126) -> 1.504163881 | Q126: =+PRODUCT(D114:D126) -> 1.460936085 | R126: =+PRODUCT(D115:D126) -> 1.418950602 | S126: =+PRODUCT(D116:D126) -> 1.378171729 | T126: =+PRODUCT(D117:D126) -> 1.33856479 | U126: =+PRODUCT(D118:D126) -> 1.300096106 | V126: =+PRODUCT(D119:D126) -> 1.262732963 | W126: =+PRODUCT(D120:D126) -> 1.226443591 | X126: =+PRODUCT(D121:D126) -> 1.19119713 | Y126: =+PRODUCT(D122:D126) -> 1.156963608 | Z126: =+PRODUCT(D123:D126) -> 1.123713915 | AA126: =+PRODUCT(D124:D126) -> 1.091419777 | AB126: =+PRODUCT(D125:D126) -> 1.060053732 | AC126: =+PRODUCT(D126:D126) -> 1.029589108
A127: 2041 | B127: =+B94 -> 0.06130045299 | C127: 0.0308 | D127: 1.029589108 | E127: 23 | F127: 31.1210019 | H127: 1 | I127: =+PRODUCT(D106:D127) -> 1.805819952 | J127: =+PRODUCT(D107:D127) -> 1.791256888 | K127: =+PRODUCT(D108:D127) -> 1.765575786 | L127: =+PRODUCT(D109:D127) -> 1.740262872 | M127: =+PRODUCT(D110:D127) -> 1.690249884 | N127: =+PRODUCT(D111:D127) -> 1.641674208 | O127: =+PRODUCT(D112:D127) -> 1.594494536 | P127: =+PRODUCT(D113:D127) -> 1.54867075 | Q127: =+PRODUCT(D114:D127) -> 1.504163881 | R127: =+PRODUCT(D115:D127) -> 1.460936085 | S127: =+PRODUCT(D116:D127) -> 1.418950602 | T127: =+PRODUCT(D117:D127) -> 1.378171729 | U127: =+PRODUCT(D118:D127) -> 1.33856479 | V127: =+PRODUCT(D119:D127) -> 1.300096106 | W127: =+PRODUCT(D120:D127) -> 1.262732963 | X127: =+PRODUCT(D121:D127) -> 1.226443591 | Y127: =+PRODUCT(D122:D127) -> 1.19119713 | Z127: =+PRODUCT(D123:D127) -> 1.156963608 | AA127: =+PRODUCT(D124:D127) -> 1.123713915 | AB127: =+PRODUCT(D125:D127) -> 1.091419777 | AC127: =+PRODUCT(D126:D127) -> 1.060053732 | AD127: =+PRODUCT(D127:D127) -> 1.029589108
A128: 2042 | B128: =+B95 -> 0.06130045299 | C128: 0.0308 | D128: 1.029589108 | E128: 24 | F128: 33.0714337 | H128: 1 | I128: =+PRODUCT(D106:D128) -> 1.859252555 | J128: =+PRODUCT(D107:D128) -> 1.844258583 | K128: =+PRODUCT(D108:D128) -> 1.817817599 | L128: =+PRODUCT(D109:D128) -> 1.791755698 | M128: =+PRODUCT(D110:D128) -> 1.740262872 | N128: =+PRODUCT(D111:D128) -> 1.690249884 | O128: =+PRODUCT(D112:D128) -> 1.641674208 | P128: =+PRODUCT(D113:D128) -> 1.594494536 | Q128: =+PRODUCT(D114:D128) -> 1.54867075 | R128: =+PRODUCT(D115:D128) -> 1.504163881 | S128: =+PRODUCT(D116:D128) -> 1.460936085 | T128: =+PRODUCT(D117:D128) -> 1.418950602 | U128: =+PRODUCT(D118:D128) -> 1.378171729 | V128: =+PRODUCT(D119:D128) -> 1.33856479 | W128: =+PRODUCT(D120:D128) -> 1.300096106 | X128: =+PRODUCT(D121:D128) -> 1.262732963 | Y128: =+PRODUCT(D122:D128) -> 1.226443591 | Z128: =+PRODUCT(D123:D128) -> 1.19119713 | AA128: =+PRODUCT(D124:D128) -> 1.156963608 | AB128: =+PRODUCT(D125:D128) -> 1.123713915 | AC128: =+PRODUCT(D126:D128) -> 1.091419777 | AD128: =+PRODUCT(D127:D128) -> 1.060053732 | AE128: =+PRODUCT(D128:D128) -> 1.029589108
A129: 2043 | B129: =+B96 -> 0.06130045299 | C129: 0.0308 | D129: 1.029589108 | E129: 25 | F129: 35.07957705 | H129: 1 | I129: =+PRODUCT(D106:D129) -> 1.91426618 | J129: =+PRODUCT(D107:D129) -> 1.89882855 | K129: =+PRODUCT(D108:D129) -> 1.871605201 | L129: =+PRODUCT(D109:D129) -> 1.844772152 | M129: =+PRODUCT(D110:D129) -> 1.791755698 | N129: =+PRODUCT(D111:D129) -> 1.740262872 | O129: =+PRODUCT(D112:D129) -> 1.690249884 | P129: =+PRODUCT(D113:D129) -> 1.641674208 | Q129: =+PRODUCT(D114:D129) -> 1.594494536 | R129: =+PRODUCT(D115:D129) -> 1.54867075 | S129: =+PRODUCT(D116:D129) -> 1.504163881 | T129: =+PRODUCT(D117:D129) -> 1.460936085 | U129: =+PRODUCT(D118:D129) -> 1.418950602 | V129: =+PRODUCT(D119:D129) -> 1.378171729 | W129: =+PRODUCT(D120:D129) -> 1.33856479 | X129: =+PRODUCT(D121:D129) -> 1.300096106 | Y129: =+PRODUCT(D122:D129) -> 1.262732963 | Z129: =+PRODUCT(D123:D129) -> 1.226443591 | AA129: =+PRODUCT(D124:D129) -> 1.19119713 | AB129: =+PRODUCT(D125:D129) -> 1.156963608 | AC129: =+PRODUCT(D126:D129) -> 1.123713915 | AD129: =+PRODUCT(D127:D129) -> 1.091419777 | AE129: =+PRODUCT(D128:D129) -> 1.060053732 | AF129: =+PRODUCT(D129:D129) -> 1.029589108
A130: 2044 | B130: =+B97 -> 0.06130045299 | C130: 0.0308 | D130: 1.029589108 | E130: 26 | F130: 37.14713957 | H130: 1 | I130: =+PRODUCT(D106:D130) -> 1.97090761 | J130: =+PRODUCT(D107:D130) -> 1.955013194 | K130: =+PRODUCT(D108:D130) -> 1.926984331 | L130: =+PRODUCT(D109:D130) -> 1.899357315 | M130: =+PRODUCT(D110:D130) -> 1.844772152 | N130: =+PRODUCT(D111:D130) -> 1.791755698 | O130: =+PRODUCT(D112:D130) -> 1.740262872 | P130: =+PRODUCT(D113:D130) -> 1.690249884 | Q130: =+PRODUCT(D114:D130) -> 1.641674208 | R130: =+PRODUCT(D115:D130) -> 1.594494536 | S130: =+PRODUCT(D116:D130) -> 1.54867075 | T130: =+PRODUCT(D117:D130) -> 1.504163881 | U130: =+PRODUCT(D118:D130) -> 1.460936085 | V130: =+PRODUCT(D119:D130) -> 1.418950602 | W130: =+PRODUCT(D120:D130) -> 1.378171729 | X130: =+PRODUCT(D121:D130) -> 1.33856479 | Y130: =+PRODUCT(D122:D130) -> 1.300096106 | Z130: =+PRODUCT(D123:D130) -> 1.262732963 | AA130: =+PRODUCT(D124:D130) -> 1.226443591 | AB130: =+PRODUCT(D125:D130) -> 1.19119713 | AC130: =+PRODUCT(D126:D130) -> 1.156963608 | AD130: =+PRODUCT(D127:D130) -> 1.123713915 | AE130: =+PRODUCT(D128:D130) -> 1.091419777 | AF130: =+PRODUCT(D129:D130) -> 1.060053732 | AG130: =+PRODUCT(D130:D130) -> 1.029589108
A131: 2045 | B131: =+B98 -> 0.06130045299 | C131: 0.0308 | D131: 1.029589108 | E131: 27 | F131: 39.27587942 | H131: 1 | I131: =+PRODUCT(D106:D131) -> 2.029225009 | J131: =+PRODUCT(D107:D131) -> 2.012860291 | K131: =+PRODUCT(D108:D131) -> 1.984002079 | L131: =+PRODUCT(D109:D131) -> 1.955557605 | M131: =+PRODUCT(D110:D131) -> 1.899357315 | N131: =+PRODUCT(D111:D131) -> 1.844772152 | O131: =+PRODUCT(D112:D131) -> 1.791755698 | P131: =+PRODUCT(D113:D131) -> 1.740262872 | Q131: =+PRODUCT(D114:D131) -> 1.690249884 | R131: =+PRODUCT(D115:D131) -> 1.641674208 | S131: =+PRODUCT(D116:D131) -> 1.594494536 | T131: =+PRODUCT(D117:D131) -> 1.54867075 | U131: =+PRODUCT(D118:D131) -> 1.504163881 | V131: =+PRODUCT(D119:D131) -> 1.460936085 | W131: =+PRODUCT(D120:D131) -> 1.418950602 | X131: =+PRODUCT(D121:D131) -> 1.378171729 | Y131: =+PRODUCT(D122:D131) -> 1.33856479 | Z131: =+PRODUCT(D123:D131) -> 1.300096106 | AA131: =+PRODUCT(D124:D131) -> 1.262732963 | AB131: =+PRODUCT(D125:D131) -> 1.226443591 | AC131: =+PRODUCT(D126:D131) -> 1.19119713 | AD131: =+PRODUCT(D127:D131) -> 1.156963608 | AE131: =+PRODUCT(D128:D131) -> 1.123713915 | AF131: =+PRODUCT(D129:D131) -> 1.091419777 | AG131: =+PRODUCT(D130:D131) -> 1.060053732 | AH131: =+PRODUCT(D131:D131) -> 1.029589108
A132: 2046 | B132: =+B99 -> 0 | C132: 0 | D132: 1 | E132: 28 | F132: 40.27587942 | H132: 1 | I132: =+PRODUCT(D106:D132) -> 2.029225009 | J132: =+PRODUCT(D107:D132) -> 2.012860291 | K132: =+PRODUCT(D108:D132) -> 1.984002079 | L132: =+PRODUCT(D109:D132) -> 1.955557605 | M132: =+PRODUCT(D110:D132) -> 1.899357315 | N132: =+PRODUCT(D111:D132) -> 1.844772152 | O132: =+PRODUCT(D112:D132) -> 1.791755698 | P132: =+PRODUCT(D113:D132) -> 1.740262872 | Q132: =+PRODUCT(D114:D132) -> 1.690249884 | R132: =+PRODUCT(D115:D132) -> 1.641674208 | S132: =+PRODUCT(D116:D132) -> 1.594494536 | T132: =+PRODUCT(D117:D132) -> 1.54867075 | U132: =+PRODUCT(D118:D132) -> 1.504163881 | V132: =+PRODUCT(D119:D132) -> 1.460936085 | W132: =+PRODUCT(D120:D132) -> 1.418950602 | X132: =+PRODUCT(D121:D132) -> 1.378171729 | Y132: =+PRODUCT(D122:D132) -> 1.33856479 | Z132: =+PRODUCT(D123:D132) -> 1.300096106 | AA132: =+PRODUCT(D124:D132) -> 1.262732963 | AB132: =+PRODUCT(D125:D132) -> 1.226443591 | AC132: =+PRODUCT(D126:D132) -> 1.19119713 | AD132: =+PRODUCT(D127:D132) -> 1.156963608 | AE132: =+PRODUCT(D128:D132) -> 1.123713915 | AF132: =+PRODUCT(D129:D132) -> 1.091419777 | AG132: =+PRODUCT(D130:D132) -> 1.060053732 | AH132: =+PRODUCT(D131:D132) -> 1.029589108 | AI132: =+PRODUCT(D132:D132) -> 1
A133: 2047 | B133: =+B100 -> 0 | C133: 0 | D133: 1 | E133: 29 | F133: 41.27587942 | H133: 1 | I133: =+PRODUCT(D106:D133) -> 2.029225009 | J133: =+PRODUCT(D107:D133) -> 2.012860291 | K133: =+PRODUCT(D108:D133) -> 1.984002079 | L133: =+PRODUCT(D109:D133) -> 1.955557605 | M133: =+PRODUCT(D110:D133) -> 1.899357315 | N133: =+PRODUCT(D111:D133) -> 1.844772152 | O133: =+PRODUCT(D112:D133) -> 1.791755698 | P133: =+PRODUCT(D113:D133) -> 1.740262872 | Q133: =+PRODUCT(D114:D133) -> 1.690249884 | R133: =+PRODUCT(D115:D133) -> 1.641674208 | S133: =+PRODUCT(D116:D133) -> 1.594494536 | T133: =+PRODUCT(D117:D133) -> 1.54867075 | U133: =+PRODUCT(D118:D133) -> 1.504163881 | V133: =+PRODUCT(D119:D133) -> 1.460936085 | W133: =+PRODUCT(D120:D133) -> 1.418950602 | X133: =+PRODUCT(D121:D133) -> 1.378171729 | Y133: =+PRODUCT(D122:D133) -> 1.33856479 | Z133: =+PRODUCT(D123:D133) -> 1.300096106 | AA133: =+PRODUCT(D124:D133) -> 1.262732963 | AB133: =+PRODUCT(D125:D133) -> 1.226443591 | AC133: =+PRODUCT(D126:D133) -> 1.19119713 | AD133: =+PRODUCT(D127:D133) -> 1.156963608 | AE133: =+PRODUCT(D128:D133) -> 1.123713915 | AF133: =+PRODUCT(D129:D133) -> 1.091419777 | AG133: =+PRODUCT(D130:D133) -> 1.060053732 | AH133: =+PRODUCT(D131:D133) -> 1.029589108 | AI133: =+PRODUCT(D132:D133) -> 1 | AJ133: =+PRODUCT(D133:D133) -> 1
A134: 2048 | B134: =+B101 -> 0 | C134: 0 | D134: 1 | E134: 30 | F134: 42.27587942 | H134: 1 | I134: =+PRODUCT(D106:D134) -> 2.029225009 | J134: =+PRODUCT(D107:D134) -> 2.012860291 | K134: =+PRODUCT(D108:D134) -> 1.984002079 | L134: =+PRODUCT(D109:D134) -> 1.955557605 | M134: =+PRODUCT(D110:D134) -> 1.899357315 | N134: =+PRODUCT(D111:D134) -> 1.844772152 | O134: =+PRODUCT(D112:D134) -> 1.791755698 | P134: =+PRODUCT(D113:D134) -> 1.740262872 | Q134: =+PRODUCT(D114:D134) -> 1.690249884 | R134: =+PRODUCT(D115:D134) -> 1.641674208 | S134: =+PRODUCT(D116:D134) -> 1.594494536 | T134: =+PRODUCT(D117:D134) -> 1.54867075 | U134: =+PRODUCT(D118:D134) -> 1.504163881 | V134: =+PRODUCT(D119:D134) -> 1.460936085 | W134: =+PRODUCT(D120:D134) -> 1.418950602 | X134: =+PRODUCT(D121:D134) -> 1.378171729 | Y134: =+PRODUCT(D122:D134) -> 1.33856479 | Z134: =+PRODUCT(D123:D134) -> 1.300096106 | AA134: =+PRODUCT(D124:D134) -> 1.262732963 | AB134: =+PRODUCT(D125:D134) -> 1.226443591 | AC134: =+PRODUCT(D126:D134) -> 1.19119713 | AD134: =+PRODUCT(D127:D134) -> 1.156963608 | AE134: =+PRODUCT(D128:D134) -> 1.123713915 | AF134: =+PRODUCT(D129:D134) -> 1.091419777 | AG134: =+PRODUCT(D130:D134) -> 1.060053732 | AH134: =+PRODUCT(D131:D134) -> 1.029589108 | AI134: =+PRODUCT(D132:D134) -> 1 | AJ134: =+PRODUCT(D133:D134) -> 1 | AK134: =+PRODUCT(D134:D134) -> 1
A137: Fecha(Anual) | B137: r_t | C137: c_y_t | D137: 1+r_t / 1+c_y_t | E137: t | F137: Multiplicatoria inversa | G137: 0 | H137: =+G137+1 -> 1 | I137: =+H137+1 -> 2 | J137: =+I137+1 -> 3 | K137: =+J137+1 -> 4 | L137: =+K137+1 -> 5 | M137: =+L137+1 -> 6 | N137: =+M137+1 -> 7 | O137: =+N137+1 -> 8 | P137: =+O137+1 -> 9 | Q137: =+P137+1 -> 10 | R137: =+Q137+1 -> 11 | S137: =+R137+1 -> 12 | T137: =+S137+1 -> 13 | U137: =+T137+1 -> 14 | V137: =+U137+1 -> 15 | W137: =+V137+1 -> 16 | X137: =+W137+1 -> 17 | Y137: =+X137+1 -> 18 | Z137: =+Y137+1 -> 19 | AA137: =+Z137+1 -> 20 | AB137: =+AA137+1 -> 21 | AC137: =+AB137+1 -> 22 | AD137: =+AC137+1 -> 23 | AE137: =+AD137+1 -> 24 | AF137: =+AE137+1 -> 25 | AG137: =+AF137+1 -> 26 | AH137: =+AG137+1 -> 27 | AI137: =+AH137+1 -> 28 | AJ137: =+AI137+1 -> 29 | AK137: =+AJ137+1 -> 30
A138: =+A105 -> 2019 | D138: 1 | E138: 0
A139: =+A138+1 -> 2020 | B139: =+B106 -> 0.05349593496 | C139: =+C106 -> 0.045 | D139: =(1+B139)/(1+C139) -> 1.008130081 | E139: 1 | H139: 1
A140: =+A139+1 -> 2021 | B140: =+B107 -> 0.0602 | C140: 0.045 | D140: =(1+B140)/(1+C140) -> 1.014545455 | E140: =+E139+1 -> 2 | F140: =+SUM(I140:AK140) -> 1.014545455 | H140: 1 | I140: =+PRODUCT(D140:D140) -> 1.014545455
A141: 2022 | B141: =+B108 -> 0.0602 | C141: 0.045 | D141: 1.014545455 | E141: =+E140+1 -> 3 | F141: =+SUM(I141:AK141) -> 2.043847934 | H141: 1 | I141: =+PRODUCT(D140:D141) -> 1.029302479 | J141: =+PRODUCT(D141:D141) -> 1.014545455
A142: 2023 | B142: =+B109 -> 0.06130045299 | C142: 0.0308 | D142: 1.029589108 | E142: 4 | F142: 3.13391268 | H142: 1 | I142: =+PRODUCT(D140:D142) -> 1.059758622 | J142: =+PRODUCT(D141:D142) -> 1.04456495 | K142: =+PRODUCT(D142:D142) -> 1.029589108 | L142: =+IF(L137>E142,"",1) -> 
A143: 2024 | B143: =+B110 -> 0.06130045299 | C143: 0.0308 | D143: 1.029589108 | E143: 5 | F143: 4.256231471 | H143: 1 | I143: =+PRODUCT(D140:D143) -> 1.091115935 | J143: =+PRODUCT(D141:D143) -> 1.075472696 | K143: =+PRODUCT(D142:D143) -> 1.060053732 | L143: =+PRODUCT(D143:D143) -> 1.029589108
A144: 2025 | B144: =+B111 -> 0.06130045299 | C144: 0.0308 | D144: 1.029589108 | E144: 6 | F144: 5.411758674 | H144: 1 | I144: =+PRODUCT(D140:D144) -> 1.123401083 | J144: =+PRODUCT(D141:D144) -> 1.107294974 | K144: =+PRODUCT(D142:D144) -> 1.091419777 | L144: =+PRODUCT(D143:D144) -> 1.060053732 | M144: =+PRODUCT(D144:D144) -> 1.029589108
A145: 2026 | B145: =+B112 -> 0.06130045299 | C145: 0.0308 | D145: 1.029589108 | E145: 7 | F145: 6.601476897 | H145: 1 | I145: =+PRODUCT(D140:D145) -> 1.156641519 | J145: =+PRODUCT(D141:D145) -> 1.140058845 | K145: =+PRODUCT(D142:D145) -> 1.123713915 | L145: =+PRODUCT(D143:D145) -> 1.091419777 | M145: =+PRODUCT(D144:D145) -> 1.060053732 | N145: =+PRODUCT(D145:D145) -> 1.029589108
A146: 2027 | B146: =+B113 -> 0.06130045299 | C146: 0.0308 | D146: 1.029589108 | E146: 8 | F146: 7.826397821 | H146: 1 | I146: =+PRODUCT(D140:D146) -> 1.19086551 | J146: =+PRODUCT(D141:D146) -> 1.17379217 | K146: =+PRODUCT(D142:D146) -> 1.156963608 | L146: =+PRODUCT(D143:D146) -> 1.123713915 | M146: =+PRODUCT(D144:D146) -> 1.091419777 | N146: =+PRODUCT(D145:D146) -> 1.060053732 | O146: =+PRODUCT(D146:D146) -> 1.029589108
A147: 2028 | B147: =+B114 -> 0.06130045299 | C147: 0.0308 | D147: 1.029589108 | E147: 9 | F147: 9.087563063 | H147: 1 | I147: =+PRODUCT(D140:D147) -> 1.226102159 | J147: =+PRODUCT(D141:D147) -> 1.208523633 | K147: =+PRODUCT(D142:D147) -> 1.19119713 | L147: =+PRODUCT(D143:D147) -> 1.156963608 | M147: =+PRODUCT(D144:D147) -> 1.123713915 | N147: =+PRODUCT(D145:D147) -> 1.091419777 | O147: =+PRODUCT(D146:D147) -> 1.060053732 | P147: =+PRODUCT(D147:D147) -> 1.029589108
A148: 2029 | B148: =+B115 -> 0.06130045299 | C148: 0.0308 | D148: 1.029589108 | E148: 10 | F148: 10.38604506 | H148: 1 | I148: =+PRODUCT(D140:D148) -> 1.262381429 | J148: =+PRODUCT(D141:D148) -> 1.24428277 | K148: =+PRODUCT(D142:D148) -> 1.226443591 | L148: =+PRODUCT(D143:D148) -> 1.19119713 | M148: =+PRODUCT(D144:D148) -> 1.156963608 | N148: =+PRODUCT(D145:D148) -> 1.123713915 | O148: =+PRODUCT(D146:D148) -> 1.091419777 | P148: =+PRODUCT(D147:D148) -> 1.060053732 | Q148: =+PRODUCT(D148:D148) -> 1.029589108
A149: 2030 | B149: =+B116 -> 0.06130045299 | C149: 0.0308 | D149: 1.029589108 | E149: 11 | F149: 11.72294798 | H149: 1 | I149: =+PRODUCT(D140:D149) -> 1.29973417 | J149: =+PRODUCT(D141:D149) -> 1.281099988 | K149: =+PRODUCT(D142:D149) -> 1.262732963 | L149: =+PRODUCT(D143:D149) -> 1.226443591 | M149: =+PRODUCT(D144:D149) -> 1.19119713 | N149: =+PRODUCT(D145:D149) -> 1.156963608 | O149: =+PRODUCT(D146:D149) -> 1.123713915 | P149: =+PRODUCT(D147:D149) -> 1.091419777 | Q149: =+PRODUCT(D148:D149) -> 1.060053732 | R149: =+PRODUCT(D149:D149) -> 1.029589108
A150: 2031 | B150: =+B117 -> 0.06130045299 | C150: 0.0308 | D150: 1.029589108 | E150: 12 | F150: 13.09940867 | H150: 1 | I150: =+PRODUCT(D140:D150) -> 1.338192145 | J150: =+PRODUCT(D141:D150) -> 1.319006595 | K150: =+PRODUCT(D142:D150) -> 1.300096106 | L150: =+PRODUCT(D143:D150) -> 1.262732963 | M150: =+PRODUCT(D144:D150) -> 1.226443591 | N150: =+PRODUCT(D145:D150) -> 1.19119713 | O150: =+PRODUCT(D146:D150) -> 1.156963608 | P150: =+PRODUCT(D147:D150) -> 1.123713915 | Q150: =+PRODUCT(D148:D150) -> 1.091419777 | R150: =+PRODUCT(D149:D150) -> 1.060053732 | S150: =+PRODUCT(D150:D150) -> 1.029589108
A151: 2032 | B151: =+B118 -> 0.06130045299 | C151: 0.0308 | D151: 1.029589108 | E151: 13 | F151: 14.5165976 | H151: 1 | I151: =+PRODUCT(D140:D151) -> 1.377788058 | J151: =+PRODUCT(D141:D151) -> 1.358034824 | K151: =+PRODUCT(D142:D151) -> 1.33856479 | L151: =+PRODUCT(D143:D151) -> 1.300096106 | M151: =+PRODUCT(D144:D151) -> 1.262732963 | N151: =+PRODUCT(D145:D151) -> 1.226443591 | O151: =+PRODUCT(D146:D151) -> 1.19119713 | P151: =+PRODUCT(D147:D151) -> 1.156963608 | Q151: =+PRODUCT(D148:D151) -> 1.123713915 | R151: =+PRODUCT(D149:D151) -> 1.091419777 | S151: =+PRODUCT(D150:D151) -> 1.060053732 | T151: =+PRODUCT(D151:D151) -> 1.029589108
A152: 2033 | B152: =+B119 -> 0.06130045299 | C152: 0.0308 | D152: 1.029589108 | E152: 14 | F152: 15.97571989 | H152: 1 | I152: =+PRODUCT(D140:D152) -> 1.418555578 | J152: =+PRODUCT(D141:D152) -> 1.398217863 | K152: =+PRODUCT(D142:D152) -> 1.378171729 | L152: =+PRODUCT(D143:D152) -> 1.33856479 | M152: =+PRODUCT(D144:D152) -> 1.300096106 | N152: =+PRODUCT(D145:D152) -> 1.262732963 | O152: =+PRODUCT(D146:D152) -> 1.226443591 | P152: =+PRODUCT(D147:D152) -> 1.19119713 | Q152: =+PRODUCT(D148:D152) -> 1.156963608 | R152: =+PRODUCT(D149:D152) -> 1.123713915 | S152: =+PRODUCT(D150:D152) -> 1.091419777 | T152: =+PRODUCT(D151:D152) -> 1.060053732 | U152: =+PRODUCT(D152:D152) -> 1.029589108
A153: 2034 | B153: =+B120 -> 0.06130045299 | C153: 0.0308 | D153: 1.029589108 | E153: 15 | F153: 17.47801631 | H153: 1 | I153: =+PRODUCT(D140:D153) -> 1.460529373 | J153: =+PRODUCT(D141:D153) -> 1.439589883 | K153: =+PRODUCT(D142:D153) -> 1.418950602 | L153: =+PRODUCT(D143:D153) -> 1.378171729 | M153: =+PRODUCT(D144:D153) -> 1.33856479 | N153: =+PRODUCT(D145:D153) -> 1.300096106 | O153: =+PRODUCT(D146:D153) -> 1.262732963 | P153: =+PRODUCT(D147:D153) -> 1.226443591 | Q153: =+PRODUCT(D148:D153) -> 1.19119713 | R153: =+PRODUCT(D149:D153) -> 1.156963608 | S153: =+PRODUCT(D150:D153) -> 1.123713915 | T153: =+PRODUCT(D151:D153) -> 1.091419777 | U153: =+PRODUCT(D152:D153) -> 1.060053732 | V153: =+PRODUCT(D153:D153) -> 1.029589108
A154: 2035 | B154: =+B121 -> 0.06130045299 | C154: 0.0308 | D154: 1.029589108 | E154: 16 | F154: 19.02476434 | H154: 1 | I154: =+PRODUCT(D140:D154) -> 1.503745135 | J154: =+PRODUCT(D141:D154) -> 1.482186065 | K154: =+PRODUCT(D142:D154) -> 1.460936085 | L154: =+PRODUCT(D143:D154) -> 1.418950602 | M154: =+PRODUCT(D144:D154) -> 1.378171729 | N154: =+PRODUCT(D145:D154) -> 1.33856479 | O154: =+PRODUCT(D146:D154) -> 1.300096106 | P154: =+PRODUCT(D147:D154) -> 1.262732963 | Q154: =+PRODUCT(D148:D154) -> 1.226443591 | R154: =+PRODUCT(D149:D154) -> 1.19119713 | S154: =+PRODUCT(D150:D154) -> 1.156963608 | T154: =+PRODUCT(D151:D154) -> 1.123713915 | U154: =+PRODUCT(D152:D154) -> 1.091419777 | V154: =+PRODUCT(D153:D154) -> 1.060053732 | W154: =+PRODUCT(D154:D154) -> 1.029589108
A155: 2036 | B155: =+B122 -> 0.06130045299 | C155: 0.0308 | D155: 1.029589108 | E155: 17 | F155: 20.61727926 | H155: 1 | I155: =+PRODUCT(D140:D155) -> 1.548239613 | J155: =+PRODUCT(D141:D155) -> 1.526042629 | K155: =+PRODUCT(D142:D155) -> 1.504163881 | L155: =+PRODUCT(D143:D155) -> 1.460936085 | M155: =+PRODUCT(D144:D155) -> 1.418950602 | N155: =+PRODUCT(D145:D155) -> 1.378171729 | O155: =+PRODUCT(D146:D155) -> 1.33856479 | P155: =+PRODUCT(D147:D155) -> 1.300096106 | Q155: =+PRODUCT(D148:D155) -> 1.262732963 | R155: =+PRODUCT(D149:D155) -> 1.226443591 | S155: =+PRODUCT(D150:D155) -> 1.19119713 | T155: =+PRODUCT(D151:D155) -> 1.156963608 | U155: =+PRODUCT(D152:D155) -> 1.123713915 | V155: =+PRODUCT(D153:D155) -> 1.091419777 | W155: =+PRODUCT(D154:D155) -> 1.060053732 | X155: =+PRODUCT(D155:D155) -> 1.029589108
A156: 2037 | B156: =+B123 -> 0.06130045299 | C156: 0.0308 | D156: 1.029589108 | E156: 18 | F156: 22.25691528 | H156: 1 | I156: =+PRODUCT(D140:D156) -> 1.594050642 | J156: =+PRODUCT(D141:D156) -> 1.57119687 | K156: =+PRODUCT(D142:D156) -> 1.54867075 | L156: =+PRODUCT(D143:D156) -> 1.504163881 | M156: =+PRODUCT(D144:D156) -> 1.460936085 | N156: =+PRODUCT(D145:D156) -> 1.418950602 | O156: =+PRODUCT(D146:D156) -> 1.378171729 | P156: =+PRODUCT(D147:D156) -> 1.33856479 | Q156: =+PRODUCT(D148:D156) -> 1.300096106 | R156: =+PRODUCT(D149:D156) -> 1.262732963 | S156: =+PRODUCT(D150:D156) -> 1.226443591 | T156: =+PRODUCT(D151:D156) -> 1.19119713 | U156: =+PRODUCT(D152:D156) -> 1.156963608 | V156: =+PRODUCT(D153:D156) -> 1.123713915 | W156: =+PRODUCT(D154:D156) -> 1.091419777 | X156: =+PRODUCT(D155:D156) -> 1.060053732 | Y156: =+PRODUCT(D156:D156) -> 1.029589108
A157: 2038 | B157: =+B124 -> 0.06130045299 | C157: 0.0308 | D157: 1.029589108 | E157: 19 | F157: 23.94506667 | H157: 1 | I157: =+PRODUCT(D140:D157) -> 1.64121718 | J157: =+PRODUCT(D141:D157) -> 1.617687184 | K157: =+PRODUCT(D142:D157) -> 1.594494536 | L157: =+PRODUCT(D143:D157) -> 1.54867075 | M157: =+PRODUCT(D144:D157) -> 1.504163881 | N157: =+PRODUCT(D145:D157) -> 1.460936085 | O157: =+PRODUCT(D146:D157) -> 1.418950602 | P157: =+PRODUCT(D147:D157) -> 1.378171729 | Q157: =+PRODUCT(D148:D157) -> 1.33856479 | R157: =+PRODUCT(D149:D157) -> 1.300096106 | S157: =+PRODUCT(D150:D157) -> 1.262732963 | T157: =+PRODUCT(D151:D157) -> 1.226443591 | U157: =+PRODUCT(D152:D157) -> 1.19119713 | V157: =+PRODUCT(D153:D157) -> 1.156963608 | W157: =+PRODUCT(D154:D157) -> 1.123713915 | X157: =+PRODUCT(D155:D157) -> 1.091419777 | Y157: =+PRODUCT(D156:D157) -> 1.060053732 | Z157: =+PRODUCT(D157:D157) -> 1.029589108
A158: 2039 | B158: =+B125 -> 0.06130045299 | C158: 0.0308 | D158: 1.029589108 | E158: 20 | F158: 25.68316895 | H158: 1 | I158: =+PRODUCT(D140:D158) -> 1.689779333 | J158: =+PRODUCT(D141:D158) -> 1.665553106 | K158: =+PRODUCT(D142:D158) -> 1.641674208 | L158: =+PRODUCT(D143:D158) -> 1.594494536 | M158: =+PRODUCT(D144:D158) -> 1.54867075 | N158: =+PRODUCT(D145:D158) -> 1.504163881 | O158: =+PRODUCT(D146:D158) -> 1.460936085 | P158: =+PRODUCT(D147:D158) -> 1.418950602 | Q158: =+PRODUCT(D148:D158) -> 1.378171729 | R158: =+PRODUCT(D149:D158) -> 1.33856479 | S158: =+PRODUCT(D150:D158) -> 1.300096106 | T158: =+PRODUCT(D151:D158) -> 1.262732963 | U158: =+PRODUCT(D152:D158) -> 1.226443591 | V158: =+PRODUCT(D153:D158) -> 1.19119713 | W158: =+PRODUCT(D154:D158) -> 1.156963608 | X158: =+PRODUCT(D155:D158) -> 1.123713915 | Y158: =+PRODUCT(D156:D158) -> 1.091419777 | Z158: =+PRODUCT(D157:D158) -> 1.060053732 | AA158: =+PRODUCT(D158:D158) -> 1.029589108
A159: 2040 | B159: =+B126 -> 0.06130045299 | C159: 0.0308 | D159: 1.029589108 | E159: 21 | F159: 27.47270013 | H159: 1 | I159: =+PRODUCT(D140:D159) -> 1.739778397 | J159: =+PRODUCT(D141:D159) -> 1.714835337 | K159: =+PRODUCT(D142:D159) -> 1.690249884 | L159: =+PRODUCT(D143:D159) -> 1.641674208 | M159: =+PRODUCT(D144:D159) -> 1.594494536 | N159: =+PRODUCT(D145:D159) -> 1.54867075 | O159: =+PRODUCT(D146:D159) -> 1.504163881 | P159: =+PRODUCT(D147:D159) -> 1.460936085 | Q159: =+PRODUCT(D148:D159) -> 1.418950602 | R159: =+PRODUCT(D149:D159) -> 1.378171729 | S159: =+PRODUCT(D150:D159) -> 1.33856479 | T159: =+PRODUCT(D151:D159) -> 1.300096106 | U159: =+PRODUCT(D152:D159) -> 1.262732963 | V159: =+PRODUCT(D153:D159) -> 1.226443591 | W159: =+PRODUCT(D154:D159) -> 1.19119713 | X159: =+PRODUCT(D155:D159) -> 1.156963608 | Y159: =+PRODUCT(D156:D159) -> 1.123713915 | Z159: =+PRODUCT(D157:D159) -> 1.091419777 | AA159: =+PRODUCT(D158:D159) -> 1.060053732 | AB159: =+PRODUCT(D159:D159) -> 1.029589108
A160: 2041 | B160: =+B127 -> 0.06130045299 | C160: 0.0308 | D160: 1.029589108 | E160: 22 | F160: 29.31518194 | H160: 1 | I160: =+PRODUCT(D140:D160) -> 1.791256888 | J160: =+PRODUCT(D141:D160) -> 1.765575786 | K160: =+PRODUCT(D142:D160) -> 1.740262872 | L160: =+PRODUCT(D143:D160) -> 1.690249884 | M160: =+PRODUCT(D144:D160) -> 1.641674208 | N160: =+PRODUCT(D145:D160) -> 1.594494536 | O160: =+PRODUCT(D146:D160) -> 1.54867075 | P160: =+PRODUCT(D147:D160) -> 1.504163881 | Q160: =+PRODUCT(D148:D160) -> 1.460936085 | R160: =+PRODUCT(D149:D160) -> 1.418950602 | S160: =+PRODUCT(D150:D160) -> 1.378171729 | T160: =+PRODUCT(D151:D160) -> 1.33856479 | U160: =+PRODUCT(D152:D160) -> 1.300096106 | V160: =+PRODUCT(D153:D160) -> 1.262732963 | W160: =+PRODUCT(D154:D160) -> 1.226443591 | X160: =+PRODUCT(D155:D160) -> 1.19119713 | Y160: =+PRODUCT(D156:D160) -> 1.156963608 | Z160: =+PRODUCT(D157:D160) -> 1.123713915 | AA160: =+PRODUCT(D158:D160) -> 1.091419777 | AB160: =+PRODUCT(D159:D160) -> 1.060053732 | AC160: =+PRODUCT(D160:D160) -> 1.029589108
A161: 2042 | B161: =+B128 -> 0.06130045299 | C161: 0.0308 | D161: 1.029589108 | E161: 23 | F161: 31.21218115 | H161: 1 | I161: =+PRODUCT(D140:D161) -> 1.844258583 | J161: =+PRODUCT(D141:D161) -> 1.817817599 | K161: =+PRODUCT(D142:D161) -> 1.791755698 | L161: =+PRODUCT(D143:D161) -> 1.740262872 | M161: =+PRODUCT(D144:D161) -> 1.690249884 | N161: =+PRODUCT(D145:D161) -> 1.641674208 | O161: =+PRODUCT(D146:D161) -> 1.594494536 | P161: =+PRODUCT(D147:D161) -> 1.54867075 | Q161: =+PRODUCT(D148:D161) -> 1.504163881 | R161: =+PRODUCT(D149:D161) -> 1.460936085 | S161: =+PRODUCT(D150:D161) -> 1.418950602 | T161: =+PRODUCT(D151:D161) -> 1.378171729 | U161: =+PRODUCT(D152:D161) -> 1.33856479 | V161: =+PRODUCT(D153:D161) -> 1.300096106 | W161: =+PRODUCT(D154:D161) -> 1.262732963 | X161: =+PRODUCT(D155:D161) -> 1.226443591 | Y161: =+PRODUCT(D156:D161) -> 1.19119713 | Z161: =+PRODUCT(D157:D161) -> 1.156963608 | AA161: =+PRODUCT(D158:D161) -> 1.123713915 | AB161: =+PRODUCT(D159:D161) -> 1.091419777 | AC161: =+PRODUCT(D160:D161) -> 1.060053732 | AD161: =+PRODUCT(D161:D161) -> 1.029589108
A162: 2043 | B162: =+B129 -> 0.06130045299 | C162: 0.0308 | D162: 1.029589108 | E162: 24 | F162: 33.16531087 | H162: 1 | I162: =+PRODUCT(D140:D162) -> 1.89882855 | J162: =+PRODUCT(D141:D162) -> 1.871605201 | K162: =+PRODUCT(D142:D162) -> 1.844772152 | L162: =+PRODUCT(D143:D162) -> 1.791755698 | M162: =+PRODUCT(D144:D162) -> 1.740262872 | N162: =+PRODUCT(D145:D162) -> 1.690249884 | O162: =+PRODUCT(D146:D162) -> 1.641674208 | P162: =+PRODUCT(D147:D162) -> 1.594494536 | Q162: =+PRODUCT(D148:D162) -> 1.54867075 | R162: =+PRODUCT(D149:D162) -> 1.504163881 | S162: =+PRODUCT(D150:D162) -> 1.460936085 | T162: =+PRODUCT(D151:D162) -> 1.418950602 | U162: =+PRODUCT(D152:D162) -> 1.378171729 | V162: =+PRODUCT(D153:D162) -> 1.33856479 | W162: =+PRODUCT(D154:D162) -> 1.300096106 | X162: =+PRODUCT(D155:D162) -> 1.262732963 | Y162: =+PRODUCT(D156:D162) -> 1.226443591 | Z162: =+PRODUCT(D157:D162) -> 1.19119713 | AA162: =+PRODUCT(D158:D162) -> 1.156963608 | AB162: =+PRODUCT(D159:D162) -> 1.123713915 | AC162: =+PRODUCT(D160:D162) -> 1.091419777 | AD162: =+PRODUCT(D161:D162) -> 1.060053732 | AE162: =+PRODUCT(D162:D162) -> 1.029589108
A163: 2044 | B163: =+B130 -> 0.06130045299 | C163: 0.0308 | D163: 1.029589108 | E163: 25 | F163: 35.17623196 | H163: 1 | I163: =+PRODUCT(D140:D163) -> 1.955013194 | J163: =+PRODUCT(D141:D163) -> 1.926984331 | K163: =+PRODUCT(D142:D163) -> 1.899357315 | L163: =+PRODUCT(D143:D163) -> 1.844772152 | M163: =+PRODUCT(D144:D163) -> 1.791755698 | N163: =+PRODUCT(D145:D163) -> 1.740262872 | O163: =+PRODUCT(D146:D163) -> 1.690249884 | P163: =+PRODUCT(D147:D163) -> 1.641674208 | Q163: =+PRODUCT(D148:D163) -> 1.594494536 | R163: =+PRODUCT(D149:D163) -> 1.54867075 | S163: =+PRODUCT(D150:D163) -> 1.504163881 | T163: =+PRODUCT(D151:D163) -> 1.460936085 | U163: =+PRODUCT(D152:D163) -> 1.418950602 | V163: =+PRODUCT(D153:D163) -> 1.378171729 | W163: =+PRODUCT(D154:D163) -> 1.33856479 | X163: =+PRODUCT(D155:D163) -> 1.300096106 | Y163: =+PRODUCT(D156:D163) -> 1.262732963 | Z163: =+PRODUCT(D157:D163) -> 1.226443591 | AA163: =+PRODUCT(D158:D163) -> 1.19119713 | AB163: =+PRODUCT(D159:D163) -> 1.156963608 | AC163: =+PRODUCT(D160:D163) -> 1.123713915 | AD163: =+PRODUCT(D161:D163) -> 1.091419777 | AE163: =+PRODUCT(D162:D163) -> 1.060053732 | AF163: =+PRODUCT(D163:D163) -> 1.029589108
A164: 2045 | B164: =+B131 -> 0.06130045299 | C164: 0.0308 | D164: 1.029589108 | E164: 26 | F164: 37.24665441 | H164: 1 | I164: =+PRODUCT(D140:D164) -> 2.012860291 | J164: =+PRODUCT(D141:D164) -> 1.984002079 | K164: =+PRODUCT(D142:D164) -> 1.955557605 | L164: =+PRODUCT(D143:D164) -> 1.899357315 | M164: =+PRODUCT(D144:D164) -> 1.844772152 | N164: =+PRODUCT(D145:D164) -> 1.791755698 | O164: =+PRODUCT(D146:D164) -> 1.740262872 | P164: =+PRODUCT(D147:D164) -> 1.690249884 | Q164: =+PRODUCT(D148:D164) -> 1.641674208 | R164: =+PRODUCT(D149:D164) -> 1.594494536 | S164: =+PRODUCT(D150:D164) -> 1.54867075 | T164: =+PRODUCT(D151:D164) -> 1.504163881 | U164: =+PRODUCT(D152:D164) -> 1.460936085 | V164: =+PRODUCT(D153:D164) -> 1.418950602 | W164: =+PRODUCT(D154:D164) -> 1.378171729 | X164: =+PRODUCT(D155:D164) -> 1.33856479 | Y164: =+PRODUCT(D156:D164) -> 1.300096106 | Z164: =+PRODUCT(D157:D164) -> 1.262732963 | AA164: =+PRODUCT(D158:D164) -> 1.226443591 | AB164: =+PRODUCT(D159:D164) -> 1.19119713 | AC164: =+PRODUCT(D160:D164) -> 1.156963608 | AD164: =+PRODUCT(D161:D164) -> 1.123713915 | AE164: =+PRODUCT(D162:D164) -> 1.091419777 | AF164: =+PRODUCT(D163:D164) -> 1.060053732 | AG164: =+PRODUCT(D164:D164) -> 1.029589108
A165: 2046 | B165: =+B132 -> 0 | C165: 0 | D165: 1 | E165: 27 | F165: 38.24665441 | H165: 1 | I165: =+PRODUCT(D140:D165) -> 2.012860291 | J165: =+PRODUCT(D141:D165) -> 1.984002079 | K165: =+PRODUCT(D142:D165) -> 1.955557605 | L165: =+PRODUCT(D143:D165) -> 1.899357315 | M165: =+PRODUCT(D144:D165) -> 1.844772152 | N165: =+PRODUCT(D145:D165) -> 1.791755698 | O165: =+PRODUCT(D146:D165) -> 1.740262872 | P165: =+PRODUCT(D147:D165) -> 1.690249884 | Q165: =+PRODUCT(D148:D165) -> 1.641674208 | R165: =+PRODUCT(D149:D165) -> 1.594494536 | S165: =+PRODUCT(D150:D165) -> 1.54867075 | T165: =+PRODUCT(D151:D165) -> 1.504163881 | U165: =+PRODUCT(D152:D165) -> 1.460936085 | V165: =+PRODUCT(D153:D165) -> 1.418950602 | W165: =+PRODUCT(D154:D165) -> 1.378171729 | X165: =+PRODUCT(D155:D165) -> 1.33856479 | Y165: =+PRODUCT(D156:D165) -> 1.300096106 | Z165: =+PRODUCT(D157:D165) -> 1.262732963 | AA165: =+PRODUCT(D158:D165) -> 1.226443591 | AB165: =+PRODUCT(D159:D165) -> 1.19119713 | AC165: =+PRODUCT(D160:D165) -> 1.156963608 | AD165: =+PRODUCT(D161:D165) -> 1.123713915 | AE165: =+PRODUCT(D162:D165) -> 1.091419777 | AF165: =+PRODUCT(D163:D165) -> 1.060053732 | AG165: =+PRODUCT(D164:D165) -> 1.029589108 | AH165: =+PRODUCT(D165:D165) -> 1
